Workbook

Sheet Menú1
G2: Consolidado Bases de Datos Urabá
G24: Nota: Bases de datos compiladas en el marco de la investigación "Urabá, De la "pacificación" al encuentro de la "paz territorial" desarrollada por Ever Estyl Álvarez Giraldo en el marco de la Maestría en Estudios Socioespaciales del Instituto de Estudios Regionales de la Universidad de Antioquia. Diciembre de 2020.

Sheet Menú2
B2: Consolidado Bases de Datos Urabá
B3: Urabá antioqueño

Sheet Menú3
B2: Consolidado Bases de Datos Urabá
B3: Urabá antioqueño
B4: Tablas

Sheet Menú4
B2: Consolidado Bases de Datos Urabá
B3: Urabá antioqueño
B4: Gráficas

Sheet Menú5
B2: Consolidado Bases de Datos Urabá
B3: Gran Urabá

Sheet Menú6
B2: Consolidado Bases de Datos Urabá
B3: Gran Urabá
B4: Tablas

Sheet Menú7
B2: Consolidado Bases de Datos Urabá
B3: Gran Urabá
B4: Gráficas

Sheet Menú8
B2: Consolidado Bases de Datos Urabá
B3: Listados

Sheet T.Homic.Urabá ant
B2: Tablas Homicidios Urabá antioqueño
B5: Fuente: https://www.policia.gov.co/delitos-de-impacto/homicidios. Fecha de corte: 31 agosto 2010. Consultado el 25 de septiembre de 2020
B7: Homicidios Urabá antioqueño por municipio 2010-2020
B8: Territorialidad | C8: Municipio | D8: 2010 | E8: 2011 | F8: 2012 | G8: 2013 | H8: 2014 | I8: 2015 | J8: 2016 | K8: 2017 | L8: 2018 | M8: 2019 | N8: 2020
B9: Norte | C9: Arboletes | D9: 4 | E9: 6 | F9: 7 | G9: 6 | H9: 8 | I9: 5 | J9: 8 | K9: 11 | L9: 2 | M9: 4 | N9: 1
C10: San Juan | D10: 4 | E10: 3 | F10: 4 | G10: 2 | H10: 5 | I10: 0 | J10: 4 | K10: 5 | L10: 4 | M10: 5 | N10: 3
C11: San Pedro de Urabá | D11: 0 | E11: 4 | F11: 6 | G11: 4 | H11: 2 | I11: 5 | J11: 6 | K11: 8 | L11: 14 | M11: 2 | N11: 3
C12: Necoclí | D12: 3 | E12: 11 | F12: 10 | G12: 6 | H12: 9 | I12: 7 | J12: 6 | K12: 7 | L12: 12 | M12: 5 | N12: 5
B13: Eje Bananero | C13: Turbo | D13: 32 | E13: 66 | F13: 48 | G13: 46 | H13: 34 | I13: 56 | J13: 86 | K13: 88 | L13: 104 | M13: 70 | N13: 40
C14: Apartadó | D14: 44 | E14: 78 | F14: 43 | G14: 34 | H14: 38 | I14: 27 | J14: 35 | K14: 54 | L14: 54 | M14: 45 | N14: 24
C15: Carepa | D15: 16 | E15: 16 | F15: 18 | G15: 13 | H15: 13 | I15: 8 | J15: 19 | K15: 26 | L15: 26 | M15: 21 | N15: 14
C16: Chigorodó | D16: 54 | E16: 49 | F16: 44 | G16: 22 | H16: 20 | I16: 14 | J16: 26 | K16: 37 | L16: 42 | M16: 27 | N16: 18
B17: Sur y Medio Atrato | C17: Mutatá | D17: 4 | E17: 8 | F17: 15 | G17: 7 | H17: 3 | I17: 5 | J17: 11 | K17: 6 | L17: 17 | M17: 24 | N17: 8
C18: Vigía del Fuerte | D18: 1 | E18: 0 | F18: 1 | G18: 0 | H18: 1 | I18: 1 | J18: 1 | K18: 2 | L18: 2 | M18: 1 | N18: 0
C19: Murindó | D19: 0 | E19: 1 | F19: 0 | G19: 0 | H19: 0 | I19: 0 | J19: 1 | K19: 1 | L19: 2 | M19: 0 | N19: 1
C20: TOTAL | D20: =SUM(D9:D19) -> 162 | E20: =SUM(E9:E19) -> 242 | F20: 196 | G20: 140 | H20: 133 | I20: 128 | J20: 203 | K20: 245 | L20: 279 | M20: 204 | N20: 117
B22: Homicidios Norte Urabá por municipio 2010-2020
B23: Territorialidad | C23: Municipio | D23: 2010 | E23: 2011 | F23: 2012 | G23: 2013 | H23: 2014 | I23: 2015 | J23: 2016 | K23: 2017 | L23: 2018 | M23: 2019 | N23: 2020
B24: Norte | C24: Arboletes | D24: 4 | E24: 6 | F24: 7 | G24: 6 | H24: 8 | I24: 5 | J24: 8 | K24: 11 | L24: 2 | M24: 4 | N24: 1
C25: San Juan | D25: 4 | E25: 3 | F25: 4 | G25: 2 | H25: 5 | I25: 0 | J25: 4 | K25: 5 | L25: 4 | M25: 5 | N25: 3
C26: San Pedro de Urabá | D26: 0 | E26: 4 | F26: 6 | G26: 4 | H26: 2 | I26: 5 | J26: 6 | K26: 8 | L26: 14 | M26: 2 | N26: 3
C27: Necoclí | D27: 3 | E27: 11 | F27: 10 | G27: 6 | H27: 9 | I27: 7 | J27: 6 | K27: 7 | L27: 12 | M27: 5 | N27: 5
C28: TOTAL | D28: =SUM(D24:D27) -> 11 | E28: =SUM(E24:E27) -> 24 | F28: 27 | G28: 18 | H28: 24 | I28: 17 | J28: 24 | K28: 31 | L28: 32 | M28: 16 | N28: 12
B30: Homicidios Eje Bananero Urabá por municipio 2010-2020
B31: Territorialidad | C31: Municipio | D31: 2010 | E31: 2011 | F31: 2012 | G31: 2013 | H31: 2014 | I31: 2015 | J31: 2016 | K31: 2017 | L31: 2018 | M31: 2019 | N31: 2020
B32: Eje Bananero | C32: Turbo | D32: 32 | E32: 66 | F32: 48 | G32: 46 | H32: 34 | I32: 56 | J32: 86 | K32: 88 | L32: 104 | M32: 70 | N32: 40
C33: Apartadó | D33: 44 | E33: 78 | F33: 43 | G33: 34 | H33: 38 | I33: 27 | J33: 35 | K33: 54 | L33: 54 | M33: 45 | N33: 24
C34: Carepa | D34: 16 | E34: 16 | F34: 18 | G34: 13 | H34: 13 | I34: 8 | J34: 19 | K34: 26 | L34: 26 | M34: 21 | N34: 14
C35: Chigorodó | D35: 54 | E35: 49 | F35: 44 | G35: 22 | H35: 20 | I35: 14 | J35: 26 | K35: 37 | L35: 42 | M35: 27 | N35: 18
C36: TOTAL | D36: =SUM(D32:D35) -> 146 | E36: =SUM(E32:E35) -> 209 | F36: 153 | G36: 115 | H36: 105 | I36: 105 | J36: 166 | K36: 205 | L36: 226 | M36: 163 | N36: 96
B38: Homicidios Urabá Sur y Medio Atrato por municipio 2010-2020
B39: Territorialidad | C39: Municipio | D39: 2010 | E39: 2011 | F39: 2012 | G39: 2013 | H39: 2014 | I39: 2015 | J39: 2016 | K39: 2017 | L39: 2018 | M39: 2019 | N39: 2020
B40: Sur y Medio Atrato | C40: Mutatá | D40: 4 | E40: 8 | F40: 15 | G40: 7 | H40: 3 | I40: 5 | J40: 11 | K40: 6 | L40: 17 | M40: 24 | N40: 8
C41: Vigía del Fuerte | D41: 1 | E41: 0 | F41: 1 | G41: 0 | H41: 1 | I41: 1 | J41: 1 | K41: 2 | L41: 2 | M41: 1 | N41: 0
C42: Murindó | D42: 0 | E42: 1 | F42: 0 | G42: 0 | H42: 0 | I42: 0 | J42: 1 | K42: 1 | L42: 2 | M42: 0 | N42: 1
C43: TOTAL | D43: =SUM(D40:D42) -> 5 | E43: =SUM(E40:E42) -> 9 | F43: 16 | G43: 7 | H43: 4 | I43: 6 | J43: 13 | K43: 9 | L43: 21 | M43: 25 | N43: 9
B45: Homicidios Urabá antioqueño por territorialidad 2010-2020
B46: Región | C46: Territorialidad | D46: 2010 | E46: 2011 | F46: 2012 | G46: 2013 | H46: 2014 | I46: 2015 | J46: 2016 | K46: 2017 | L46: 2018 | M46: 2019 | N46: 2020
B47: Urabá antioqueño | C47: Norte Urabá | D47: =D28 -> 11 | E47: =E28 -> 24 | F47: 27 | G47: 18 | H47: 24 | I47: 17 | J47: 24 | K47: 31 | L47: 32 | M47: 16 | N47: 12
C48: Eje Bananero | D48: =D36 -> 146 | E48: =E36 -> 209 | F48: 153 | G48: 115 | H48: 105 | I48: 105 | J48: 166 | K48: 205 | L48: 226 | M48: 163 | N48: 96
C49: Sur y Medio Atrato | D49: =D43 -> 5 | E49: =E43 -> 9 | F49: 16 | G49: 7 | H49: 4 | I49: 6 | J49: 13 | K49: 9 | L49: 21 | M49: 25 | N49: 9
C50: TOTAL | D50: =SUM(D47:D49) -> 162 | E50: =SUM(E47:E49) -> 242 | F50: 196 | G50: 140 | H50: 133 | I50: 128 | J50: 203 | K50: 245 | L50: 279 | M50: 204 | N50: 117

Sheet T.Homic.GUrabá
B3: Tablas Homicidios Gran Urabá
B5: Fuente: https://www.policia.gov.co/delitos-de-impacto/homicidios. Fecha de corte: 31 agosto 2010. Consultado el 25 de septiembre de 2020
B7: Homicidios Gran Urabá por municipios 2010-2020
B8: Territorialidad | C8: Municipio | D8: 2010 | E8: 2011 | F8: 2012 | G8: 2013 | H8: 2014 | I8: 2015 | J8: 2016 | K8: 2017 | L8: 2018 | M8: 2019 | N8: 2020
B9: Norte Urabá | C9: Arboletes | D9: 4 | E9: 6 | F9: 7 | G9: 6 | H9: 8 | I9: 5 | J9: 8 | K9: 11 | L9: 2 | M9: 4 | N9: 1 | O9: =SUM(D9:N9) -> 62
C10: San Juan | D10: 4 | E10: 3 | F10: 4 | G10: 2 | H10: 5 | I10: 0 | J10: 4 | K10: 5 | L10: 4 | M10: 5 | N10: 3 | O10: =SUM(D10:N10) -> 39
C11: San Pedro de Urabá | D11: 0 | E11: 4 | F11: 6 | G11: 4 | H11: 2 | I11: 5 | J11: 6 | K11: 8 | L11: 14 | M11: 2 | N11: 3 | O11: 54
C12: Necoclí | D12: 3 | E12: 11 | F12: 10 | G12: 6 | H12: 9 | I12: 7 | J12: 6 | K12: 7 | L12: 12 | M12: 5 | N12: 5 | O12: 81
B13: Eje Bananero | C13: Turbo | D13: 32 | E13: 66 | F13: 48 | G13: 46 | H13: 34 | I13: 56 | J13: 86 | K13: 88 | L13: 104 | M13: 70 | N13: 40 | O13: 670
C14: Apartadó | D14: 44 | E14: 78 | F14: 43 | G14: 34 | H14: 38 | I14: 27 | J14: 35 | K14: 54 | L14: 54 | M14: 45 | N14: 24 | O14: 476
C15: Carepa | D15: 16 | E15: 16 | F15: 18 | G15: 13 | H15: 13 | I15: 8 | J15: 19 | K15: 26 | L15: 26 | M15: 21 | N15: 14 | O15: 190
C16: Chigorodó | D16: 54 | E16: 49 | F16: 44 | G16: 22 | H16: 20 | I16: 14 | J16: 26 | K16: 37 | L16: 42 | M16: 27 | N16: 18 | O16: 353
B17: Sur y Dabeiba | C17: Mutatá | D17: 4 | E17: 8 | F17: 15 | G17: 7 | H17: 3 | I17: 5 | J17: 11 | K17: 6 | L17: 17 | M17: 24 | N17: 8 | O17: 108
C18: Dabeiba | D18: 6 | E18: 8 | F18: 7 | G18: 9 | H18: 3 | I18: 8 | J18: 6 | K18: 11 | L18: 8 | M18: 12 | N18: 12 | O18: 90
B19: Atrato | C19: Vigía del Fuerte | D19: 1 | E19: 0 | F19: 1 | G19: 0 | H19: 1 | I19: 1 | J19: 1 | K19: 2 | L19: 2 | M19: 1 | N19: 0 | O19: 10
C20: Murindó | D20: 0 | E20: 1 | F20: 0 | G20: 0 | H20: 0 | I20: 0 | J20: 1 | K20: 1 | L20: 2 | M20: 0 | N20: 1 | O20: 6
C21: Riosucio | D21: 1 | E21: 11 | F21: 7 | G21: 11 | H21: 7 | I21: 7 | J21: 3 | K21: 16 | L21: 10 | M21: 14 | N21: 6 | O21: 93
C22: Carmen del Darién | D22: 0 | E22: 1 | F22: 5 | G22: 4 | H22: 1 | I22: 0 | J22: 0 | K22: 5 | L22: 4 | M22: 5 | N22: 7 | O22: 32
B23: Darién-Norte Chocó | C23: Unguía | D23: 1 | E23: 3 | F23: 5 | G23: 4 | H23: 5 | I23: 6 | J23: 6 | K23: 10 | L23: 7 | M23: 14 | N23: 4 | O23: 65
C24: Acandí | D24: 3 | E24: 2 | F24: 6 | G24: 3 | H24: 8 | I24: 6 | J24: 12 | K24: 13 | L24: 12 | M24: 5 | N24: 3 | O24: 73
B25: Sur Córdoba | C25: Tierralta | D25: 31 | E25: 51 | F25: 48 | G25: 36 | H25: 29 | I25: 24 | J25: 32 | K25: 19 | L25: 24 | M25: 14 | N25: 13 | O25: 321
C26: Valencia | D26: 3 | E26: 3 | F26: 2 | G26: 7 | H26: 3 | I26: 6 | J26: 5 | K26: 3 | L26: 5 | M26: 5 | N26: 1 | O26: 43
C27: Total | D27: =SUM(D9:D26) -> 207 | E27: =SUM(E9:E26) -> 321 | F27: 276 | G27: 214 | H27: 189 | I27: 185 | J27: 267 | K27: 322 | L27: 349 | M27: 273 | N27: 163 | O27: =SUM(D27:N27) -> 2766
B29: Homicidios Norte Urabá por municipio 2010-2020
B30: Territorialidad | C30: Municipio | D30: 2010 | E30: 2011 | F30: 2012 | G30: 2013 | H30: 2014 | I30: 2015 | J30: 2016 | K30: 2017 | L30: 2018 | M30: 2019 | N30: 2020
B31: Norte Urabá | C31: Arboletes | D31: 4 | E31: 6 | F31: 7 | G31: 6 | H31: 8 | I31: 5 | J31: 8 | K31: 11 | L31: 2 | M31: 4 | N31: 1 | O31: =SUM(D31:N31) -> 62
C32: San Juan | D32: 4 | E32: 3 | F32: 4 | G32: 2 | H32: 5 | I32: 0 | J32: 4 | K32: 5 | L32: 4 | M32: 5 | N32: 3 | O32: =SUM(D32:N32) -> 39
C33: San Pedro de Urabá | D33: 0 | E33: 4 | F33: 6 | G33: 4 | H33: 2 | I33: 5 | J33: 6 | K33: 8 | L33: 14 | M33: 2 | N33: 3 | O33: 54
C34: Necoclí | D34: 3 | E34: 11 | F34: 10 | G34: 6 | H34: 9 | I34: 7 | J34: 6 | K34: 7 | L34: 12 | M34: 5 | N34: 5 | O34: 81
C35: Total | D35: =SUM(D31:D34) -> 11 | E35: 24 | F35: 27 | G35: 18 | H35: 24 | I35: 17 | J35: 24 | K35: 31 | L35: 32 | M35: 16 | N35: 12 | O35: 236
B37: Homicidios Eje Bananero Urabá por municipio 2010-2020
B38: Territorialidad | C38: Municipio | D38: 2010 | E38: 2011 | F38: 2012 | G38: 2013 | H38: 2014 | I38: 2015 | J38: 2016 | K38: 2017 | L38: 2018 | M38: 2019 | N38: 2020
B39: Eje Bananero | C39: Turbo | D39: 32 | E39: 66 | F39: 48 | G39: 46 | H39: 34 | I39: 56 | J39: 86 | K39: 88 | L39: 104 | M39: 70 | N39: 40 | O39: =SUM(D39:N39) -> 670
C40: Apartadó | D40: 44 | E40: 78 | F40: 43 | G40: 34 | H40: 38 | I40: 27 | J40: 35 | K40: 54 | L40: 54 | M40: 45 | N40: 24 | O40: =SUM(D40:N40) -> 476
C41: Carepa | D41: 16 | E41: 16 | F41: 18 | G41: 13 | H41: 13 | I41: 8 | J41: 19 | K41: 26 | L41: 26 | M41: 21 | N41: 14 | O41: 190
C42: Chigorodó | D42: 54 | E42: 49 | F42: 44 | G42: 22 | H42: 20 | I42: 14 | J42: 26 | K42: 37 | L42: 42 | M42: 27 | N42: 18 | O42: 353
C43: Total | D43: =SUM(D39:D42) -> 146 | E43: =SUM(E39:E42) -> 209 | F43: 153 | G43: 115 | H43: 105 | I43: 105 | J43: 166 | K43: 205 | L43: 226 | M43: 163 | N43: 96 | O43: 1689
B45: Homicidios Sur Urabá y Dabeiba por municipio 2010-2020
B46: Territorialidad | C46: Municipio | D46: 2010 | E46: 2011 | F46: 2012 | G46: 2013 | H46: 2014 | I46: 2015 | J46: 2016 | K46: 2017 | L46: 2018 | M46: 2019 | N46: 2020
B47: Sur y Dabeiba | C47: Mutatá | D47: 4 | E47: 8 | F47: 15 | G47: 7 | H47: 3 | I47: 5 | J47: 11 | K47: 6 | L47: 17 | M47: 24 | N47: 8 | O47: =SUM(D47:N47) -> 108
C48: Dabeiba | D48: 6 | E48: 8 | F48: 7 | G48: 9 | H48: 3 | I48: 8 | J48: 6 | K48: 11 | L48: 8 | M48: 12 | N48: 12 | O48: =SUM(D48:N48) -> 90
C49: Total | D49: =SUM(D47:D48) -> 10 | E49: =SUM(E47:E48) -> 16 | F49: 22 | G49: 16 | H49: 6 | I49: 13 | J49: 17 | K49: 17 | L49: 25 | M49: 36 | N49: 20 | O49: 198
B51: Homicidios Atrato por municipio 2010-2020
B52: Territorialidad | C52: Municipio | D52: 2010 | E52: 2011 | F52: 2012 | G52: 2013 | H52: 2014 | I52: 2015 | J52: 2016 | K52: 2017 | L52: 2018 | M52: 2019 | N52: 2020
B53: Atrato | C53: Vigía del Fuerte | D53: 1 | E53: 0 | F53: 1 | G53: 0 | H53: 1 | I53: 1 | J53: 1 | K53: 2 | L53: 2 | M53: 1 | N53: 0 | O53: =SUM(D53:N53) -> 10
C54: Murindó | D54: 0 | E54: 1 | F54: 0 | G54: 0 | H54: 0 | I54: 0 | J54: 1 | K54: 1 | L54: 2 | M54: 0 | N54: 1 | O54: =SUM(D54:N54) -> 6
C55: Riosucio | D55: 1 | E55: 11 | F55: 7 | G55: 11 | H55: 7 | I55: 7 | J55: 3 | K55: 16 | L55: 10 | M55: 14 | N55: 6 | O55: 93
C56: Carmen del Darién | D56: 0 | E56: 1 | F56: 5 | G56: 4 | H56: 1 | I56: 0 | J56: 0 | K56: 5 | L56: 4 | M56: 5 | N56: 7 | O56: 32
C57: Total | D57: =SUM(D53:D56) -> 2 | E57: =SUM(E53:E56) -> 13 | F57: 13 | G57: 15 | H57: 9 | I57: 8 | J57: 5 | K57: 24 | L57: 18 | M57: 20 | N57: 14 | O57: 141
B59: Homicidios Darién-Norte Chocó por municipio 2010-2020
B60: Territorialidad | C60: Municipio | D60: 2010 | E60: 2011 | F60: 2012 | G60: 2013 | H60: 2014 | I60: 2015 | J60: 2016 | K60: 2017 | L60: 2018 | M60: 2019 | N60: 2020
B61: Darién Norte-Chocó | C61: Unguía | D61: 1 | E61: 3 | F61: 5 | G61: 4 | H61: 5 | I61: 6 | J61: 6 | K61: 10 | L61: 7 | M61: 14 | N61: 4 | O61: =SUM(D61:N61) -> 65
C62: Acandí | D62: 3 | E62: 2 | F62: 6 | G62: 3 | H62: 8 | I62: 6 | J62: 12 | K62: 13 | L62: 12 | M62: 5 | N62: 3 | O62: =SUM(D62:N62) -> 73
C63: Total | D63: =SUM(D61:D62) -> 4 | E63: =SUM(E61:E62) -> 5 | F63: 11 | G63: 7 | H63: 13 | I63: 12 | J63: 18 | K63: 23 | L63: 19 | M63: 19 | N63: 7 | O63: 138
B65: Homicidios Sur de Córdoba por municipio 2010-2020
B66: Región | D66: 2010 | E66: 2011 | F66: 2012 | G66: 2013 | H66: 2014 | I66: 2015 | J66: 2016 | K66: 2017 | L66: 2018 | M66: 2019 | N66: 2020
B67: Córdoba | C67: Tierralta | D67: 31 | E67: 51 | F67: 48 | G67: 36 | H67: 29 | I67: 24 | J67: 32 | K67: 19 | L67: 24 | M67: 14 | N67: 13 | O67: =SUM(D67:N67) -> 321
C68: Valencia | D68: 3 | E68: 3 | F68: 2 | G68: 7 | H68: 3 | I68: 6 | J68: 5 | K68: 3 | L68: 5 | M68: 5 | N68: 1 | O68: =SUM(D68:N68) -> 43
C69: TOTAL | D69: =SUM(D67:D68) -> 34 | E69: =SUM(E67:E68) -> 54 | F69: 50 | G69: 43 | H69: 32 | I69: 30 | J69: 37 | K69: 22 | L69: 29 | M69: 19 | N69: 14 | O69: 364
B71: Homicidios Gran Urabá por territorialidad 2010-2020
B72: Región | C72: Territorialidad | D72: 2010 | E72: 2011 | F72: 2012 | G72: 2013 | H72: 2014 | I72: 2015 | J72: 2016 | K72: 2017 | L72: 2018 | M72: 2019 | N72: 2020
B73: Gran Urabá | C73: Norte Urabá | D73: =D35 -> 11 | E73: =E35 -> 24 | F73: 27 | G73: 18 | H73: 24 | I73: 17 | J73: 24 | K73: 31 | L73: 32 | M73: 16 | N73: 12 | O73: =SUM(D73:N73) -> 236
C74: Eje Bananero | D74: =D43 -> 146 | E74: =E43 -> 209 | F74: 153 | G74: 115 | H74: 105 | I74: 105 | J74: 166 | K74: 205 | L74: 226 | M74: 163 | N74: 96 | O74: =SUM(D74:N74) -> 1689
C75: Sur y Dabeiba | D75: =D49 -> 10 | E75: =E49 -> 16 | F75: 22 | G75: 16 | H75: 6 | I75: 13 | J75: 17 | K75: 17 | L75: 25 | M75: 36 | N75: 20 | O75: 198
C76: Atrato | D76: =D57 -> 2 | E76: =E57 -> 13 | F76: 13 | G76: 15 | H76: 9 | I76: 8 | J76: 5 | K76: 24 | L76: 18 | M76: 20 | N76: 14 | O76: 141
C77: Darién Norte-Chocó | D77: =D63 -> 4 | E77: =E63 -> 5 | F77: 11 | G77: 7 | H77: 13 | I77: 12 | J77: 18 | K77: 23 | L77: 19 | M77: 19 | N77: 7 | O77: 138
C78: Sur Córdoba | D78: =D69 -> 34 | E78: =E69 -> 54 | F78: 50 | G78: 43 | H78: 32 | I78: 30 | J78: 37 | K78: 22 | L78: 29 | M78: 19 | N78: 14 | O78: 364
C79: TOTAL | D79: =SUM(D73:D78) -> 207 | E79: =SUM(E73:E78) -> 321 | F79: 276 | G79: 214 | H79: 189 | I79: 185 | J79: 267 | K79: 322 | L79: 349 | M79: 273 | N79: 163 | O79: 2766

Sheet Graf.Homic.Urabá ant
B3: Gráficas Homicidios Urabá antioqueño
B5: Fuente: https://www.policia.gov.co/delitos-de-impacto/homicidios. Fecha de corte: 31 agosto 2010. Consultado el 25 de septiembre de 2020

Sheet Graf.Homic.GUrabá
B3: Gráficas Homicidios Gran Urabá
B5: Fuente: https://www.policia.gov.co/delitos-de-impacto/homicidios. Fecha de corte: 31 agosto 2010. Consultado el 25 de septiembre de 2020

Sheet T.Desplaz.Urabá ant
B3: Tablas Desplazamiento Urabá antioqueño
B5: Fuente: Red Nacional de Información: https://www.unidadvictimas.gov.co/es/registro-unico-de-victimas-ruv/37394. Fecha Corte: lunes, 31 de agosto de 2020 Consultado el 25 de septiembre de 2020
B7: Desplazamiento Urabá antioqueño por municipio 1985-2019
B8: Territorialidad | C8: Municipio | D8: 1985 | E8: 1986 | F8: 1987 | G8: 1988 | H8: 1989 | I8: 1990 | J8: 1991 | K8: 1992 | L8: 1993 | M8: 1994 | N8: 1995 | O8: 1996 | P8: 1997 | Q8: 1998 | R8: 1999 | S8: 2000 | T8: 2001 | U8: 2002 | V8: 2003 | W8: 2004 | X8: 2005 | Y8: 2006 | Z8: 2007 | AA8: 2008 | AB8: 2009 | AC8: 2010 | AD8: 2011 | AE8: 2012 | AF8: 2013 | AG8: 2014 | AH8: 2015 | AI8: 2016 | AJ8: 2017 | AK8: 2018 | AL8: 2019
B9: Norte Urabá | C9: Arboletes | D9: 557 | E9: 205 | F9: 335 | G9: 807 | H9: 810 | I9: 2813 | J9: 733 | K9: 1801 | L9: 3930 | M9: 1914 | N9: 2803 | O9: 895 | P9: 3513 | Q9: 1103 | R9: 727 | S9: 911 | T9: 897 | U9: 595 | V9: 423 | W9: 491 | X9: 535 | Y9: 468 | Z9: 421 | AA9: 591 | AB9: 314 | AC9: 294 | AD9: 252 | AE9: 253 | AF9: 196 | AG9: 185 | AH9: 125 | AI9: 151 | AJ9: 101 | AK9: 101 | AL9: 72
C10: San Juan | D10: 164 | E10: 109 | F10: 134 | G10: 182 | H10: 211 | I10: 230 | J10: 509 | K10: 1346 | L10: 613 | M10: 368 | N10: 496 | O10: 344 | P10: 3621 | Q10: 779 | R10: 355 | S10: 398 | T10: 607 | U10: 369 | V10: 288 | W10: 305 | X10: 380 | Y10: 399 | Z10: 427 | AA10: 365 | AB10: 286 | AC10: 203 | AD10: 216 | AE10: 249 | AF10: 246 | AG10: 185 | AH10: 117 | AI10: 45 | AJ10: 107 | AK10: 82 | AL10: 49
C11: San Pedro de Urabá | D11: 261 | E11: 116 | F11: 164 | G11: 224 | H11: 240 | I11: 625 | J11: 874 | K11: 989 | L11: 3523 | M11: 1546 | N11: 3116 | O11: 1649 | P11: 1374 | Q11: 1326 | R11: 1024 | S11: 1538 | T11: 3217 | U11: 1321 | V11: 757 | W11: 936 | X11: 1141 | Y11: 778 | Z11: 1015 | AA11: 1307 | AB11: 449 | AC11: 359 | AD11: 279 | AE11: 194 | AF11: 230 | AG11: 281 | AH11: 233 | AI11: 162 | AJ11: 208 | AK11: 219 | AL11: 88
C12: Necoclí | D12: 690 | E12: 360 | F12: 627 | G12: 629 | H12: 519 | I12: 672 | J12: 480 | K12: 1265 | L12: 1861 | M12: 3825 | N12: 17020 | O12: 2616 | P12: 4215 | Q12: 1500 | R12: 1175 | S12: 1435 | T12: 1284 | U12: 1045 | V12: 556 | W12: 827 | X12: 1070 | Y12: 921 | Z12: 1047 | AA12: 952 | AB12: 589 | AC12: 485 | AD12: 416 | AE12: 342 | AF12: 416 | AG12: 307 | AH12: 257 | AI12: 182 | AJ12: 185 | AK12: 157 | AL12: 117
B13: Eje Bananero | C13: Turbo | D13: 923 | E13: 595 | F13: 907 | G13: 3236 | H13: 908 | I13: 1582 | J13: 1006 | K13: 1536 | L13: 3028 | M13: 3651 | N13: 16321 | O13: 25837 | P13: 16348 | Q13: 10157 | R13: 3392 | S13: 7282 | T13: 6288 | U13: 2611 | V13: 1680 | W13: 2239 | X13: 3270 | Y13: 3175 | Z13: 5594 | AA13: 5183 | AB13: 2216 | AC13: 1444 | AD13: 2247 | AE13: 2119 | AF13: 3389 | AG13: 2249 | AH13: 1779 | AI13: 898 | AJ13: 958 | AK13: 1063 | AL13: 747
C14: Apartadó | D14: 490 | E14: 281 | F14: 422 | G14: 686 | H14: 584 | I14: 687 | J14: 766 | K14: 965 | L14: 2063 | M14: 5503 | N14: 5066 | O14: 5687 | P14: 11333 | Q14: 4503 | R14: 2852 | S14: 5183 | T14: 3558 | U14: 3540 | V14: 1316 | W14: 1584 | X14: 3750 | Y14: 3356 | Z14: 2735 | AA14: 2308 | AB14: 1580 | AC14: 1176 | AD14: 1281 | AE14: 1313 | AF14: 1609 | AG14: 1482 | AH14: 1157 | AI14: 564 | AJ14: 557 | AK14: 527 | AL14: 397
C15: Carepa | D15: 148 | E15: 80 | F15: 79 | G15: 169 | H15: 120 | I15: 153 | J15: 142 | K15: 451 | L15: 739 | M15: 891 | N15: 2650 | O15: 1747 | P15: 1175 | Q15: 1473 | R15: 688 | S15: 1155 | T15: 1482 | U15: 978 | V15: 512 | W15: 650 | X15: 659 | Y15: 560 | Z15: 798 | AA15: 831 | AB15: 481 | AC15: 389 | AD15: 370 | AE15: 415 | AF15: 743 | AG15: 672 | AH15: 403 | AI15: 264 | AJ15: 212 | AK15: 208 | AL15: 161
C16: Chigorodó | D16: 143 | E16: 156 | F16: 273 | G16: 290 | H16: 256 | I16: 513 | J16: 415 | K16: 423 | L16: 685 | M16: 758 | N16: 2593 | O16: 4902 | P16: 3106 | Q16: 1745 | R16: 1429 | S16: 1833 | T16: 1408 | U16: 1276 | V16: 592 | W16: 818 | X16: 1083 | Y16: 1007 | Z16: 1618 | AA16: 2110 | AB16: 973 | AC16: 1026 | AD16: 1392 | AE16: 1144 | AF16: 668 | AG16: 813 | AH16: 1155 | AI16: 276 | AJ16: 269 | AK16: 238 | AL16: 177
B17: Sur y Medio Atrato | C17: Mutatá | D17: 350 | E17: 135 | F17: 157 | G17: 136 | H17: 173 | I17: 211 | J17: 214 | K17: 230 | L17: 307 | M17: 583 | N17: 1326 | O17: 3658 | P17: 13783 | Q17: 7764 | R17: 2428 | S17: 3693 | T17: 2061 | U17: 954 | V17: 453 | W17: 536 | X17: 1236 | Y17: 1201 | Z17: 819 | AA17: 1133 | AB17: 406 | AC17: 357 | AD17: 398 | AE17: 737 | AF17: 404 | AG17: 446 | AH17: 225 | AI17: 140 | AJ17: 185 | AK17: 214 | AL17: 162
C18: Vigía del Fuerte | D18: 17 | E18: 1 | F18: 0 | G18: 18 | H18: 26 | I18: 12 | J18: 5 | K18: 22 | L18: 6 | M18: 15 | N18: 28 | O18: 74 | P18: 340 | Q18: 300 | R18: 1016 | S18: 2379 | T18: 1697 | U18: 4596 | V18: 128 | W18: 233 | X18: 327 | Y18: 704 | Z18: 614 | AA18: 509 | AB18: 313 | AC18: 288 | AD18: 217 | AE18: 811 | AF18: 157 | AG18: 246 | AH18: 80 | AI18: 51 | AJ18: 24 | AK18: 76 | AL18: 43
C19: Murindó | D19: 5 | E19: 61 | F19: 7 | G19: 2 | H19: 4 | I19: 4 | J19: 7 | K19: 9 | L19: 11 | M19: 4 | N19: 17 | O19: 54 | P19: 414 | Q19: 196 | R19: 122 | S19: 155 | T19: 1059 | U19: 483 | V19: 70 | W19: 201 | X19: 170 | Y19: 83 | Z19: 64 | AA19: 81 | AB19: 59 | AC19: 53 | AD19: 44 | AE19: 46 | AF19: 48 | AG19: 56 | AH19: 23 | AI19: 15 | AJ19: 17 | AK19: 73 | AL19: 28
C20: TOTAL | D20: =SUM(D9:D19) -> 3748 | E20: 2099 | F20: 3105 | G20: 6379 | H20: 3851 | I20: 7502 | J20: 5151 | K20: 9037 | L20: 16766 | M20: 19058 | N20: 51436 | O20: 47463 | P20: 59222 | Q20: 30846 | R20: 15208 | S20: 25962 | T20: 23558 | U20: 17768 | V20: 6775 | W20: 8820 | X20: 13621 | Y20: 12652 | Z20: 15152 | AA20: 15370 | AB20: 7666 | AC20: 6074 | AD20: 7112 | AE20: 7623 | AF20: 8106 | AG20: 6922 | AH20: 5554 | AI20: 2748 | AJ20: 2823 | AK20: 2958 | AL20: 2041
B22: Desplazamiento Norte Urabá por municipio 1985-2019
B23: Territorialidad | C23: Municipio | D23: 1985 | E23: 1986 | F23: 1987 | G23: 1988 | H23: 1989 | I23: 1990 | J23: 1991 | K23: 1992 | L23: 1993 | M23: 1994 | N23: 1995 | O23: 1996 | P23: 1997 | Q23: 1998 | R23: 1999 | S23: 2000 | T23: 2001 | U23: 2002 | V23: 2003 | W23: 2004 | X23: 2005 | Y23: 2006 | Z23: 2007 | AA23: 2008 | AB23: 2009 | AC23: 2010 | AD23: 2011 | AE23: 2012 | AF23: 2013 | AG23: 2014 | AH23: 2015 | AI23: 2016 | AJ23: 2017 | AK23: 2018 | AL23: 2019
B24: Norte | C24: Arboletes | D24: 557 | E24: 205 | F24: 335 | G24: 807 | H24: 810 | I24: 2813 | J24: 733 | K24: 1801 | L24: 3930 | M24: 1914 | N24: 2803 | O24: 895 | P24: 3513 | Q24: 1103 | R24: 727 | S24: 911 | T24: 897 | U24: 595 | V24: 423 | W24: 491 | X24: 535 | Y24: 468 | Z24: 421 | AA24: 591 | AB24: 314 | AC24: 294 | AD24: 252 | AE24: 253 | AF24: 196 | AG24: 185 | AH24: 125 | AI24: 151 | AJ24: 101 | AK24: 101 | AL24: 72
C25: San Juan | D25: 164 | E25: 109 | F25: 134 | G25: 182 | H25: 211 | I25: 230 | J25: 509 | K25: 1346 | L25: 613 | M25: 368 | N25: 496 | O25: 344 | P25: 3621 | Q25: 779 | R25: 355 | S25: 398 | T25: 607 | U25: 369 | V25: 288 | W25: 305 | X25: 380 | Y25: 399 | Z25: 427 | AA25: 365 | AB25: 286 | AC25: 203 | AD25: 216 | AE25: 249 | AF25: 246 | AG25: 185 | AH25: 117 | AI25: 45 | AJ25: 107 | AK25: 82 | AL25: 49
C26: San Pedro de Urabá | D26: 261 | E26: 116 | F26: 164 | G26: 224 | H26: 240 | I26: 625 | J26: 874 | K26: 989 | L26: 3523 | M26: 1546 | N26: 3116 | O26: 1649 | P26: 1374 | Q26: 1326 | R26: 1024 | S26: 1538 | T26: 3217 | U26: 1321 | V26: 757 | W26: 936 | X26: 1141 | Y26: 778 | Z26: 1015 | AA26: 1307 | AB26: 449 | AC26: 359 | AD26: 279 | AE26: 194 | AF26: 230 | AG26: 281 | AH26: 233 | AI26: 162 | AJ26: 208 | AK26: 219 | AL26: 88
C27: Necoclí | D27: 690 | E27: 360 | F27: 627 | G27: 629 | H27: 519 | I27: 672 | J27: 480 | K27: 1265 | L27: 1861 | M27: 3825 | N27: 17020 | O27: 2616 | P27: 4215 | Q27: 1500 | R27: 1175 | S27: 1435 | T27: 1284 | U27: 1045 | V27: 556 | W27: 827 | X27: 1070 | Y27: 921 | Z27: 1047 | AA27: 952 | AB27: 589 | AC27: 485 | AD27: 416 | AE27: 342 | AF27: 416 | AG27: 307 | AH27: 257 | AI27: 182 | AJ27: 185 | AK27: 157 | AL27: 117
C28: TOTAL | D28: =SUM(D24:D27) -> 1672 | E28: =SUM(E24:E27) -> 790 | F28: 1260 | G28: 1842 | H28: 1780 | I28: 4340 | J28: 2596 | K28: 5401 | L28: 9927 | M28: 7653 | N28: 23435 | O28: 5504 | P28: 12723 | Q28: 4708 | R28: 3281 | S28: 4282 | T28: 6005 | U28: 3330 | V28: 2024 | W28: 2559 | X28: 3126 | Y28: 2566 | Z28: 2910 | AA28: 3215 | AB28: 1638 | AC28: 1341 | AD28: 1163 | AE28: 1038 | AF28: 1088 | AG28: 958 | AH28: 732 | AI28: 540 | AJ28: 601 | AK28: 559 | AL28: 326
B30: Desplazamiento Eje Bananero Urabá por municipio 1985-2019
B31: Territorialidad | C31: Municipio | D31: 1985 | E31: 1986 | F31: 1987 | G31: 1988 | H31: 1989 | I31: 1990 | J31: 1991 | K31: 1992 | L31: 1993 | M31: 1994 | N31: 1995 | O31: 1996 | P31: 1997 | Q31: 1998 | R31: 1999 | S31: 2000 | T31: 2001 | U31: 2002 | V31: 2003 | W31: 2004 | X31: 2005 | Y31: 2006 | Z31: 2007 | AA31: 2008 | AB31: 2009 | AC31: 2010 | AD31: 2011 | AE31: 2012 | AF31: 2013 | AG31: 2014 | AH31: 2015 | AI31: 2016 | AJ31: 2017 | AK31: 2018 | AL31: 2019
B32: Eje Bananero | C32: Turbo | D32: 923 | E32: 595 | F32: 907 | G32: 3236 | H32: 908 | I32: 1582 | J32: 1006 | K32: 1536 | L32: 3028 | M32: 3651 | N32: 16321 | O32: 25837 | P32: 16348 | Q32: 10157 | R32: 3392 | S32: 7282 | T32: 6288 | U32: 2611 | V32: 1680 | W32: 2239 | X32: 3270 | Y32: 3175 | Z32: 5594 | AA32: 5183 | AB32: 2216 | AC32: 1444 | AD32: 2247 | AE32: 2119 | AF32: 3389 | AG32: 2249 | AH32: 1779 | AI32: 898 | AJ32: 958 | AK32: 1063 | AL32: 747
C33: Apartadó | D33: 490 | E33: 281 | F33: 422 | G33: 686 | H33: 584 | I33: 687 | J33: 766 | K33: 965 | L33: 2063 | M33: 5503 | N33: 5066 | O33: 5687 | P33: 11333 | Q33: 4503 | R33: 2852 | S33: 5183 | T33: 3558 | U33: 3540 | V33: 1316 | W33: 1584 | X33: 3750 | Y33: 3356 | Z33: 2735 | AA33: 2308 | AB33: 1580 | AC33: 1176 | AD33: 1281 | AE33: 1313 | AF33: 1609 | AG33: 1482 | AH33: 1157 | AI33: 564 | AJ33: 557 | AK33: 527 | AL33: 397
C34: Carepa | D34: 148 | E34: 80 | F34: 79 | G34: 169 | H34: 120 | I34: 153 | J34: 142 | K34: 451 | L34: 739 | M34: 891 | N34: 2650 | O34: 1747 | P34: 1175 | Q34: 1473 | R34: 688 | S34: 1155 | T34: 1482 | U34: 978 | V34: 512 | W34: 650 | X34: 659 | Y34: 560 | Z34: 798 | AA34: 831 | AB34: 481 | AC34: 389 | AD34: 370 | AE34: 415 | AF34: 743 | AG34: 672 | AH34: 403 | AI34: 264 | AJ34: 212 | AK34: 208 | AL34: 161
C35: Chigorodó | D35: 143 | E35: 156 | F35: 273 | G35: 290 | H35: 256 | I35: 513 | J35: 415 | K35: 423 | L35: 685 | M35: 758 | N35: 2593 | O35: 4902 | P35: 3106 | Q35: 1745 | R35: 1429 | S35: 1833 | T35: 1408 | U35: 1276 | V35: 592 | W35: 818 | X35: 1083 | Y35: 1007 | Z35: 1618 | AA35: 2110 | AB35: 973 | AC35: 1026 | AD35: 1392 | AE35: 1144 | AF35: 668 | AG35: 813 | AH35: 1155 | AI35: 276 | AJ35: 269 | AK35: 238 | AL35: 177
C36: TOTAL | D36: =SUM(D32:D35) -> 1704 | E36: =SUM(E32:E35) -> 1112 | F36: 1681 | G36: 4381 | H36: 1868 | I36: 2935 | J36: 2329 | K36: 3375 | L36: 6515 | M36: 10803 | N36: 26630 | O36: 38173 | P36: 31962 | Q36: 17878 | R36: 8361 | S36: 15453 | T36: 12736 | U36: 8405 | V36: 4100 | W36: 5291 | X36: 8762 | Y36: 8098 | Z36: 10745 | AA36: 10432 | AB36: 5250 | AC36: 4035 | AD36: 5290 | AE36: 4991 | AF36: 6409 | AG36: 5216 | AH36: 4494 | AI36: 2002 | AJ36: 1996 | AK36: 2036 | AL36: 1482
B38: Desplazamiento Sur y Medio Atrato por municipio 1985-2019
B39: Territorialidad | C39: Municipio | D39: 1985 | E39: 1986 | F39: 1987 | G39: 1988 | H39: 1989 | I39: 1990 | J39: 1991 | K39: 1992 | L39: 1993 | M39: 1994 | N39: 1995 | O39: 1996 | P39: 1997 | Q39: 1998 | R39: 1999 | S39: 2000 | T39: 2001 | U39: 2002 | V39: 2003 | W39: 2004 | X39: 2005 | Y39: 2006 | Z39: 2007 | AA39: 2008 | AB39: 2009 | AC39: 2010 | AD39: 2011 | AE39: 2012 | AF39: 2013 | AG39: 2014 | AH39: 2015 | AI39: 2016 | AJ39: 2017 | AK39: 2018 | AL39: 2019
B40: Sur y Medio Atrato | C40: Mutatá | D40: 350 | E40: 135 | F40: 157 | G40: 136 | H40: 173 | I40: 211 | J40: 214 | K40: 230 | L40: 307 | M40: 583 | N40: 1326 | O40: 3658 | P40: 13783 | Q40: 7764 | R40: 2428 | S40: 3693 | T40: 2061 | U40: 954 | V40: 453 | W40: 536 | X40: 1236 | Y40: 1201 | Z40: 819 | AA40: 1133 | AB40: 406 | AC40: 357 | AD40: 398 | AE40: 737 | AF40: 404 | AG40: 446 | AH40: 225 | AI40: 140 | AJ40: 185 | AK40: 214 | AL40: 162
C41: Vigía del Fuerte | D41: 17 | E41: 1 | F41: 0 | G41: 18 | H41: 26 | I41: 12 | J41: 5 | K41: 22 | L41: 6 | M41: 15 | N41: 28 | O41: 74 | P41: 340 | Q41: 300 | R41: 1016 | S41: 2379 | T41: 1697 | U41: 4596 | V41: 128 | W41: 233 | X41: 327 | Y41: 704 | Z41: 614 | AA41: 509 | AB41: 313 | AC41: 288 | AD41: 217 | AE41: 811 | AF41: 157 | AG41: 246 | AH41: 80 | AI41: 51 | AJ41: 24 | AK41: 76 | AL41: 43
C42: Murindó | D42: 5 | E42: 61 | F42: 7 | G42: 2 | H42: 4 | I42: 4 | J42: 7 | K42: 9 | L42: 11 | M42: 4 | N42: 17 | O42: 54 | P42: 414 | Q42: 196 | R42: 122 | S42: 155 | T42: 1059 | U42: 483 | V42: 70 | W42: 201 | X42: 170 | Y42: 83 | Z42: 64 | AA42: 81 | AB42: 59 | AC42: 53 | AD42: 44 | AE42: 46 | AF42: 48 | AG42: 56 | AH42: 23 | AI42: 15 | AJ42: 17 | AK42: 73 | AL42: 28
C43: TOTAL | D43: =SUM(D40:D42) -> 372 | E43: =SUM(E40:E42) -> 197 | F43: 164 | G43: 156 | H43: 203 | I43: 227 | J43: 226 | K43: 261 | L43: 324 | M43: 602 | N43: 1371 | O43: 3786 | P43: 14537 | Q43: 8260 | R43: 3566 | S43: 6227 | T43: 4817 | U43: 6033 | V43: 651 | W43: 970 | X43: 1733 | Y43: 1988 | Z43: 1497 | AA43: 1723 | AB43: 778 | AC43: 698 | AD43: 659 | AE43: 1594 | AF43: 609 | AG43: 748 | AH43: 328 | AI43: 206 | AJ43: 226 | AK43: 363 | AL43: 233
B45: Desplazamiento por territorialidad Urabá antioqueño 1985-2019
B46: Territorialidad | C46: Municipio | D46: 1985 | E46: 1986 | F46: 1987 | G46: 1988 | H46: 1989 | I46: 1990 | J46: 1991 | K46: 1992 | L46: 1993 | M46: 1994 | N46: 1995 | O46: 1996 | P46: 1997 | Q46: 1998 | R46: 1999 | S46: 2000 | T46: 2001 | U46: 2002 | V46: 2003 | W46: 2004 | X46: 2005 | Y46: 2006 | Z46: 2007 | AA46: 2008 | AB46: 2009 | AC46: 2010 | AD46: 2011 | AE46: 2012 | AF46: 2013 | AG46: 2014 | AH46: 2015 | AI46: 2016 | AJ46: 2017 | AK46: 2018 | AL46: 2019
B47: Urabá antioqueño | C47: Norte Urabá | D47: =D28 -> 1672 | E47: 790 | F47: 1260 | G47: 1842 | H47: 1780 | I47: 4340 | J47: 2596 | K47: 5401 | L47: 9927 | M47: 7653 | N47: 23435 | O47: 5504 | P47: 12723 | Q47: 4708 | R47: 3281 | S47: 4282 | T47: 6005 | U47: 3330 | V47: 2024 | W47: 2559 | X47: 3126 | Y47: 2566 | Z47: 2910 | AA47: 3215 | AB47: 1638 | AC47: 1341 | AD47: 1163 | AE47: 1038 | AF47: 1088 | AG47: 958 | AH47: 732 | AI47: 540 | AJ47: 601 | AK47: 559 | AL47: 326
C48: Eje Bananero | D48: =D36 -> 1704 | E48: 1112 | F48: 1681 | G48: 4381 | H48: 1868 | I48: 2935 | J48: 2329 | K48: 3375 | L48: 6515 | M48: 10803 | N48: 26630 | O48: 38173 | P48: 31962 | Q48: 17878 | R48: 8361 | S48: 15453 | T48: 12736 | U48: 8405 | V48: 4100 | W48: 5291 | X48: 8762 | Y48: 8098 | Z48: 10745 | AA48: 10432 | AB48: 5250 | AC48: 4035 | AD48: 5290 | AE48: 4991 | AF48: 6409 | AG48: 5216 | AH48: 4494 | AI48: 2002 | AJ48: 1996 | AK48: 2036 | AL48: 1482
C49: Sur y Medio Atrato | D49: =D43 -> 372 | E49: =E43 -> 197 | F49: 164 | G49: 156 | H49: 203 | I49: 227 | J49: 226 | K49: 261 | L49: 324 | M49: 602 | N49: 1371 | O49: 3786 | P49: 14537 | Q49: 8260 | R49: 3566 | S49: 6227 | T49: 4817 | U49: 6033 | V49: 651 | W49: 970 | X49: 1733 | Y49: 1988 | Z49: 1497 | AA49: 1723 | AB49: 778 | AC49: 698 | AD49: 659 | AE49: 1594 | AF49: 609 | AG49: 748 | AH49: 328 | AI49: 206 | AJ49: 226 | AK49: 363 | AL49: 233
C50: TOTAL | D50: =SUM(D47:D49) -> 3748 | E50: 2099 | F50: 3105 | G50: 6379 | H50: 3851 | I50: 7502 | J50: 5151 | K50: 9037 | L50: 16766 | M50: 19058 | N50: 51436 | O50: 47463 | P50: 59222 | Q50: 30846 | R50: 15208 | S50: 25962 | T50: 23558 | U50: 17768 | V50: 6775 | W50: 8820 | X50: 13621 | Y50: 12652 | Z50: 15152 | AA50: 15370 | AB50: 7666 | AC50: 6074 | AD50: 7112 | AE50: 7623 | AF50: 8106 | AG50: 6922 | AH50: 5554 | AI50: 2748 | AJ50: 2823 | AK50: 2958 | AL50: 2041
B52: Desplazamiento por territorialidad y temporalidad Urabá antioqueño 1985-2019
B53: Temporalidad | C53: Total periodo | D53: Norte Urabá | E53: Eje | F53: Sur
B54: 1960-1979 | C54: =SUM(D54:I54) -> 0
B55: 1980-1988 | C55: =SUM(D55:I55) -> 15331 | D55: =SUM(D47:G47) -> 5564 | E55: =SUM(D48:G48) -> 8878 | F55: =SUM(D49:G49) -> 889
B56: 1989-1991 | C56: 16504 | D56: =SUM(H47:J47) -> 8716 | E56: =SUM(H48:J48) -> 7132 | F56: =SUM(H49:J49) -> 656
B57: 1992-1997 | C57: 202982 | D57: =SUM(K47:P47) -> 64643 | E57: =SUM(K48:P48) -> 117458 | F57: =SUM(K49:P49) -> 20881
B58: 1998-2002 | C58: 113342 | D58: =SUM(Q47:U47) -> 21606 | E58: =SUM(Q48:U48) -> 62833 | F58: =SUM(Q49:U49) -> 28903
B59: 2003-2007 | C59: 57020 | D59: =SUM(V47:Z47) -> 13185 | E59: =SUM(V48:Z48) -> 36996 | F59: =SUM(V49:Z49) -> 6839
B60: 2008-2015 | C60: 64427 | D60: =SUM(AA47:AH47) -> 11173 | E60: =SUM(AA48:AH48) -> 46117 | F60: =SUM(AA49:AH49) -> 7137
B61: 2016-2019 | C61: 10570 | D61: =SUM(AI47:AL47) -> 2026 | E61: =SUM(AI48:AL48) -> 7516 | F61: =SUM(AI49:AL49) -> 1028
B62: Sin fecha | C62: 0
B63: Total | C63: =SUM(D63:I63) -> 480176 | D63: =SUM(D54:D62) -> 126913 | E63: =SUM(E54:E62) -> 286930 | F63: 66333

Sheet T.Desplaz.GUrabá
B3: Tablas Desplazamiento Gran Urabá
B5: Fuente: Red Nacional de Información: https://www.unidadvictimas.gov.co/es/registro-unico-de-victimas-ruv/37394. Fecha Corte: lunes, 31 de agosto de 2020 Consultado el 25 de septiembre de 2020
B7: Desplazamiento Gran Urabá por municipio 1985-2019
B8: Territorialidad | C8: Municipio | D8: 1985 | E8: 1986 | F8: 1987 | G8: 1988 | H8: 1989 | I8: 1990 | J8: 1991 | K8: 1992 | L8: 1993 | M8: 1994 | N8: 1995 | O8: 1996 | P8: 1997 | Q8: 1998 | R8: 1999 | S8: 2000 | T8: 2001 | U8: 2002 | V8: 2003 | W8: 2004 | X8: 2005 | Y8: 2006 | Z8: 2007 | AA8: 2008 | AB8: 2009 | AC8: 2010 | AD8: 2011 | AE8: 2012 | AF8: 2013 | AG8: 2014 | AH8: 2015 | AI8: 2016 | AJ8: 2017 | AK8: 2018 | AL8: 2019
B9: Norte Urabá | C9: Arboletes | D9: 557 | E9: 205 | F9: 335 | G9: 807 | H9: 810 | I9: 2813 | J9: 733 | K9: 1801 | L9: 3930 | M9: 1914 | N9: 2803 | O9: 895 | P9: 3513 | Q9: 1103 | R9: 727 | S9: 911 | T9: 897 | U9: 595 | V9: 423 | W9: 491 | X9: 535 | Y9: 468 | Z9: 421 | AA9: 591 | AB9: 314 | AC9: 294 | AD9: 252 | AE9: 253 | AF9: 196 | AG9: 185 | AH9: 125 | AI9: 151 | AJ9: 101 | AK9: 101 | AL9: 72
C10: San Juan | D10: 164 | E10: 109 | F10: 134 | G10: 182 | H10: 211 | I10: 230 | J10: 509 | K10: 1346 | L10: 613 | M10: 368 | N10: 496 | O10: 344 | P10: 3621 | Q10: 779 | R10: 355 | S10: 398 | T10: 607 | U10: 369 | V10: 288 | W10: 305 | X10: 380 | Y10: 399 | Z10: 427 | AA10: 365 | AB10: 286 | AC10: 203 | AD10: 216 | AE10: 249 | AF10: 246 | AG10: 185 | AH10: 117 | AI10: 45 | AJ10: 107 | AK10: 82 | AL10: 49
C11: San Pedro de Urabá | D11: 261 | E11: 116 | F11: 164 | G11: 224 | H11: 240 | I11: 625 | J11: 874 | K11: 989 | L11: 3523 | M11: 1546 | N11: 3116 | O11: 1649 | P11: 1374 | Q11: 1326 | R11: 1024 | S11: 1538 | T11: 3217 | U11: 1321 | V11: 757 | W11: 936 | X11: 1141 | Y11: 778 | Z11: 1015 | AA11: 1307 | AB11: 449 | AC11: 359 | AD11: 279 | AE11: 194 | AF11: 230 | AG11: 281 | AH11: 233 | AI11: 162 | AJ11: 208 | AK11: 219 | AL11: 88
C12: Necoclí | D12: 690 | E12: 360 | F12: 627 | G12: 629 | H12: 519 | I12: 672 | J12: 480 | K12: 1265 | L12: 1861 | M12: 3825 | N12: 17020 | O12: 2616 | P12: 4215 | Q12: 1500 | R12: 1175 | S12: 1435 | T12: 1284 | U12: 1045 | V12: 556 | W12: 827 | X12: 1070 | Y12: 921 | Z12: 1047 | AA12: 952 | AB12: 589 | AC12: 485 | AD12: 416 | AE12: 342 | AF12: 416 | AG12: 307 | AH12: 257 | AI12: 182 | AJ12: 185 | AK12: 157 | AL12: 117
B13: Eje Bananero | C13: Turbo | D13: 923 | E13: 595 | F13: 907 | G13: 3236 | H13: 908 | I13: 1582 | J13: 1006 | K13: 1536 | L13: 3028 | M13: 3651 | N13: 16321 | O13: 25837 | P13: 16348 | Q13: 10157 | R13: 3392 | S13: 7282 | T13: 6288 | U13: 2611 | V13: 1680 | W13: 2239 | X13: 3270 | Y13: 3175 | Z13: 5594 | AA13: 5183 | AB13: 2216 | AC13: 1444 | AD13: 2247 | AE13: 2119 | AF13: 3389 | AG13: 2249 | AH13: 1779 | AI13: 898 | AJ13: 958 | AK13: 1063 | AL13: 747
C14: Apartadó | D14: 490 | E14: 281 | F14: 422 | G14: 686 | H14: 584 | I14: 687 | J14: 766 | K14: 965 | L14: 2063 | M14: 5503 | N14: 5066 | O14: 5687 | P14: 11333 | Q14: 4503 | R14: 2852 | S14: 5183 | T14: 3558 | U14: 3540 | V14: 1316 | W14: 1584 | X14: 3750 | Y14: 3356 | Z14: 2735 | AA14: 2308 | AB14: 1580 | AC14: 1176 | AD14: 1281 | AE14: 1313 | AF14: 1609 | AG14: 1482 | AH14: 1157 | AI14: 564 | AJ14: 557 | AK14: 527 | AL14: 397
C15: Carepa | D15: 148 | E15: 80 | F15: 79 | G15: 169 | H15: 120 | I15: 153 | J15: 142 | K15: 451 | L15: 739 | M15: 891 | N15: 2650 | O15: 1747 | P15: 1175 | Q15: 1473 | R15: 688 | S15: 1155 | T15: 1482 | U15: 978 | V15: 512 | W15: 650 | X15: 659 | Y15: 560 | Z15: 798 | AA15: 831 | AB15: 481 | AC15: 389 | AD15: 370 | AE15: 415 | AF15: 743 | AG15: 672 | AH15: 403 | AI15: 264 | AJ15: 212 | AK15: 208 | AL15: 161
C16: Chigorodó | D16: 143 | E16: 156 | F16: 273 | G16: 290 | H16: 256 | I16: 513 | J16: 415 | K16: 423 | L16: 685 | M16: 758 | N16: 2593 | O16: 4902 | P16: 3106 | Q16: 1745 | R16: 1429 | S16: 1833 | T16: 1408 | U16: 1276 | V16: 592 | W16: 818 | X16: 1083 | Y16: 1007 | Z16: 1618 | AA16: 2110 | AB16: 973 | AC16: 1026 | AD16: 1392 | AE16: 1144 | AF16: 668 | AG16: 813 | AH16: 1155 | AI16: 276 | AJ16: 269 | AK16: 238 | AL16: 177
B17: Sur Urabá y Dabeiba | C17: Mutatá | D17: 350 | E17: 135 | F17: 157 | G17: 136 | H17: 173 | I17: 211 | J17: 214 | K17: 230 | L17: 307 | M17: 583 | N17: 1326 | O17: 3658 | P17: 13783 | Q17: 7764 | R17: 2428 | S17: 3693 | T17: 2061 | U17: 954 | V17: 453 | W17: 536 | X17: 1236 | Y17: 1201 | Z17: 819 | AA17: 1133 | AB17: 406 | AC17: 357 | AD17: 398 | AE17: 737 | AF17: 404 | AG17: 446 | AH17: 225 | AI17: 140 | AJ17: 185 | AK17: 214 | AL17: 162
C18: Dabeiba | D18: 132 | E18: 66 | F18: 102 | G18: 82 | H18: 211 | I18: 117 | J18: 142 | K18: 205 | L18: 208 | M18: 323 | N18: 586 | O18: 1481 | P18: 4610 | Q18: 3936 | R18: 3146 | S18: 3870 | T18: 4448 | U18: 3401 | V18: 1591 | W18: 3374 | X18: 1953 | Y18: 1655 | Z18: 1573 | AA18: 1296 | AB18: 908 | AC18: 696 | AD18: 904 | AE18: 552 | AF18: 319 | AG18: 372 | AH18: 317 | AI18: 180 | AJ18: 123 | AK18: 99 | AL18: 68
B19: Atrato | C19: Vigía del Fuerte | D19: 17 | E19: 1 | F19: 0 | G19: 18 | H19: 26 | I19: 12 | J19: 5 | K19: 22 | L19: 6 | M19: 15 | N19: 28 | O19: 74 | P19: 340 | Q19: 300 | R19: 1016 | S19: 2379 | T19: 1697 | U19: 4596 | V19: 128 | W19: 233 | X19: 327 | Y19: 704 | Z19: 614 | AA19: 509 | AB19: 313 | AC19: 288 | AD19: 217 | AE19: 811 | AF19: 157 | AG19: 246 | AH19: 80 | AI19: 51 | AJ19: 24 | AK19: 76 | AL19: 43
C20: Murindó | D20: 5 | E20: 61 | F20: 7 | G20: 2 | H20: 4 | I20: 4 | J20: 7 | K20: 9 | L20: 11 | M20: 4 | N20: 17 | O20: 54 | P20: 414 | Q20: 196 | R20: 122 | S20: 155 | T20: 1059 | U20: 483 | V20: 70 | W20: 201 | X20: 170 | Y20: 83 | Z20: 64 | AA20: 81 | AB20: 59 | AC20: 53 | AD20: 44 | AE20: 46 | AF20: 48 | AG20: 56 | AH20: 23 | AI20: 15 | AJ20: 17 | AK20: 73 | AL20: 28
C21: Riosucio | D21: 259 | E21: 127 | F21: 133 | G21: 65 | H21: 160 | I21: 263 | J21: 155 | K21: 234 | L21: 239 | M21: 311 | N21: 888 | O21: 4864 | P21: 55811 | Q21: 3759 | R21: 2562 | S21: 8815 | T21: 3433 | U21: 4346 | V21: 967 | W21: 784 | X21: 1351 | Y21: 1677 | Z21: 1974 | AA21: 1744 | AB21: 861 | AC21: 694 | AD21: 686 | AE21: 642 | AF21: 2810 | AG21: 863 | AH21: 1976 | AI21: 1039 | AJ21: 3694 | AK21: 804 | AL21: 359
C22: Carmen del Darién | D22: 19 | E22: 0 | F22: 8 | G22: 11 | H22: 12 | I22: 3 | J22: 10 | K22: 31 | L22: 20 | M22: 22 | N22: 59 | O22: 276 | P22: 4052 | Q22: 1298 | R22: 37 | S22: 946 | T22: 1592 | U22: 2989 | V22: 153 | W22: 1660 | X22: 110 | Y22: 208 | Z22: 2617 | AA22: 59 | AB22: 107 | AC22: 113 | AD22: 95 | AE22: 177 | AF22: 121 | AG22: 62 | AH22: 83 | AI22: 34 | AJ22: 770 | AK22: 219 | AL22: 262
B23: Darién -Norte Chocó | C23: Unguía | D23: 106 | E23: 91 | F23: 95 | G23: 39 | H23: 77 | I23: 281 | J23: 225 | K23: 187 | L23: 106 | M23: 185 | N23: 670 | O23: 3055 | P23: 3434 | Q23: 819 | R23: 698 | S23: 2163 | T23: 1309 | U23: 625 | V23: 369 | W23: 422 | X23: 447 | Y23: 1797 | Z23: 576 | AA23: 433 | AB23: 645 | AC23: 320 | AD23: 485 | AE23: 350 | AF23: 307 | AG23: 193 | AH23: 465 | AI23: 354 | AJ23: 347 | AK23: 146 | AL23: 136
C24: Acandí | D24: 99 | E24: 30 | F24: 23 | G24: 42 | H24: 46 | I24: 122 | J24: 108 | K24: 233 | L24: 98 | M24: 270 | N24: 4357 | O24: 1516 | P24: 1236 | Q24: 691 | R24: 1990 | S24: 1529 | T24: 1208 | U24: 576 | V24: 220 | W24: 286 | X24: 349 | Y24: 271 | Z24: 602 | AA24: 235 | AB24: 146 | AC24: 309 | AD24: 244 | AE24: 477 | AF24: 114 | AG24: 191 | AH24: 388 | AI24: 110 | AJ24: 158 | AK24: 64 | AL24: 56
B25: Sur Córdoba | C25: Tierralta | D25: 705 | E25: 298 | F25: 350 | G25: 1821 | H25: 1039 | I25: 1293 | J25: 705 | K25: 756 | L25: 636 | M25: 794 | N25: 1668 | O25: 7591 | P25: 2441 | Q25: 5494 | R25: 14601 | S25: 14198 | T25: 7942 | U25: 8081 | V25: 3158 | W25: 1984 | X25: 2619 | Y25: 3585 | Z25: 4585 | AA25: 5906 | AB25: 3902 | AC25: 2991 | AD25: 6231 | AE25: 3186 | AF25: 4582 | AG25: 1973 | AH25: 987 | AI25: 810 | AJ25: 1665 | AK25: 916 | AL25: 1534
C26: Valencia | D26: 169 | E26: 99 | F26: 154 | G26: 347 | H26: 322 | I26: 423 | J26: 327 | K26: 302 | L26: 765 | M26: 758 | N26: 1685 | O26: 931 | P26: 661 | Q26: 1034 | R26: 1403 | S26: 1335 | T26: 8626 | U26: 4298 | V26: 853 | W26: 1022 | X26: 3038 | Y26: 1123 | Z26: 2488 | AA26: 2454 | AB26: 1262 | AC26: 615 | AD26: 518 | AE26: 392 | AF26: 993 | AG26: 763 | AH26: 498 | AI26: 435 | AJ26: 317 | AK26: 240 | AL26: 118
C27: TOTAL | D27: =SUM(D9:D26) -> 5237 | E27: =SUM(E9:E26) -> 2810 | F27: 3970 | G27: 8786 | H27: 5718 | I27: 10004 | J27: 6823 | K27: 10985 | L27: 18838 | M27: 21721 | N27: 61349 | O27: 67177 | P27: 131467 | Q27: 47877 | R27: 39645 | S27: 58818 | T27: 52116 | U27: 42084 | V27: 14086 | W27: 18352 | X27: 23488 | Y27: 22968 | Z27: 29567 | AA27: 27497 | AB27: 15497 | AC27: 11812 | AD27: 16275 | AE27: 13399 | AF27: 17352 | AG27: 11339 | AH27: 10268 | AI27: 5710 | AJ27: 9897 | AK27: 5446 | AL27: 4574
B29: Desplazamiento Norte Urabá por municipio 1985-2019
B30: Territorialidad | C30: Municipio | D30: 1985 | E30: 1986 | F30: 1987 | G30: 1988 | H30: 1989 | I30: 1990 | J30: 1991 | K30: 1992 | L30: 1993 | M30: 1994 | N30: 1995 | O30: 1996 | P30: 1997 | Q30: 1998 | R30: 1999 | S30: 2000 | T30: 2001 | U30: 2002 | V30: 2003 | W30: 2004 | X30: 2005 | Y30: 2006 | Z30: 2007 | AA30: 2008 | AB30: 2009 | AC30: 2010 | AD30: 2011 | AE30: 2012 | AF30: 2013 | AG30: 2014 | AH30: 2015 | AI30: 2016 | AJ30: 2017 | AK30: 2018 | AL30: 2019
B31: Norte | C31: Arboletes | D31: 557 | E31: 205 | F31: 335 | G31: 807 | H31: 810 | I31: 2813 | J31: 733 | K31: 1801 | L31: 3930 | M31: 1914 | N31: 2803 | O31: 895 | P31: 3513 | Q31: 1103 | R31: 727 | S31: 911 | T31: 897 | U31: 595 | V31: 423 | W31: 491 | X31: 535 | Y31: 468 | Z31: 421 | AA31: 591 | AB31: 314 | AC31: 294 | AD31: 252 | AE31: 253 | AF31: 196 | AG31: 185 | AH31: 125 | AI31: 151 | AJ31: 101 | AK31: 101 | AL31: 72
C32: San Juan | D32: 164 | E32: 109 | F32: 134 | G32: 182 | H32: 211 | I32: 230 | J32: 509 | K32: 1346 | L32: 613 | M32: 368 | N32: 496 | O32: 344 | P32: 3621 | Q32: 779 | R32: 355 | S32: 398 | T32: 607 | U32: 369 | V32: 288 | W32: 305 | X32: 380 | Y32: 399 | Z32: 427 | AA32: 365 | AB32: 286 | AC32: 203 | AD32: 216 | AE32: 249 | AF32: 246 | AG32: 185 | AH32: 117 | AI32: 45 | AJ32: 107 | AK32: 82 | AL32: 49
C33: San Pedro de Urabá | D33: 261 | E33: 116 | F33: 164 | G33: 224 | H33: 240 | I33: 625 | J33: 874 | K33: 989 | L33: 3523 | M33: 1546 | N33: 3116 | O33: 1649 | P33: 1374 | Q33: 1326 | R33: 1024 | S33: 1538 | T33: 3217 | U33: 1321 | V33: 757 | W33: 936 | X33: 1141 | Y33: 778 | Z33: 1015 | AA33: 1307 | AB33: 449 | AC33: 359 | AD33: 279 | AE33: 194 | AF33: 230 | AG33: 281 | AH33: 233 | AI33: 162 | AJ33: 208 | AK33: 219 | AL33: 88
C34: Necoclí | D34: 690 | E34: 360 | F34: 627 | G34: 629 | H34: 519 | I34: 672 | J34: 480 | K34: 1265 | L34: 1861 | M34: 3825 | N34: 17020 | O34: 2616 | P34: 4215 | Q34: 1500 | R34: 1175 | S34: 1435 | T34: 1284 | U34: 1045 | V34: 556 | W34: 827 | X34: 1070 | Y34: 921 | Z34: 1047 | AA34: 952 | AB34: 589 | AC34: 485 | AD34: 416 | AE34: 342 | AF34: 416 | AG34: 307 | AH34: 257 | AI34: 182 | AJ34: 185 | AK34: 157 | AL34: 117
C35: TOTAL | D35: =SUM(D31:D34) -> 1672 | E35: =SUM(E31:E34) -> 790 | F35: 1260 | G35: 1842 | H35: 1780 | I35: 4340 | J35: 2596 | K35: 5401 | L35: 9927 | M35: 7653 | N35: 23435 | O35: 5504 | P35: 12723 | Q35: 4708 | R35: 3281 | S35: 4282 | T35: 6005 | U35: 3330 | V35: 2024 | W35: 2559 | X35: 3126 | Y35: 2566 | Z35: 2910 | AA35: 3215 | AB35: 1638 | AC35: 1341 | AD35: 1163 | AE35: 1038 | AF35: 1088 | AG35: 958 | AH35: 732 | AI35: 540 | AJ35: 601 | AK35: 559 | AL35: 326
B37: Desplazamiento Eje Bananero Urabá por municipio 1985-2019
B38: Territorialidad | C38: Municipio | D38: 1985 | E38: 1986 | F38: 1987 | G38: 1988 | H38: 1989 | I38: 1990 | J38: 1991 | K38: 1992 | L38: 1993 | M38: 1994 | N38: 1995 | O38: 1996 | P38: 1997 | Q38: 1998 | R38: 1999 | S38: 2000 | T38: 2001 | U38: 2002 | V38: 2003 | W38: 2004 | X38: 2005 | Y38: 2006 | Z38: 2007 | AA38: 2008 | AB38: 2009 | AC38: 2010 | AD38: 2011 | AE38: 2012 | AF38: 2013 | AG38: 2014 | AH38: 2015 | AI38: 2016 | AJ38: 2017 | AK38: 2018 | AL38: 2019
B39: Eje Bananero | C39: Turbo | D39: 923 | E39: 595 | F39: 907 | G39: 3236 | H39: 908 | I39: 1582 | J39: 1006 | K39: 1536 | L39: 3028 | M39: 3651 | N39: 16321 | O39: 25837 | P39: 16348 | Q39: 10157 | R39: 3392 | S39: 7282 | T39: 6288 | U39: 2611 | V39: 1680 | W39: 2239 | X39: 3270 | Y39: 3175 | Z39: 5594 | AA39: 5183 | AB39: 2216 | AC39: 1444 | AD39: 2247 | AE39: 2119 | AF39: 3389 | AG39: 2249 | AH39: 1779 | AI39: 898 | AJ39: 958 | AK39: 1063 | AL39: 747
C40: Apartadó | D40: 490 | E40: 281 | F40: 422 | G40: 686 | H40: 584 | I40: 687 | J40: 766 | K40: 965 | L40: 2063 | M40: 5503 | N40: 5066 | O40: 5687 | P40: 11333 | Q40: 4503 | R40: 2852 | S40: 5183 | T40: 3558 | U40: 3540 | V40: 1316 | W40: 1584 | X40: 3750 | Y40: 3356 | Z40: 2735 | AA40: 2308 | AB40: 1580 | AC40: 1176 | AD40: 1281 | AE40: 1313 | AF40: 1609 | AG40: 1482 | AH40: 1157 | AI40: 564 | AJ40: 557 | AK40: 527 | AL40: 397
C41: Carepa | D41: 148 | E41: 80 | F41: 79 | G41: 169 | H41: 120 | I41: 153 | J41: 142 | K41: 451 | L41: 739 | M41: 891 | N41: 2650 | O41: 1747 | P41: 1175 | Q41: 1473 | R41: 688 | S41: 1155 | T41: 1482 | U41: 978 | V41: 512 | W41: 650 | X41: 659 | Y41: 560 | Z41: 798 | AA41: 831 | AB41: 481 | AC41: 389 | AD41: 370 | AE41: 415 | AF41: 743 | AG41: 672 | AH41: 403 | AI41: 264 | AJ41: 212 | AK41: 208 | AL41: 161
C42: Chigorodó | D42: 143 | E42: 156 | F42: 273 | G42: 290 | H42: 256 | I42: 513 | J42: 415 | K42: 423 | L42: 685 | M42: 758 | N42: 2593 | O42: 4902 | P42: 3106 | Q42: 1745 | R42: 1429 | S42: 1833 | T42: 1408 | U42: 1276 | V42: 592 | W42: 818 | X42: 1083 | Y42: 1007 | Z42: 1618 | AA42: 2110 | AB42: 973 | AC42: 1026 | AD42: 1392 | AE42: 1144 | AF42: 668 | AG42: 813 | AH42: 1155 | AI42: 276 | AJ42: 269 | AK42: 238 | AL42: 177
C43: TOTAL | D43: =SUM(D39:D42) -> 1704 | E43: =SUM(E39:E42) -> 1112 | F43: 1681 | G43: 4381 | H43: 1868 | I43: 2935 | J43: 2329 | K43: 3375 | L43: 6515 | M43: 10803 | N43: 26630 | O43: 38173 | P43: 31962 | Q43: 17878 | R43: 8361 | S43: 15453 | T43: 12736 | U43: 8405 | V43: 4100 | W43: 5291 | X43: 8762 | Y43: 8098 | Z43: 10745 | AA43: 10432 | AB43: 5250 | AC43: 4035 | AD43: 5290 | AE43: 4991 | AF43: 6409 | AG43: 5216 | AH43: 4494 | AI43: 2002 | AJ43: 1996 | AK43: 2036 | AL43: 1482
B45: Desplazamiento Sur Urabá y Dabeiba por municipio 1985-2019
B46: Territorialidad | C46: Municipio | D46: 1985 | E46: 1986 | F46: 1987 | G46: 1988 | H46: 1989 | I46: 1990 | J46: 1991 | K46: 1992 | L46: 1993 | M46: 1994 | N46: 1995 | O46: 1996 | P46: 1997 | Q46: 1998 | R46: 1999 | S46: 2000 | T46: 2001 | U46: 2002 | V46: 2003 | W46: 2004 | X46: 2005 | Y46: 2006 | Z46: 2007 | AA46: 2008 | AB46: 2009 | AC46: 2010 | AD46: 2011 | AE46: 2012 | AF46: 2013 | AG46: 2014 | AH46: 2015 | AI46: 2016 | AJ46: 2017 | AK46: 2018 | AL46: 2019
B47: Sur Urabá y Dabeiba | C47: Mutatá | D47: 350 | E47: 135 | F47: 157 | G47: 136 | H47: 173 | I47: 211 | J47: 214 | K47: 230 | L47: 307 | M47: 583 | N47: 1326 | O47: 3658 | P47: 13783 | Q47: 7764 | R47: 2428 | S47: 3693 | T47: 2061 | U47: 954 | V47: 453 | W47: 536 | X47: 1236 | Y47: 1201 | Z47: 819 | AA47: 1133 | AB47: 406 | AC47: 357 | AD47: 398 | AE47: 737 | AF47: 404 | AG47: 446 | AH47: 225 | AI47: 140 | AJ47: 185 | AK47: 214 | AL47: 162
C48: Dabeiba | D48: 132 | E48: 66 | F48: 102 | G48: 82 | H48: 211 | I48: 117 | J48: 142 | K48: 205 | L48: 208 | M48: 323 | N48: 586 | O48: 1481 | P48: 4610 | Q48: 3936 | R48: 3146 | S48: 3870 | T48: 4448 | U48: 3401 | V48: 1591 | W48: 3374 | X48: 1953 | Y48: 1655 | Z48: 1573 | AA48: 1296 | AB48: 908 | AC48: 696 | AD48: 904 | AE48: 552 | AF48: 319 | AG48: 372 | AH48: 317 | AI48: 180 | AJ48: 123 | AK48: 99 | AL48: 68
C49: TOTAL | D49: =SUM(D47:D48) -> 482 | E49: =SUM(E47:E48) -> 201 | F49: 259 | G49: 218 | H49: 384 | I49: 328 | J49: 356 | K49: 435 | L49: 515 | M49: 906 | N49: 1912 | O49: 5139 | P49: 18393 | Q49: 11700 | R49: 5574 | S49: 7563 | T49: 6509 | U49: 4355 | V49: 2044 | W49: 3910 | X49: 3189 | Y49: 2856 | Z49: 2392 | AA49: 2429 | AB49: 1314 | AC49: 1053 | AD49: 1302 | AE49: 1289 | AF49: 723 | AG49: 818 | AH49: 542 | AI49: 320 | AJ49: 308 | AK49: 313 | AL49: 230
B51: Desplazamiento Atrato por municipio 1985-2019
B52: Territorialidad | C52: Municipio | D52: 1985 | E52: 1986 | F52: 1987 | G52: 1988 | H52: 1989 | I52: 1990 | J52: 1991 | K52: 1992 | L52: 1993 | M52: 1994 | N52: 1995 | O52: 1996 | P52: 1997 | Q52: 1998 | R52: 1999 | S52: 2000 | T52: 2001 | U52: 2002 | V52: 2003 | W52: 2004 | X52: 2005 | Y52: 2006 | Z52: 2007 | AA52: 2008 | AB52: 2009 | AC52: 2010 | AD52: 2011 | AE52: 2012 | AF52: 2013 | AG52: 2014 | AH52: 2015 | AI52: 2016 | AJ52: 2017 | AK52: 2018 | AL52: 2019
B53: Atrato | C53: Vigía del Fuerte | D53: 17 | E53: 1 | F53: 0 | G53: 18 | H53: 26 | I53: 12 | J53: 5 | K53: 22 | L53: 6 | M53: 15 | N53: 28 | O53: 74 | P53: 340 | Q53: 300 | R53: 1016 | S53: 2379 | T53: 1697 | U53: 4596 | V53: 128 | W53: 233 | X53: 327 | Y53: 704 | Z53: 614 | AA53: 509 | AB53: 313 | AC53: 288 | AD53: 217 | AE53: 811 | AF53: 157 | AG53: 246 | AH53: 80 | AI53: 51 | AJ53: 24 | AK53: 76 | AL53: 43
C54: Murindó | D54: 5 | E54: 61 | F54: 7 | G54: 2 | H54: 4 | I54: 4 | J54: 7 | K54: 9 | L54: 11 | M54: 4 | N54: 17 | O54: 54 | P54: 414 | Q54: 196 | R54: 122 | S54: 155 | T54: 1059 | U54: 483 | V54: 70 | W54: 201 | X54: 170 | Y54: 83 | Z54: 64 | AA54: 81 | AB54: 59 | AC54: 53 | AD54: 44 | AE54: 46 | AF54: 48 | AG54: 56 | AH54: 23 | AI54: 15 | AJ54: 17 | AK54: 73 | AL54: 28
C55: Riosucio | D55: 259 | E55: 127 | F55: 133 | G55: 65 | H55: 160 | I55: 263 | J55: 155 | K55: 234 | L55: 239 | M55: 311 | N55: 888 | O55: 4864 | P55: 55811 | Q55: 3759 | R55: 2562 | S55: 8815 | T55: 3433 | U55: 4346 | V55: 967 | W55: 784 | X55: 1351 | Y55: 1677 | Z55: 1974 | AA55: 1744 | AB55: 861 | AC55: 694 | AD55: 686 | AE55: 642 | AF55: 2810 | AG55: 863 | AH55: 1976 | AI55: 1039 | AJ55: 3694 | AK55: 804 | AL55: 359
C56: Carmen del Darién | D56: 19 | E56: 0 | F56: 8 | G56: 11 | H56: 12 | I56: 3 | J56: 10 | K56: 31 | L56: 20 | M56: 22 | N56: 59 | O56: 276 | P56: 4052 | Q56: 1298 | R56: 37 | S56: 946 | T56: 1592 | U56: 2989 | V56: 153 | W56: 1660 | X56: 110 | Y56: 208 | Z56: 2617 | AA56: 59 | AB56: 107 | AC56: 113 | AD56: 95 | AE56: 177 | AF56: 121 | AG56: 62 | AH56: 83 | AI56: 34 | AJ56: 770 | AK56: 219 | AL56: 262
C57: TOTAL | D57: =SUM(D53:D56) -> 300 | E57: =SUM(E53:E56) -> 189 | F57: 148 | G57: 96 | H57: 202 | I57: 282 | J57: 177 | K57: 296 | L57: 276 | M57: 352 | N57: 992 | O57: 5268 | P57: 60617 | Q57: 5553 | R57: 3737 | S57: 12295 | T57: 7781 | U57: 12414 | V57: 1318 | W57: 2878 | X57: 1958 | Y57: 2672 | Z57: 5269 | AA57: 2393 | AB57: 1340 | AC57: 1148 | AD57: 1042 | AE57: 1676 | AF57: 3136 | AG57: 1227 | AH57: 2162 | AI57: 1139 | AJ57: 4505 | AK57: 1172 | AL57: 692
B59: Desplazamiento Darién-Norte Chocó por municipio 1985-2019
B60: Territorialidad | C60: Municipio | D60: 1985 | E60: 1986 | F60: 1987 | G60: 1988 | H60: 1989 | I60: 1990 | J60: 1991 | K60: 1992 | L60: 1993 | M60: 1994 | N60: 1995 | O60: 1996 | P60: 1997 | Q60: 1998 | R60: 1999 | S60: 2000 | T60: 2001 | U60: 2002 | V60: 2003 | W60: 2004 | X60: 2005 | Y60: 2006 | Z60: 2007 | AA60: 2008 | AB60: 2009 | AC60: 2010 | AD60: 2011 | AE60: 2012 | AF60: 2013 | AG60: 2014 | AH60: 2015 | AI60: 2016 | AJ60: 2017 | AK60: 2018 | AL60: 2019
B61: Darién -Norte Chocó | C61: Unguía | D61: 106 | E61: 91 | F61: 95 | G61: 39 | H61: 77 | I61: 281 | J61: 225 | K61: 187 | L61: 106 | M61: 185 | N61: 670 | O61: 3055 | P61: 3434 | Q61: 819 | R61: 698 | S61: 2163 | T61: 1309 | U61: 625 | V61: 369 | W61: 422 | X61: 447 | Y61: 1797 | Z61: 576 | AA61: 433 | AB61: 645 | AC61: 320 | AD61: 485 | AE61: 350 | AF61: 307 | AG61: 193 | AH61: 465 | AI61: 354 | AJ61: 347 | AK61: 146 | AL61: 136
C62: Acandí | D62: 99 | E62: 30 | F62: 23 | G62: 42 | H62: 46 | I62: 122 | J62: 108 | K62: 233 | L62: 98 | M62: 270 | N62: 4357 | O62: 1516 | P62: 1236 | Q62: 691 | R62: 1990 | S62: 1529 | T62: 1208 | U62: 576 | V62: 220 | W62: 286 | X62: 349 | Y62: 271 | Z62: 602 | AA62: 235 | AB62: 146 | AC62: 309 | AD62: 244 | AE62: 477 | AF62: 114 | AG62: 191 | AH62: 388 | AI62: 110 | AJ62: 158 | AK62: 64 | AL62: 56
C63: TOTAL | D63: =SUM(D61:D62) -> 205 | E63: =SUM(E61:E62) -> 121 | F63: 118 | G63: 81 | H63: 123 | I63: 403 | J63: 333 | K63: 420 | L63: 204 | M63: 455 | N63: 5027 | O63: 4571 | P63: 4670 | Q63: 1510 | R63: 2688 | S63: 3692 | T63: 2517 | U63: 1201 | V63: 589 | W63: 708 | X63: 796 | Y63: 2068 | Z63: 1178 | AA63: 668 | AB63: 791 | AC63: 629 | AD63: 729 | AE63: 827 | AF63: 421 | AG63: 384 | AH63: 853 | AI63: 464 | AJ63: 505 | AK63: 210 | AL63: 192
B65: Desplazamiento Sur Córdoba por municipio 1985-2019
B66: Territorialidad | C66: Municipio | D66: 1985 | E66: 1986 | F66: 1987 | G66: 1988 | H66: 1989 | I66: 1990 | J66: 1991 | K66: 1992 | L66: 1993 | M66: 1994 | N66: 1995 | O66: 1996 | P66: 1997 | Q66: 1998 | R66: 1999 | S66: 2000 | T66: 2001 | U66: 2002 | V66: 2003 | W66: 2004 | X66: 2005 | Y66: 2006 | Z66: 2007 | AA66: 2008 | AB66: 2009 | AC66: 2010 | AD66: 2011 | AE66: 2012 | AF66: 2013 | AG66: 2014 | AH66: 2015 | AI66: 2016 | AJ66: 2017 | AK66: 2018 | AL66: 2019
B67: Sur Córdoba | C67: Tierralta | D67: 705 | E67: 298 | F67: 350 | G67: 1821 | H67: 1039 | I67: 1293 | J67: 705 | K67: 756 | L67: 636 | M67: 794 | N67: 1668 | O67: 7591 | P67: 2441 | Q67: 5494 | R67: 14601 | S67: 14198 | T67: 7942 | U67: 8081 | V67: 3158 | W67: 1984 | X67: 2619 | Y67: 3585 | Z67: 4585 | AA67: 5906 | AB67: 3902 | AC67: 2991 | AD67: 6231 | AE67: 3186 | AF67: 4582 | AG67: 1973 | AH67: 987 | AI67: 810 | AJ67: 1665 | AK67: 916 | AL67: 1534
C68: Valencia | D68: 169 | E68: 99 | F68: 154 | G68: 347 | H68: 322 | I68: 423 | J68: 327 | K68: 302 | L68: 765 | M68: 758 | N68: 1685 | O68: 931 | P68: 661 | Q68: 1034 | R68: 1403 | S68: 1335 | T68: 8626 | U68: 4298 | V68: 853 | W68: 1022 | X68: 3038 | Y68: 1123 | Z68: 2488 | AA68: 2454 | AB68: 1262 | AC68: 615 | AD68: 518 | AE68: 392 | AF68: 993 | AG68: 763 | AH68: 498 | AI68: 435 | AJ68: 317 | AK68: 240 | AL68: 118
C69: TOTAL | D69: =SUM(D67:D68) -> 874 | E69: =SUM(E67:E68) -> 397 | F69: 504 | G69: 2168 | H69: 1361 | I69: 1716 | J69: 1032 | K69: 1058 | L69: 1401 | M69: 1552 | N69: 3353 | O69: 8522 | P69: 3102 | Q69: 6528 | R69: 16004 | S69: 15533 | T69: 16568 | U69: 12379 | V69: 4011 | W69: 3006 | X69: 5657 | Y69: 4708 | Z69: 7073 | AA69: 8360 | AB69: 5164 | AC69: 3606 | AD69: 6749 | AE69: 3578 | AF69: 5575 | AG69: 2736 | AH69: 1485 | AI69: 1245 | AJ69: 1982 | AK69: 1156 | AL69: 1652
B71: Desplazamiento por territorialidad Gran Urabá 1985-2019
B72: Territorialidad | C72: Municipio | D72: 1985 | E72: 1986 | F72: 1987 | G72: 1988 | H72: 1989 | I72: 1990 | J72: 1991 | K72: 1992 | L72: 1993 | M72: 1994 | N72: 1995 | O72: 1996 | P72: 1997 | Q72: 1998 | R72: 1999 | S72: 2000 | T72: 2001 | U72: 2002 | V72: 2003 | W72: 2004 | X72: 2005 | Y72: 2006 | Z72: 2007 | AA72: 2008 | AB72: 2009 | AC72: 2010 | AD72: 2011 | AE72: 2012 | AF72: 2013 | AG72: 2014 | AH72: 2015 | AI72: 2016 | AJ72: 2017 | AK72: 2018 | AL72: 2019
B73: Gran Urabá | C73: Norte Urabá | D73: =D35 -> 1672 | E73: =E35 -> 790 | F73: 1260 | G73: 1842 | H73: 1780 | I73: 4340 | J73: 2596 | K73: 5401 | L73: 9927 | M73: 7653 | N73: 23435 | O73: 5504 | P73: 12723 | Q73: 4708 | R73: 3281 | S73: 4282 | T73: 6005 | U73: 3330 | V73: 2024 | W73: 2559 | X73: 3126 | Y73: 2566 | Z73: 2910 | AA73: 3215 | AB73: 1638 | AC73: 1341 | AD73: 1163 | AE73: 1038 | AF73: 1088 | AG73: 958 | AH73: 732 | AI73: 540 | AJ73: 601 | AK73: 559 | AL73: 326
C74: Eje Bananero | D74: =D43 -> 1704 | E74: =E43 -> 1112 | F74: 1681 | G74: 4381 | H74: 1868 | I74: 2935 | J74: 2329 | K74: 3375 | L74: 6515 | M74: 10803 | N74: 26630 | O74: 38173 | P74: 31962 | Q74: 17878 | R74: 8361 | S74: 15453 | T74: 12736 | U74: 8405 | V74: 4100 | W74: 5291 | X74: 8762 | Y74: 8098 | Z74: 10745 | AA74: 10432 | AB74: 5250 | AC74: 4035 | AD74: 5290 | AE74: 4991 | AF74: 6409 | AG74: 5216 | AH74: 4494 | AI74: 2002 | AJ74: 1996 | AK74: 2036 | AL74: 1482
C75: Sur Urabá y Dabeiba | D75: =D49 -> 482 | E75: =E49 -> 201 | F75: 259 | G75: 218 | H75: 384 | I75: 328 | J75: 356 | K75: 435 | L75: 515 | M75: 906 | N75: 1912 | O75: 5139 | P75: 18393 | Q75: 11700 | R75: 5574 | S75: 7563 | T75: 6509 | U75: 4355 | V75: 2044 | W75: 3910 | X75: 3189 | Y75: 2856 | Z75: 2392 | AA75: 2429 | AB75: 1314 | AC75: 1053 | AD75: 1302 | AE75: 1289 | AF75: 723 | AG75: 818 | AH75: 542 | AI75: 320 | AJ75: 308 | AK75: 313 | AL75: 230
C76: Atrato | D76: =D57 -> 300 | E76: =E57 -> 189 | F76: 148 | G76: 96 | H76: 202 | I76: 282 | J76: 177 | K76: 296 | L76: 276 | M76: 352 | N76: 992 | O76: 5268 | P76: 60617 | Q76: 5553 | R76: 3737 | S76: 12295 | T76: 7781 | U76: 12414 | V76: 1318 | W76: 2878 | X76: 1958 | Y76: 2672 | Z76: 5269 | AA76: 2393 | AB76: 1340 | AC76: 1148 | AD76: 1042 | AE76: 1676 | AF76: 3136 | AG76: 1227 | AH76: 2162 | AI76: 1139 | AJ76: 4505 | AK76: 1172 | AL76: 692
C77: Darién -Norte Chocó | D77: =D63 -> 205 | E77: =E63 -> 121 | F77: 118 | G77: 81 | H77: 123 | I77: 403 | J77: 333 | K77: 420 | L77: 204 | M77: 455 | N77: 5027 | O77: 4571 | P77: 4670 | Q77: 1510 | R77: 2688 | S77: 3692 | T77: 2517 | U77: 1201 | V77: 589 | W77: 708 | X77: 796 | Y77: 2068 | Z77: 1178 | AA77: 668 | AB77: 791 | AC77: 629 | AD77: 729 | AE77: 827 | AF77: 421 | AG77: 384 | AH77: 853 | AI77: 464 | AJ77: 505 | AK77: 210 | AL77: 192
C78: Sur Córdoba | D78: =D69 -> 874 | E78: =E69 -> 397 | F78: 504 | G78: 2168 | H78: 1361 | I78: 1716 | J78: 1032 | K78: 1058 | L78: 1401 | M78: 1552 | N78: 3353 | O78: 8522 | P78: 3102 | Q78: 6528 | R78: 16004 | S78: 15533 | T78: 16568 | U78: 12379 | V78: 4011 | W78: 3006 | X78: 5657 | Y78: 4708 | Z78: 7073 | AA78: 8360 | AB78: 5164 | AC78: 3606 | AD78: 6749 | AE78: 3578 | AF78: 5575 | AG78: 2736 | AH78: 1485 | AI78: 1245 | AJ78: 1982 | AK78: 1156 | AL78: 1652
C79: TOTAL | D79: =SUM(D73:D78) -> 5237 | E79: =SUM(E73:E78) -> 2810 | F79: 3970 | G79: 8786 | H79: 5718 | I79: 10004 | J79: 6823 | K79: 10985 | L79: 18838 | M79: 21721 | N79: 61349 | O79: 67177 | P79: 131467 | Q79: 47877 | R79: 39645 | S79: 58818 | T79: 52116 | U79: 42084 | V79: 14086 | W79: 18352 | X79: 23488 | Y79: 22968 | Z79: 29567 | AA79: 27497 | AB79: 15497 | AC79: 11812 | AD79: 16275 | AE79: 13399 | AF79: 17352 | AG79: 11339 | AH79: 10268 | AI79: 5710 | AJ79: 9897 | AK79: 5446 | AL79: 4574
B81: Desplazamiento por territorialidad y temporalidad Gran Urabá 1985-2019
B82: Temporalidad | C82: Total periodo | D82: Norte Urabá | E82: Eje | F82: Sur | G82: Atrato | H82: Darién | I82: Sur Córdoba
B83: 1960-1979 | C83: =SUM(D83:I83) -> 0
B84: 1980-1988 | C84: =SUM(D84:I84) -> 20803 | D84: =SUM(D35:G35) -> 5564 | E84: =SUM(D74:G74) -> 8878 | F84: =SUM(D75:G75) -> 1160 | G84: =SUM(D76:G76) -> 733 | H84: =SUM(D77:G77) -> 525 | I84: =SUM(D78:G78) -> 3943
B85: 1989-1991 | C85: 22545 | D85: =SUM(H35:J35) -> 8716 | E85: =SUM(H74:J74) -> 7132 | F85: =SUM(H75:J75) -> 1068 | G85: =SUM(H76:J76) -> 661 | H85: =SUM(H77:J77) -> 859 | I85: =SUM(H78:J78) -> 4109
B86: 1992-1997 | C86: 311537 | D86: =SUM(K35:P35) -> 64643 | E86: =SUM(K74:P74) -> 117458 | F86: =SUM(K75:P75) -> 27300 | G86: =SUM(K76:P76) -> 67801 | H86: =SUM(K77:P77) -> 15347 | I86: =SUM(K78:P78) -> 18988
B87: 1998-2002 | C87: 240540 | D87: =SUM(Q35:U35) -> 21606 | E87: =SUM(Q74:U74) -> 62833 | F87: =SUM(Q75:U75) -> 35701 | G87: =SUM(Q76:U76) -> 41780 | H87: =SUM(Q77:U77) -> 11608 | I87: =SUM(Q78:U78) -> 67012
B88: 2003-2007 | C88: 108461 | D88: =SUM(V35:Z35) -> 13185 | E88: =SUM(V74:Z74) -> 36996 | F88: =SUM(V75:Z75) -> 14391 | G88: =SUM(V76:Z76) -> 14095 | H88: =SUM(V77:Z77) -> 5339 | I88: =SUM(V78:Z78) -> 24455
B89: 2008-2015 | C89: 123439 | D89: =SUM(AA35:AH35) -> 11173 | E89: =SUM(AA74:AH74) -> 46117 | F89: =SUM(AA75:AH75) -> 9470 | G89: =SUM(AA76:AH76) -> 14124 | H89: =SUM(AA77:AH77) -> 5302 | I89: =SUM(AA78:AH78) -> 37253
B90: 2016-2019 | C90: 25627 | D90: =SUM(AI35:AL35) -> 2026 | E90: =SUM(AI74:AL74) -> 7516 | F90: =SUM(AI75:AL75) -> 1171 | G90: =SUM(AI76:AL76) -> 7508 | H90: =SUM(AI77:AL77) -> 1371 | I90: =SUM(AI78:AL78) -> 6035
B91: Sin fecha | C91: 0
B92: Total | C92: =SUM(D92:I92) -> 852952 | D92: =SUM(D83:D91) -> 126913 | E92: =SUM(E83:E91) -> 286930 | F92: 90261 | G92: 146702 | H92: 40351 | I92: 161795

Sheet Graf.Desplaz.Urabá ant
A3: Gráficas Desplazamiento Urabá antioqueño
B5: Fuente: Red Nacional de Información: https://www.unidadvictimas.gov.co/es/registro-unico-de-victimas-ruv/37394. Fecha Corte: lunes, 31 de agosto de 2020 Consultado el 25 de septiembre de 2020

Sheet Graf.Desplaz.GUrabá
A4: Gráficas Desplazamiento Gran Urabá
B6: Fuente: Red Nacional de Información: https://www.unidadvictimas.gov.co/es/registro-unico-de-victimas-ruv/37394. Fecha Corte: lunes, 31 de agosto de 2020 Consultado el 25 de septiembre de 2020

Sheet T.Cultivos.Urabá ant
B3: Tablas Cultivos de Uso Ilícito Urabá antioqueño
B5: Fuente: SIMCI/UNOD: http://www.odc.gov.co/sidco/oferta/cultivos-ilicitos/departamento-municipio consultada el 28 de septiembre de 2020
B7: Presencia de cultivos de uso ilícito en Urabá antioqueño por municipio 1999-2019
B8: Territorialidad | C8: Municipio | D8: 1999 | E8: 2000 | F8: 2001 | G8: 2002 | H8: 2003 | I8: 2004 | J8: 2005 | K8: 2006 | L8: 2007 | M8: 2008 | N8: 2009 | O8: 2010 | P8: 2011 | Q8: 2012 | R8: 2013 | S8: 2014 | T8: 2015 | U8: 2016 | V8: 2017 | W8: 2018 | X8: 2019
B9: Norte Urabá | C9: Arboletes
C10: San Juan
C11: San Pedro de Urabá | H11: 8 | N11: 1 | T11: 5.28 | U11: 4.56 | V11: 3.48 | W11: 2.66 | X11: 1.07
C12: Necoclí | H12: 78 | I12: 1 | R12: 1
B13: Eje Bananero | C13: Turbo | H13: 151 | I13: 21 | M13: 8 | N13: 26 | O13: 12 | Q13: 17 | R13: 35 | S13: 18 | T13: 45.44 | U13: 97.99 | V13: 61.01 | W13: 56.84 | X13: 54.52
C14: Apartadó | M14: 10 | N14: 21 | O14: 70 | Q14: 19 | R14: 5 | S14: 6 | T14: 8.9 | U14: 9.48 | V14: 7.93 | W14: 1.51 | X14: 7.26
C15: Carepa | I15: 2 | M15: 4 | O15: 4
C16: Chigorodó | M16: 2 | O16: 7 | P16: 1 | Q16: 7 | R16: 4 | S16: 1 | U16: 10.43 | V16: 6.94 | W16: 5.31 | X16: 6.37
B17: Sur y Medio Atrato | C17: Mutatá | F17: 1 | O17: 7 | Q17: 10 | R17: 4 | T17: 1.18 | V17: 6.65 | W17: 3.49 | X17: 1.21
C18: Vigía del Fuerte | I18: 3 | N18: 1 | P18: 13 | R18: 7 | S18: 3
C19: Murindó | N19: 6 | P19: 3 | R19: 1 | X19: 1.52
C20: TOTAL | D20: =SUM(D9:D19) -> 0 | E20: 0 | F20: 1 | G20: 0 | H20: 237 | I20: 27 | J20: 0 | K20: 0 | L20: 0 | M20: 24 | N20: 55 | O20: 100 | P20: 17 | Q20: 53 | R20: 57 | S20: 28 | T20: 60.8 | U20: 122.46 | V20: 86.01 | W20: 69.81 | X20: 71.95
B22: Presencia de cultivos de uso ilícito Norte de Urabá por municipio 1999-2019
B23: Territorialidad | C23: Municipio | D23: 1999 | E23: 2000 | F23: 2001 | G23: 2002 | H23: 2003 | I23: 2004 | J23: 2005 | K23: 2006 | L23: 2007 | M23: 2008 | N23: 2009 | O23: 2010 | P23: 2011 | Q23: 2012 | R23: 2013 | S23: 2014 | T23: 2015 | U23: 2016 | V23: 2017 | W23: 2018 | X23: 2019
B24: Norte Urabá | C24: Arboletes
C25: San Juan
C26: San Pedro de Urabá | H26: 8 | N26: 1 | T26: 5.28 | U26: 4.56 | V26: 3.48 | W26: 2.66 | X26: 1.07
C27: Necoclí | H27: 78 | I27: 1 | R27: 1
C28: TOTAL | D28: =SUM(D24:D27) -> 0 | E28: =SUM(E24:E27) -> 0 | F28: 0 | G28: 0 | H28: 86 | I28: 1 | J28: 0 | K28: 0 | L28: 0 | M28: 0 | N28: 1 | O28: 0 | P28: 0 | Q28: 0 | R28: 1 | S28: 0 | T28: 5.28 | U28: 4.56 | V28: 3.48 | W28: 2.66 | X28: 1.07
B30: Presencia de cultivos de uso ilícito Eje Bananero en Urabá por municipio 1999-2019
B31: Territorialidad | C31: Municipio | D31: 1999 | E31: 2000 | F31: 2001 | G31: 2002 | H31: 2003 | I31: 2004 | J31: 2005 | K31: 2006 | L31: 2007 | M31: 2008 | N31: 2009 | O31: 2010 | P31: 2011 | Q31: 2012 | R31: 2013 | S31: 2014 | T31: 2015 | U31: 2016 | V31: 2017 | W31: 2018 | X31: 2019
B32: Eje Bananero | C32: Turbo | H32: 151 | I32: 21 | M32: 8 | N32: 26 | O32: 12 | Q32: 17 | R32: 35 | S32: 18 | T32: 45.44 | U32: 97.99 | V32: 61.01 | W32: 56.84 | X32: 54.52
C33: Apartadó | M33: 10 | N33: 21 | O33: 70 | Q33: 19 | R33: 5 | S33: 6 | T33: 8.9 | U33: 9.48 | V33: 7.93 | W33: 1.51 | X33: 7.26
C34: Carepa | I34: 2 | M34: 4 | O34: 4
C35: Chigorodó | M35: 2 | O35: 7 | P35: 1 | Q35: 7 | R35: 4 | S35: 1 | U35: 10.43 | V35: 6.94 | W35: 5.31 | X35: 6.37
C36: TOTAL | D36: =SUM(D32:D35) -> 0 | E36: =SUM(E32:E35) -> 0 | F36: 0 | G36: 0 | H36: 151 | I36: 23 | J36: 0 | K36: 0 | L36: 0 | M36: 24 | N36: 47 | O36: 93 | P36: 1 | Q36: 43 | R36: 44 | S36: 25 | T36: 54.34 | U36: 117.9 | V36: 75.88 | W36: 63.66 | X36: 68.15
B38: Presencia de cultivos de uso ilícito en Urabá antioqueño por municipio 1999-2019
B39: Territorialidad | C39: Municipio | D39: 1999 | E39: 2000 | F39: 2001 | G39: 2002 | H39: 2003 | I39: 2004 | J39: 2005 | K39: 2006 | L39: 2007 | M39: 2008 | N39: 2009 | O39: 2010 | P39: 2011 | Q39: 2012 | R39: 2013 | S39: 2014 | T39: 2015 | U39: 2016 | V39: 2017 | W39: 2018 | X39: 2019
B40: Sur y Medio Atrato | C40: Mutatá | F40: 1 | O40: 7 | Q40: 10 | R40: 4 | T40: 1.18 | V40: 6.65 | W40: 3.49 | X40: 1.21
C41: Vigía del Fuerte | I41: 3 | N41: 1 | P41: 13 | R41: 7 | S41: 3
C42: Murindó | N42: 6 | P42: 3 | R42: 1 | X42: 1.52
C43: TOTAL | D43: =SUM(D40:D42) -> 0 | E43: =SUM(E40:E42) -> 0 | F43: 1 | G43: 0 | H43: 0 | I43: 3 | J43: 0 | K43: 0 | L43: 0 | M43: 0 | N43: 7 | O43: 7 | P43: 16 | Q43: 10 | R43: 12 | S43: 3 | T43: 1.18 | U43: 0 | V43: 6.65 | W43: 3.49 | X43: 2.73
B45: Presencia de cultivos de uso ilícito en Urabá antioqueño por territorialidad 1999-2019
B46: Región | D46: 1999 | E46: 2000 | F46: 2001 | G46: 2002 | H46: 2003 | I46: 2004 | J46: 2005 | K46: 2006 | L46: 2007 | M46: 2008 | N46: 2009 | O46: 2010 | P46: 2011 | Q46: 2012 | R46: 2013 | S46: 2014 | T46: 2015 | U46: 2016 | V46: 2017 | W46: 2018 | X46: 2019
B47: Urabá antioqueño | C47: Norte Urabá | D47: =SUM(D28) -> 0 | E47: =SUM(E28) -> 0 | F47: 0 | G47: 0 | H47: 86 | I47: 1 | J47: 0 | K47: 0 | L47: 0 | M47: 0 | N47: 1 | O47: 0 | P47: 0 | Q47: 0 | R47: 1 | S47: 0 | T47: 5.28 | U47: 4.56 | V47: 3.48 | W47: 2.66 | X47: 1.07
C48: Eje Bananero | D48: =D36 -> 0 | E48: =E36 -> 0 | F48: 0 | G48: 0 | H48: 151 | I48: 23 | J48: 0 | K48: 0 | L48: 0 | M48: 24 | N48: 47 | O48: 93 | P48: 1 | Q48: 43 | R48: 44 | S48: 25 | T48: 54.34 | U48: 117.9 | V48: 75.88 | W48: 63.66 | X48: 68.15
C49: Sur y Medio Atrato | D49: =D43 -> 0 | E49: =E43 -> 0 | F49: 1 | G49: 0 | H49: 0 | I49: 3 | J49: 0 | K49: 0 | L49: 0 | M49: 0 | N49: 7 | O49: 7 | P49: 16 | Q49: 10 | R49: 12 | S49: 3 | T49: 1.18 | U49: 0 | V49: 6.65 | W49: 3.49 | X49: 2.73
C50: TOTAL | D50: =SUM(D47:D49) -> 0 | E50: =SUM(E47:E49) -> 0 | F50: 1 | G50: 0 | H50: 237 | I50: 27 | J50: 0 | K50: 0 | L50: 0 | M50: 24 | N50: 55 | O50: 100 | P50: 17 | Q50: 53 | R50: 57 | S50: 28 | T50: 60.8 | U50: 122.46 | V50: 86.01 | W50: 69.81 | X50: 71.95

Sheet T.Cultivos.GUrabá
B3: Tablas Cultivos de Uso Ilícito Gran Urabá
B5: Fuente: SIMCI/UNOD: http://www.odc.gov.co/sidco/oferta/cultivos-ilicitos/departamento-municipio consultada el 28 de septiembre de 2020
B7: Presencia de cultivos de uso ilícito en Gran Urabá por municipio 1999-2019
B8: Territorialidad | C8: Municipio | D8: 1999 | E8: 2000 | F8: 2001 | G8: 2002 | H8: 2003 | I8: 2004 | J8: 2005 | K8: 2006 | L8: 2007 | M8: 2008 | N8: 2009 | O8: 2010 | P8: 2011 | Q8: 2012 | R8: 2013 | S8: 2014 | T8: 2015 | U8: 2016 | V8: 2017 | W8: 2018 | X8: 2019
B9: Norte Urabá | C9: Arboletes
C10: San Juan
C11: San Pedro de Urabá | H11: 8 | N11: 1 | T11: 5.28 | U11: 4.56 | V11: 3.48 | W11: 2.66 | X11: 1.07
C12: Necoclí | H12: 78 | I12: 1 | R12: 1
B13: Eje Bananero | C13: Turbo | H13: 151 | I13: 21 | M13: 8 | N13: 26 | O13: 12 | Q13: 17 | R13: 35 | S13: 18 | T13: 45.44 | U13: 97.99 | V13: 61.01 | W13: 56.84 | X13: 54.52
C14: Apartadó | M14: 10 | N14: 21 | O14: 70 | Q14: 19 | R14: 5 | S14: 6 | T14: 8.9 | U14: 9.48 | V14: 7.93 | W14: 1.51 | X14: 7.26
C15: Carepa | I15: 2 | M15: 4 | O15: 4
C16: Chigorodó | M16: 2 | O16: 7 | P16: 1 | Q16: 7 | R16: 4 | S16: 1 | U16: 10.43 | V16: 6.94 | W16: 5.31 | X16: 6.37
B17: Sur y Dabeiba | C17: Mutatá | F17: 1 | O17: 7 | Q17: 10 | R17: 4 | T17: 1.18 | V17: 6.65 | W17: 3.49 | X17: 1.21
C18: Dabeiba | E18: 13.94 | F18: 40 | N18: 40 | O18: 4 | P18: 2 | Q18: 4
B19: Atrato | C19: Vigía del Fuerte | I19: 3 | N19: 1 | P19: 13 | R19: 7 | S19: 3
C20: Murindó | N20: 6 | P20: 3 | R20: 1 | X20: 1.52
C21: Riosucio | E21: 250 | F21: 354 | N21: 75 | O21: 243 | P21: 86 | Q21: 196 | R21: 130 | S21: 40 | T21: 90.7 | U21: 35.75 | V21: 113.87 | W21: 104.01 | X21: 148.83
C22: Carmen del Darién | Q22: 63 | R22: 76 | S22: 23 | T22: 48.14 | U22: 98.28 | V22: 159.99 | W22: 153.39 | X22: 232.42
B23: Darién-Norte Chocó | C23: Unguía | O23: 29 | P23: 6 | Q23: 4 | R23: 31 | S23: 14 | T23: 75.87 | U23: 20.66 | V23: 34.68 | W23: 28.26 | X23: 12.67
C24: Acandí | P24: 6 | Q24: 4 | R24: 2 | S24: 4 | T24: 3.34 | U24: 2.2 | V24: 8.96 | W24: 4.47 | X24: 4.76
B25: Sur Córdoba | C25: Tierralta | D25: 684.22 | E25: 13.44 | F25: 322.01 | G25: 178 | H25: 399 | I25: 669 | J25: 1124 | K25: 389 | L25: 414 | M25: 624 | N25: 1360 | O25: 2474 | P25: 604 | Q25: 509 | R25: 341 | S25: 376 | T25: 858.62 | U25: 1290.07 | V25: 1629.68 | W25: 2201.26 | X25: 1140.24
C26: Valencia | D26: 33.67 | H26: 13.04 | I26: 99 | J26: 13 | K26: 4 | M26: 1 | N26: 12 | O26: 1 | P26: 1 | R26: 6 | S26: 1 | T26: 12.31 | U26: 1.8 | V26: 4.71 | W26: 5.48 | X26: 4.29
C27: TOTAL | D27: =SUM(D9:D26) -> 717.89 | E27: =SUM(E9:E26) -> 277.38 | F27: 717.01 | G27: 178 | H27: 649.04 | I27: 795 | J27: 1137 | K27: 393 | L27: 414 | M27: 649 | N27: 1542 | O27: 2851 | P27: 722 | Q27: 833 | R27: 643 | S27: 486 | T27: 1149.78 | U27: 1571.22 | V27: 2037.9 | W27: 2566.68 | X27: 1615.16
B29: Presencia de cultivos de uso ilícito Norte de Urabá por municipio 1999-2019
B30: Territorialidad | D30: 1999 | E30: 2000 | F30: 2001 | G30: 2002 | H30: 2003 | I30: 2004 | J30: 2005 | K30: 2006 | L30: 2007 | M30: 2008 | N30: 2009 | O30: 2010 | P30: 2011 | Q30: 2012 | R30: 2013 | S30: 2014 | T30: 2015 | U30: 2016 | V30: 2017 | W30: 2018 | X30: 2019
B31: Norte Urabá | C31: Arboletes
C32: San Juan
C33: San Pedro de Urabá | H33: 8 | N33: 1 | T33: 5.28 | U33: 4.56 | V33: 3.48 | W33: 2.66 | X33: 1.07
C34: Necoclí | H34: 78 | I34: 1 | R34: 1
C35: TOTAL | D35: =SUM(D31:D34) -> 0 | E35: =SUM(E31:E34) -> 0 | F35: 0 | G35: 0 | H35: 86 | I35: 1 | J35: 0 | K35: 0 | L35: 0 | M35: 0 | N35: 1 | O35: 0 | P35: 0 | Q35: 0 | R35: 1 | S35: 0 | T35: 5.28 | U35: 4.56 | V35: 3.48 | W35: 2.66 | X35: 1.07
B37: Presencia de cultivos de uso ilícito Eje Bananero en Urabá por municipio 1999-2019
B38: Territorialidad | C38: Municipio | D38: 1999 | E38: 2000 | F38: 2001 | G38: 2002 | H38: 2003 | I38: 2004 | J38: 2005 | K38: 2006 | L38: 2007 | M38: 2008 | N38: 2009 | O38: 2010 | P38: 2011 | Q38: 2012 | R38: 2013 | S38: 2014 | T38: 2015 | U38: 2016 | V38: 2017 | W38: 2018 | X38: 2019
B39: Eje Bananero | C39: Turbo | H39: 151 | I39: 21 | M39: 8 | N39: 26 | O39: 12 | Q39: 17 | R39: 35 | S39: 18 | T39: 45.44 | U39: 97.99 | V39: 61.01 | W39: 56.84 | X39: 54.52
C40: Apartadó | M40: 10 | N40: 21 | O40: 70 | Q40: 19 | R40: 5 | S40: 6 | T40: 8.9 | U40: 9.48 | V40: 7.93 | W40: 1.51 | X40: 7.26
C41: Carepa | I41: 2 | M41: 4 | O41: 4
C42: Chigorodó | M42: 2 | O42: 7 | P42: 1 | Q42: 7 | R42: 4 | S42: 1 | U42: 10.43 | V42: 6.94 | W42: 5.31 | X42: 6.37
C43: TOTAL | D43: =SUM(D39:D42) -> 0 | E43: =SUM(E39:E42) -> 0 | F43: 0 | G43: 0 | H43: 151 | I43: 23 | J43: 0 | K43: 0 | L43: 0 | M43: 24 | N43: 47 | O43: 93 | P43: 1 | Q43: 43 | R43: 44 | S43: 25 | T43: 54.34 | U43: 117.9 | V43: 75.88 | W43: 63.66 | X43: 68.15
B45: Presencia de cultivos de uso ilícito Sur Urabá y Dabeiba por municipio 1999-2019
B46: Territorialidad | C46: Municipio | D46: 1999 | E46: 2000 | F46: 2001 | G46: 2002 | H46: 2003 | I46: 2004 | J46: 2005 | K46: 2006 | L46: 2007 | M46: 2008 | N46: 2009 | O46: 2010 | P46: 2011 | Q46: 2012 | R46: 2013 | S46: 2014 | T46: 2015 | U46: 2016 | V46: 2017 | W46: 2018 | X46: 2019
B47: Sur y Dabeiba | C47: Mutatá | D47: 0 | E47: 0 | F47: 1 | G47: 0 | H47: 0 | I47: 0 | J47: 0 | K47: 0 | L47: 0 | M47: 0 | N47: 0 | O47: 7 | P47: 0 | Q47: 10 | R47: 4 | S47: 0 | T47: 1.18 | U47: 0 | V47: 6.65 | W47: 3.49 | X47: 1.21
C48: Dabeiba | E48: 13.94 | F48: 40 | N48: 40 | O48: 4 | P48: 2 | Q48: 4
C49: TOTAL | D49: =SUM(D47:D48) -> 0 | E49: =SUM(E47:E48) -> 13.94 | F49: 41 | G49: 0 | H49: 0 | I49: 0 | J49: 0 | K49: 0 | L49: 0 | M49: 0 | N49: 40 | O49: 11 | P49: 2 | Q49: 14 | R49: 4 | S49: 0 | T49: 1.18 | U49: 0 | V49: 6.65 | W49: 3.49 | X49: 1.21
B51: Presencia de cultivos de uso ilícito Atrato por municipio 1999-2019
B52: Territorialidad | C52: Municipio | D52: 1999 | E52: 2000 | F52: 2001 | G52: 2002 | H52: 2003 | I52: 2004 | J52: 2005 | K52: 2006 | L52: 2007 | M52: 2008 | N52: 2009 | O52: 2010 | P52: 2011 | Q52: 2012 | R52: 2013 | S52: 2014 | T52: 2015 | U52: 2016 | V52: 2017 | W52: 2018 | X52: 2019
B53: Atrato | C53: Vigía del Fuerte | D53: 0 | E53: 0 | F53: 0 | G53: 0 | H53: 0 | I53: 3 | J53: 0 | K53: 0 | L53: 0 | M53: 0 | N53: 1 | O53: 0 | P53: 13 | Q53: 0 | R53: 7 | S53: 3 | T53: 0 | U53: 0 | V53: 0 | W53: 0 | X53: 0
C54: Murindó | D54: 0 | E54: 0 | F54: 0 | G54: 0 | H54: 0 | I54: 0 | J54: 0 | K54: 0 | L54: 0 | M54: 0 | N54: 6 | O54: 0 | P54: 3 | Q54: 0 | R54: 1 | S54: 0 | T54: 0 | U54: 0 | V54: 0 | W54: 0 | X54: 1.52
C55: Riosucio | E55: 250 | F55: 354 | N55: 75 | O55: 243 | P55: 86 | Q55: 196 | R55: 130 | S55: 40 | T55: 90.7 | U55: 35.75 | V55: 113.87 | W55: 104.01 | X55: 148.83
C56: Carmen del Darién | Q56: 63 | R56: 76 | S56: 23 | T56: 48.14 | U56: 98.28 | V56: 159.99 | W56: 153.39 | X56: 232.42
C57: TOTAL | D57: =SUM(D53:D56) -> 0 | E57: =SUM(E53:E56) -> 250 | F57: 354 | G57: 0 | H57: 0 | I57: 3 | J57: 0 | K57: 0 | L57: 0 | M57: 0 | N57: 82 | O57: 243 | P57: 102 | Q57: 259 | R57: 214 | S57: 66 | T57: 138.84 | U57: 134.03 | V57: 273.86 | W57: 257.4 | X57: 382.77
B59: Presencia de cultivos de uso ilícito Darién-Norte Chocó por municipio 1999-2019
B60: Territorialidad | C60: Municipio | D60: 1999 | E60: 2000 | F60: 2001 | G60: 2002 | H60: 2003 | I60: 2004 | J60: 2005 | K60: 2006 | L60: 2007 | M60: 2008 | N60: 2009 | O60: 2010 | P60: 2011 | Q60: 2012 | R60: 2013 | S60: 2014 | T60: 2015 | U60: 2016 | V60: 2017 | W60: 2018 | X60: 2019
B61: Darién-Norte Chocó | C61: Unguía | O61: 29 | P61: 6 | Q61: 4 | R61: 31 | S61: 14 | T61: 75.87 | U61: 20.66 | V61: 34.68 | W61: 28.26 | X61: 12.67
C62: Acandí | P62: 6 | Q62: 4 | R62: 2 | S62: 4 | T62: 3.34 | U62: 2.2 | V62: 8.96 | W62: 4.47 | X62: 4.76
C63: TOTAL | D63: =SUM(D61:D62) -> 0 | E63: =SUM(E61:E62) -> 0 | F63: 0 | G63: 0 | H63: 0 | I63: 0 | J63: 0 | K63: 0 | L63: 0 | M63: 0 | N63: 0 | O63: 29 | P63: 12 | Q63: 8 | R63: 33 | S63: 18 | T63: 79.21 | U63: 22.86 | V63: 43.64 | W63: 32.73 | X63: 17.43
B65: Presencia de cultivos de uso ilícito Sur Córdoba por municipio 1999-2019
B66: Territorialidad | C66: Municipio | D66: 1999 | E66: 2000 | F66: 2001 | G66: 2002 | H66: 2003 | I66: 2004 | J66: 2005 | K66: 2006 | L66: 2007 | M66: 2008 | N66: 2009 | O66: 2010 | P66: 2011 | Q66: 2012 | R66: 2013 | S66: 2014 | T66: 2015 | U66: 2016 | V66: 2017 | W66: 2018 | X66: 2019
B67: Sur Córdoba | C67: Tierralta | D67: 684.22 | E67: 13.44 | F67: 322.01 | G67: 178 | H67: 399 | I67: 669 | J67: 1124 | K67: 389 | L67: 414 | M67: 624 | N67: 1360 | O67: 2474 | P67: 604 | Q67: 509 | R67: 341 | S67: 376 | T67: 858.62 | U67: 1290.07 | V67: 1629.68 | W67: 2201.26 | X67: 1140.24
C68: Valencia | D68: 33.67 | H68: 13.04 | I68: 99 | J68: 13 | K68: 4 | M68: 1 | N68: 12 | O68: 1 | P68: 1 | R68: 6 | S68: 1 | T68: 12.31 | U68: 1.8 | V68: 4.71 | W68: 5.48 | X68: 4.29
C69: TOTAL | D69: =SUM(D67:D68) -> 717.89 | E69: =SUM(E67:E68) -> 13.44 | F69: 322.01 | G69: 178 | H69: 412.04 | I69: 768 | J69: 1137 | K69: 393 | L69: 414 | M69: 625 | N69: 1372 | O69: 2475 | P69: 605 | Q69: 509 | R69: 347 | S69: 377 | T69: 870.93 | U69: 1291.87 | V69: 1634.39 | W69: 2206.74 | X69: 1144.53
B71: Presencia de cultivos de uso ilícito Gran Urabá por territorialidad 1999-2019
B72: Región | C72: Municipio | D72: 1999 | E72: 2000 | F72: 2001 | G72: 2002 | H72: 2003 | I72: 2004 | J72: 2005 | K72: 2006 | L72: 2007 | M72: 2008 | N72: 2009 | O72: 2010 | P72: 2011 | Q72: 2012 | R72: 2013 | S72: 2014 | T72: 2015 | U72: 2016 | V72: 2017 | W72: 2018 | X72: 2019
B73: Gran Urabá | C73: Norte Urabá | D73: =D35 -> 0 | E73: =E35 -> 0 | F73: 0 | G73: 0 | H73: 86 | I73: 1 | J73: 0 | K73: 0 | L73: 0 | M73: 0 | N73: 1 | O73: 0 | P73: 0 | Q73: 0 | R73: 1 | S73: 0 | T73: 5.28 | U73: 4.56 | V73: 3.48 | W73: 2.66 | X73: 1.07
C74: Eje Bananero | D74: =D43 -> 0 | E74: =E43 -> 0 | F74: 0 | G74: 0 | H74: 151 | I74: 23 | J74: 0 | K74: 0 | L74: 0 | M74: 24 | N74: 47 | O74: 93 | P74: 1 | Q74: 43 | R74: 44 | S74: 25 | T74: 54.34 | U74: 117.9 | V74: 75.88 | W74: 63.66 | X74: 68.15
C75: Sur y Dabeiba | D75: =D49 -> 0 | E75: =E49 -> 13.94 | F75: 41 | G75: 0 | H75: 0 | I75: 0 | J75: 0 | K75: 0 | L75: 0 | M75: 0 | N75: 40 | O75: 11 | P75: 2 | Q75: 14 | R75: 4 | S75: 0 | T75: 1.18 | U75: 0 | V75: 6.65 | W75: 3.49 | X75: 1.21
C76: Atrato | D76: =D57 -> 0 | E76: =E57 -> 250 | F76: 354 | G76: 0 | H76: 0 | I76: 3 | J76: 0 | K76: 0 | L76: 0 | M76: 0 | N76: 82 | O76: 243 | P76: 102 | Q76: 259 | R76: 214 | S76: 66 | T76: 138.84 | U76: 134.03 | V76: 273.86 | W76: 257.4 | X76: 382.77
C77: Darién Norte-Chocó | D77: =D63 -> 0 | E77: =E63 -> 0 | F77: 0 | G77: 0 | H77: 0 | I77: 0 | J77: 0 | K77: 0 | L77: 0 | M77: 0 | N77: 0 | O77: 29 | P77: 12 | Q77: 8 | R77: 33 | S77: 18 | T77: 79.21 | U77: 22.86 | V77: 43.64 | W77: 32.73 | X77: 17.43
C78: Sur Córdoba | D78: =D69 -> 717.89 | E78: =E69 -> 13.44 | F78: 322.01 | G78: 178 | H78: 412.04 | I78: 768 | J78: 1137 | K78: 393 | L78: 414 | M78: 625 | N78: 1372 | O78: 2475 | P78: 605 | Q78: 509 | R78: 347 | S78: 377 | T78: 870.93 | U78: 1291.87 | V78: 1634.39 | W78: 2206.74 | X78: 1144.53
C79: TOTAL | D79: =SUM(D73:D78) -> 717.89 | E79: =SUM(E73:E78) -> 277.38 | F79: 717.01 | G79: 178 | H79: 649.04 | I79: 795 | J79: 1137 | K79: 393 | L79: 414 | M79: 649 | N79: 1542 | O79: 2851 | P79: 722 | Q79: 833 | R79: 643 | S79: 486 | T79: 1149.78 | U79: 1571.22 | V79: 2037.9 | W79: 2566.68 | X79: 1615.16

Sheet Graf.Cultivos.Urabá ant
A3: Gráficas Cultivos de Uso Ilícito Urabá antioqueño
B5: Fuente: SIMCI/UNOD: http://www.odc.gov.co/sidco/oferta/cultivos-ilicitos/departamento-municipio consultada el 28 de septiembre de 2020

Sheet Graf.Cultivos.GUrabá
A3: Gráficas Cultivos de Uso Ilícito Gran Urabá
B5: Fuente: SIMCI/UNOD: http://www.odc.gov.co/sidco/oferta/cultivos-ilicitos/departamento-municipio consultada el 28 de septiembre de 2020

Sheet T.Pobl.Urabá ant
B4: Tablas Población Urabá antioqueño
B6: Fuente: Censo DANE 2018 https://www.dane.gov.co/index.php/estadisticas-por-tema/demografia-y-poblacion/censo-nacional-de-poblacion-y-vivenda-2018. Consultada el 28 de septiembre de 2020
B8: Población Urabá antioqueño por municipio Censo 2018
B9: Territorialidad | C9: Municipio | D9: P.Censada | E9: P.Ajustada | F9: Cabecera | G9: Rural | H9: Indígenas | I9: Afro | J9: Palenquero | K9: Raizales | L9: ROM | M9: Sin étnico
B10: Norte Urabá | C10: Arboletes | D10: 26289 | E10: 29295 | F10: 9621.774 | G10: 16667.226 | H10: 972.693 | I10: 7124.319 | J10: 0 | K10: 0 | L10: 0 | M10: 18191.988
C11: San Juan | D11: 19992 | E11: 20093 | F11: 6617.352 | G11: 13374.648 | H11: 219.912 | I11: 10295.88 | J11: 19.992 | K11: 0 | L11: 0 | M11: 9456.216
C12: San Pedro de Urabá | D12: 30527 | E12: 30932 | F12: 12485.543 | G12: 18041.457 | H12: 580.013 | I12: 335.797 | J12: 0 | K12: 0 | L12: 30.527 | M12: 29580.663
C13: Necoclí | D13: 38420 | E13: 42281 | F13: 9950.78 | G13: 28469.22 | H13: 1498.38 | I13: 18403.18 | J13: 0 | K13: 0 | L13: 0 | M13: 18480.02
B14: Eje Bananero | C14: Turbo | D14: 114434 | E14: 124552 | F14: 45659.166 | G14: 68774.834 | H14: 2288.68 | I14: 72894.458 | J14: 0 | K14: 0 | L14: 0 | M14: 39250.862
C15: Apartadó | D15: 113469 | E15: 121003 | F15: 91796.421 | G15: 21672.579 | H15: 794.283 | I15: 43118.22 | J15: 0 | K15: 0 | L15: 0 | M15: 69443.028
C16: Carepa | D16: 45936 | E16: 47932 | F16: 31649.904 | G16: 14286.096 | H16: 91.872 | I16: 11621.808 | J16: 0 | K16: 0 | L16: 0 | M16: 34268.256
C17: Chigorodó | D17: 55564 | E17: 57375 | F17: 46562.632 | G17: 9001.368 | H17: 2222.56 | I17: 27670.872 | J17: 0 | K17: 0 | L17: 0 | M17: 25670.568
B18: Sur y Medio Atrato | C18: Mutatá | D18: 12607 | E18: 13991 | F18: 4954.551 | G18: 7652.449 | H18: 2117.976 | I18: 1185.058 | J18: 0 | K18: 0 | L18: 0 | M18: 9291.359
C19: Vigía del Fuerte | D19: 8139 | E19: 9093 | F19: 3092.82 | G19: 5046.18 | H19: 1082.487 | I19: 7007.679 | J19: 8.139 | K19: 8.139 | L19: 0 | M19: 40.695
C20: Murindó | D20: 4642 | E20: 4911 | F20: 1564.354 | G20: 3077.646 | H20: 2037.838 | I20: 2548.458 | J20: 0 | K20: 0 | L20: 0 | M20: 51.062
C21: TOTAL | D21: =SUM(D10:D20) -> 470019 | E21: =SUM(E10:E20) -> 501458 | F21: 263955.297 | G21: 206063.703 | H21: 13906.694 | I21: 202205.729 | J21: 28.131 | K21: 8.139 | L21: 30.527 | M21: 253724.717
B23: Población Norte Urabá por municipio Censo 2018
B24: Territorialidad | C24: Municipio | D24: P.Censada | E24: P.Ajustada | F24: Cabecera | G24: Rural | H24: Indígenas | I24: Afro | J24: Palenquero | K24: Raizales | L24: ROM | M24: No étnico
B25: Norte Urabá | C25: Arboletes | D25: 26289 | E25: 29295 | F25: 9621.774 | G25: 16667.226 | H25: 972.693 | I25: 7124.319 | J25: 0 | K25: 0 | L25: 0 | M25: 18191.988
C26: San Juan | D26: 19992 | E26: 20093 | F26: 6617.352 | G26: 13374.648 | H26: 219.912 | I26: 10295.88 | J26: 19.992 | K26: 0 | L26: 0 | M26: 9456.216
C27: San Pedro de Urabá | D27: 30527 | E27: 30932 | F27: 12485.543 | G27: 18041.457 | H27: 580.013 | I27: 335.797 | J27: 0 | K27: 0 | L27: 30.527 | M27: 29580.663
C28: Necoclí | D28: 38420 | E28: 42281 | F28: 9950.78 | G28: 28469.22 | H28: 1498.38 | I28: 18403.18 | J28: 0 | K28: 0 | L28: 0 | M28: 18480.02
C29: TOTAL | D29: =SUM(D25:D28) -> 115228 | E29: =SUM(E25:E28) -> 122601 | F29: 38675.449 | G29: 76552.551 | H29: 3270.998 | I29: 36159.176 | J29: 19.992 | K29: 0 | L29: 30.527 | M29: 75708.887
B31: Población Eje Bananero Urabá por municipio Censo 2018
B32: Territorialidad | C32: Municipio | D32: P.Censada | E32: P.Ajustada | F32: Cabecera | G32: Rural | H32: Indígenas | I32: Afro | J32: Palenquero | K32: Raizales | L32: ROM | M32: Sin étnico
B33: Eje Bananero | C33: Turbo | D33: 114434 | E33: 124552 | F33: 45659.166 | G33: 68774.834 | H33: 2288.68 | I33: 72894.458 | J33: 0 | K33: 0 | L33: 0 | M33: 39250.862
C34: Apartadó | D34: 113469 | E34: 121003 | F34: 91796.421 | G34: 21672.579 | H34: 794.283 | I34: 43118.22 | J34: 0 | K34: 0 | L34: 0 | M34: 69443.028
C35: Carepa | D35: 45936 | E35: 47932 | F35: 31649.904 | G35: 14286.096 | H35: 91.872 | I35: 11621.808 | J35: 0 | K35: 0 | L35: 0 | M35: 34268.256
C36: Chigorodó | D36: 55564 | E36: 57375 | F36: 46562.632 | G36: 9001.368 | H36: 2222.56 | I36: 27670.872 | J36: 0 | K36: 0 | L36: 0 | M36: 25670.568
C37: TOTAL | D37: =SUM(D33:D36) -> 329403 | E37: =SUM(E33:E36) -> 350862 | F37: 215668.123 | G37: 113734.877 | H37: 5397.395 | I37: 155305.358 | J37: 0 | K37: 0 | L37: 0 | M37: 168632.714
B39: Población Sur y Medio Atrato Urabá Censo 2018
B40: Territorialidad | C40: Municipio | D40: P.Censada | E40: P.Ajustada | F40: Cabecera | G40: Rural | H40: Indígenas | I40: Afro | J40: Palenquero | K40: Raizales | L40: ROM | M40: Sin étnico
B41: Sur y Medio Atrato | C41: Mutatá | D41: 12607 | E41: 13991 | F41: 4954.551 | G41: 7652.449 | H41: 2117.976 | I41: 1185.058 | J41: 0 | K41: 0 | L41: 0 | M41: 9291.359
C42: Vigía del Fuerte | D42: 8139 | E42: 9093 | F42: 3092.82 | G42: 5046.18 | H42: 1082.487 | I42: 7007.679 | J42: 8.139 | K42: 8.139 | L42: 0 | M42: 40.695
C43: Murindó | D43: 4642 | E43: 4911 | F43: 1564.354 | G43: 3077.646 | H43: 2037.838 | I43: 2548.458 | J43: 0 | K43: 0 | L43: 0 | M43: 51.062
C44: TOTAL | D44: =SUM(D41:D43) -> 25388 | E44: =SUM(E41:E43) -> 27995 | F44: 9611.725 | G44: 15776.275 | H44: 5238.301 | I44: 10741.195 | J44: 8.139 | K44: 8.139 | L44: 0 | M44: 9383.116
B46: Población Urabá antioqueño por territorialidad Censo 2018
B47: Territorialidad | C47: Municipio | D47: P.Censada | E47: P.Ajustada | F47: Cabecera | G47: Rural | H47: Indígenas | I47: Afro | J47: Palenquero | K47: Raizales | L47: ROM | M47: Sin étnico
B48: Urabá antioqueño | C48: Norte Urabá | D48: =D29 -> 115228 | E48: =E29 -> 122601 | F48: 38675.449 | G48: 76552.551 | H48: 3270.998 | I48: 36159.176 | J48: 19.992 | K48: 0 | L48: 30.527 | M48: 75708.887
C49: Eje Bananero | D49: =D37 -> 329403 | E49: =E37 -> 350862 | F49: 215668.123 | G49: 113734.877 | H49: 5397.395 | I49: 155305.358 | J49: 0 | K49: 0 | L49: 0 | M49: 168632.714
C50: Sur y Medio Atrato | D50: =D44 -> 25388 | E50: =E44 -> 27995 | F50: 9611.725 | G50: 15776.275 | H50: 5238.301 | I50: 10741.195 | J50: 8.139 | K50: 8.139 | L50: 0 | M50: 9383.116
C51: TOTAL | D51: =SUM(D48:D50) -> 470019 | E51: 501458 | F51: 263955.297 | G51: 206063.703 | H51: 13906.694 | I51: 202205.729 | J51: 28.131 | K51: 8.139 | L51: 30.527 | M51: 253724.717
B54: % Distribución de Población Urabá antioqueño por municipio Censo 2018
B55: Territorialidad | C55: Municipio | D55: P.Censada | E55: P.Ajustada | F55: Cabecera | G55: % | H55: Rural | I55: % | J55: Total zonal | K55: % zonal
B56: Norte Urabá | C56: Arboletes | D56: 26289 | E56: 29295 | F56: 9621.774 | G56: =(F56/D56) -> 0.366 | H56: 16667.226 | I56: =(H56/D56) -> 0.634 | J56: =SUM(D56:D59) -> 115228 | K56: =(J56/D67) -> 0.2451560469
C57: San Juan | D57: 19992 | E57: 20093 | F57: 6617.352 | G57: =(F57/D57) -> 0.331 | H57: 13374.648 | I57: =(H57/D57) -> 0.669
C58: San Pedro de Urabá | D58: 30527 | E58: 30932 | F58: 12485.543 | G58: 0.409 | H58: 18041.457 | I58: 0.591
C59: Necoclí | D59: 38420 | E59: 42281 | F59: 9950.78 | G59: 0.259 | H59: 28469.22 | I59: 0.741
B60: Eje Bananero | C60: Turbo | D60: 114434 | E60: 124552 | F60: 45659.166 | G60: 0.399 | H60: 68774.834 | I60: 0.601 | J60: =SUM(D60:D63) -> 329403 | K60: =(J60/D67) -> 0.7008291154
C61: Apartadó | D61: 113469 | E61: 121003 | F61: 91796.421 | G61: 0.809 | H61: 21672.579 | I61: 0.191
C62: Carepa | D62: 45936 | E62: 47932 | F62: 31649.904 | G62: 0.689 | H62: 14286.096 | I62: 0.311
C63: Chigorodó | D63: 55564 | E63: 57375 | F63: 46562.632 | G63: 0.838 | H63: 9001.368 | I63: 0.162
B64: Sur y Medio Atrato | C64: Mutatá | D64: 12607 | E64: 13991 | F64: 4954.551 | G64: 0.393 | H64: 7652.449 | I64: 0.607 | J64: =SUM(D64:D66) -> 25388 | K64: =(J64/D67) -> 0.0540148377
C65: Vigía del Fuerte | D65: 8139 | E65: 9093 | F65: 3092.82 | G65: 0.38 | H65: 5046.18 | I65: 0.62
C66: Murindó | D66: 4642 | E66: 4911 | F66: 1564.354 | G66: 0.337 | H66: 3077.646 | I66: 0.663
C67: TOTAL | D67: =SUM(D56:D66) -> 470019 | E67: =SUM(E56:E66) -> 501458 | F67: 263955.297 | G67: 0.5615843125 | H67: 206063.703 | I67: 0.4384156875 | J67: =SUM(J56:J66) -> 470019 | K67: =SUM(K56:K66) -> 1
B69: % Población étnica Urabá antioqueño por municipio Censo 2018
B70: Territorialidad | C70: Municipio | D70: Indígenas | F70: % | G70: Afro | H70: % | I70: Palenquero | J70: % | K70: Raizales | L70: % | M70: ROM | N70: %
B71: Norte Urabá | C71: Arboletes | D71: 972.693 | F71: =(D71/13907) -> 0.06994269073 | G71: 7124.319 | H71: =(G71/202206) -> 0.03523297528 | I71: 0 | J71: =(I71/28) -> 0 | K71: 0 | L71: =(K71/8) -> 0 | M71: 0 | N71: =(M71/31) -> 0
C72: San Juan | D72: 219.912 | F72: =(D72/13907) -> 0.01581304379 | G72: 10295.88 | H72: =(G72/202206) -> 0.05091777692 | I72: 19.992 | J72: =(I72/28) -> 0.714 | K72: 0 | L72: =(K72/8) -> 0 | M72: 0 | N72: =(M72/31) -> 0
C73: San Pedro de Urabá | D73: 580.013 | F73: 0.04170655066 | G73: 335.797 | H73: 0.001660667834 | I73: 0 | J73: 0 | K73: 0 | L73: 0 | M73: 30.527 | N73: 0.9847419355
C74: Necoclí | D74: 1498.38 | F74: 0.1077428633 | G74: 18403.18 | H74: 0.09101203723 | I74: 0 | J74: 0 | K74: 0 | L74: 0 | M74: 0 | N74: 0
B75: Eje Bananero | C75: Turbo | D75: 2288.68 | F75: 0.1645703603 | G75: 72894.458 | H75: 0.3604960189 | I75: 0 | J75: 0 | K75: 0 | L75: 0 | M75: 0 | N75: 0
C76: Apartadó | D76: 794.283 | F76: 0.05711389948 | G76: 43118.22 | H76: 0.213239073 | I76: 0 | J76: 0 | K76: 0 | L76: 0 | M76: 0 | N76: 0
C77: Carepa | D77: 91.872 | F77: 0.006606169555 | G77: 11621.808 | H77: 0.05747508976 | I77: 0 | J77: 0 | K77: 0 | L77: 0 | M77: 0 | N77: 0
C78: Chigorodó | D78: 2222.56 | F78: 0.15981592 | G78: 27670.872 | H78: 0.1368449601 | I78: 0 | J78: 0 | K78: 0 | L78: 0 | M78: 0 | N78: 0
B79: Sur y Medio Atrato | C79: Mutatá | D79: 2117.976 | F79: 0.1522956784 | G79: 1185.058 | H79: 0.005860647063 | I79: 0 | J79: 0 | K79: 0 | L79: 0 | M79: 0 | N79: 0
C80: Vigía del Fuerte | D80: 1082.487 | F80: 0.07783756382 | G80: 7007.679 | H80: 0.0346561378 | I80: 8.139 | J80: 0.2906785714 | K80: 8.139 | L80: 1.017375 | M80: 0 | N80: 0
C81: Murindó | D81: 2037.838 | F81: 0.1465332566 | G81: 2548.458 | H81: 0.01260327587 | I81: 0 | J81: 0 | K81: 0 | L81: 0 | M81: 0 | N81: 0
C82: TOTAL | D82: 13906.694 | F82: =(D82/13907) -> 0.9999779967 | G82: 202205.729 | H82: 0.9999986598 | I82: 28.131 | J82: 1.004678571 | K82: =SUM(K71:K81) -> 8.139 | L82: 1.017375 | M82: 30.527 | N82: 0.9847419355

Sheet T.Pobl.GUrabá
B4: Tablas Población Gran Urabá
B6: Fuente: Censo DANE 2018 https://www.dane.gov.co/index.php/estadisticas-por-tema/demografia-y-poblacion/censo-nacional-de-poblacion-y-vivenda-2018. Consultada el 28 de septiembre de 2020
B8: Población Gran Urabá por municipio Censo 2018
B9: Territorialidad | C9: Municipio | D9: P.Censada | E9: P.Ajustada | F9: Cabecera | G9: Rural | H9: Indígenas | I9: Afro | J9: Palenquero | K9: Raizales | L9: ROM | M9: Sin étnico
B10: Norte Urabá | C10: Arboletes | D10: 26289 | E10: 29295 | F10: 9621.774 | G10: 16667.226 | H10: 972.693 | I10: 7124.319 | J10: 0 | K10: 0 | L10: 0 | M10: 18191.988
C11: San Juan | D11: 19992 | E11: 20093 | F11: 6617.352 | G11: 13374.648 | H11: 219.912 | I11: 10295.88 | J11: 19.992 | K11: 0 | L11: 0 | M11: 9456.216
C12: San Pedro de Urabá | D12: 30527 | E12: 30932 | F12: 12485.543 | G12: 18041.457 | H12: 580.013 | I12: 335.797 | J12: 0 | K12: 0 | L12: 30.527 | M12: 29580.663
C13: Necoclí | D13: 38420 | E13: 42281 | F13: 9950.78 | G13: 28469.22 | H13: 1498.38 | I13: 18403.18 | J13: 0 | K13: 0 | L13: 0 | M13: 18480.02
B14: Eje Bananero | C14: Turbo | D14: 114434 | E14: 124552 | F14: 45659.166 | G14: 68774.834 | H14: 2288.68 | I14: 72894.458 | J14: 0 | K14: 0 | L14: 0 | M14: 39250.862
C15: Apartadó | D15: 113469 | E15: 121003 | F15: 91796.421 | G15: 21672.579 | H15: 794.283 | I15: 43118.22 | J15: 0 | K15: 0 | L15: 0 | M15: 69443.028
C16: Carepa | D16: 45936 | E16: 47932 | F16: 31649.904 | G16: 14286.096 | H16: 91.872 | I16: 11621.808 | J16: 0 | K16: 0 | L16: 0 | M16: 34268.256
C17: Chigorodó | D17: 55564 | E17: 57375 | F17: 46562.632 | G17: 9001.368 | H17: 2222.56 | I17: 27670.872 | J17: 0 | K17: 0 | L17: 0 | M17: 25670.568
B18: Sur y Dabeiba | C18: Mutatá | D18: 12607 | E18: 13991 | F18: 4954.551 | G18: 7652.449 | H18: 2117.976 | I18: 1185.058 | J18: 0 | K18: 0 | L18: 0 | M18: 9291.359
C19: Dabeiba | D19: 22717 | E19: 23044 | F19: 8882.347 | G19: 13834.653 | H19: 4793.287 | I19: 113.585 | J19: 0 | K19: 0 | L19: 0 | M19: 17810.128
B20: Atrato | C20: Vigía del Fuerte | D20: 8139 | E20: 9093 | F20: 3092.82 | G20: 5046.18 | H20: 1082.487 | I20: 7007.679 | J20: 8.139 | K20: 8.139 | L20: 0 | M20: 40.695
C21: Murindó | D21: 4642 | E21: 4911 | F21: 1564.354 | G21: 3077.646 | H21: 2037.838 | I21: 2548.458 | J21: 0 | K21: 0 | L21: 0 | M21: 51.062
C22: Riosucio | D22: 48257 | E22: 53449 | F22: 12788.105 | G22: 35468.895 | H22: 3715.789 | I22: 40728.908 | J22: 0 | K22: 0 | L22: 0 | M22: 3812.303
C23: Carmen del Darién | D23: 13189 | E23: 18433 | F23: 1859.649 | G23: 11329.351 | H23: 2598.233 | I23: 10445.688 | J23: 0 | K23: 13.189 | L23: 0 | M23: 131.89
B24: Darién-Norte Chocó | C24: Unguía | D24: 12192 | E24: 12854 | F24: 4181.856 | G24: 8010.144 | H24: 1146.048 | I24: 10009.632 | J24: 0 | K24: 12.192 | L24: 0 | M24: 1024.128
C25: Acandí | D25: 12095 | E25: 13999 | F25: 6507.11 | G25: 5587.89 | H25: 120.95 | I25: 10764.55 | J25: 0 | K25: 0 | L25: 0 | M25: 1197.405
B26: Sur Córdoba | C26: Tierralta | D26: 86578 | E26: 92349 | F26: 41470.862 | G26: 45107.138 | H26: 10649.094 | I26: 7012.818 | J26: 0 | K26: 0 | L26: 0 | M26: 68916.088
C27: Valencia | D27: 30545 | E27: 35694 | F27: 14417.24 | G27: 16127.76 | H27: 183.27 | I27: 1496.705 | J27: 0 | K27: 0 | L27: 0 | M27: 28865.025
C28: TOTAL | D28: =SUM(D10:D27) -> 695592 | E28: =SUM(E10:E27) -> 751280 | F28: 354062.466 | G28: 341529.534 | H28: 37113.365 | I28: 282777.615 | J28: 28.131 | K28: 33.52 | L28: 30.527 | M28: 375481.684
B30: Población Norte Urabá por municipio Censo 2018
B31: Territorialidad | C31: Municipio | D31: P.Censada | E31: P.Ajustada | F31: Cabecera | G31: Rural | H31: Indígenas | I31: Afro | J31: Palenquero | K31: Raizales | L31: ROM | M31: Sin étnico
B32: Norte Urabá | C32: Arboletes | D32: 26289 | E32: 29295 | F32: 9621.774 | G32: 16667.226 | H32: 972.693 | I32: 7124.319 | J32: 0 | K32: 0 | L32: 0 | M32: 18191.988
C33: San Juan | D33: 19992 | E33: 20093 | F33: 6617.352 | G33: 13374.648 | H33: 219.912 | I33: 10295.88 | J33: 19.992 | K33: 0 | L33: 0 | M33: 9456.216
C34: San Pedro de Urabá | D34: 30527 | E34: 30932 | F34: 12485.543 | G34: 18041.457 | H34: 580.013 | I34: 335.797 | J34: 0 | K34: 0 | L34: 30.527 | M34: 29580.663
C35: Necoclí | D35: 38420 | E35: 42281 | F35: 9950.78 | G35: 28469.22 | H35: 1498.38 | I35: 18403.18 | J35: 0 | K35: 0 | L35: 0 | M35: 18480.02
C36: TOTAL | D36: =SUM(D32:D35) -> 115228 | E36: =SUM(E32:E35) -> 122601 | F36: 38675.449 | G36: 76552.551 | H36: 3270.998 | I36: 36159.176 | J36: 19.992 | K36: 0 | L36: 30.527 | M36: 75708.887
B38: Población Eje Bananero Urabá por municipio Censo 2018
B39: Territorialidad | C39: Municipio | D39: P.Censada | E39: P.Ajustada | F39: Cabecera | G39: Rural | H39: Indígenas | I39: Afro | J39: Palenquero | K39: Raizales | L39: ROM | M39: Sin étnico
B40: Eje Bananero | C40: Turbo | D40: 114434 | E40: 124552 | F40: 45659.166 | G40: 68774.834 | H40: 2288.68 | I40: 72894.458 | J40: 0 | K40: 0 | L40: 0 | M40: 39250.862
C41: Apartadó | D41: 113469 | E41: 121003 | F41: 91796.421 | G41: 21672.579 | H41: 794.283 | I41: 43118.22 | J41: 0 | K41: 0 | L41: 0 | M41: 69443.028
C42: Carepa | D42: 45936 | E42: 47932 | F42: 31649.904 | G42: 14286.096 | H42: 91.872 | I42: 11621.808 | J42: 0 | K42: 0 | L42: 0 | M42: 34268.256
C43: Chigorodó | D43: 55564 | E43: 57375 | F43: 46562.632 | G43: 9001.368 | H43: 2222.56 | I43: 27670.872 | J43: 0 | K43: 0 | L43: 0 | M43: 25670.568
C44: TOTAL | D44: =SUM(D40:D43) -> 329403 | E44: =SUM(E40:E43) -> 350862 | F44: 215668.123 | G44: 113734.877 | H44: 5397.395 | I44: 155305.358 | J44: 0 | K44: 0 | L44: 0 | M44: 168632.714
B46: Población Sur y Dabeiba Censo 2018
B47: Territorialidad | C47: Municipio | D47: P.Censada | E47: P.Ajustada | F47: Cabecera | G47: Rural | H47: Indígenas | I47: Afro | J47: Palenquero | K47: Raizales | L47: ROM | M47: Sin étnico
B48: Sur y Dabeiba | C48: Mutatá | D48: 12607 | E48: 13991 | F48: 4954.551 | G48: 7652.449 | H48: 2117.976 | I48: 1185.058 | J48: 0 | K48: 0 | L48: 0 | M48: 9291.359
C49: Dabeiba | D49: 22717 | E49: 23044 | F49: 8882.347 | G49: 13834.653 | H49: 4793.287 | I49: 113.585 | J49: 0 | K49: 0 | L49: 0 | M49: 17810.128
C50: TOTAL | D50: =SUM(D48:D49) -> 35324 | E50: =SUM(E48:E49) -> 37035 | F50: 13836.898 | G50: 21487.102 | H50: 6911.263 | I50: 1298.643 | J50: 0 | K50: 0 | L50: 0 | M50: 27101.487
B52: Población Atrato por municipio Censo 2018
B53: Territorialidad | C53: Municipio | D53: P.Censada | E53: P.Ajustada | F53: Cabecera | G53: Rural | H53: Indígenas | I53: Afro | J53: Palenquero | K53: Raizales | L53: ROM | M53: Sin étnico
B54: Atrato | C54: Vigía del Fuerte | D54: 8139 | E54: 9093 | F54: 3092.82 | G54: 5046.18 | H54: 1082.487 | I54: 7007.679 | J54: 8.139 | K54: 8.139 | L54: 0 | M54: 40.695
C55: Murindó | D55: 4642 | E55: 4911 | F55: 1564.354 | G55: 3077.646 | H55: 2037.838 | I55: 2548.458 | J55: 0 | K55: 0 | L55: 0 | M55: 51.062
C56: Riosucio | D56: 48257 | E56: 53449 | F56: 12788.105 | G56: 35468.895 | H56: 3715.789 | I56: 40728.908 | J56: 0 | K56: 0 | L56: 0 | M56: 3812.303
C57: Carmen del Darién | D57: 13189 | E57: 18433 | F57: 1859.649 | G57: 11329.351 | H57: 2598.233 | I57: 10445.688 | J57: 0 | K57: 13.189 | L57: 0 | M57: 131.89
C58: TOTAL | D58: =SUM(D54:D57) -> 74227 | E58: =SUM(E54:E57) -> 85886 | F58: 19304.928 | G58: 54922.072 | H58: 9434.347 | I58: 60730.733 | J58: 8.139 | K58: 21.328 | L58: 0 | M58: 4035.95
B60: Población Darién-Norte Chocó por municipio Censo 2018
B61: Territorialidad | C61: Municipio | D61: P.Censada | E61: P.Ajustada | F61: Cabecera | G61: Rural | H61: Indígenas | I61: Afro | J61: Palenquero | K61: Raizales | L61: ROM | M61: Sin étnico
B62: Darién-Norte Chocó | C62: Unguía | D62: 12192 | E62: 12854 | F62: 4181.856 | G62: 8010.144 | H62: 1146.048 | I62: 10009.632 | J62: 0 | K62: 12.192 | L62: 0 | M62: 1024.128
C63: Acandí | D63: 12095 | E63: 13999 | F63: 6507.11 | G63: 5587.89 | H63: 120.95 | I63: 10764.55 | J63: 0 | K63: 0 | L63: 0 | M63: 1197.405
C64: TOTAL | D64: =SUM(D62:D63) -> 24287 | E64: =SUM(E62:E63) -> 26853 | F64: 10688.966 | G64: 13598.034 | H64: 1266.998 | I64: 20774.182 | J64: 0 | K64: 12.192 | L64: 0 | M64: 2221.533
B66: Población Sur Córdoba por municipio Censo 2018
B67: Territorialidad | C67: Municipio | D67: P.Censada | E67: P.Ajustada | F67: Cabecera | G67: Rural | H67: Indígenas | I67: Afro | J67: Palenquero | K67: Raizales | L67: ROM | M67: Sin étnico
B68: Sur Córdoba | C68: Tierralta | D68: 86578 | E68: 92349 | F68: 41470.862 | G68: 45107.138 | H68: 10649.094 | I68: 7012.818 | J68: 0 | K68: 0 | L68: 0 | M68: 68916.088
C69: Valencia | D69: 30545 | E69: 35694 | F69: 14417.24 | G69: 16127.76 | H69: 183.27 | I69: 1496.705 | J69: 0 | K69: 0 | L69: 0 | M69: 28865.025
C70: TOTAL | D70: =SUM(D68:D69) -> 117123 | E70: =SUM(E68:E69) -> 128043 | F70: 55888.102 | G70: 61234.898 | H70: 10832.364 | I70: 8509.523 | J70: 0 | K70: 0 | L70: 0 | M70: 97781.113
B72: Población Gran Urabá por territorialidad Censo 2018
B73: Región | C73: Territorialidad | D73: P.Censada | E73: P.Ajustada | F73: Cabecera | G73: Rural | H73: Indígenas | I73: Afro | J73: Palenquero | K73: Raizales | L73: ROM | M73: Sin étnico
B74: Gran Urabá | C74: Norte Urabá | D74: =D36 -> 115228 | E74: =E36 -> 122601 | F74: 38675.449 | G74: 76552.551 | H74: 3270.998 | I74: 36159.176 | J74: 19.992 | K74: 0 | L74: 30.527 | M74: 75708.887
C75: Eje Bananero | D75: =D44 -> 329403 | E75: =E44 -> 350862 | F75: 215668.123 | G75: 113734.877 | H75: 5397.395 | I75: 155305.358 | J75: 0 | K75: 0 | L75: 0 | M75: 168632.714
C76: Sur y Dabeiba | D76: =D50 -> 35324 | E76: =E50 -> 37035 | F76: 13836.898 | G76: 21487.102 | H76: 6911.263 | I76: 1298.643 | J76: 0 | K76: 0 | L76: 0 | M76: 27101.487
C77: Atrato | D77: =D58 -> 74227 | E77: =E58 -> 85886 | F77: 19304.928 | G77: 54922.072 | H77: 9434.347 | I77: 60730.733 | J77: 8.139 | K77: 21.328 | L77: 0 | M77: 4035.95
C78: Darién Norte-Chocó | D78: =D64 -> 24287 | E78: =E64 -> 26853 | F78: 10688.966 | G78: 13598.034 | H78: 1266.998 | I78: 20774.182 | J78: 0 | K78: 12.192 | L78: 0 | M78: 2221.533
C79: Sur Córdoba | D79: =D70 -> 117123 | E79: =E70 -> 128043 | F79: 55888.102 | G79: 61234.898 | H79: 10832.364 | I79: 8509.523 | J79: 0 | K79: 0 | L79: 0 | M79: 97781.113
C80: TOTAL | D80: =SUM(D74:D79) -> 695592 | E80: =SUM(E74:E79) -> 751280 | F80: 354062.466 | G80: 341529.534 | H80: 37113.365 | I80: 282777.615 | J80: 28.131 | K80: 33.52 | L80: 30.527 | M80: 375481.684
B82: % Población Gran Urabá por municipio Censo 2018
B83: Región | C83: Municipio | D83: P.Censada | E83: P.Ajustada | F83: Cabecera | G83: Rural | H83: Indígenas | I83: Afro | J83: Palenquero | K83: Raizales | L83: ROM | M83: Sin étnico
B84: Norte Urabá | C84: Arboletes | D84: 26289 | E84: 29295 | F84: 36.6 | G84: 63.4 | H84: 3.7 | I84: 27.1 | J84: 0 | K84: 0 | L84: 0 | M84: 69.2
C85: San Juan | D85: 19992 | E85: 20093 | F85: 33.1 | G85: 66.9 | H85: 1.1 | I85: 51.5 | J85: 0.1 | K85: 0 | L85: 0 | M85: 47.3
C86: San Pedro de Urabá | D86: 30527 | E86: 30932 | F86: 40.9 | G86: 59.1 | H86: 1.9 | I86: 1.1 | J86: 0 | K86: 0 | L86: 0.1 | M86: 96.9
C87: Necoclí | D87: 38420 | E87: 42281 | F87: 25.9 | G87: 74.1 | H87: 3.9 | I87: 47.9 | J87: 0 | K87: 0 | L87: 0 | M87: 48.1
B88: Eje Bananero | C88: Turbo | D88: 114434 | E88: 124552 | F88: 39.9 | G88: 60.1 | H88: 2 | I88: 63.7 | J88: 0 | K88: 0 | L88: 0 | M88: 34.3
C89: Apartadó | D89: 113469 | E89: 121003 | F89: 80.9 | G89: 19.1 | H89: 0.7 | I89: 38 | J89: 0 | K89: 0 | L89: 0 | M89: 61.2
C90: Carepa | D90: 45936 | E90: 47932 | F90: 68.9 | G90: 31.1 | H90: 0.2 | I90: 25.3 | J90: 0 | K90: 0 | L90: 0 | M90: 74.6
C91: Chigorodó | D91: 55564 | E91: 57375 | F91: 83.8 | G91: 16.2 | H91: 4 | I91: 49.8 | J91: 0 | K91: 0 | L91: 0 | M91: 46.2
B92: Sur y Dabeiba | C92: Mutatá | D92: 12607 | E92: 13991 | F92: 39.3 | G92: 60.7 | H92: 16.8 | I92: 9.4 | J92: 0 | K92: 0 | L92: 0 | M92: 73.7
C93: Dabeiba | D93: 22717 | E93: 23044 | F93: 39.1 | G93: 60.9 | H93: 21.1 | I93: 0.5 | J93: 0 | K93: 0 | L93: 0 | M93: 78.4
B94: Atrato | C94: Vigía del Fuerte | D94: 8139 | E94: 9093 | F94: 38 | G94: 62 | H94: 13.3 | I94: 86.1 | J94: 0.1 | K94: 0.1 | L94: 0 | M94: 0.5
C95: Murindó | D95: 4642 | E95: 4911 | F95: 33.7 | G95: 66.3 | H95: 43.9 | I95: 54.9 | J95: 0 | K95: 0 | L95: 0 | M95: 1.1
C96: Riosucio | D96: 48257 | E96: 53449 | F96: 26.5 | G96: 73.5 | H96: 7.7 | I96: 84.4 | J96: 0 | K96: 0 | L96: 0 | M96: 7.9
C97: Carmen del Darién | D97: 13189 | E97: 18433 | F97: 14.1 | G97: 85.9 | H97: 19.7 | I97: 79.2 | J97: 0 | K97: 0.1 | L97: 0 | M97: 1
B98: Darién-Norte Chocó | C98: Unguía | D98: 12192 | E98: 12854 | F98: 34.3 | G98: 65.7 | H98: 9.4 | I98: 82.1 | J98: 0 | K98: 0.1 | L98: 0 | M98: 8.4
C99: Acandí | D99: 12095 | E99: 13999 | F99: 53.8 | G99: 46.2 | H99: 1 | I99: 89 | J99: 0 | K99: 0 | L99: 0 | M99: 9.9
B100: Sur Córdoba | C100: Tierralta | D100: 86578 | E100: 92349 | F100: 47.9 | G100: 52.1 | H100: 12.3 | I100: 8.1 | J100: 0 | K100: 0 | L100: 0 | M100: 79.6
C101: Valencia | D101: 30545 | E101: 35694 | F101: 47.2 | G101: 52.8 | H101: 0.6 | I101: 4.9 | J101: 0 | K101: 0 | L101: 0 | M101: 94.5

Sheet Graf.pob.Urabá ant
A4: Gráficas Población Urabá antioqueño
B6: Fuente: Censo DANE 2018 https://www.dane.gov.co/index.php/estadisticas-por-tema/demografia-y-poblacion/censo-nacional-de-poblacion-y-vivenda-2018. Consultada el 28 de septiembre de 2020

Sheet Graf.pob.GUrabá
A4: Gráficas Población Gran Urabá
B6: Fuente: Censo DANE 2018 https://www.dane.gov.co/index.php/estadisticas-por-tema/demografia-y-poblacion/censo-nacional-de-poblacion-y-vivenda-2018. Consultada el 28 de septiembre de 2020

Sheet T.Rest.Urabá ant
B2: Tablas Restitución de Tierras Urabá antioqueño
B4: Fuente: https://cifras.unidadvictimas.gov.co/tierras. Fecha de corte: 01 de agosto de 2019. Consultada el 28 de septiembre de 2020
B6: Solicitudes de Restitución de Tierras Urabá antioqueño por municipio 2011-2019
B7: Territorialidad | C7: Municipio | D7: Total a 2019 | G7: 2011 | J7: 2012 | M7: 2013 | P7: 2014 | S7: 2015 | V7: 2016 | Y7: 2017 | AB7: 2018 | AE7: 2019
D8: Solicitudes | E8: Predios | F8: Personas | G8: Solicitudes | H8: Predios | I8: Personas | J8: Solicitudes | K8: Predios | L8: Personas | M8: Solicitudes | N8: Predios | O8: Personas | P8: Solicitudes | Q8: Predios | R8: Personas | S8: Solicitudes | T8: Predios | U8: Personas | V8: Solicitudes | W8: Predios | X8: Personas | Y8: Solicitudes | Z8: Predios | AA8: Personas | AB8: Solicitudes | AC8: Predios | AD8: Personas | AE8: Solicitudes | AF8: Predios | AG8: Personas
B9: Norte Urabá | C9: Arboletes | D9: =G9+J9+M9+P9+S9+V9+Y9+AB9+AE9 -> 592 | E9: =H9+K9+N9+Q9+T9+W9+Z9+AC9+AF9 -> 561 | F9: 231 | G9: 16 | H9: 16 | I9: 10 | J9: 133 | K9: 122 | L9: 87 | M9: 78 | N9: 78 | O9: 35 | P9: 291 | Q9: 282 | R9: 56 | S9: 35 | T9: 25 | U9: 15 | V9: 14 | W9: 13 | X9: 10 | Y9: 13 | Z9: 13 | AA9: 7 | AB9: 11 | AC9: 11 | AD9: 10 | AE9: 1 | AF9: 1 | AG9: 1
C10: San Juan de Urabá | D10: =G10+J10+M10+P10+S10+V10+Y10+AB10+AE10 -> 33 | E10: 32 | F10: 28 | G10: 0 | H10: 0 | I10: 0 | J10: 18 | K10: 17 | L10: 14 | M10: 8 | N10: 8 | O10: 7 | P10: 1 | Q10: 1 | R10: 1 | S10: 1 | T10: 1 | U10: 1 | V10: 1 | W10: 1 | X10: 1 | Y10: 0 | Z10: 0 | AA10: 0 | AB10: 4 | AC10: 4 | AD10: 4 | AE10: 0 | AF10: 0 | AG10: 0
C11: San Pedro de Urabá | D11: 423 | E11: 390 | F11: 245 | G11: 5 | H11: 5 | I11: 4 | J11: 98 | K11: 92 | L11: 57 | M11: 57 | N11: 55 | O11: 39 | P11: 93 | Q11: 77 | R11: 28 | S11: 45 | T11: 41 | U11: 23 | V11: 58 | W11: 53 | X11: 35 | Y11: 7 | Z11: 7 | AA11: 7 | AB11: 45 | AC11: 45 | AD11: 43 | AE11: 15 | AF11: 15 | AG11: 9
C12: Necoclí | D12: 667 | E12: 618 | F12: 466 | G12: 19 | H12: 19 | I12: 16 | J12: 254 | K12: 243 | L12: 174 | M12: 81 | N12: 78 | O12: 64 | P12: 131 | Q12: 101 | R12: 63 | S12: 37 | T12: 34 | U12: 27 | V12: 41 | W12: 39 | X12: 30 | Y12: 53 | Z12: 53 | AA12: 45 | AB12: 39 | AC12: 39 | AD12: 38 | AE12: 12 | AF12: 12 | AG12: 9
B13: Eje Bananero | C13: Turbo | D13: 2711 | E13: 2518 | F13: 1870 | G13: 54 | H13: 52 | I13: 37 | J13: 728 | K13: 696 | L13: 545 | M13: 765 | N13: 703 | O13: 533 | P13: 488 | Q13: 412 | R13: 243 | S13: 224 | T13: 214 | U13: 151 | V13: 191 | W13: 181 | X13: 131 | Y13: 112 | Z13: 111 | AA13: 109 | AB13: 120 | AC13: 120 | AD13: 118 | AE13: 29 | AF13: 29 | AG13: 3
C14: Apartadó | D14: 724 | E14: 673 | F14: 538 | G14: 15 | H14: 14 | I14: 9 | J14: 127 | K14: 118 | L14: 99 | M14: 190 | N14: 173 | O14: 137 | P14: 161 | Q14: 144 | R14: 97 | S14: 65 | T14: 63 | U14: 50 | V14: 56 | W14: 54 | X14: 44 | Y14: 54 | Z14: 51 | AA14: 52 | AB14: 43 | AC14: 43 | AD14: 42 | AE14: 13 | AF14: 13 | AG14: 8
C15: Carepa | D15: 244 | E15: 232 | F15: 187 | G15: 6 | H15: 6 | I15: 5 | J15: 65 | K15: 63 | L15: 49 | M15: 63 | N15: 63 | O15: 49 | P15: 44 | Q15: 36 | R15: 35 | S15: 20 | T15: 18 | U15: 16 | V15: 26 | W15: 26 | X15: 13 | Y15: 5 | Z15: 5 | AA15: 5 | AB15: 15 | AC15: 15 | AD15: 15 | AE15: 0 | AF15: 0 | AG15: 0
C16: Chigorodó | D16: 432 | E16: 411 | F16: 311 | G16: 13 | H16: 12 | I16: 10 | J16: 136 | K16: 134 | L16: 100 | M16: 77 | N16: 70 | O16: 44 | P16: 95 | Q16: 85 | R16: 67 | S16: 45 | T16: 44 | U16: 32 | V16: 20 | W16: 20 | X16: 17 | Y16: 23 | Z16: 23 | AA16: 22 | AB16: 21 | AC16: 21 | AD16: 18 | AE16: 2 | AF16: 2 | AG16: 1
B17: Sur y Medio Atrato | C17: Mutatá | D17: 623 | E17: 606 | F17: 447 | G17: 27 | H17: 27 | I17: 25 | J17: 116 | K17: 114 | L17: 78 | M17: 167 | N17: 163 | O17: 115 | P17: 111 | Q17: 107 | R17: 73 | S17: 69 | T17: 64 | U17: 39 | V17: 40 | W17: 38 | X17: 30 | Y17: 32 | Z17: 32 | AA17: 30 | AB17: 50 | AC17: 50 | AD17: 48 | AE17: 11 | AF17: 11 | AG17: 9
C18: Vigía del Fuerte | D18: 30 | E18: 30 | F18: 22 | G18: 6 | H18: 6 | I18: 3 | J18: 1 | K18: 1 | L18: 1 | M18: 2 | N18: 2 | O18: 1 | P18: 10 | Q18: 10 | R18: 6 | S18: 5 | T18: 5 | U18: 5 | V18: 2 | W18: 2 | X18: 2 | Y18: 1 | Z18: 1 | AA18: 1 | AB18: 3 | AC18: 3 | AD18: 3 | AE18: 0 | AF18: 0 | AG18: 0
C19: Murindó | D19: 8 | E19: 8 | F19: 7 | G19: 0 | H19: 0 | I19: 0 | J19: 2 | K19: 2 | L19: 2 | M19: 3 | N19: 3 | O19: 2 | P19: 0 | Q19: 0 | R19: 0 | S19: 1 | T19: 1 | U19: 1 | V19: 1 | W19: 1 | X19: 1 | Y19: 0 | Z19: 0 | AA19: 0 | AB19: 0 | AC19: 0 | AD19: 0 | AE19: 1 | AF19: 1 | AG19: 1
C20: TOTAL | D20: =SUM(D9:D19) -> 6487 | E20: 6079 | F20: 4352 | G20: 161 | H20: 157 | I20: 119 | J20: 1678 | K20: 1602 | L20: 1206 | M20: 1491 | N20: 1396 | O20: 1026 | P20: 1425 | Q20: 1255 | R20: 669 | S20: 547 | T20: 510 | U20: 360 | V20: 450 | W20: 428 | X20: 314 | Y20: 300 | Z20: 296 | AA20: 278 | AB20: 351 | AC20: 351 | AD20: 339 | AE20: 84 | AF20: 84 | AG20: 41
B22: Solicitudes de Restitución Norte Urabá por municipio 2011-2019
B23: Territorialidad | C23: Municipio | D23: Total a 2019 | G23: 2011 | J23: 2012 | M23: 2013 | P23: 2014 | S23: 2015 | V23: 2016 | Y23: 2017 | AB23: 2018 | AE23: 2019
D24: Solicitudes | E24: Predios | F24: Personas | G24: Solicitudes | H24: Predios | I24: Personas | J24: Solicitudes | K24: Predios | L24: Personas | M24: Solicitudes | N24: Predios | O24: Personas | P24: Solicitudes | Q24: Predios | R24: Personas | S24: Solicitudes | T24: Predios | U24: Personas | V24: Solicitudes | W24: Predios | X24: Personas | Y24: Solicitudes | Z24: Predios | AA24: Personas | AB24: Solicitudes | AC24: Predios | AD24: Personas | AE24: Solicitudes | AF24: Predios | AG24: Personas
B25: Norte Urabá | C25: Arboletes | D25: =G25+J25+M25+P25+S25+V25+Y25+AB25+AE25 -> 592 | E25: =H25+K25+N25+Q25+T25+W25+Z25+AC25+AF25 -> 561 | F25: 231 | G25: 16 | H25: 16 | I25: 10 | J25: 133 | K25: 122 | L25: 87 | M25: 78 | N25: 78 | O25: 35 | P25: 291 | Q25: 282 | R25: 56 | S25: 35 | T25: 25 | U25: 15 | V25: 14 | W25: 13 | X25: 10 | Y25: 13 | Z25: 13 | AA25: 7 | AB25: 11 | AC25: 11 | AD25: 10 | AE25: 1 | AF25: 1 | AG25: 1
C26: San Juan de Urabá | D26: =G26+J26+M26+P26+S26+V26+Y26+AB26+AE26 -> 33 | E26: 32 | F26: 28 | G26: 0 | H26: 0 | I26: 0 | J26: 18 | K26: 17 | L26: 14 | M26: 8 | N26: 8 | O26: 7 | P26: 1 | Q26: 1 | R26: 1 | S26: 1 | T26: 1 | U26: 1 | V26: 1 | W26: 1 | X26: 1 | Y26: 0 | Z26: 0 | AA26: 0 | AB26: 4 | AC26: 4 | AD26: 4 | AE26: 0 | AF26: 0 | AG26: 0
C27: San Pedro de Urabá | D27: 423 | E27: 390 | F27: 245 | G27: 5 | H27: 5 | I27: 4 | J27: 98 | K27: 92 | L27: 57 | M27: 57 | N27: 55 | O27: 39 | P27: 93 | Q27: 77 | R27: 28 | S27: 45 | T27: 41 | U27: 23 | V27: 58 | W27: 53 | X27: 35 | Y27: 7 | Z27: 7 | AA27: 7 | AB27: 45 | AC27: 45 | AD27: 43 | AE27: 15 | AF27: 15 | AG27: 9
C28: Necoclí | D28: 667 | E28: 618 | F28: 466 | G28: 19 | H28: 19 | I28: 16 | J28: 254 | K28: 243 | L28: 174 | M28: 81 | N28: 78 | O28: 64 | P28: 131 | Q28: 101 | R28: 63 | S28: 37 | T28: 34 | U28: 27 | V28: 41 | W28: 39 | X28: 30 | Y28: 53 | Z28: 53 | AA28: 45 | AB28: 39 | AC28: 39 | AD28: 38 | AE28: 12 | AF28: 12 | AG28: 9
C29: TOTAL | D29: =SUM(D25:D28) -> 1715 | E29: =SUM(E25:E28) -> 1601 | F29: 970 | G29: 40 | H29: 40 | I29: 30 | J29: 503 | K29: 474 | L29: 332 | M29: 224 | N29: 219 | O29: 145 | P29: 516 | Q29: 461 | R29: 148 | S29: 118 | T29: 101 | U29: 66 | V29: 114 | W29: 106 | X29: 76 | Y29: 73 | Z29: 73 | AA29: 59 | AB29: 99 | AC29: 99 | AD29: 95 | AE29: 28 | AF29: 28 | AG29: 19
B31: Solicitudes de Restitución Eje Bananero Urabá por municipio 2011-2019
B32: Territorialidad | C32: Municipio | D32: Total a 2019 | G32: 2011 | J32: 2012 | M32: 2013 | P32: 2014 | S32: 2015 | V32: 2016 | Y32: 2017 | AB32: 2018 | AE32: 2019
D33: Solicitudes | E33: Predios | F33: Personas | G33: Solicitudes | H33: Predios | I33: Personas | J33: Solicitudes | K33: Predios | L33: Personas | M33: Solicitudes | N33: Predios | O33: Personas | P33: Solicitudes | Q33: Predios | R33: Personas | S33: Solicitudes | T33: Predios | U33: Personas | V33: Solicitudes | W33: Predios | X33: Personas | Y33: Solicitudes | Z33: Predios | AA33: Personas | AB33: Solicitudes | AC33: Predios | AD33: Personas | AE33: Solicitudes | AF33: Predios | AG33: Personas
B34: Eje Bananero | C34: Turbo | D34: =G34+J34+M34+P34+S34+V34+Y34+AB34+AE34 -> 2711 | E34: 2518 | F34: 1870 | G34: 54 | H34: 52 | I34: 37 | J34: 728 | K34: 696 | L34: 545 | M34: 765 | N34: 703 | O34: 533 | P34: 488 | Q34: 412 | R34: 243 | S34: 224 | T34: 214 | U34: 151 | V34: 191 | W34: 181 | X34: 131 | Y34: 112 | Z34: 111 | AA34: 109 | AB34: 120 | AC34: 120 | AD34: 118 | AE34: 29 | AF34: 29 | AG34: 3
C35: Apartadó | D35: 724 | E35: 673 | F35: 538 | G35: 15 | H35: 14 | I35: 9 | J35: 127 | K35: 118 | L35: 99 | M35: 190 | N35: 173 | O35: 137 | P35: 161 | Q35: 144 | R35: 97 | S35: 65 | T35: 63 | U35: 50 | V35: 56 | W35: 54 | X35: 44 | Y35: 54 | Z35: 51 | AA35: 52 | AB35: 43 | AC35: 43 | AD35: 42 | AE35: 13 | AF35: 13 | AG35: 8
C36: Carepa | D36: 244 | E36: 232 | F36: 187 | G36: 6 | H36: 6 | I36: 5 | J36: 65 | K36: 63 | L36: 49 | M36: 63 | N36: 63 | O36: 49 | P36: 44 | Q36: 36 | R36: 35 | S36: 20 | T36: 18 | U36: 16 | V36: 26 | W36: 26 | X36: 13 | Y36: 5 | Z36: 5 | AA36: 5 | AB36: 15 | AC36: 15 | AD36: 15 | AE36: 0 | AF36: 0 | AG36: 0
C37: Chigorodó | D37: 432 | E37: 411 | F37: 311 | G37: 13 | H37: 12 | I37: 10 | J37: 136 | K37: 134 | L37: 100 | M37: 77 | N37: 70 | O37: 44 | P37: 95 | Q37: 85 | R37: 67 | S37: 45 | T37: 44 | U37: 32 | V37: 20 | W37: 20 | X37: 17 | Y37: 23 | Z37: 23 | AA37: 22 | AB37: 21 | AC37: 21 | AD37: 18 | AE37: 2 | AF37: 2 | AG37: 1
C38: TOTAL | D38: =SUM(D34:D37) -> 4111 | E38: =SUM(E34:E37) -> 3834 | F38: 2906 | G38: 88 | H38: 84 | I38: 61 | J38: 1056 | K38: 1011 | L38: 793 | M38: 1095 | N38: 1009 | O38: 763 | P38: 788 | Q38: 677 | R38: 442 | S38: 354 | T38: 339 | U38: 249 | V38: 293 | W38: 281 | X38: 205 | Y38: 194 | Z38: 190 | AA38: 188 | AB38: 199 | AC38: 199 | AD38: 193 | AE38: 44 | AF38: 44 | AG38: 12
B40: Solicitudes de Restitución Sur y Medio Atrato por municipio 2011-2019
B41: Territorialidad | D41: Total | E41: Total | F41: Total | G41: Solicitudes | H41: Predios | I41: Personas | J41: Solicitudes | K41: Predios | L41: Personas | M41: Solicitudes | N41: Predios | O41: Personas | P41: Solicitudes | Q41: Predios | R41: Personas | S41: Solicitudes | T41: Predios | U41: Personas | V41: Solicitudes | W41: Predios | X41: Personas | Y41: Solicitudes | Z41: Predios | AA41: Personas | AB41: Solicitudes | AC41: Predios | AD41: Personas | AE41: Solicitudes | AF41: Predios | AG41: Personas
D42: Solicitudes | E42: Predios | F42: Personas | G42: 2011 | H42: 2011 | I42: 2011 | J42: 2012 | K42: 2012 | L42: 2012 | M42: 2013 | N42: 2013 | O42: 2013 | P42: 2014 | Q42: 2014 | R42: 2014 | S42: 2015 | T42: 2015 | U42: 2015 | V42: 2016 | W42: 2016 | X42: 2016 | Y42: 2017 | Z42: 2017 | AA42: 2017 | AB42: 2018 | AC42: 2018 | AD42: 2018 | AE42: 2019 | AF42: 2019 | AG42: 2019
B43: Sur y Medio Atrato | C43: Mutatá | D43: =G43+J43+M43+P43+S43+V43+Y43+AB43+AE43 -> 623 | E43: 606 | F43: 447 | G43: 27 | H43: 27 | I43: 25 | J43: 116 | K43: 114 | L43: 78 | M43: 167 | N43: 163 | O43: 115 | P43: 111 | Q43: 107 | R43: 73 | S43: 69 | T43: 64 | U43: 39 | V43: 40 | W43: 38 | X43: 30 | Y43: 32 | Z43: 32 | AA43: 30 | AB43: 50 | AC43: 50 | AD43: 48 | AE43: 11 | AF43: 11 | AG43: 9
C44: Vigía del Fuerte | D44: 30 | E44: 30 | F44: 22 | G44: 6 | H44: 6 | I44: 3 | J44: 1 | K44: 1 | L44: 1 | M44: 2 | N44: 2 | O44: 1 | P44: 10 | Q44: 10 | R44: 6 | S44: 5 | T44: 5 | U44: 5 | V44: 2 | W44: 2 | X44: 2 | Y44: 1 | Z44: 1 | AA44: 1 | AB44: 3 | AC44: 3 | AD44: 3 | AE44: 0 | AF44: 0 | AG44: 0
C45: Murindó | D45: 8 | E45: 8 | F45: 7 | G45: 0 | H45: 0 | I45: 0 | J45: 2 | K45: 2 | L45: 2 | M45: 3 | N45: 3 | O45: 2 | P45: 0 | Q45: 0 | R45: 0 | S45: 1 | T45: 1 | U45: 1 | V45: 1 | W45: 1 | X45: 1 | Y45: 0 | Z45: 0 | AA45: 0 | AB45: 0 | AC45: 0 | AD45: 0 | AE45: 1 | AF45: 1 | AG45: 1
C46: TOTAL | D46: =SUM(D43:D45) -> 661 | E46: 644 | F46: 476 | G46: 33 | H46: 33 | I46: 28 | J46: 119 | K46: 117 | L46: 81 | M46: 172 | N46: 168 | O46: 118 | P46: 121 | Q46: 117 | R46: 79 | S46: 75 | T46: 70 | U46: 45 | V46: 43 | W46: 41 | X46: 33 | Y46: 33 | Z46: 33 | AA46: 31 | AB46: 53 | AC46: 53 | AD46: 51 | AE46: 12 | AF46: 12 | AG46: 10
B48: Solicitudes de Restitución Urabá antioqueño por territorialidad 2011-2019
B49: Territorialidad | D49: Total | E49: Total | F49: Total | G49: Solicitudes | H49: Predios | I49: Personas | J49: Solicitudes | K49: Predios | L49: Personas | M49: Solicitudes | N49: Predios | O49: Personas | P49: Solicitudes | Q49: Predios | R49: Personas | S49: Solicitudes | T49: Predios | U49: Personas | V49: Solicitudes | W49: Predios | X49: Personas | Y49: Solicitudes | Z49: Predios | AA49: Personas | AB49: Solicitudes | AC49: Predios | AD49: Personas | AE49: Solicitudes | AF49: Predios | AG49: Personas
D50: Solicitudes | E50: Predios | F50: Personas | G50: 2011 | H50: 2011 | I50: 2011 | J50: 2012 | K50: 2012 | L50: 2012 | M50: 2013 | N50: 2013 | O50: 2013 | P50: 2014 | Q50: 2014 | R50: 2014 | S50: 2015 | T50: 2015 | U50: 2015 | V50: 2016 | W50: 2016 | X50: 2016 | Y50: 2017 | Z50: 2017 | AA50: 2017 | AB50: 2018 | AC50: 2018 | AD50: 2018 | AE50: 2019 | AF50: 2019 | AG50: 2019
B51: Urabá antioqueño | C51: Norte Urabá | D51: =D9+D10+D11+D12 -> 1715 | E51: 1601 | F51: 970 | G51: 40 | H51: 40 | I51: 30 | J51: 503 | K51: 474 | L51: 332 | M51: 224 | N51: 219 | O51: 145 | P51: 516 | Q51: 461 | R51: 148 | S51: 118 | T51: 101 | U51: 66 | V51: 114 | W51: 106 | X51: 76 | Y51: 73 | Z51: 73 | AA51: 59 | AB51: 99 | AC51: 99 | AD51: 95 | AE51: 28 | AF51: 28 | AG51: 19
C52: Eje Bananero | D52: =D13+D14+D15+D16 -> 4111 | E52: 3834 | F52: 2906 | G52: 88 | H52: 84 | I52: 61 | J52: 1056 | K52: 1011 | L52: 793 | M52: 1095 | N52: 1009 | O52: 763 | P52: 788 | Q52: 677 | R52: 442 | S52: 354 | T52: 339 | U52: 249 | V52: 293 | W52: 281 | X52: 205 | Y52: 194 | Z52: 190 | AA52: 188 | AB52: 199 | AC52: 199 | AD52: 193 | AE52: 44 | AF52: 44 | AG52: 12
C53: Sur y Medio Atrato | D53: =D17+D18+D19 -> 661 | E53: 644 | F53: 476 | G53: 33 | H53: 33 | I53: 28 | J53: 119 | K53: 117 | L53: 81 | M53: 172 | N53: 168 | O53: 118 | P53: 121 | Q53: 117 | R53: 79 | S53: 75 | T53: 70 | U53: 45 | V53: 43 | W53: 41 | X53: 33 | Y53: 33 | Z53: 33 | AA53: 31 | AB53: 53 | AC53: 53 | AD53: 51 | AE53: 12 | AF53: 12 | AG53: 10
C54: TOTAL | D54: =SUM(D51:D53) -> 6487 | E54: 6079 | F54: 4352 | G54: 161 | H54: 157 | I54: 119 | J54: 1678 | K54: 1602 | L54: 1206 | M54: 1491 | N54: 1396 | O54: 1026 | P54: 1425 | Q54: 1255 | R54: 669 | S54: 547 | T54: 510 | U54: 360 | V54: 450 | W54: 428 | X54: 314 | Y54: 300 | Z54: 296 | AA54: 278 | AB54: 351 | AC54: 351 | AD54: 339 | AE54: 84 | AF54: 84 | AG54: 41
B56: Tablas Sentencias Restitución de Tierras Urabá antioqueño
B58: N. Sentencias Restitución de Tierras Urabá antioqueño por municipio 2011-2020
B59: Territorialidad | C59: Municipio | D59: 2011 | E59: 2012 | F59: 2013 | G59: 2014 | H59: 2015 | I59: 2016 | J59: 2017 | K59: 2018 | L59: 2019 | M59: 2020 | N59: TOTAL
B60: Norte Urabá | C60: Arboletes | L60: 1 | N60: =SUM(D60:M60) -> 1
C61: San Juan | N61: 0
C62: San Pedro de Urabá | J62: 6 | L62: 1 | M62: 1 | N62: 8
C63: Necoclí | G63: 3 | H63: 7 | I63: 12 | J63: 10 | K63: 5 | L63: 13 | N63: 50
B64: Eje Bananero | C64: Turbo | G64: 15 | H64: 10 | I64: 11 | J64: 15 | K64: 13 | L64: 12 | M64: 4 | N64: 80
C65: Apartadó | F65: 1 | G65: 1 | H65: 2 | I65: 1 | J65: 3 | L65: 1 | N65: 9
C66: Carepa | N66: 0
C67: Chigorodó | J67: 3 | K67: 7 | L67: 3 | M67: 1 | N67: 14
B68: Sur y Medio Atrato | C68: Mutatá | G68: 4 | H68: 3 | I68: 2 | J68: 10 | K68: 12 | L68: 12 | M68: 4 | N68: 47
C69: Vigía del Fuerte | N69: 0
C70: Murindó | N70: 0
C71: TOTAL | D71: =SUM(D60:D70) -> 0 | E71: 0 | F71: 1 | G71: 23 | H71: 22 | I71: 26 | J71: 47 | K71: 37 | L71: 43 | M71: 10 | N71: 209
B73: N. Sentencias Restitución de Tierras Norte Urabá por municipio 2011-2020
B74: Territorialidad | C74: Municipio | D74: 2011 | E74: 2012 | F74: 2013 | G74: 2014 | H74: 2015 | I74: 2016 | J74: 2017 | K74: 2018 | L74: 2019 | M74: 2020 | N74: TOTAL
B75: Norte Urabá | C75: Arboletes | L75: 1 | N75: =SUM(D75:M75) -> 1
C76: San Juan | N76: 0
C77: San Pedro de Urabá | J77: 6 | L77: 1 | M77: 1 | N77: 8
C78: Necoclí | G78: 3 | H78: 7 | I78: 12 | J78: 10 | K78: 5 | L78: 13 | N78: 50
C79: TOTAL | D79: =SUM(D75:D78) -> 0 | E79: =SUM(E75:E78) -> 0 | F79: 0 | G79: 3 | H79: 7 | I79: 12 | J79: 16 | K79: 5 | L79: 15 | M79: 1 | N79: 59
B81: N. Sentencias Restitución de Tierras Eje Bananero Urabá 2011-2020
B82: Territorialidad | C82: Municipio | D82: 2011 | E82: 2012 | F82: 2013 | G82: 2014 | H82: 2015 | I82: 2016 | J82: 2017 | K82: 2018 | L82: 2019 | M82: 2020 | N82: TOTAL
B83: Eje Bananero | C83: Turbo | G83: 15 | H83: 10 | I83: 11 | J83: 15 | K83: 13 | L83: 12 | M83: 4 | N83: =SUM(D83:M83) -> 80
C84: Apartadó | F84: 1 | G84: 1 | H84: 2 | I84: 1 | J84: 3 | L84: 1 | N84: 9
C85: Carepa | N85: 0
C86: Chigorodó | J86: 3 | K86: 7 | L86: 3 | M86: 1 | N86: 14
C87: TOTAL | D87: =SUM(D83:D86) -> 0 | E87: 0 | F87: 1 | G87: 16 | H87: 12 | I87: 12 | J87: 21 | K87: 20 | L87: 16 | M87: 5 | N87: 103
B89: N. Sentencias Restitución de Tierras Sur y Medio Atrato 2011-2020
B90: Territorialidad | C90: Municipio | D90: 2011 | E90: 2012 | F90: 2013 | G90: 2014 | H90: 2015 | I90: 2016 | J90: 2017 | K90: 2018 | L90: 2019 | M90: 2020 | N90: TOTAL
B91: Sur y Medio Atrato | C91: Mutatá | G91: 4 | H91: 3 | I91: 2 | J91: 10 | K91: 12 | L91: 12 | M91: 4 | N91: =SUM(D91:M91) -> 47
C92: Vigía del Fuerte | N92: 0
C93: Murindó | N93: 0
C94: TOTAL | D94: =SUM(D91:D93) -> 0 | E94: =SUM(E91:E93) -> 0 | F94: 0 | G94: 4 | H94: 3 | I94: 2 | J94: 10 | K94: 12 | L94: 12 | M94: 4 | N94: 47
B96: N. Sentencias Restitución de Tierras Urabá antioqueño por territorialidad 2011-2020
B97: Región | C97: Territorialidad | D97: 2011 | E97: 2012 | F97: 2013 | G97: 2014 | H97: 2015 | I97: 2016 | J97: 2017 | K97: 2018 | L97: 2019 | M97: 2020 | N97: TOTAL
B98: Urabá antioqueño | C98: Norte Urabá | D98: 0 | E98: 0 | F98: 0 | G98: 3 | H98: 7 | I98: 12 | J98: 16 | K98: 5 | L98: 15 | M98: 1 | N98: 59
C99: Eje Bananero | D99: 0 | E99: 0 | F99: 1 | G99: 16 | H99: 12 | I99: 12 | J99: 21 | K99: 20 | L99: 16 | M99: 5 | N99: 103
C100: Sur y Medio Atrato | D100: 0 | E100: 0 | F100: 0 | G100: 4 | H100: 3 | I100: 2 | J100: 10 | K100: 12 | L100: 12 | M100: 4 | N100: 47
C101: TOTAL | D101: =SUM(D98:D100) -> 0 | E101: =SUM(E98:E100) -> 0 | F101: 1 | G101: 23 | H101: 22 | I101: 26 | J101: 47 | K101: 37 | L101: 43 | M101: 10 | N101: 209
B103: Tablas Hectáreas de Tierra Restituidas Urabá antioqueño
B105: Hectáreas Restitución de Tierras Urabá antioqueño por municipio 2011-2020
B106: Territorialidad | C106: Municipio | D106: TOTAL
B107: Norte Urabá | C107: Arboletes | D107: 32
C108: San Juan | D108: 0
C109: San Pedro de Urabá | D109: 179
C110: Necoclí | D110: 1731
B111: Eje Bananero | C111: Turbo | D111: 3471
C112: Apartadó | D112: 196
C113: Carepa | D113: 0
C114: Chigorodó | D114: 458
B115: Sur y Medio Atrato | C115: Mutatá | D115: 1849
C116: Vigía del Fuerte | D116: 0
C117: Murindó | D117: 0
C118: TOTAL | D118: =SUM(D107:D117) -> 7916
B120: Hectáreas Restitución de Tierras Norte Urabá 2011-2020
B121: Territorialidad | C121: Municipio | D121: TOTAL
B122: Norte Urabá | C122: Arboletes | D122: 32
C123: San Juan | D123: 0
C124: San Pedro de Urabá | D124: 179
C125: Necoclí | D125: 1731
C126: TOTAL | D126: =SUM(D122:D125) -> 1942
B128: Hectáreas Restitución de Tierras Eje Bananero Urabá 2011-2020
B129: Territorialidad | C129: Municipio | D129: TOTAL
B130: Eje Bananero | C130: Turbo | D130: 3471
C131: Apartadó | D131: 196
C132: Carepa | D132: 0
C133: Chigorodó | D133: 458
C134: TOTAL | D134: =SUM(D130:D133) -> 4125
B136: Hectáreas Restitución de Tierras Sur y Medio Atrato 2011-2020
B137: Territorialidad | C137: Municipio | D137: TOTAL
B138: Sur y Medio Atrato | C138: Mutatá | D138: 1849
C139: Vigía del Fuerte | D139: 0
C140: Murindó | D140: 0
C141: TOTAL | D141: =SUM(D138:D140) -> 1849
B143: Hectáreas Restitución de Tierras Urabá antioqueño por territorialidad 2011-2020
B144: Región | C144: Territorialidad | D144: TOTAL
B145: Urabá antioqueño | C145: Norte Urabá | D145: =D126 -> 1942
C146: Eje Bananero | D146: =D134 -> 4125
C147: Sur y Medio Atrato | D147: =D141 -> 1849
C148: TOTAL | D148: =SUM(D145:D147) -> 7916
B150: Tablas Predios Restituidos Urabá antioqueño
B152: Predios Restitución de Tierras Urabá antioqueño por municipio 2011-2020
B153: Territorialidad | C153: Municipio | D153: TOTAL
B154: Norte Urabá | C154: Arboletes | D154: 1
C155: San Juan | D155: 0
C156: San Pedro de Urabá | D156: 8
C157: Necoclí | D157: 74
B158: Eje Bananero | C158: Turbo | D158: 133
C159: Apartadó | D159: 10
C160: Carepa | D160: 0
C161: Chigorodó | D161: 19
B162: Sur y Medio Atrato | C162: Mutatá | D162: 65
C163: Vigía del Fuerte | D163: 0
C164: Murindó | D164: 0
C165: TOTAL | D165: =SUM(D154:D164) -> 310
B167: Predios Restitución de TierrasNorte Urabá 2011-2020
B168: Territorialidad | C168: Municipio | D168: TOTAL
B169: Norte Urabá | C169: Arboletes | D169: 1
C170: San Juan | D170: 0
C171: San Pedro de Urabá | D171: 8
C172: Necoclí | D172: 74
C173: TOTAL | D173: =SUM(D169:D172) -> 83
B175: Predios Restitución de Tierras Eje Bananero Urabá 2011-2020
B176: Territorialidad | C176: Municipio | D176: TOTAL
B177: Eje Bananero | C177: Turbo | D177: 133
C178: Apartadó | D178: 10
C179: Carepa | D179: 0
C180: Chigorodó | D180: 19
C181: TOTAL | D181: =SUM(D177:D180) -> 162
B183: Predios Restitución de Tierras Sur y Medio Atrato 2011-2020
B184: Territorialidad | C184: Municipio | D184: TOTAL
B185: Sur y Medio Atrato | C185: Mutatá | D185: 65
C186: Vigía del Fuerte | D186: 0
C187: Murindó | D187: 0
C188: TOTAL | D188: =SUM(D185:D187) -> 65
B190: Predios Restitución de Tierras Urabá antioqueño por territorialidad 2011-2020
B191: Región | C191: Territorialidad | D191: TOTAL
B192: Urabá antioqueño | C192: Norte Urabá | D192: =D145 -> 1942
C193: Eje Bananero | D193: =D146 -> 4125
C194: Sur y Medio Atrato | D194: =D162+D163+D164 -> 65
C195: TOTAL | D195: =SUM(D192:D194) -> 6132

Sheet T.Rest.GUrabá
B2: Tablas Restitución de Tierras Gran Urabá
B4: Fuente: https://cifras.unidadvictimas.gov.co/tierras. Fecha de corte: 01 de agosto de 2019. Consultada el 28 de septiembre de 2020
B6: Solicitudes de Restitución de Tierras Gran Urabá por municipio 2011-2019
B7: Territorialidad | C7: Municipio | D7: Total a 2019 | G7: 2011 | J7: 2012 | M7: 2013 | P7: 2014 | S7: 2015 | V7: 2016 | Y7: 2017 | AB7: 2018 | AE7: 2019
D8: Solicitudes | E8: Predios | F8: Personas | G8: Solicitudes | H8: Predios | I8: Personas | J8: Solicitudes | K8: Predios | L8: Personas | M8: Solicitudes | N8: Predios | O8: Personas | P8: Solicitudes | Q8: Predios | R8: Personas | S8: Solicitudes | T8: Predios | U8: Personas | V8: Solicitudes | W8: Predios | X8: Personas | Y8: Solicitudes | Z8: Predios | AA8: Personas | AB8: Solicitudes | AC8: Predios | AD8: Personas | AE8: Solicitudes | AF8: Predios | AG8: Personas
B9: Norte Urabá | C9: Arboletes | D9: =G9+J9+M9+P9+S9+V9+Y9+AB9+AE9 -> 592 | E9: =H9+K9+N9+Q9+T9+W9+Z9+AC9+AF9 -> 561 | F9: 231 | G9: 16 | H9: 16 | I9: 10 | J9: 133 | K9: 122 | L9: 87 | M9: 78 | N9: 78 | O9: 35 | P9: 291 | Q9: 282 | R9: 56 | S9: 35 | T9: 25 | U9: 15 | V9: 14 | W9: 13 | X9: 10 | Y9: 13 | Z9: 13 | AA9: 7 | AB9: 11 | AC9: 11 | AD9: 10 | AE9: 1 | AF9: 1 | AG9: 1
C10: San Juan de Urabá | D10: =G10+J10+M10+P10+S10+V10+Y10+AB10+AE10 -> 33 | E10: 32 | F10: 28 | G10: 0 | H10: 0 | I10: 0 | J10: 18 | K10: 17 | L10: 14 | M10: 8 | N10: 8 | O10: 7 | P10: 1 | Q10: 1 | R10: 1 | S10: 1 | T10: 1 | U10: 1 | V10: 1 | W10: 1 | X10: 1 | Y10: 0 | Z10: 0 | AA10: 0 | AB10: 4 | AC10: 4 | AD10: 4 | AE10: 0 | AF10: 0 | AG10: 0
C11: San Pedro de Urabá | D11: 423 | E11: 390 | F11: 245 | G11: 5 | H11: 5 | I11: 4 | J11: 98 | K11: 92 | L11: 57 | M11: 57 | N11: 55 | O11: 39 | P11: 93 | Q11: 77 | R11: 28 | S11: 45 | T11: 41 | U11: 23 | V11: 58 | W11: 53 | X11: 35 | Y11: 7 | Z11: 7 | AA11: 7 | AB11: 45 | AC11: 45 | AD11: 43 | AE11: 15 | AF11: 15 | AG11: 9
C12: Necoclí | D12: 667 | E12: 618 | F12: 466 | G12: 19 | H12: 19 | I12: 16 | J12: 254 | K12: 243 | L12: 174 | M12: 81 | N12: 78 | O12: 64 | P12: 131 | Q12: 101 | R12: 63 | S12: 37 | T12: 34 | U12: 27 | V12: 41 | W12: 39 | X12: 30 | Y12: 53 | Z12: 53 | AA12: 45 | AB12: 39 | AC12: 39 | AD12: 38 | AE12: 12 | AF12: 12 | AG12: 9
B13: Eje Bananero | C13: Turbo | D13: 2711 | E13: 2518 | F13: 1870 | G13: 54 | H13: 52 | I13: 37 | J13: 728 | K13: 696 | L13: 545 | M13: 765 | N13: 703 | O13: 533 | P13: 488 | Q13: 412 | R13: 243 | S13: 224 | T13: 214 | U13: 151 | V13: 191 | W13: 181 | X13: 131 | Y13: 112 | Z13: 111 | AA13: 109 | AB13: 120 | AC13: 120 | AD13: 118 | AE13: 29 | AF13: 29 | AG13: 3
C14: Apartadó | D14: 724 | E14: 673 | F14: 538 | G14: 15 | H14: 14 | I14: 9 | J14: 127 | K14: 118 | L14: 99 | M14: 190 | N14: 173 | O14: 137 | P14: 161 | Q14: 144 | R14: 97 | S14: 65 | T14: 63 | U14: 50 | V14: 56 | W14: 54 | X14: 44 | Y14: 54 | Z14: 51 | AA14: 52 | AB14: 43 | AC14: 43 | AD14: 42 | AE14: 13 | AF14: 13 | AG14: 8
C15: Carepa | D15: 244 | E15: 232 | F15: 187 | G15: 6 | H15: 6 | I15: 5 | J15: 65 | K15: 63 | L15: 49 | M15: 63 | N15: 63 | O15: 49 | P15: 44 | Q15: 36 | R15: 35 | S15: 20 | T15: 18 | U15: 16 | V15: 26 | W15: 26 | X15: 13 | Y15: 5 | Z15: 5 | AA15: 5 | AB15: 15 | AC15: 15 | AD15: 15 | AE15: 0 | AF15: 0 | AG15: 0
C16: Chigorodó | D16: 432 | E16: 411 | F16: 311 | G16: 13 | H16: 12 | I16: 10 | J16: 136 | K16: 134 | L16: 100 | M16: 77 | N16: 70 | O16: 44 | P16: 95 | Q16: 85 | R16: 67 | S16: 45 | T16: 44 | U16: 32 | V16: 20 | W16: 20 | X16: 17 | Y16: 23 | Z16: 23 | AA16: 22 | AB16: 21 | AC16: 21 | AD16: 18 | AE16: 2 | AF16: 2 | AG16: 1
B17: Sur y Dabeiba | C17: Mutatá | D17: 623 | E17: 606 | F17: 447 | G17: 27 | H17: 27 | I17: 25 | J17: 116 | K17: 114 | L17: 78 | M17: 167 | N17: 163 | O17: 115 | P17: 111 | Q17: 107 | R17: 73 | S17: 69 | T17: 64 | U17: 39 | V17: 40 | W17: 38 | X17: 30 | Y17: 32 | Z17: 32 | AA17: 30 | AB17: 50 | AC17: 50 | AD17: 48 | AE17: 11 | AF17: 11 | AG17: 9
C18: Dabeiba | D18: 584 | E18: 496 | F18: 353 | G18: 31 | H18: 31 | I18: 20 | J18: 84 | K18: 75 | L18: 52 | M18: 242 | N18: 198 | O18: 145 | P18: 155 | Q18: 120 | R18: 81 | S18: 30 | T18: 30 | U18: 19 | V18: 16 | W18: 16 | X18: 13 | Y18: 15 | Z18: 15 | AA18: 14 | AB18: 5 | AC18: 5 | AD18: 5 | AE18: 6 | AF18: 6 | AG18: 4
B19: Atrato | C19: Vigía del Fuerte | D19: 30 | E19: 30 | F19: 22 | G19: 6 | H19: 6 | I19: 3 | J19: 1 | K19: 1 | L19: 1 | M19: 2 | N19: 2 | O19: 1 | P19: 10 | Q19: 10 | R19: 6 | S19: 5 | T19: 5 | U19: 5 | V19: 2 | W19: 2 | X19: 2 | Y19: 1 | Z19: 1 | AA19: 1 | AB19: 3 | AC19: 3 | AD19: 3 | AE19: 0 | AF19: 0 | AG19: 0
C20: Murindó | D20: 8 | E20: 8 | F20: 7 | G20: 0 | H20: 0 | I20: 0 | J20: 2 | K20: 2 | L20: 2 | M20: 3 | N20: 3 | O20: 2 | P20: 0 | Q20: 0 | R20: 0 | S20: 1 | T20: 1 | U20: 1 | V20: 1 | W20: 1 | X20: 1 | Y20: 0 | Z20: 0 | AA20: 0 | AB20: 0 | AC20: 0 | AD20: 0 | AE20: 1 | AF20: 1 | AG20: 1
C21: Riosucio | D21: 1170 | E21: 1056 | F21: 877 | G21: 51 | H21: 51 | I21: 39 | J21: 336 | K21: 327 | L21: 235 | M21: 349 | N21: 267 | O21: 260 | P21: 132 | Q21: 117 | R21: 81 | S21: 68 | T21: 64 | U21: 60 | V21: 84 | W21: 81 | X21: 59 | Y21: 79 | Z21: 78 | AA21: 75 | AB21: 59 | AC21: 59 | AD21: 59 | AE21: 12 | AF21: 12 | AG21: 9
C22: Carmen del Darién | D22: 96 | E22: 92 | F22: 69 | G22: 4 | H22: 4 | I22: 3 | J22: 22 | K22: 22 | L22: 12 | M22: 22 | N22: 18 | O22: 17 | P22: 16 | Q22: 16 | R22: 14 | S22: 14 | T22: 14 | U22: 5 | V22: 1 | W22: 1 | X22: 1 | Y22: 5 | Z22: 5 | AA22: 5 | AB22: 12 | AC22: 12 | AD22: 12 | AE22: 0 | AF22: 0 | AG22: 0
B23: Darién-Norte Chocó | C23: Unguía | D23: 216 | E23: 184 | F23: 155 | G23: 3 | H23: 3 | I23: 3 | J23: 63 | K23: 49 | L23: 45 | M23: 56 | N23: 50 | O23: 40 | P23: 42 | Q23: 32 | R23: 22 | S23: 15 | T23: 14 | U23: 11 | V23: 6 | W23: 5 | X23: 6 | Y23: 21 | Z23: 21 | AA23: 20 | AB23: 3 | AC23: 3 | AD23: 3 | AE23: 7 | AF23: 7 | AG23: 5
C24: Acandí | D24: 155 | E24: 137 | F24: 104 | G24: 5 | H24: 5 | I24: 5 | J24: 16 | K24: 15 | L24: 15 | M24: 62 | N24: 52 | O24: 40 | P24: 33 | Q24: 26 | R24: 17 | S24: 6 | T24: 6 | U24: 5 | V24: 7 | W24: 7 | X24: 7 | Y24: 7 | Z24: 7 | AA24: 7 | AB24: 4 | AC24: 4 | AD24: 4 | AE24: 15 | AF24: 15 | AG24: 4
B25: Sur Córdoba | C25: Tierralta | D25: 818 | E25: 784 | F25: 650 | G25: 15 | H25: 14 | I25: 15 | J25: 197 | K25: 190 | L25: 163 | M25: 161 | N25: 150 | O25: 123 | P25: 111 | Q25: 106 | R25: 90 | S25: 80 | T25: 77 | U25: 62 | V25: 100 | W25: 94 | X25: 58 | Y25: 31 | Z25: 30 | AA25: 29 | AB25: 108 | AC25: 108 | AD25: 101 | AE25: 15 | AF25: 15 | AG25: 9
C26: Valencia | D26: 929 | E26: 860 | F26: 752 | G26: 19 | H26: 18 | I26: 18 | J26: 385 | K26: 371 | L26: 335 | M26: 187 | N26: 166 | O26: 145 | P26: 60 | Q26: 47 | R26: 39 | S26: 92 | T26: 82 | U26: 70 | V26: 49 | W26: 40 | X26: 37 | Y26: 61 | Z26: 60 | AA26: 42 | AB26: 61 | AC26: 61 | AD26: 61 | AE26: 15 | AF26: 15 | AG26: 5
C27: TOTAL | D27: =SUM(D9:D26) -> 10455 | E27: =SUM(E9:E26) -> 9688 | F27: 7312 | G27: 289 | H27: 283 | I27: 222 | J27: 2781 | K27: 2651 | L27: 2063 | M27: 2570 | N27: 2297 | O27: 1796 | P27: 1974 | Q27: 1719 | R27: 1013 | S27: 852 | T27: 797 | U27: 592 | V27: 713 | W27: 672 | X27: 495 | Y27: 519 | Z27: 512 | AA27: 470 | AB27: 603 | AC27: 603 | AD27: 584 | AE27: 154 | AF27: 154 | AG27: 77
B29: Solicitudes de Restitución de Tierras Norte Urabá por municipio 2011-2019
B30: Territorialidad | D30: Total | E30: Total | F30: Total | G30: Solicitudes | H30: Predios | I30: Personas | J30: Solicitudes | K30: Predios | L30: Personas | M30: Solicitudes | N30: Predios | O30: Personas | P30: Solicitudes | Q30: Predios | R30: Personas | S30: Solicitudes | T30: Predios | U30: Personas | V30: Solicitudes | W30: Predios | X30: Personas | Y30: Solicitudes | Z30: Predios | AA30: Personas | AB30: Solicitudes | AC30: Predios | AD30: Personas | AE30: Solicitudes | AF30: Predios | AG30: Personas
D31: Solicitudes | E31: Predios | F31: Personas | G31: 2011 | H31: 2011 | I31: 2011 | J31: 2012 | K31: 2012 | L31: 2012 | M31: 2013 | N31: 2013 | O31: 2013 | P31: 2014 | Q31: 2014 | R31: 2014 | S31: 2015 | T31: 2015 | U31: 2015 | V31: 2016 | W31: 2016 | X31: 2016 | Y31: 2017 | Z31: 2017 | AA31: 2017 | AB31: 2018 | AC31: 2018 | AD31: 2018 | AE31: 2019 | AF31: 2019 | AG31: 2019
B32: Norte Urabá | C32: Arboletes | D32: =G32+J32+M32+P32+S32+V32+Y32+AB32+AE32 -> 592 | E32: =H32+K32+N32+Q32+T32+W32+Z32+AC32+AF32 -> 561 | F32: 231 | G32: 16 | H32: 16 | I32: 10 | J32: 133 | K32: 122 | L32: 87 | M32: 78 | N32: 78 | O32: 35 | P32: 291 | Q32: 282 | R32: 56 | S32: 35 | T32: 25 | U32: 15 | V32: 14 | W32: 13 | X32: 10 | Y32: 13 | Z32: 13 | AA32: 7 | AB32: 11 | AC32: 11 | AD32: 10 | AE32: 1 | AF32: 1 | AG32: 1
C33: San Juan de Urabá | D33: =G33+J33+M33+P33+S33+V33+Y33+AB33+AE33 -> 33 | E33: 32 | F33: 28 | G33: 0 | H33: 0 | I33: 0 | J33: 18 | K33: 17 | L33: 14 | M33: 8 | N33: 8 | O33: 7 | P33: 1 | Q33: 1 | R33: 1 | S33: 1 | T33: 1 | U33: 1 | V33: 1 | W33: 1 | X33: 1 | Y33: 0 | Z33: 0 | AA33: 0 | AB33: 4 | AC33: 4 | AD33: 4 | AE33: 0 | AF33: 0 | AG33: 0
C34: San Pedro de Urabá | D34: 423 | E34: 390 | F34: 245 | G34: 5 | H34: 5 | I34: 4 | J34: 98 | K34: 92 | L34: 57 | M34: 57 | N34: 55 | O34: 39 | P34: 93 | Q34: 77 | R34: 28 | S34: 45 | T34: 41 | U34: 23 | V34: 58 | W34: 53 | X34: 35 | Y34: 7 | Z34: 7 | AA34: 7 | AB34: 45 | AC34: 45 | AD34: 43 | AE34: 15 | AF34: 15 | AG34: 9
C35: Necoclí | D35: 667 | E35: 618 | F35: 466 | G35: 19 | H35: 19 | I35: 16 | J35: 254 | K35: 243 | L35: 174 | M35: 81 | N35: 78 | O35: 64 | P35: 131 | Q35: 101 | R35: 63 | S35: 37 | T35: 34 | U35: 27 | V35: 41 | W35: 39 | X35: 30 | Y35: 53 | Z35: 53 | AA35: 45 | AB35: 39 | AC35: 39 | AD35: 38 | AE35: 12 | AF35: 12 | AG35: 9
C36: TOTAL | D36: =SUM(D32:D35) -> 1715 | E36: =SUM(E32:E35) -> 1601 | F36: 970 | G36: 40 | H36: 40 | I36: 30 | J36: 503 | K36: 474 | L36: 332 | M36: 224 | N36: 219 | O36: 145 | P36: 516 | Q36: 461 | R36: 148 | S36: 118 | T36: 101 | U36: 66 | V36: 114 | W36: 106 | X36: 76 | Y36: 73 | Z36: 73 | AA36: 59 | AB36: 99 | AC36: 99 | AD36: 95 | AE36: 28 | AF36: 28 | AG36: 19
B38: Solicitudes de Restitución de Tierras Eje Bananero Urabá por municipio 2011-2019
B39: Territorialidad | D39: Total | E39: Total | F39: Total | G39: Solicitudes | H39: Predios | I39: Personas | J39: Solicitudes | K39: Predios | L39: Personas | M39: Solicitudes | N39: Predios | O39: Personas | P39: Solicitudes | Q39: Predios | R39: Personas | S39: Solicitudes | T39: Predios | U39: Personas | V39: Solicitudes | W39: Predios | X39: Personas | Y39: Solicitudes | Z39: Predios | AA39: Personas | AB39: Solicitudes | AC39: Predios | AD39: Personas | AE39: Solicitudes | AF39: Predios | AG39: Personas
D40: Solicitudes | E40: Predios | F40: Personas | G40: 2011 | H40: 2011 | I40: 2011 | J40: 2012 | K40: 2012 | L40: 2012 | M40: 2013 | N40: 2013 | O40: 2013 | P40: 2014 | Q40: 2014 | R40: 2014 | S40: 2015 | T40: 2015 | U40: 2015 | V40: 2016 | W40: 2016 | X40: 2016 | Y40: 2017 | Z40: 2017 | AA40: 2017 | AB40: 2018 | AC40: 2018 | AD40: 2018 | AE40: 2019 | AF40: 2019 | AG40: 2019
B41: Eje Bananero | C41: Turbo | D41: =G41+J41+M41+P41+S41+V41+Y41+AB41+AE41 -> 2711 | E41: 2518 | F41: 1870 | G41: 54 | H41: 52 | I41: 37 | J41: 728 | K41: 696 | L41: 545 | M41: 765 | N41: 703 | O41: 533 | P41: 488 | Q41: 412 | R41: 243 | S41: 224 | T41: 214 | U41: 151 | V41: 191 | W41: 181 | X41: 131 | Y41: 112 | Z41: 111 | AA41: 109 | AB41: 120 | AC41: 120 | AD41: 118 | AE41: 29 | AF41: 29 | AG41: 3
C42: Apartadó | D42: 724 | E42: 673 | F42: 538 | G42: 15 | H42: 14 | I42: 9 | J42: 127 | K42: 118 | L42: 99 | M42: 190 | N42: 173 | O42: 137 | P42: 161 | Q42: 144 | R42: 97 | S42: 65 | T42: 63 | U42: 50 | V42: 56 | W42: 54 | X42: 44 | Y42: 54 | Z42: 51 | AA42: 52 | AB42: 43 | AC42: 43 | AD42: 42 | AE42: 13 | AF42: 13 | AG42: 8
C43: Carepa | D43: 244 | E43: 232 | F43: 187 | G43: 6 | H43: 6 | I43: 5 | J43: 65 | K43: 63 | L43: 49 | M43: 63 | N43: 63 | O43: 49 | P43: 44 | Q43: 36 | R43: 35 | S43: 20 | T43: 18 | U43: 16 | V43: 26 | W43: 26 | X43: 13 | Y43: 5 | Z43: 5 | AA43: 5 | AB43: 15 | AC43: 15 | AD43: 15 | AE43: 0 | AF43: 0 | AG43: 0
C44: Chigorodó | D44: 432 | E44: 411 | F44: 311 | G44: 13 | H44: 12 | I44: 10 | J44: 136 | K44: 134 | L44: 100 | M44: 77 | N44: 70 | O44: 44 | P44: 95 | Q44: 85 | R44: 67 | S44: 45 | T44: 44 | U44: 32 | V44: 20 | W44: 20 | X44: 17 | Y44: 23 | Z44: 23 | AA44: 22 | AB44: 21 | AC44: 21 | AD44: 18 | AE44: 2 | AF44: 2 | AG44: 1
C45: TOTAL | D45: =SUM(D41:D44) -> 4111 | E45: =SUM(E41:E44) -> 3834 | F45: 2906 | G45: 88 | H45: 84 | I45: 61 | J45: 1056 | K45: 1011 | L45: 793 | M45: 1095 | N45: 1009 | O45: 763 | P45: 788 | Q45: 677 | R45: 442 | S45: 354 | T45: 339 | U45: 249 | V45: 293 | W45: 281 | X45: 205 | Y45: 194 | Z45: 190 | AA45: 188 | AB45: 199 | AC45: 199 | AD45: 193 | AE45: 44 | AF45: 44 | AG45: 12
B47: Solicitudes de Restitución de Tierras Sur Urabá y Dabeiba por municipio 2011-2019
B48: Territorialidad | D48: Total | E48: Total | F48: Total | G48: Solicitudes | H48: Predios | I48: Personas | J48: Solicitudes | K48: Predios | L48: Personas | M48: Solicitudes | N48: Predios | O48: Personas | P48: Solicitudes | Q48: Predios | R48: Personas | S48: Solicitudes | T48: Predios | U48: Personas | V48: Solicitudes | W48: Predios | X48: Personas | Y48: Solicitudes | Z48: Predios | AA48: Personas | AB48: Solicitudes | AC48: Predios | AD48: Personas | AE48: Solicitudes | AF48: Predios | AG48: Personas
D49: Solicitudes | E49: Predios | F49: Personas | G49: 2011 | H49: 2011 | I49: 2011 | J49: 2012 | K49: 2012 | L49: 2012 | M49: 2013 | N49: 2013 | O49: 2013 | P49: 2014 | Q49: 2014 | R49: 2014 | S49: 2015 | T49: 2015 | U49: 2015 | V49: 2016 | W49: 2016 | X49: 2016 | Y49: 2017 | Z49: 2017 | AA49: 2017 | AB49: 2018 | AC49: 2018 | AD49: 2018 | AE49: 2019 | AF49: 2019 | AG49: 2019
B50: Sur y Dabeiba | C50: Mutatá | D50: =G50+J50+M50+P50+S50+V50+Y50+AB50+AE50 -> 623 | E50: 606 | F50: 447 | G50: 27 | H50: 27 | I50: 25 | J50: 116 | K50: 114 | L50: 78 | M50: 167 | N50: 163 | O50: 115 | P50: 111 | Q50: 107 | R50: 73 | S50: 69 | T50: 64 | U50: 39 | V50: 40 | W50: 38 | X50: 30 | Y50: 32 | Z50: 32 | AA50: 30 | AB50: 50 | AC50: 50 | AD50: 48 | AE50: 11 | AF50: 11 | AG50: 9
C51: Dabeiba | D51: 584 | E51: 496 | F51: 353 | G51: 31 | H51: 31 | I51: 20 | J51: 84 | K51: 75 | L51: 52 | M51: 242 | N51: 198 | O51: 145 | P51: 155 | Q51: 120 | R51: 81 | S51: 30 | T51: 30 | U51: 19 | V51: 16 | W51: 16 | X51: 13 | Y51: 15 | Z51: 15 | AA51: 14 | AB51: 5 | AC51: 5 | AD51: 5 | AE51: 6 | AF51: 6 | AG51: 4
C52: TOTAL | D52: =SUM(D50:D51) -> 1207 | E52: =SUM(E50:E51) -> 1102 | F52: 800 | G52: 58 | H52: 58 | I52: 45 | J52: 200 | K52: 189 | L52: 130 | M52: 409 | N52: 361 | O52: 260 | P52: 266 | Q52: 227 | R52: 154 | S52: 99 | T52: 94 | U52: 58 | V52: 56 | W52: 54 | X52: 43 | Y52: 47 | Z52: 47 | AA52: 44 | AB52: 55 | AC52: 55 | AD52: 53 | AE52: 17 | AF52: 17 | AG52: 13
B54: Solicitudes de Restitución de Tierras Atrato por municipio 2011-2019
B55: Territorialidad | D55: Total | E55: Total | F55: Total | G55: Solicitudes | H55: Predios | I55: Personas | J55: Solicitudes | K55: Predios | L55: Personas | M55: Solicitudes | N55: Predios | O55: Personas | P55: Solicitudes | Q55: Predios | R55: Personas | S55: Solicitudes | T55: Predios | U55: Personas | V55: Solicitudes | W55: Predios | X55: Personas | Y55: Solicitudes | Z55: Predios | AA55: Personas | AB55: Solicitudes | AC55: Predios | AD55: Personas | AE55: Solicitudes | AF55: Predios | AG55: Personas
D56: Solicitudes | E56: Predios | F56: Personas | G56: 2011 | H56: 2011 | I56: 2011 | J56: 2012 | K56: 2012 | L56: 2012 | M56: 2013 | N56: 2013 | O56: 2013 | P56: 2014 | Q56: 2014 | R56: 2014 | S56: 2015 | T56: 2015 | U56: 2015 | V56: 2016 | W56: 2016 | X56: 2016 | Y56: 2017 | Z56: 2017 | AA56: 2017 | AB56: 2018 | AC56: 2018 | AD56: 2018 | AE56: 2019 | AF56: 2019 | AG56: 2019
B57: Atrato | C57: Vigía del Fuerte | D57: =G57+J57+M57+P57+S57+V57+Y57+AB57+AE57 -> 30 | E57: 30 | F57: 22 | G57: 6 | H57: 6 | I57: 3 | J57: 1 | K57: 1 | L57: 1 | M57: 2 | N57: 2 | O57: 1 | P57: 10 | Q57: 10 | R57: 6 | S57: 5 | T57: 5 | U57: 5 | V57: 2 | W57: 2 | X57: 2 | Y57: 1 | Z57: 1 | AA57: 1 | AB57: 3 | AC57: 3 | AD57: 3 | AE57: 0 | AF57: 0 | AG57: 0
C58: Murindó | D58: 8 | E58: 8 | F58: 7 | G58: 0 | H58: 0 | I58: 0 | J58: 2 | K58: 2 | L58: 2 | M58: 3 | N58: 3 | O58: 2 | P58: 0 | Q58: 0 | R58: 0 | S58: 1 | T58: 1 | U58: 1 | V58: 1 | W58: 1 | X58: 1 | Y58: 0 | Z58: 0 | AA58: 0 | AB58: 0 | AC58: 0 | AD58: 0 | AE58: 1 | AF58: 1 | AG58: 1
C59: Riosucio | D59: 1170 | E59: 1056 | F59: 877 | G59: 51 | H59: 51 | I59: 39 | J59: 336 | K59: 327 | L59: 235 | M59: 349 | N59: 267 | O59: 260 | P59: 132 | Q59: 117 | R59: 81 | S59: 68 | T59: 64 | U59: 60 | V59: 84 | W59: 81 | X59: 59 | Y59: 79 | Z59: 78 | AA59: 75 | AB59: 59 | AC59: 59 | AD59: 59 | AE59: 12 | AF59: 12 | AG59: 9
C60: Carmen del Darién | D60: 96 | E60: 92 | F60: 69 | G60: 4 | H60: 4 | I60: 3 | J60: 22 | K60: 22 | L60: 12 | M60: 22 | N60: 18 | O60: 17 | P60: 16 | Q60: 16 | R60: 14 | S60: 14 | T60: 14 | U60: 5 | V60: 1 | W60: 1 | X60: 1 | Y60: 5 | Z60: 5 | AA60: 5 | AB60: 12 | AC60: 12 | AD60: 12 | AE60: 0 | AF60: 0 | AG60: 0
C61: TOTAL | D61: =SUM(D57:D60) -> 1304 | E61: =SUM(E57:E60) -> 1186 | F61: 975 | G61: 61 | H61: 61 | I61: 45 | J61: 361 | K61: 352 | L61: 250 | M61: 376 | N61: 290 | O61: 280 | P61: 158 | Q61: 143 | R61: 101 | S61: 88 | T61: 84 | U61: 71 | V61: 88 | W61: 85 | X61: 63 | Y61: 85 | Z61: 84 | AA61: 81 | AB61: 74 | AC61: 74 | AD61: 74 | AE61: 13 | AF61: 13 | AG61: 10
B63: Solicitudes de Restitución de Tierras Darién.Norte Chocó por municipio 2011-2019
B64: Territorialidad | D64: Total | E64: Total | F64: Total | G64: Solicitudes | H64: Predios | I64: Personas | J64: Solicitudes | K64: Predios | L64: Personas | M64: Solicitudes | N64: Predios | O64: Personas | P64: Solicitudes | Q64: Predios | R64: Personas | S64: Solicitudes | T64: Predios | U64: Personas | V64: Solicitudes | W64: Predios | X64: Personas | Y64: Solicitudes | Z64: Predios | AA64: Personas | AB64: Solicitudes | AC64: Predios | AD64: Personas | AE64: Solicitudes | AF64: Predios | AG64: Personas
D65: Solicitudes | E65: Predios | F65: Personas | G65: 2011 | H65: 2011 | I65: 2011 | J65: 2012 | K65: 2012 | L65: 2012 | M65: 2013 | N65: 2013 | O65: 2013 | P65: 2014 | Q65: 2014 | R65: 2014 | S65: 2015 | T65: 2015 | U65: 2015 | V65: 2016 | W65: 2016 | X65: 2016 | Y65: 2017 | Z65: 2017 | AA65: 2017 | AB65: 2018 | AC65: 2018 | AD65: 2018 | AE65: 2019 | AF65: 2019 | AG65: 2019
B66: Darién-Norte Chocó | C66: Unguía | D66: =G66+J66+M66+P66+S66+V66+Y66+AB66+AE66 -> 216 | E66: 184 | F66: 155 | G66: 3 | H66: 3 | I66: 3 | J66: 63 | K66: 49 | L66: 45 | M66: 56 | N66: 50 | O66: 40 | P66: 42 | Q66: 32 | R66: 22 | S66: 15 | T66: 14 | U66: 11 | V66: 6 | W66: 5 | X66: 6 | Y66: 21 | Z66: 21 | AA66: 20 | AB66: 3 | AC66: 3 | AD66: 3 | AE66: 7 | AF66: 7 | AG66: 5
C67: Acandí | D67: 155 | E67: 137 | F67: 104 | G67: 5 | H67: 5 | I67: 5 | J67: 16 | K67: 15 | L67: 15 | M67: 62 | N67: 52 | O67: 40 | P67: 33 | Q67: 26 | R67: 17 | S67: 6 | T67: 6 | U67: 5 | V67: 7 | W67: 7 | X67: 7 | Y67: 7 | Z67: 7 | AA67: 7 | AB67: 4 | AC67: 4 | AD67: 4 | AE67: 15 | AF67: 15 | AG67: 4
C68: TOTAL | D68: =SUM(D66:D67) -> 371 | E68: =SUM(E66:E67) -> 321 | F68: 259 | G68: 8 | H68: 8 | I68: 8 | J68: 79 | K68: 64 | L68: 60 | M68: 118 | N68: 102 | O68: 80 | P68: 75 | Q68: 58 | R68: 39 | S68: 21 | T68: 20 | U68: 16 | V68: 13 | W68: 12 | X68: 13 | Y68: 28 | Z68: 28 | AA68: 27 | AB68: 7 | AC68: 7 | AD68: 7 | AE68: 22 | AF68: 22 | AG68: 9
B70: Solicitudes de Restitución de Tierras Sur Córdoba por municipio 2011-2019
B71: Territorialidad | D71: Total | E71: Total | F71: Total | G71: Solicitudes | H71: Predios | I71: Personas | J71: Solicitudes | K71: Predios | L71: Personas | M71: Solicitudes | N71: Predios | O71: Personas | P71: Solicitudes | Q71: Predios | R71: Personas | S71: Solicitudes | T71: Predios | U71: Personas | V71: Solicitudes | W71: Predios | X71: Personas | Y71: Solicitudes | Z71: Predios | AA71: Personas | AB71: Solicitudes | AC71: Predios | AD71: Personas | AE71: Solicitudes | AF71: Predios | AG71: Personas
D72: Solicitudes | E72: Predios | F72: Personas | G72: 2011 | H72: 2011 | I72: 2011 | J72: 2012 | K72: 2012 | L72: 2012 | M72: 2013 | N72: 2013 | O72: 2013 | P72: 2014 | Q72: 2014 | R72: 2014 | S72: 2015 | T72: 2015 | U72: 2015 | V72: 2016 | W72: 2016 | X72: 2016 | Y72: 2017 | Z72: 2017 | AA72: 2017 | AB72: 2018 | AC72: 2018 | AD72: 2018 | AE72: 2019 | AF72: 2019 | AG72: 2019
B73: Sur Córdoba | C73: Tierralta | D73: =G73+J73+M73+P73+S73+V73+Y73+AB73+AE73 -> 818 | E73: 784 | F73: 650 | G73: 15 | H73: 14 | I73: 15 | J73: 197 | K73: 190 | L73: 163 | M73: 161 | N73: 150 | O73: 123 | P73: 111 | Q73: 106 | R73: 90 | S73: 80 | T73: 77 | U73: 62 | V73: 100 | W73: 94 | X73: 58 | Y73: 31 | Z73: 30 | AA73: 29 | AB73: 108 | AC73: 108 | AD73: 101 | AE73: 15 | AF73: 15 | AG73: 9
C74: Valencia | D74: 929 | E74: 860 | F74: 752 | G74: 19 | H74: 18 | I74: 18 | J74: 385 | K74: 371 | L74: 335 | M74: 187 | N74: 166 | O74: 145 | P74: 60 | Q74: 47 | R74: 39 | S74: 92 | T74: 82 | U74: 70 | V74: 49 | W74: 40 | X74: 37 | Y74: 61 | Z74: 60 | AA74: 42 | AB74: 61 | AC74: 61 | AD74: 61 | AE74: 15 | AF74: 15 | AG74: 5
C75: TOTAL | D75: =SUM(D73:D74) -> 1747 | E75: =SUM(E73:E74) -> 1644 | F75: 1402 | G75: 34 | H75: 32 | I75: 33 | J75: 582 | K75: 561 | L75: 498 | M75: 348 | N75: 316 | O75: 268 | P75: 171 | Q75: 153 | R75: 129 | S75: 172 | T75: 159 | U75: 132 | V75: 149 | W75: 134 | X75: 95 | Y75: 92 | Z75: 90 | AA75: 71 | AB75: 169 | AC75: 169 | AD75: 162 | AE75: 30 | AF75: 30 | AG75: 14
B77: Solicitudes de Restitución de Tierras Gran Urabá por territorialidad 2011-2019
B78: Territorialidad | D78: Total | E78: Total | F78: Total | G78: Solicitudes | H78: Predios | I78: Personas | J78: Solicitudes | K78: Predios | L78: Personas | M78: Solicitudes | N78: Predios | O78: Personas | P78: Solicitudes | Q78: Predios | R78: Personas | S78: Solicitudes | T78: Predios | U78: Personas | V78: Solicitudes | W78: Predios | X78: Personas | Y78: Solicitudes | Z78: Predios | AA78: Personas | AB78: Solicitudes | AC78: Predios | AD78: Personas | AE78: Solicitudes | AF78: Predios | AG78: Personas
D79: Solicitudes | E79: Predios | F79: Personas | G79: 2011 | H79: 2011 | I79: 2011 | J79: 2012 | K79: 2012 | L79: 2012 | M79: 2013 | N79: 2013 | O79: 2013 | P79: 2014 | Q79: 2014 | R79: 2014 | S79: 2015 | T79: 2015 | U79: 2015 | V79: 2016 | W79: 2016 | X79: 2016 | Y79: 2017 | Z79: 2017 | AA79: 2017 | AB79: 2018 | AC79: 2018 | AD79: 2018 | AE79: 2019 | AF79: 2019 | AG79: 2019
B80: Gran Urabá | C80: Norte Urabá | D80: =D36 -> 1715 | E80: =E36 -> 1601 | F80: 970 | G80: 40 | H80: 40 | I80: 30 | J80: 503 | K80: 474 | L80: 332 | M80: 224 | N80: 219 | O80: 145 | P80: 516 | Q80: 461 | R80: 148 | S80: 118 | T80: 101 | U80: 66 | V80: 114 | W80: 106 | X80: 76 | Y80: 73 | Z80: 73 | AA80: 59 | AB80: 99 | AC80: 99 | AD80: 95 | AE80: 28 | AF80: 28 | AG80: 19
C81: Eje Bananero | D81: =D45 -> 4111 | E81: =E45 -> 3834 | F81: 2906 | G81: 88 | H81: 84 | I81: 61 | J81: 1056 | K81: 1011 | L81: 793 | M81: 1095 | N81: 1009 | O81: 763 | P81: 788 | Q81: 677 | R81: 442 | S81: 354 | T81: 339 | U81: 249 | V81: 293 | W81: 281 | X81: 205 | Y81: 194 | Z81: 190 | AA81: 188 | AB81: 199 | AC81: 199 | AD81: 193 | AE81: 44 | AF81: 44 | AG81: 12
C82: Sur y Dabeiba | D82: =D52 -> 1207 | E82: =E52 -> 1102 | F82: 800 | G82: 58 | H82: 58 | I82: 45 | J82: 200 | K82: 189 | L82: 130 | M82: 409 | N82: 361 | O82: 260 | P82: 266 | Q82: 227 | R82: 154 | S82: 99 | T82: 94 | U82: 58 | V82: 56 | W82: 54 | X82: 43 | Y82: 47 | Z82: 47 | AA82: 44 | AB82: 55 | AC82: 55 | AD82: 53 | AE82: 17 | AF82: 17 | AG82: 13
C83: Atrato | D83: =D61 -> 1304 | E83: =E61 -> 1186 | F83: 975 | G83: 61 | H83: 61 | I83: 45 | J83: 361 | K83: 352 | L83: 250 | M83: 376 | N83: 290 | O83: 280 | P83: 158 | Q83: 143 | R83: 101 | S83: 88 | T83: 84 | U83: 71 | V83: 88 | W83: 85 | X83: 63 | Y83: 85 | Z83: 84 | AA83: 81 | AB83: 74 | AC83: 74 | AD83: 74 | AE83: 13 | AF83: 13 | AG83: 10
C84: Darién-Norte Chocó | D84: =D68 -> 371 | E84: =E68 -> 321 | F84: 259 | G84: 8 | H84: 8 | I84: 8 | J84: 79 | K84: 64 | L84: 60 | M84: 118 | N84: 102 | O84: 80 | P84: 75 | Q84: 58 | R84: 39 | S84: 21 | T84: 20 | U84: 16 | V84: 13 | W84: 12 | X84: 13 | Y84: 28 | Z84: 28 | AA84: 27 | AB84: 7 | AC84: 7 | AD84: 7 | AE84: 22 | AF84: 22 | AG84: 9
C85: Sur Córdoba | D85: =D75 -> 1747 | E85: =E75 -> 1644 | F85: 1402 | G85: 34 | H85: 32 | I85: 33 | J85: 582 | K85: 561 | L85: 498 | M85: 348 | N85: 316 | O85: 268 | P85: 171 | Q85: 153 | R85: 129 | S85: 172 | T85: 159 | U85: 132 | V85: 149 | W85: 134 | X85: 95 | Y85: 92 | Z85: 90 | AA85: 71 | AB85: 169 | AC85: 169 | AD85: 162 | AE85: 30 | AF85: 30 | AG85: 14
C86: TOTAL | D86: =SUM(D80:D85) -> 10455 | E86: =SUM(E80:E85) -> 9688 | F86: 7312 | G86: 289 | H86: 283 | I86: 222 | J86: 2781 | K86: 2651 | L86: 2063 | M86: 2570 | N86: 2297 | O86: 1796 | P86: 1974 | Q86: 1719 | R86: 1013 | S86: 852 | T86: 797 | U86: 592 | V86: 713 | W86: 672 | X86: 495 | Y86: 519 | Z86: 512 | AA86: 470 | AB86: 603 | AC86: 603 | AD86: 584 | AE86: 154 | AF86: 154 | AG86: 77
B89: Tablas Sentencias Restitución de Tierras Gran Urabá
B91: N. Sentencias Restitución de Tierras Gran Urabá 2011-2020
B92: Territorialidad | C92: Municipio | D92: 2011 | E92: 2012 | F92: 2013 | G92: 2014 | H92: 2015 | I92: 2016 | J92: 2017 | K92: 2018 | L92: 2019 | M92: 2020 | N92: TOTAL
B93: Norte Urabá | C93: Arboletes | L93: 1 | N93: =SUM(D93:M93) -> 1
C94: San Juan | N94: 0
C95: San Pedro de Urabá | J95: 6 | L95: 1 | M95: 1 | N95: 8
C96: Necoclí | G96: 3 | H96: 7 | I96: 12 | J96: 10 | K96: 5 | L96: 13 | N96: 50
B97: Eje Bananero | C97: Turbo | G97: 15 | H97: 10 | I97: 11 | J97: 15 | K97: 13 | L97: 12 | M97: 4 | N97: 80
C98: Apartadó | F98: 1 | G98: 1 | H98: 2 | I98: 1 | J98: 3 | L98: 1 | N98: 9
C99: Carepa | N99: 0
C100: Chigorodó | J100: 3 | K100: 7 | L100: 3 | M100: 1 | N100: 14
B101: Sur y Dabeiba | C101: Mutatá | G101: 4 | H101: 3 | I101: 2 | J101: 10 | K101: 12 | L101: 12 | M101: 4 | N101: 47
C102: Dabeiba | N102: 0
B103: Atrato | C103: Vigía del Fuerte | N103: 0
C104: Murindó | N104: 0
C105: Riosucio | N105: 0
C106: Carmen del Darién | N106: 0
B107: Darién-Norte Chocó | C107: Unguía | I107: 1 | K107: 3 | N107: 4
C108: Acandí | N108: 0
B109: Sur Córdoba | C109: Tierralta | H109: 3 | I109: 2 | J109: 4 | K109: 5 | L109: 5 | M109: 6 | N109: 25
C110: Valencia | F110: 1 | G110: 22 | H110: 15 | I110: 12 | J110: 10 | K110: 24 | L110: 14 | M110: 4 | N110: 102
C111: TOTAL | D111: =SUM(D93:D110) -> 0 | E111: 0 | F111: 2 | G111: 45 | H111: 40 | I111: 41 | J111: 61 | K111: 69 | L111: 62 | M111: 20 | N111: 340
B113: N. Sentencias Restitución de Tierras Norte Urabá 2011-2020
B114: Territorialidad | C114: Municipio | D114: 2011 | E114: 2012 | F114: 2013 | G114: 2014 | H114: 2015 | I114: 2016 | J114: 2017 | K114: 2018 | L114: 2019 | M114: 2020 | N114: TOTAL
B115: Norte Urabá | C115: Arboletes | L115: 1 | N115: =SUM(D115:M115) -> 1
C116: San Juan | N116: =SUM(D116:M116) -> 0
C117: San Pedro de Urabá | J117: 6 | L117: 1 | M117: 1 | N117: =SUM(D117:M117) -> 8
C118: Necoclí | G118: 3 | H118: 7 | I118: 12 | J118: 10 | K118: 5 | L118: 13 | N118: =SUM(D118:M118) -> 50
C119: TOTAL | D119: =SUM(D115:D118) -> 0 | E119: =SUM(E115:E118) -> 0 | F119: 0 | G119: 3 | H119: 7 | I119: 12 | J119: 16 | K119: 5 | L119: 15 | M119: 1 | N119: 59
B121: N. Sentencias Restitución de Tierras Eje Bananero Urabá 2011-2020
B122: Territorialidad | C122: Municipio | D122: 2011 | E122: 2012 | F122: 2013 | G122: 2014 | H122: 2015 | I122: 2016 | J122: 2017 | K122: 2018 | L122: 2019 | M122: 2020 | N122: TOTAL
B123: Eje Bananero | C123: Turbo | G123: 15 | H123: 10 | I123: 11 | J123: 15 | K123: 13 | L123: 12 | M123: 4 | N123: =SUM(D123:M123) -> 80
C124: Apartadó | F124: 1 | G124: 1 | H124: 2 | I124: 1 | J124: 3 | L124: 1 | N124: =SUM(D124:M124) -> 9
C125: Carepa | N125: =SUM(D125:M125) -> 0
C126: Chigorodó | J126: 3 | K126: 7 | L126: 3 | M126: 1 | N126: =SUM(D126:M126) -> 14
C127: TOTAL | D127: =SUM(D123:D126) -> 0 | E127: =SUM(E123:E126) -> 0 | F127: 1 | G127: 16 | H127: 12 | I127: 12 | J127: 21 | K127: 20 | L127: 16 | M127: 5 | N127: 103
B129: N. Sentencias Restitución de Tierras Mutatá y Dabeiba 2011-2020
B130: Territorialidad | C130: Municipio | D130: 2011 | E130: 2012 | F130: 2013 | G130: 2014 | H130: 2015 | I130: 2016 | J130: 2017 | K130: 2018 | L130: 2019 | M130: 2020 | N130: TOTAL
B131: Sur y Dabeiba | C131: Mutatá | G131: 4 | H131: 3 | I131: 2 | J131: 10 | K131: 12 | L131: 12 | M131: 4 | N131: =SUM(D131:M131) -> 47
C132: Dabeiba | N132: =SUM(D132:M132) -> 0
C133: TOTAL | D133: =SUM(D131:D132) -> 0 | E133: =SUM(E131:E132) -> 0 | F133: 0 | G133: 4 | H133: 3 | I133: 2 | J133: 10 | K133: 12 | L133: 12 | M133: 4 | N133: 47
B135: N. Sentencias Restitución de Tierras Atrato 2011-2020
B136: Territorialidad | C136: Municipio | D136: 2011 | E136: 2012 | F136: 2013 | G136: 2014 | H136: 2015 | I136: 2016 | J136: 2017 | K136: 2018 | L136: 2019 | M136: 2020 | N136: TOTAL
B137: Atrato | C137: Vigía del Fuerte | N137: =SUM(D137:M137) -> 0
C138: Murindó | N138: =SUM(D138:M138) -> 0
C139: Riosucio | N139: =SUM(D139:M139) -> 0
C140: Carmen del Darién | N140: =SUM(D140:M140) -> 0
C141: TOTAL | D141: =SUM(D137:D140) -> 0 | E141: =SUM(E137:E140) -> 0 | F141: 0 | G141: 0 | H141: 0 | I141: 0 | J141: 0 | K141: 0 | L141: 0 | M141: 0 | N141: 0
B143: N. Sentencias Restitución de Tierras Darién-Norte Chocó 2011-2020
B144: Territorialidad | C144: Municipio | D144: 2011 | E144: 2012 | F144: 2013 | G144: 2014 | H144: 2015 | I144: 2016 | J144: 2017 | K144: 2018 | L144: 2019 | M144: 2020 | N144: TOTAL
B145: Darién-Norte Chocó | C145: Unguía | I145: 1 | K145: 3 | N145: =SUM(D145:M145) -> 4
C146: Acandí | N146: =SUM(D146:M146) -> 0
C147: TOTAL | D147: =SUM(D145:D146) -> 0 | E147: =SUM(E145:E146) -> 0 | F147: 0 | G147: 0 | H147: 0 | I147: 1 | J147: 0 | K147: 3 | L147: 0 | M147: 0 | N147: 4
B149: N. Sentencias Restitución de Tierras Sur Córdoba 2011-2020
B150: Territorialidad | C150: Municipio | D150: 2011 | E150: 2012 | F150: 2013 | G150: 2014 | H150: 2015 | I150: 2016 | J150: 2017 | K150: 2018 | L150: 2019 | M150: 2020 | N150: TOTAL
B151: Sur Córdoba | C151: Tierralta | H151: 3 | I151: 2 | J151: 4 | K151: 5 | L151: 5 | M151: 6 | N151: =SUM(D151:M151) -> 25
C152: Valencia | F152: 1 | G152: 22 | H152: 15 | I152: 12 | J152: 10 | K152: 24 | L152: 14 | M152: 4 | N152: =SUM(D152:M152) -> 102
C153: TOTAL | D153: =SUM(D151:D152) -> 0 | E153: =SUM(E151:E152) -> 0 | F153: 1 | G153: 22 | H153: 18 | I153: 14 | J153: 14 | K153: 29 | L153: 19 | M153: 10 | N153: 127
B155: N. Sentencias Restitución de Tierras Gran Urabá 2011-2020
B156: Territorialidad | C156: Territorialidad | D156: 2011 | E156: 2012 | F156: 2013 | G156: 2014 | H156: 2015 | I156: 2016 | J156: 2017 | K156: 2018 | L156: 2019 | M156: 2020 | N156: TOTAL
B157: Gran Urabá | C157: Norte Urabá | D157: =D119 -> 0 | E157: =E119 -> 0 | F157: 0 | G157: 3 | H157: 7 | I157: 12 | J157: 16 | K157: 5 | L157: 15 | M157: 1 | N157: =SUM(D157:M157) -> 59
C158: Eje Bananero | D158: =D127 -> 0 | E158: =E127 -> 0 | F158: 1 | G158: 16 | H158: 12 | I158: 12 | J158: 21 | K158: 20 | L158: 16 | M158: 5 | N158: 103
C159: Sur y Dabeiba | D159: =D133 -> 0 | E159: =E133 -> 0 | F159: 0 | G159: 4 | H159: 3 | I159: 2 | J159: 10 | K159: 12 | L159: 12 | M159: 4 | N159: 47
C160: Atrato | D160: =D141 -> 0 | E160: =E141 -> 0 | F160: 0 | G160: 0 | H160: 0 | I160: 0 | J160: 0 | K160: 0 | L160: 0 | M160: 0 | N160: 0
C161: Darién-Norte Chocó | D161: =D147 -> 0 | E161: =E147 -> 0 | F161: 0 | G161: 0 | H161: 0 | I161: 1 | J161: 0 | K161: 3 | L161: 0 | M161: 0 | N161: 4
C162: Sur Córdoba | D162: =D153 -> 0 | E162: =E153 -> 0 | F162: 1 | G162: 22 | H162: 18 | I162: 14 | J162: 14 | K162: 29 | L162: 19 | M162: 10 | N162: 127
C163: TOTAL | D163: =SUM(D157:D162) -> 0 | E163: =SUM(E157:E162) -> 0 | F163: 2 | G163: 45 | H163: 40 | I163: 41 | J163: 61 | K163: 69 | L163: 62 | M163: 20 | N163: 340
B166: Tablas Hectáreas de Tierra Restituidas Gran Urabá
B168: Hectáreas Restitución de Tierras Gran Urabá 2011-2020
B169: Territorialidad | C169: Municipio | D169: TOTAL
B170: Norte Urabá | C170: Arboletes | D170: 32
C171: San Juan
C172: San Pedro de Urabá | D172: 179
C173: Necoclí | D173: 1731
B174: Eje Bananero | C174: Turbo | D174: 3471
C175: Apartadó | D175: 196
C176: Carepa
C177: Chigorodó | D177: 458
B178: Sur y Dabeiba | C178: Mutatá | D178: 1849
C179: Dabeiba
B180: Atrato | C180: Vigía del Fuerte
C181: Murindó
C182: Riosucio
C183: Carmen del Darién
B184: Darién-Norte Chocó | C184: Unguía | D184: 7142
C185: Acandí
B186: Sur Córdoba | C186: Tierralta | D186: 2239
C187: Valencia | D187: 3609
C188: TOTAL | D188: =SUM(D170:D187) -> 20906
B190: Hectáreas Restitución de Tierras Norte Urabá 2011-2020
B191: Territorialidad | C191: Municipio | D191: TOTAL
B192: Norte Urabá | C192: Arboletes | D192: 32
C193: San Juan | D193: 0
C194: San Pedro de Urabá | D194: 179
C195: Necoclí | D195: 1731
C196: TOTAL | D196: =SUM(D192:D195) -> 1942
B198: Hectáreas Restitución de Tierras Eje Bananero Urabá 2011-2020
B199: Territorialidad | C199: Municipio | D199: TOTAL
B200: Eje Bananero | C200: Turbo | D200: 3471
C201: Apartadó | D201: 196
C202: Carepa | D202: 0
C203: Chigorodó | D203: 458
C204: TOTAL | D204: =SUM(D200:D203) -> 4125
B206: Hectáreas Restitución de Tierras Mutatá y Dabeiba 2011-2020
B207: Territorialidad | C207: Municipio | D207: TOTAL
B208: Sur y Dabeiba | C208: Mutatá | D208: 1849
C209: Dabeiba | D209: 0
C210: TOTAL | D210: =SUM(D206:D209) -> 1849
B212: Hectáreas Restitución de Tierras Atrato 2011-2020
B213: Territorialidad | C213: Municipio | D213: TOTAL
B214: Atrato | C214: Vigía del Fuerte | D214: 0
C215: Murindó | D215: 0
C216: Riosucio | D216: 0
C217: Carmen del Darién | D217: 0
C218: TOTAL | D218: =SUM(D214:D217) -> 0
B220: Hectáreas Restitución de Tierras Darién-Norte Chocó 2011-2020
B221: Territorialidad | C221: Municipio | D221: TOTAL
B222: Darién-Norte Chocó | C222: Unguía | D222: 7142
C223: Acandí | D223: 0
C224: TOTAL | D224: =SUM(D220:D223) -> 7142
B226: Hectáreas Restitución de Tierras Sur Córdoba 2011-2020
B227: Territorialidad | C227: Municipio | D227: TOTAL
B228: Sur Córdoba | C228: Tierralta | D228: 2239
C229: Valencia | D229: 3609
... 77 more rows

Sheet Graf.Rest.GUrabá
A3: Gráficas Restitución de Tierras Gran Urabá
B5: Fuente: https://cifras.unidadvictimas.gov.co/tierras. Fecha de corte: 01 de agosto de 2019. Consultada el 28 de septiembre de 2020
A219: Gráficas Sentencias Restitución de Tierras Gran Urabá
B221: Fuente: Sistema de Información Sembrando Paz, Fundación Forjando Futuros: http://sifff.eaconsultores.com.co/Datos/Index. Consultada el 30 de septiembre de 2020
B319: Gráficas Hectáreas de Tierra Restituidas Gran Urabá
B321: Fuente: Sistema de Información Sembrando Paz, Fundación Forjando Futuros: http://sifff.eaconsultores.com.co/Datos/Index. Consultada el 30 de septiembre de 2020
B355: Gráficas Predios Restituidos Gran Urabá
B357: Fuente: Sistema de Información Sembrando Paz, Fundación Forjando Futuros: http://sifff.eaconsultores.com.co/Datos/Index. Consultada el 30 de septiembre de 2020

Sheet Graf.Rest.Urabá ant
A3: Gráficas Restitución de Tierras Urabá antioqueño
B5: Fuente: https://cifras.unidadvictimas.gov.co/tierras. Fecha de corte: 01 de agosto de 2019. Consultada el 28 de septiembre de 2020
A148: Gráficas Sentencias Restitución de Tierras Urabá antioqueño
B150: Fuente: Sistema de Información Sembrando Paz, Fundación Forjando Futuros: http://sifff.eaconsultores.com.co/Datos/Index. Consultada el 30 de septiembre de 2020
B215: Gráficas Hectáreas de Tierra Restituidas Urabá antioqueño
B217: Fuente: Sistema de Información Sembrando Paz, Fundación Forjando Futuros: http://sifff.eaconsultores.com.co/Datos/Index. Consultada el 30 de septiembre de 2020
B251: Gráficas Predios Restituidos Gran Urabá
B253: Fuente: Sistema de Información Sembrando Paz, Fundación Forjando Futuros: http://sifff.eaconsultores.com.co/Datos/Index. Consultada el 30 de septiembre de 2020

Sheet T.Víctimas.Urabá ant
B4: Tablas Víctimas Conflicto Armado Urabá antioqueño
B6: Fuente: Red Nacional de Información: https://www.unidadvictimas.gov.co/es/registro-unico-de-victimas-ruv/37394. Fecha Corte: lunes, 31 de agosto de 2020 Consultado el 25 de septiembre de 2020
B8: Víctimas Conflicto Armado Urabá antioqueño
B9: Territorialidad | C9: Municipio | D9: VICTIMAS OCURRENCIA | E9: VICTIMAS DECLARACION | F9: VICTIMAS UBICACIÓN | G9: SUJETOS DE ATENCION | H9: EVENTOS
B10: Norte Urabá | C10: Arboletes | D10: 31059 | E10: 23101 | F10: 18807 | G10: 16687 | H10: 33222
C11: San Juan | D11: 15423 | E11: 13659 | F11: 12302 | G11: 11591 | H11: 16292
C12: San Pedro de Urabá | D12: 33365 | E12: 81334 | F12: 24185 | G12: 22723 | H12: 35171
C13: Necoclí | D13: 52149 | E13: 37367 | F13: 31961 | G13: 29695 | H13: 56317
B14: Eje Bananero | C14: Turbo | D14: 153546 | E14: 92261 | F14: 85941 | G14: 79070 | H14: 173684
C15: Apartadó | D15: 90421 | E15: 126050 | F15: 80171 | G15: 72367 | H15: 102935
C16: Carepa | D16: 26542 | E16: 37907 | F16: 33407 | G16: 30598 | H16: 29484
C17: Chigorodó | D17: 43532 | E17: 49194 | F17: 41370 | G17: 38192 | H17: 49434
B18: Sur y Medio Atrato | C18: Mutatá | D18: 46517 | E18: 27866 | F18: 17558 | G18: 16546 | H18: 54441
C19: Vigía del Fuerte | D19: 15071 | E19: 7977 | F19: 5250 | G19: 4790 | H19: 16796
C20: Murindó | D20: 5628 | E20: 7158 | F20: 2226 | G20: 2059 | H20: 6080
C21: TOTAL | D21: =SUM(D10:D20) -> 513253 | E21: =SUM(E10:E20) -> 503874 | F21: 353178 | G21: 324318 | H21: 573856
B23: Víctimas Conflicto Armado Norte Urabá
B24: Territorialidad | C24: Municipio | D24: VICTIMAS OCURRENCIA | E24: VICTIMAS DECLARACION | F24: VICTIMAS UBICACIÓN | G24: SUJETOS DE ATENCION | H24: EVENTOS
B25: Norte Urabá | C25: Arboletes | D25: 31059 | E25: 23101 | F25: 18807 | G25: 16687 | H25: 33222
C26: San Juan | D26: 15423 | E26: 13659 | F26: 12302 | G26: 11591 | H26: 16292
C27: San Pedro de Urabá | D27: 33365 | E27: 81334 | F27: 24185 | G27: 22723 | H27: 35171
C28: Necoclí | D28: 52149 | E28: 37367 | F28: 31961 | G28: 29695 | H28: 56317
C29: TOTAL | D29: =SUM(D25:D28) -> 131996 | E29: =SUM(E25:E28) -> 155461 | F29: 87255 | G29: 80696 | H29: 141002
B31: Víctimas Conflicto Armado Eje Bananero Urabá
B32: Territorialidad | C32: Municipio | D32: VICTIMAS OCURRENCIA | E32: VICTIMAS DECLARACION | F32: VICTIMAS UBICACIÓN | G32: SUJETOS DE ATENCION | H32: EVENTOS
B33: Eje Bananero | C33: Turbo | D33: 153546 | E33: 92261 | F33: 85941 | G33: 79070 | H33: 173684
C34: Apartadó | D34: 90421 | E34: 126050 | F34: 80171 | G34: 72367 | H34: 102935
C35: Carepa | D35: 26542 | E35: 37907 | F35: 33407 | G35: 30598 | H35: 29484
C36: Chigorodó | D36: 43532 | E36: 49194 | F36: 41370 | G36: 38192 | H36: 49434
C37: TOTAL | D37: =SUM(D33:D36) -> 314041 | E37: =SUM(E33:E36) -> 305412 | F37: 240889 | G37: 220227 | H37: 355537
B39: Víctimas Conflicto Armado Urabá antioqueño
B40: Territorialidad | C40: Municipio | D40: VICTIMAS OCURRENCIA | E40: VICTIMAS DECLARACION | F40: VICTIMAS UBICACIÓN | G40: SUJETOS DE ATENCION | H40: EVENTOS
B41: Sur y Medio Atrato | C41: Mutatá | D41: 46517 | E41: 27866 | F41: 17558 | G41: 16546 | H41: 54441
C42: Vigía del Fuerte | D42: 15071 | E42: 7977 | F42: 5250 | G42: 4790 | H42: 16796
C43: Murindó | D43: 5628 | E43: 7158 | F43: 2226 | G43: 2059 | H43: 6080
C44: TOTAL | D44: =SUM(D41:D43) -> 67216 | E44: =SUM(E41:E43) -> 43001 | F44: 25034 | G44: 23395 | H44: 77317
B46: Víctimas Conflicto Armado Urabá antioqueño por territorialidad
B47: Región | C47: Municipio | D47: VICTIMAS OCURRENCIA | E47: VICTIMAS DECLARACION | F47: VICTIMAS UBICACIÓN | G47: SUJETOS DE ATENCION | H47: EVENTOS
B48: Urabá antioqueño | C48: Norte Urabá | D48: =D29 -> 131996 | E48: =E29 -> 155461 | F48: 87255 | G48: 80696 | H48: 141002
C49: Eje Bananero | D49: =D37 -> 314041 | E49: =E37 -> 305412 | F49: 240889 | G49: 220227 | H49: 355537
C50: Sur y Medio Atrato | D50: =D44 -> 67216 | E50: =E44 -> 43001 | F50: 25034 | G50: 23395 | H50: 77317
C51: TOTAL | D51: =SUM(D48:D50) -> 513253 | E51: =SUM(E48:E50) -> 503874 | F51: =SUM(F48:F50) -> 353178 | G51: =SUM(G48:G50) -> 324318 | H51: =SUM(H48:H50) -> 573856

Sheet T.Víctimas.GUrabá
B4: Tablas Víctimas Conflicto Armado Gran Urabá
B6: Fuente: Red Nacional de Información: https://www.unidadvictimas.gov.co/es/registro-unico-de-victimas-ruv/37394. Fecha Corte: lunes, 31 de agosto de 2020 Consultado el 25 de septiembre de 2020
B8: Víctimas Conflicto Armado Gran Urabá
B9: Región | C9: Municipio | D9: VICTIMAS OCURRENCIA | E9: VICTIMAS DECLARACION | F9: VICTIMAS UBICACIÓN | G9: SUJETOS DE ATENCION | H9: EVENTOS
B10: Norte Urabá | C10: Arboletes | D10: 31059 | E10: 23101 | F10: 18807 | G10: 16687 | H10: 33222
C11: San Juan | D11: 15423 | E11: 13659 | F11: 12302 | G11: 11591 | H11: 16292
C12: San Pedro de Urabá | D12: 33365 | E12: 81334 | F12: 24185 | G12: 22723 | H12: 35171
C13: Necoclí | D13: 52149 | E13: 37367 | F13: 31961 | G13: 29695 | H13: 56317
B14: Eje Bananero | C14: Turbo | D14: 153546 | E14: 92261 | F14: 85941 | G14: 79070 | H14: 173684
C15: Apartadó | D15: 90421 | E15: 126050 | F15: 80171 | G15: 72367 | H15: 102935
C16: Carepa | D16: 26542 | E16: 37907 | F16: 33407 | G16: 30598 | H16: 29484
C17: Chigorodó | D17: 43532 | E17: 49194 | F17: 41370 | G17: 38192 | H17: 49434
B18: Sur y Dabeiba | C18: Mutatá | D18: 46517 | E18: 27866 | F18: 17558 | G18: 16546 | H18: 54441
C19: Dabeiba | D19: 44640 | E19: 19330 | F19: 16610 | G19: 15519 | H19: 52925
B20: Atrato | C20: Vigía del Fuerte | D20: 15071 | E20: 7977 | F20: 5250 | G20: 4790 | H20: 16796
C21: Murindó | D21: 5628 | E21: 7158 | F21: 2226 | G21: 2059 | H21: 6080
C22: Riosucio | D22: 104349 | E22: 34013 | F22: 17879 | G22: 16943 | H22: 125035
C23: Carmen del Darién | D23: 21379 | E23: 10044 | F23: 4573 | G23: 4371 | H23: 26164
B24: Darién-Norte Chocó | C24: Unguía | D24: 21879 | E24: 12291 | F24: 7576 | G24: 6889 | H24: 24701
C25: Acandí | D25: 18295 | E25: 12676 | F25: 9662 | G25: 9069 | H25: 21755
B26: Sur Córdoba | C26: Tierralta | D26: 120388 | E26: 46792 | F26: 35541 | G26: 32375 | H26: 133912
C27: Valencia | D27: 42046 | E27: 26047 | F27: 21273 | G27: 19503 | H27: 46303
C28: TOTAL | D28: =SUM(D10:D27) -> 886229 | E28: =SUM(E10:E27) -> 665067 | F28: 466292 | G28: 428987 | H28: 1004651
B30: Víctimas Conflicto Armado Norte Urabá
B31: Región | C31: Municipio | D31: VICTIMAS OCURRENCIA | E31: VICTIMAS DECLARACION | F31: VICTIMAS UBICACIÓN | G31: SUJETOS DE ATENCION | H31: EVENTOS
B32: Norte Urabá | C32: Arboletes | D32: 31059 | E32: 23101 | F32: 18807 | G32: 16687 | H32: 33222
C33: San Juan | D33: 15423 | E33: 13659 | F33: 12302 | G33: 11591 | H33: 16292
C34: San Pedro de Urabá | D34: 33365 | E34: 81334 | F34: 24185 | G34: 22723 | H34: 35171
C35: Necoclí | D35: 52149 | E35: 37367 | F35: 31961 | G35: 29695 | H35: 56317
C36: TOTAL | D36: =SUM(D32:D35) -> 131996 | E36: =SUM(E32:E35) -> 155461 | F36: 87255 | G36: 80696 | H36: 141002
B38: Víctimas Conflicto Armado Eje Bananero Urabá
B39: Región | C39: Municipio | D39: VICTIMAS OCURRENCIA | E39: VICTIMAS DECLARACION | F39: VICTIMAS UBICACIÓN | G39: SUJETOS DE ATENCION | H39: EVENTOS
B40: Eje Bananero | C40: Turbo | D40: 153546 | E40: 92261 | F40: 85941 | G40: 79070 | H40: 173684
C41: Apartadó | D41: 90421 | E41: 126050 | F41: 80171 | G41: 72367 | H41: 102935
C42: Carepa | D42: 26542 | E42: 37907 | F42: 33407 | G42: 30598 | H42: 29484
C43: Chigorodó | D43: 43532 | E43: 49194 | F43: 41370 | G43: 38192 | H43: 49434
C44: TOTAL | D44: =SUM(D40:D43) -> 314041 | E44: =SUM(E40:E43) -> 305412 | F44: 240889 | G44: 220227 | H44: 355537
B46: Víctimas Conflicto Armado Mutatá y Dabeiba
B47: Región | C47: Municipio | D47: VICTIMAS OCURRENCIA | E47: VICTIMAS DECLARACION | F47: VICTIMAS UBICACIÓN | G47: SUJETOS DE ATENCION | H47: EVENTOS
B48: Sur y Dabeiba | C48: Mutatá | D48: 46517 | E48: 27866 | F48: 17558 | G48: 16546 | H48: 54441
C49: Dabeiba | D49: 44640 | E49: 19330 | F49: 16610 | G49: 15519 | H49: 52925
C50: TOTAL | D50: =SUM(D48:D49) -> 91157 | E50: =SUM(E48:E49) -> 47196 | F50: 34168 | G50: 32065 | H50: 107366
B52: Víctimas Conflicto Armado Atrato
B53: Región | C53: Municipio | D53: VICTIMAS OCURRENCIA | E53: VICTIMAS DECLARACION | F53: VICTIMAS UBICACIÓN | G53: SUJETOS DE ATENCION | H53: EVENTOS
B54: Atrato | C54: Vigía del Fuerte | D54: 15071 | E54: 7977 | F54: 5250 | G54: 4790 | H54: 16796
C55: Murindó | D55: 5628 | E55: 7158 | F55: 2226 | G55: 2059 | H55: 6080
C56: Riosucio | D56: 104349 | E56: 34013 | F56: 17879 | G56: 16943 | H56: 125035
C57: Carmen del Darién | D57: 21379 | E57: 10044 | F57: 4573 | G57: 4371 | H57: 26164
C58: TOTAL | D58: =SUM(D54:D57) -> 146427 | E58: =SUM(E54:E57) -> 59192 | F58: 29928 | G58: 28163 | H58: 174075
B60: Víctimas Conflicto Armado Darién-Norte Chocó
B61: Región | C61: Municipio | D61: VICTIMAS OCURRENCIA | E61: VICTIMAS DECLARACION | F61: VICTIMAS UBICACIÓN | G61: SUJETOS DE ATENCION | H61: EVENTOS
B62: Darién-Norte Chocó | C62: Unguía | D62: 21879 | E62: 12291 | F62: 7576 | G62: 6889 | H62: 24701
C63: Acandí | D63: 18295 | E63: 12676 | F63: 9662 | G63: 9069 | H63: 21755
C64: TOTAL | D64: =SUM(D62:D63) -> 40174 | E64: =SUM(E62:E63) -> 24967 | F64: 17238 | G64: 15958 | H64: 46456
B66: Víctimas Conflicto Armado Sur Córdoba
B67: Región | C67: Municipio | D67: VICTIMAS OCURRENCIA | E67: VICTIMAS DECLARACION | F67: VICTIMAS UBICACIÓN | G67: SUJETOS DE ATENCION | H67: EVENTOS
B68: Sur Córdoba | C68: Tierralta | D68: 120388 | E68: 46792 | F68: 35541 | G68: 32375 | H68: 133912
C69: Valencia | D69: 42046 | E69: 26047 | F69: 21273 | G69: 19503 | H69: 46303
C70: TOTAL | D70: =SUM(D68:D69) -> 162434 | E70: =SUM(E68:E69) -> 72839 | F70: 56814 | G70: 51878 | H70: 180215
B72: Víctimas Conflicto Armado Gran Urabá
B73: Región | C73: Municipio | D73: VICTIMAS OCURRENCIA | E73: VICTIMAS DECLARACION | F73: VICTIMAS UBICACIÓN | G73: SUJETOS DE ATENCION | H73: EVENTOS
B74: Gran Urabá | C74: Norte Urabá | D74: =D36 -> 131996 | E74: =E36 -> 155461 | F74: 87255 | G74: 80696 | H74: 141002
C75: Eje Bananero | D75: =D44 -> 314041 | E75: =E44 -> 305412 | F75: 240889 | G75: 220227 | H75: 355537
C76: Sur y Dabeiba | D76: =D50 -> 91157 | E76: =E50 -> 47196 | F76: 34168 | G76: 32065 | H76: 107366
C77: Atrato | D77: =D58 -> 146427 | E77: =E58 -> 59192 | F77: 29928 | G77: 28163 | H77: 174075
C78: Darién Norte-Chocó | D78: =D64 -> 40174 | E78: =E64 -> 24967 | F78: 17238 | G78: 15958 | H78: 46456
C79: Sur Córdoba | D79: =D70 -> 162434 | E79: =E70 -> 72839 | F79: 56814 | G79: 51878 | H79: 180215
C80: TOTAL | D80: =SUM(D74:D79) -> 886229 | E80: =SUM(E74:E79) -> 665067 | F80: 466292 | G80: 428987 | H80: 1004651

Sheet Graf.Vict.Urabá ant
A3: Gráficas Víctimas conflicto armado Urabá antioqueño
B5: Fuente: Red Nacional de Información: https://www.unidadvictimas.gov.co/es/registro-unico-de-victimas-ruv/37394. Fecha Corte: lunes, 31 de agosto de 2020 Consultado el 25 de septiembre de 2020

Sheet Graf.Vict.GUrabá
A3: Gráficas Víctimas conflicto armado Gran Urabá
B5: Fuente: Red Nacional de Información: https://www.unidadvictimas.gov.co/es/registro-unico-de-victimas-ruv/37394. Fecha Corte: lunes, 31 de agosto de 2020 Consultado el 25 de septiembre de 2020

Sheet T.NBI.Urabá ant
C3: Tablas Necesidades Básicas Insatisfechas Urabá antioqueño
B5: Fuente: DANE - Censo Nacional de Población y Vivienda (CNPV) 2018: https://www.dane.gov.co/index.php/estadisticas-por-tema/demografia-y-poblacion/censo-nacional-de-poblacion-y-vivenda-2018 Información correspondiente a personas residentes en hogares particulares. Fecha de actualización: 25 de noviembre de 2019.
B7: Necesidades Básicas Insatisfechas Urabá antioqueño
D8: Total | K8: Cabeceras | R8: Resto
B9: Territorialidad | C9: Nombre Municipio | D9: Necesidades Basicas Insatisfechas por Categorias % | K9: Necesidades Basicas Insatisfechas por Categorias % | R9: Necesidades Basicas Insatisfechas por Categorias %
D10: Personas en NBI (%) | E10: Personas en miseria (%) | F10: Componente vivienda | G10: Componente Servicios | H10: Componente Hacinamiento | I10: Componente Inasistencia | J10: Componente dependencia económica | K10: Personas en NBI (%) | L10: Personas en miseria (%) | M10: Componente vivienda | N10: Componente Servicios | O10: Componente Hacinamiento | P10: Componente Inasistencia | Q10: Componente dependencia económica | R10: Personas en NBI (%) | S10: Personas en miseria (%) | T10: Componente vivienda | U10: Componente Servicios | V10: Componente Hacinamiento | W10: Componente Inasistencia | X10: Componente dependencia económica
B11: Norte Urabá | C11: Arboletes | D11: 62.40344001 | E11: 22.98413182 | F11: 58.12626051 | G11: 11.38932227 | H11: 8.995776095 | I11: 1.130179992 | J11: 11.70896914 | K11: 25.42390513 | L11: 5.388536357 | M11: 17.75720379 | N11: 1.601997295 | O11: 4.327473213 | P11: 0.8738167065 | Q11: 6.928118173 | R11: 83.73334933 | S11: 33.13332533 | T11: 81.41125645 | U11: 17.03468139 | V11: 11.68846754 | W11: 1.278051122 | X11: 14.46657866
C12: San Juan de Urabá | D12: 59.77390956 | E12: 28.86654662 | F12: 52.32092837 | G12: 22.53401361 | H12: 5.507202881 | I12: 2.776110444 | J12: 13.55042017 | K12: 28.81944444 | L12: 7.367149758 | M12: 19.6557971 | N12: 5.842391304 | O12: 1.585144928 | P12: 2.898550725 | Q12: 7.201086957 | R12: 75.11220826 | S12: 39.51974865 | T12: 68.50688211 | U12: 30.80490724 | V12: 7.450628366 | W12: 2.715439856 | X12: 16.69658887
C13: San Pedro de Urabá | D13: 66.01583289 | E13: 33.62493348 | F13: 61.38238425 | G13: 21.7236562 | H13: 10.97325705 | I13: 2.943720064 | J13: 13.41804151 | K13: 31.26300891 | L13: 7.967696278 | M13: 24.8272417 | N13: 1.465323454 | O13: 5.461660145 | P13: 1.09899259 | Q13: 8.042627591 | R13: 89.13753947 | S13: 50.69517532 | T13: 85.70320722 | U13: 35.2019055 | V13: 14.640226 | W13: 4.171051903 | X13: 16.99440536
C14: Necoclí | D14: 57.42581989 | E14: 28.22748568 | F14: 47.66007288 | G14: 22.00156169 | H14: 10.43466944 | I14: 4.539302447 | J14: 11.36387298 | K14: 18.70098532 | L14: 2.986125075 | M14: 10.39613915 | N14: 1.508143977 | O14: 4.102151619 | P14: 2.010858637 | Q14: 4.112205912 | R14: 70.95244785 | S14: 37.04432114 | T14: 60.67640655 | U14: 29.15993538 | V14: 12.64662499 | W14: 5.422490693 | X14: 13.89688839
B15: Eje Bananero | C15: Turbo | D15: 39.12723707 | E15: 14.70598536 | F15: 22.10012958 | G15: 16.90365286 | H15: 6.930970476 | I15: 3.035582951 | J15: 9.555913564 | K15: 33.9924774 | L15: 9.750786354 | M15: 10.95176297 | N15: 20.84552273 | O15: 4.484965796 | P15: 3.462156039 | Q15: 6.220442998 | R15: 42.52280033 | S15: 17.98280702 | T15: 29.47242869 | U15: 14.29693523 | V15: 8.548487978 | W15: 2.753494596 | X15: 11.76162562
C16: Apartadó | D16: 14.44090537 | E16: 2.985871383 | F16: 5.187907043 | G16: 1.810562653 | H16: 4.164738959 | I16: 1.694010463 | J16: 5.171002527 | K16: 10.6343548 | L16: 1.320164394 | M16: 2.124690672 | N16: 0.3695588187 | O16: 3.675965595 | P16: 1.711526093 | Q16: 4.267913791 | R16: 31.33801113 | S16: 10.37986934 | T16: 18.78538592 | U16: 8.207113477 | V16: 6.334381805 | W16: 1.616259376 | X16: 9.179772562
C17: Carepa | D17: 20.9205298 | E17: 5.185430464 | F17: 9.838852097 | G17: 1.818984547 | H17: 6.013245033 | I17: 2.938189845 | J17: 6.730684327 | K17: 15.29512187 | L17: 2.845309981 | M17: 5.26698492 | N17: 0.9041762828 | O17: 3.996079795 | P17: 3.243653378 | Q17: 5.317568208 | R17: 33.93810813 | S17: 10.60062916 | T17: 20.41846514 | U17: 3.935913381 | V17: 10.68110323 | W17: 2.231326359 | X17: 10.00073158
C18: Chigorodó | D18: 21.07707261 | E18: 6.031534612 | F18: 7.143885669 | G18: 4.767990208 | H18: 6.546311962 | I18: 2.221102272 | J18: 8.555023579 | K18: 15.14213885 | L18: 2.552697737 | M18: 4.740110445 | N18: 0.7176776467 | O18: 3.899954877 | P18: 1.927415716 | Q18: 6.940415565 | R18: 51.70196252 | S18: 23.98270318 | T18: 19.54762169 | U18: 25.66803415 | V18: 20.20179621 | W18: 3.736556159 | X18: 16.88657279
B19: Sur y Medio Atrato | C19: Mutatá | D19: 43.38993811 | E19: 21.31407713 | F19: 17.39406443 | G19: 22.63132836 | H19: 16.64021584 | I19: 5.56260911 | J19: 16.29106491 | K19: 26.54956592 | L19: 9.872804361 | M19: 6.35978195 | N19: 15.7480315 | O19: 8.237431859 | P19: 2.059357965 | Q19: 10.09489198 | R19: 54.29467904 | S19: 28.72270885 | T19: 24.53915545 | U19: 27.0885083 | V19: 22.08131782 | W19: 7.831089031 | X19: 20.30330762
C20: Vigía del Fuerte | D20: 77.79965543 | E20: 20.1452129 | F20: 1.735171056 | G20: 71.81885306 | H20: 11.16170317 | I20: 4.553285749 | J20: 13.74600049 | K20: 95.97402597 | L20: 14.28571429 | M20: 0.5519480519 | N20: 95.61688312 | O20: 1.168831169 | P20: 4.220779221 | Q20: 11.16883117 | R20: 66.70630202 | S20: 23.72175981 | T20: 2.457391994 | U20: 57.29290527 | V20: 17.26119699 | W20: 4.756242568 | X20: 15.31906461
C21: Murindó | D21: 81.68892719 | E21: 34.23093494 | F21: 29.5777682 | G21: 60.34037053 | H21: 14.36880655 | I21: 10.81430418 | J21: 22.33950883 | K21: 92.26837061 | L21: 8.434504792 | M21: 0.5111821086 | N21: 92.14057508 | O21: 0 | P21: 2.236421725 | Q21: 6.453674121 | R21: 76.3080923 | S21: 47.35131622 | T21: 44.36139097 | U21: 44.16639584 | V21: 21.67695808 | W21: 15.17712057 | X21: 30.41923952

Sheet T.NBI.GUrabá
C3: Tablas Necesidades Básicas Insatisfechas Gran Urabá
B5: Fuente: DANE - Censo Nacional de Población y Vivienda (CNPV) 2018: https://www.dane.gov.co/index.php/estadisticas-por-tema/demografia-y-poblacion/censo-nacional-de-poblacion-y-vivenda-2018 Información correspondiente a personas residentes en hogares particulares. Fecha de actualización: 25 de noviembre de 2019.
B7: Necesidades Básicas Insatisfechas Gran Urabá
D8: Total | K8: Cabeceras | R8: Resto
B9: Territorialidad | C9: Nombre Municipio | D9: Necesidades Basicas Insatisfechas por Categorias % | K9: Necesidades Basicas Insatisfechas por Categorias % | R9: Necesidades Basicas Insatisfechas por Categorias %
D10: Personas en NBI (%) | E10: Personas en miseria (%) | F10: Componente vivienda | G10: Componente Servicios | H10: Componente Hacinamiento | I10: Componente Inasistencia | J10: Componente dependencia económica | K10: Personas en NBI (%) | L10: Personas en miseria (%) | M10: Componente vivienda | N10: Componente Servicios | O10: Componente Hacinamiento | P10: Componente Inasistencia | Q10: Componente dependencia económica | R10: Personas en NBI (%) | S10: Personas en miseria (%) | T10: Componente vivienda | U10: Componente Servicios | V10: Componente Hacinamiento | W10: Componente Inasistencia | X10: Componente dependencia económica
B11: Norte Urabá | C11: Arboletes | D11: 62.40344001 | E11: 22.98413182 | F11: 58.12626051 | G11: 11.38932227 | H11: 8.995776095 | I11: 1.130179992 | J11: 11.70896914 | K11: 25.42390513 | L11: 5.388536357 | M11: 17.75720379 | N11: 1.601997295 | O11: 4.327473213 | P11: 0.8738167065 | Q11: 6.928118173 | R11: 83.73334933 | S11: 33.13332533 | T11: 81.41125645 | U11: 17.03468139 | V11: 11.68846754 | W11: 1.278051122 | X11: 14.46657866
C12: San Juan de Urabá | D12: 59.77390956 | E12: 28.86654662 | F12: 52.32092837 | G12: 22.53401361 | H12: 5.507202881 | I12: 2.776110444 | J12: 13.55042017 | K12: 28.81944444 | L12: 7.367149758 | M12: 19.6557971 | N12: 5.842391304 | O12: 1.585144928 | P12: 2.898550725 | Q12: 7.201086957 | R12: 75.11220826 | S12: 39.51974865 | T12: 68.50688211 | U12: 30.80490724 | V12: 7.450628366 | W12: 2.715439856 | X12: 16.69658887
C13: San Pedro de Urabá | D13: 66.01583289 | E13: 33.62493348 | F13: 61.38238425 | G13: 21.7236562 | H13: 10.97325705 | I13: 2.943720064 | J13: 13.41804151 | K13: 31.26300891 | L13: 7.967696278 | M13: 24.8272417 | N13: 1.465323454 | O13: 5.461660145 | P13: 1.09899259 | Q13: 8.042627591 | R13: 89.13753947 | S13: 50.69517532 | T13: 85.70320722 | U13: 35.2019055 | V13: 14.640226 | W13: 4.171051903 | X13: 16.99440536
C14: Necoclí | D14: 57.42581989 | E14: 28.22748568 | F14: 47.66007288 | G14: 22.00156169 | H14: 10.43466944 | I14: 4.539302447 | J14: 11.36387298 | K14: 18.70098532 | L14: 2.986125075 | M14: 10.39613915 | N14: 1.508143977 | O14: 4.102151619 | P14: 2.010858637 | Q14: 4.112205912 | R14: 70.95244785 | S14: 37.04432114 | T14: 60.67640655 | U14: 29.15993538 | V14: 12.64662499 | W14: 5.422490693 | X14: 13.89688839
B15: Eje Bananero | C15: Turbo | D15: 39.12723707 | E15: 14.70598536 | F15: 22.10012958 | G15: 16.90365286 | H15: 6.930970476 | I15: 3.035582951 | J15: 9.555913564 | K15: 33.9924774 | L15: 9.750786354 | M15: 10.95176297 | N15: 20.84552273 | O15: 4.484965796 | P15: 3.462156039 | Q15: 6.220442998 | R15: 42.52280033 | S15: 17.98280702 | T15: 29.47242869 | U15: 14.29693523 | V15: 8.548487978 | W15: 2.753494596 | X15: 11.76162562
C16: Apartadó | D16: 14.44090537 | E16: 2.985871383 | F16: 5.187907043 | G16: 1.810562653 | H16: 4.164738959 | I16: 1.694010463 | J16: 5.171002527 | K16: 10.6343548 | L16: 1.320164394 | M16: 2.124690672 | N16: 0.3695588187 | O16: 3.675965595 | P16: 1.711526093 | Q16: 4.267913791 | R16: 31.33801113 | S16: 10.37986934 | T16: 18.78538592 | U16: 8.207113477 | V16: 6.334381805 | W16: 1.616259376 | X16: 9.179772562
C17: Carepa | D17: 20.9205298 | E17: 5.185430464 | F17: 9.838852097 | G17: 1.818984547 | H17: 6.013245033 | I17: 2.938189845 | J17: 6.730684327 | K17: 15.29512187 | L17: 2.845309981 | M17: 5.26698492 | N17: 0.9041762828 | O17: 3.996079795 | P17: 3.243653378 | Q17: 5.317568208 | R17: 33.93810813 | S17: 10.60062916 | T17: 20.41846514 | U17: 3.935913381 | V17: 10.68110323 | W17: 2.231326359 | X17: 10.00073158
C18: Chigorodó | D18: 21.07707261 | E18: 6.031534612 | F18: 7.143885669 | G18: 4.767990208 | H18: 6.546311962 | I18: 2.221102272 | J18: 8.555023579 | K18: 15.14213885 | L18: 2.552697737 | M18: 4.740110445 | N18: 0.7176776467 | O18: 3.899954877 | P18: 1.927415716 | Q18: 6.940415565 | R18: 51.70196252 | S18: 23.98270318 | T18: 19.54762169 | U18: 25.66803415 | V18: 20.20179621 | W18: 3.736556159 | X18: 16.88657279
B19: Sur y Dabeiba | C19: Mutatá | D19: 43.38993811 | E19: 21.31407713 | F19: 17.39406443 | G19: 22.63132836 | H19: 16.64021584 | I19: 5.56260911 | J19: 16.29106491 | K19: 26.54956592 | L19: 9.872804361 | M19: 6.35978195 | N19: 15.7480315 | O19: 8.237431859 | P19: 2.059357965 | Q19: 10.09489198 | R19: 54.29467904 | S19: 28.72270885 | T19: 24.53915545 | U19: 27.0885083 | V19: 22.08131782 | W19: 7.831089031 | X19: 20.30330762
C20: Dabeiba | D20: 47.22197725 | E20: 28.59599612 | F20: 24.30549431 | G20: 28.3887468 | H20: 22.29032543 | I20: 6.795131846 | J20: 20.13405062 | K20: 15.4542369 | L20: 3.722140514 | M20: 4.389636837 | N20: 1.878040502 | O20: 5.894331938 | P20: 0.9390202512 | Q20: 7.263265075 | R20: 67.51210348 | S20: 44.48298287 | T20: 37.02579666 | U20: 45.32119373 | V20: 32.76248284 | W20: 10.53544331 | X20: 28.3546499
B21: Atrato | C21: Vigía del Fuerte | D21: 77.79965543 | E21: 20.1452129 | F21: 1.735171056 | G21: 71.81885306 | H21: 11.16170317 | I21: 4.553285749 | J21: 13.74600049 | K21: 95.97402597 | L21: 14.28571429 | M21: 0.5519480519 | N21: 95.61688312 | O21: 1.168831169 | P21: 4.220779221 | Q21: 11.16883117 | R21: 66.70630202 | S21: 23.72175981 | T21: 2.457391994 | U21: 57.29290527 | V21: 17.26119699 | W21: 4.756242568 | X21: 15.31906461
C22: Murindó | D22: 81.68892719 | E22: 34.23093494 | F22: 29.5777682 | G22: 60.34037053 | H22: 14.36880655 | I22: 10.81430418 | J22: 22.33950883 | K22: 92.26837061 | L22: 8.434504792 | M22: 0.5111821086 | N22: 92.14057508 | O22: 0 | P22: 2.236421725 | Q22: 6.453674121 | R22: 76.3080923 | S22: 47.35131622 | T22: 44.36139097 | U22: 44.16639584 | V22: 21.67695808 | W22: 15.17712057 | X22: 30.41923952
C23: Riosucio | D23: 74.95668149 | E23: 26.62157366 | F23: 24.67171875 | G23: 61.99453039 | H23: 8.880816684 | I23: 5.599048037 | J23: 10.33590113 | K23: 96.81209368 | L23: 11.56105585 | M23: 1.919009948 | N23: 96.93741678 | O23: 3.751860265 | P23: 2.796271638 | Q23: 6.125166445 | R23: 67.0148574 | S23: 32.09426766 | T23: 32.93960266 | U23: 49.29697729 | V23: 10.7445779 | W23: 6.617521489 | X23: 11.86599875
C24: Carmen del Darién | D24: 75.5930135 | E24: 35.06216154 | F24: 22.21035771 | G24: 65.25818015 | H24: 15.42216459 | I24: 6.81107467 | J24: 13.60689497 | K24: 72.95632699 | L24: 21.78051512 | M24: 12.98992161 | N24: 69.5968645 | O24: 3.639417693 | P24: 3.751399776 | Q24: 7.558790594 | R24: 76.00883002 | S24: 37.15673289 | T24: 23.66445916 | U24: 64.57395143 | V24: 17.2803532 | W24: 7.293598234 | X24: 14.5607064
B25: Darién-Norte Chocó | C25: Unguía | D25: 48.52362205 | E25: 23.37598425 | F25: 32.99704724 | G25: 27.21456693 | H25: 11.25328084 | I25: 3.641732283 | J25: 11.24507874 | K25: 33.50095785 | L25: 10.17720307 | M25: 15.99616858 | N25: 15.15804598 | O25: 3.568007663 | P25: 1.795977011 | Q25: 9.506704981 | R25: 56.3498004 | S25: 30.25199601 | T25: 41.85379242 | U25: 33.49550898 | V25: 15.25698603 | W25: 4.603293413 | X25: 12.1506986
C26: Acandí | D26: 36.46134766 | E26: 15.19636213 | F26: 19.03265812 | G26: 23.22447292 | H26: 4.53079785 | I26: 2.224059529 | J26: 7.755270773 | K26: 31.67511132 | L26: 11.00875173 | M26: 8.567480424 | N26: 24.39735913 | O26: 3.485337018 | P26: 2.410563488 | Q26: 6.463995087 | R26: 42.0458617 | S26: 20.08240774 | T26: 31.24328198 | U26: 21.8559656 | V26: 5.750627015 | W26: 2.006449301 | X26: 9.261913293
B27: Sur Córdoba | C27: Tierralta | D27: 55.82604034 | E27: 26.36313845 | F27: 39.73407293 | G27: 21.73097316 | H27: 14.40574272 | I27: 4.029692471 | J27: 15.10027618 | K27: 38.90216525 | L27: 14.70779926 | M27: 25.75373549 | N27: 13.03497719 | O27: 7.285103918 | P27: 2.508026167 | Q27: 9.402080769 | R27: 71.62168251 | S27: 37.24147254 | T27: 52.78240887 | U27: 29.84724913 | V27: 21.05168296 | W27: 5.44991664 | X27: 20.41860046
C28: Valencia | D28: 55.93148172 | E28: 17.01493515 | F28: 50.59282065 | G28: 11.22101402 | H28: 2.459714398 | I28: 2.151840692 | J28: 9.422900563 | K28: 32.47311828 | L28: 5.126604232 | M28: 26.84009712 | N28: 1.373569199 | O28: 1.630246271 | P28: 1.220950399 | Q28: 7.436697884 | R28: 76.91257678 | S28: 27.64782528 | T28: 71.83719054 | U28: 20.02854129 | V28: 3.201588385 | W28: 2.984426382 | X28: 11.19935472

Sheet Graf.NBI.Urabá ant
C4: Gráficas Necesidades Básicas Insatisfechas Urabá antioqueño
B6: Fuente: DANE - Censo Nacional de Población y Vivienda (CNPV) 2018: https://www.dane.gov.co/index.php/estadisticas-por-tema/demografia-y-poblacion/censo-nacional-de-poblacion-y-vivenda-2018 Información correspondiente a personas residentes en hogares particulares. Fecha de actualización: 25 de noviembre de 2019.

Sheet Graf.NBI.GUrabá
C5: Gráficas Necesidades Básicas Insatisfechas Gran Urabá
B7: Fuente: DANE - Censo Nacional de Población y Vivienda (CNPV) 2018: https://www.dane.gov.co/index.php/estadisticas-por-tema/demografia-y-poblacion/censo-nacional-de-poblacion-y-vivenda-2018 Información correspondiente a personas residentes en hogares particulares. Fecha de actualización: 25 de noviembre de 2019.

Sheet T.Masac.Urabá ant
B3: Tablas Casos Masacres Urabá antioqueño
B5: Fuente: CNMH, Bases de datos, Observatorio de Memoria y Conflicto: http://centrodememoriahistorica.gov.co/observatorio/bases-de-datos/ fecha de corte: 15/09/2018. Consultado el 25 de septiembre de 2020
B8: Casos Masacres Urabá antioqueño por municipio 1977-2013
B9: Territorialidad | C9: Municipio | D9: 1977 | E9: 1978 | F9: 1981 | G9: 1982 | H9: 1983 | I9: 1984 | J9: 1985 | K9: 1986 | L9: 1987 | M9: 1988 | N9: 1989 | O9: 1990 | P9: 1991 | Q9: 1992 | R9: 1993 | S9: 1994 | T9: 1995 | U9: 1996 | V9: 1997 | W9: 1998 | X9: 1999 | Y9: 2000 | Z9: 2001 | AA9: 2002 | AB9: 2003 | AC9: 2004 | AD9: 2005 | AE9: 2006 | AF9: 2007 | AG9: 2008 | AH9: 2009 | AI9: 2010 | AJ9: 2011 | AK9: 2012 | AL9: 2013 | AM9: 2014 | AN9: TOTAL
B10: Norte Urabá | C10: Arboletes | M10: 1 | N10: 1 | O10: 5 | Q10: 1 | T10: 2 | AN10: =SUM(D10:AM10) -> 10
C11: San Juan | G11: 1 | AN11: =SUM(D11:AM11) -> 1
C12: San Pedro de Urabá | O12: 1 | Q12: 1 | R12: 4 | V12: 1 | Z12: 3 | AB12: 1 | AN12: 11
C13: Necoclí | O13: 3 | P13: 1 | Q13: 2 | R13: 3 | S13: 2 | T13: 4 | V13: 1 | Y13: 1 | AE13: 1 | AG13: 1 | AN13: 19
B14: Eje Bananero | C14: Turbo | E14: 1 | G14: 1 | H14: 1 | I14: 3 | J14: 3 | K14: 4 | L14: 2 | M14: 6 | N14: 1 | O14: 1 | Q14: 4 | R14: 7 | S14: 2 | T14: 16 | U14: 7 | V14: 5 | X14: 1 | Y14: 1 | AA14: 2 | AB14: 2 | AC14: 1 | AD14: 1 | AF14: 2 | AG14: 1 | AH14: 1 | AN14: 76
C15: Apartadó | H15: 1 | I15: 2 | J15: 1 | K15: 1 | L15: 1 | M15: 1 | N15: 4 | O15: 4 | Q15: 5 | R15: 9 | S15: 2 | T15: 6 | U15: 9 | V15: 7 | W15: 2 | X15: 2 | Y15: 6 | Z15: 2 | AA15: 1 | AB15: 1 | AD15: 2 | AL15: 1 | AN15: 70
C16: Carepa | R16: 2 | T16: 5 | U16: 1 | X16: 1 | Y16: 1 | AA16: 1 | AN16: 11
C17: Chigorodó | D17: 1 | E17: 2 | M17: 1 | O17: 2 | Q17: 2 | R17: 1 | T17: 3 | U17: 4 | V17: 3 | X17: 1 | AG17: 1 | AN17: 21
B18: Sur y Medio Atrato | C18: Mutatá | F18: 1 | H18: 1 | K18: 1 | Q18: 1 | U18: 5 | V18: 4 | W18: 2 | X18: 2 | AD18: 3 | AN18: 20
C19: Vigía del Fuerte | AA19: 1 | AN19: 1
C20: Murindó | K20: 1 | V20: 1 | W20: 1 | Z20: 1 | AN20: 4
C21: TOTAL | D21: =SUM(D10:D20) -> 1 | E21: =SUM(E10:E20) -> 3 | F21: 1 | G21: 2 | H21: 3 | I21: 5 | J21: 4 | K21: 7 | L21: 3 | M21: 9 | N21: 6 | O21: 16 | P21: 1 | Q21: 16 | R21: 26 | S21: 6 | T21: 36 | U21: 26 | V21: 22 | W21: 5 | X21: 7 | Y21: 9 | Z21: 6 | AA21: 5 | AB21: 4 | AC21: 1 | AD21: 6 | AE21: 1 | AF21: 2 | AG21: 3 | AH21: 1 | AI21: 0 | AJ21: 0 | AK21: 0 | AL21: 1 | AM21: 0 | AN21: 244
B23: Casos Masacres Norte Urabá por municipio 1982-2008
B24: Territorialidad | C24: Municipio | D24: 1977 | E24: 1978 | F24: 1981 | G24: 1982 | H24: 1983 | I24: 1984 | J24: 1985 | K24: 1986 | L24: 1987 | M24: 1988 | N24: 1989 | O24: 1990 | P24: 1991 | Q24: 1992 | R24: 1993 | S24: 1994 | T24: 1995 | U24: 1996 | V24: 1997 | W24: 1998 | X24: 1999 | Y24: 2000 | Z24: 2001 | AA24: 2002 | AB24: 2003 | AC24: 2004 | AD24: 2005 | AE24: 2006 | AF24: 2007 | AG24: 2008 | AH24: 2009 | AI24: 2010 | AJ24: 2011 | AK24: 2012 | AL24: 2013 | AM24: 2014 | AN24: TOTAL
B25: Norte Urabá | C25: Arboletes | M25: 1 | N25: 1 | O25: 5 | Q25: 1 | T25: 2 | AN25: =SUM(D25:AM25) -> 10
C26: San Juan | G26: 1 | AN26: 1
C27: San Pedro de Urabá | O27: 1 | Q27: 1 | R27: 4 | V27: 1 | Z27: 3 | AB27: 1 | AN27: 11
C28: Necoclí | O28: 3 | P28: 1 | Q28: 2 | R28: 3 | S28: 2 | T28: 4 | V28: 1 | Y28: 1 | AE28: 1 | AG28: 1 | AN28: 19
C29: TOTAL | D29: =SUM(D25:D28) -> 0 | E29: =SUM(E25:E28) -> 0 | F29: 0 | G29: 1 | H29: 0 | I29: 0 | J29: 0 | K29: 0 | L29: 0 | M29: 1 | N29: 1 | O29: 9 | P29: 1 | Q29: 4 | R29: 7 | S29: 2 | T29: 6 | U29: 0 | V29: 2 | W29: 0 | X29: 0 | Y29: 1 | Z29: 3 | AA29: 0 | AB29: 1 | AC29: 0 | AD29: 0 | AE29: 1 | AF29: 0 | AG29: 1 | AH29: 0 | AI29: 0 | AJ29: 0 | AK29: 0 | AL29: 0 | AM29: 0 | AN29: 41
B31: Casos Masacres Eje Bananero Urabá por municipio 1977-2013
B32: Territorialidad | C32: Municipio | D32: 1977 | E32: 1978 | F32: 1981 | G32: 1982 | H32: 1983 | I32: 1984 | J32: 1985 | K32: 1986 | L32: 1987 | M32: 1988 | N32: 1989 | O32: 1990 | P32: 1991 | Q32: 1992 | R32: 1993 | S32: 1994 | T32: 1995 | U32: 1996 | V32: 1997 | W32: 1998 | X32: 1999 | Y32: 2000 | Z32: 2001 | AA32: 2002 | AB32: 2003 | AC32: 2004 | AD32: 2005 | AE32: 2006 | AF32: 2007 | AG32: 2008 | AH32: 2009 | AI32: 2010 | AJ32: 2011 | AK32: 2012 | AL32: 2013 | AM32: 2014 | AN32: TOTAL
B33: Eje Bananero | C33: Turbo | E33: 1 | G33: 1 | H33: 1 | I33: 3 | J33: 3 | K33: 4 | L33: 2 | M33: 6 | N33: 1 | O33: 1 | Q33: 4 | R33: 7 | S33: 2 | T33: 16 | U33: 7 | V33: 5 | X33: 1 | Y33: 1 | AA33: 2 | AB33: 2 | AC33: 1 | AD33: 1 | AF33: 2 | AG33: 1 | AH33: 1 | AN33: =SUM(D33:AM33) -> 76
C34: Apartadó | H34: 1 | I34: 2 | J34: 1 | K34: 1 | L34: 1 | M34: 1 | N34: 4 | O34: 4 | Q34: 5 | R34: 9 | S34: 2 | T34: 6 | U34: 9 | V34: 7 | W34: 2 | X34: 2 | Y34: 6 | Z34: 2 | AA34: 1 | AB34: 1 | AD34: 2 | AL34: 1 | AN34: 70
C35: Carepa | R35: 2 | T35: 5 | U35: 1 | X35: 1 | Y35: 1 | AA35: 1 | AN35: 11
C36: Chigorodó | D36: 1 | E36: 2 | M36: 1 | O36: 2 | Q36: 2 | R36: 1 | T36: 3 | U36: 4 | V36: 3 | X36: 1 | AG36: 1 | AN36: 21
C37: TOTAL | D37: =SUM(D33:D36) -> 1 | E37: =SUM(E33:E36) -> 3 | F37: 0 | G37: 1 | H37: 2 | I37: 5 | J37: 4 | K37: 5 | L37: 3 | M37: 8 | N37: 5 | O37: 7 | P37: 0 | Q37: 11 | R37: 19 | S37: 4 | T37: 30 | U37: 21 | V37: 15 | W37: 2 | X37: 5 | Y37: 8 | Z37: 2 | AA37: 4 | AB37: 3 | AC37: 1 | AD37: 3 | AE37: 0 | AF37: 2 | AG37: 2 | AH37: 1 | AI37: 0 | AJ37: 0 | AK37: 0 | AL37: 1 | AM37: 0 | AN37: 178
B39: Casos Masacres Sur y Medio Atrato por municipio 1977-2013
B40: Territorialidad | C40: Municipio | D40: 1977 | E40: 1978 | F40: 1981 | G40: 1982 | H40: 1983 | I40: 1984 | J40: 1985 | K40: 1986 | L40: 1987 | M40: 1988 | N40: 1989 | O40: 1990 | P40: 1991 | Q40: 1992 | R40: 1993 | S40: 1994 | T40: 1995 | U40: 1996 | V40: 1997 | W40: 1998 | X40: 1999 | Y40: 2000 | Z40: 2001 | AA40: 2002 | AB40: 2003 | AC40: 2004 | AD40: 2005 | AE40: 2006 | AF40: 2007 | AG40: 2008 | AH40: 2009 | AI40: 2010 | AJ40: 2011 | AK40: 2012 | AL40: 2013 | AM40: 2014 | AN40: TOTAL
B41: Sur y Medio Atrato | C41: Mutatá | F41: 1 | H41: 1 | K41: 1 | Q41: 1 | U41: 5 | V41: 4 | W41: 2 | X41: 2 | AD41: 3 | AN41: =SUM(D41:AM41) -> 20
C42: Vigía del Fuerte | AA42: 1 | AN42: 1
C43: Murindó | K43: 1 | V43: 1 | W43: 1 | Z43: 1 | AN43: 4
C44: TOTAL | D44: =SUM(D41:D43) -> 0 | E44: =SUM(E41:E43) -> 0 | F44: 1 | G44: 0 | H44: 1 | I44: 0 | J44: 0 | K44: 2 | L44: 0 | M44: 0 | N44: 0 | O44: 0 | P44: 0 | Q44: 1 | R44: 0 | S44: 0 | T44: 0 | U44: 5 | V44: 5 | W44: 3 | X44: 2 | Y44: 0 | Z44: 1 | AA44: 1 | AB44: 0 | AC44: 0 | AD44: 3 | AE44: 0 | AF44: 0 | AG44: 0 | AH44: 0 | AI44: 0 | AJ44: 0 | AK44: 0 | AL44: 0 | AM44: 0 | AN44: 25
B46: Casos Masacres Urabá antioqueño por territorialidad 1977-2013
B47: Región | C47: Municipio | D47: 1977 | E47: 1978 | F47: 1981 | G47: 1982 | H47: 1983 | I47: 1984 | J47: 1985 | K47: 1986 | L47: 1987 | M47: 1988 | N47: 1989 | O47: 1990 | P47: 1991 | Q47: 1992 | R47: 1993 | S47: 1994 | T47: 1995 | U47: 1996 | V47: 1997 | W47: 1998 | X47: 1999 | Y47: 2000 | Z47: 2001 | AA47: 2002 | AB47: 2003 | AC47: 2004 | AD47: 2005 | AE47: 2006 | AF47: 2007 | AG47: 2008 | AH47: 2009 | AI47: 2010 | AJ47: 2011 | AK47: 2012 | AL47: 2013 | AM47: 2014 | AN47: TOTAL
B48: Urabá antioqueño | C48: Norte Urabá | D48: =D29 -> 0 | E48: =E29 -> 0 | F48: 0 | G48: 1 | H48: 0 | I48: 0 | J48: 0 | K48: 0 | L48: 0 | M48: 1 | N48: 1 | O48: 9 | P48: 1 | Q48: 4 | R48: 7 | S48: 2 | T48: 6 | U48: 0 | V48: 2 | W48: 0 | X48: 0 | Y48: 1 | Z48: 3 | AA48: 0 | AB48: 1 | AC48: 0 | AD48: 0 | AE48: 1 | AF48: 0 | AG48: 1 | AH48: 0 | AI48: 0 | AJ48: 0 | AK48: 0 | AL48: 0 | AM48: 0 | AN48: =SUM(D48:AM48) -> 41
C49: Eje Bananero | D49: =D37 -> 1 | E49: =E37 -> 3 | F49: 0 | G49: 1 | H49: 2 | I49: 5 | J49: 4 | K49: 5 | L49: 3 | M49: 8 | N49: 5 | O49: 7 | P49: 0 | Q49: 11 | R49: 19 | S49: 4 | T49: 30 | U49: 21 | V49: 15 | W49: 2 | X49: 5 | Y49: 8 | Z49: 2 | AA49: 4 | AB49: 3 | AC49: 1 | AD49: 3 | AE49: 0 | AF49: 2 | AG49: 2 | AH49: 1 | AI49: 0 | AJ49: 0 | AK49: 0 | AL49: 1 | AM49: 0 | AN49: =SUM(D49:AM49) -> 178
C50: Sur y Medio Atrato | D50: =D44 -> 0 | E50: =E44 -> 0 | F50: 1 | G50: 0 | H50: 1 | I50: 0 | J50: 0 | K50: 2 | L50: 0 | M50: 0 | N50: 0 | O50: 0 | P50: 0 | Q50: 1 | R50: 0 | S50: 0 | T50: 0 | U50: 5 | V50: 5 | W50: 3 | X50: 2 | Y50: 0 | Z50: 1 | AA50: 1 | AB50: 0 | AC50: 0 | AD50: 3 | AE50: 0 | AF50: 0 | AG50: 0 | AH50: 0 | AI50: 0 | AJ50: 0 | AK50: 0 | AL50: 0 | AM50: 0 | AN50: =SUM(D50:AM50) -> 25
C51: TOTAL | D51: =SUM(D48:D50) -> 1 | E51: 3 | F51: 1 | G51: 2 | H51: 3 | I51: 5 | J51: 4 | K51: 7 | L51: 3 | M51: 9 | N51: 6 | O51: 16 | P51: 1 | Q51: 16 | R51: 26 | S51: 6 | T51: 36 | U51: 26 | V51: 22 | W51: 5 | X51: 7 | Y51: 9 | Z51: 6 | AA51: 5 | AB51: 4 | AC51: 1 | AD51: 6 | AE51: 1 | AF51: 2 | AG51: 3 | AH51: 1 | AI51: 0 | AJ51: 0 | AK51: 0 | AL51: 1 | AM51: 0 | AN51: 244
B53: Tablas Víctimas Masacres Urabá antioqueño
B55: Fuente: CNMH, Bases de datos, Observatorio de Memoria y Conflicto: http://centrodememoriahistorica.gov.co/observatorio/bases-de-datos/ fecha de corte: 15/09/2018. Consultado el 25 de septiembre de 2020
B57: Víctimas Masacres Urabá antioqueño por municipio 1977-2013
B58: Territorialidad | C58: Municipio | D58: 1977 | E58: 1978 | F58: 1981 | G58: 1982 | H58: 1983 | I58: 1984 | J58: 1985 | K58: 1986 | L58: 1987 | M58: 1988 | N58: 1989 | O58: 1990 | P58: 1991 | Q58: 1992 | R58: 1993 | S58: 1994 | T58: 1995 | U58: 1996 | V58: 1997 | W58: 1998 | X58: 1999 | Y58: 2000 | Z58: 2001 | AA58: 2002 | AB58: 2003 | AC58: 2004 | AD58: 2005 | AE58: 2006 | AF58: 2007 | AG58: 2008 | AH58: 2009 | AI58: 2010 | AJ58: 2011 | AK58: 2012 | AL58: 2013 | AM58: 2014 | AN58: TOTAL
B59: Norte Urabá | C59: Arboletes | M59: 5 | N59: 6 | O59: 49 | Q59: 5 | T59: 15 | AN59: =SUM(D59:AM59) -> 80
C60: San Juan | G60: 4 | AN60: 4
C61: San Pedro de Urabá | O61: 8 | Q61: 4 | R61: 20 | V61: 11 | Z61: 44 | AB61: 5 | AN61: 92
C62: Necoclí | O62: 21 | P62: 5 | Q62: 16 | R62: 16 | S62: 11 | T62: 18 | V62: 8 | Y62: 11 | AE62: 4 | AG62: 4 | AN62: 114
B63: Eje Bananero | C63: Turbo | E63: 4 | G63: 4 | H63: 4 | I63: 24 | J63: 17 | K63: 22 | L63: 12 | M63: 61 | N63: 5 | O63: 5 | Q63: 22 | R63: 51 | S63: 8 | T63: 79 | U63: 42 | V63: 46 | X63: 5 | Y63: 4 | AA63: 8 | AB63: 12 | AC63: 5 | AD63: 4 | AF63: 10 | AG63: 5 | AH63: 5 | AN63: 464
C64: Apartadó | H64: 4 | I64: 14 | J64: 11 | K64: 7 | L64: 4 | M64: 5 | N64: 27 | O64: 29 | Q64: 30 | R64: 53 | S64: 40 | T64: 56 | U64: 47 | V64: 34 | W64: 8 | X64: 12 | Y64: 38 | Z64: 9 | AA64: 10 | AB64: 8 | AD64: 14 | AL64: 7 | AN64: 467
C65: Carepa | R65: 9 | T65: 41 | U65: 11 | X65: 4 | Y65: 5 | AA65: 7 | AN65: 77
C66: Chigorodó | D66: 5 | E66: 15 | M66: 6 | O66: 9 | Q66: 10 | R66: 22 | T66: 32 | U66: 29 | V66: 13 | X66: 4 | AG66: 7 | AN66: 152
B67: Sur y Medio Atrato | C67: Mutatá | F67: 4 | H67: 4 | K67: 6 | Q67: 6 | U67: 28 | V67: 25 | W67: 10 | X67: 10 | AD67: 13 | AN67: 106
C68: Vigía del Fuerte | AA68: 4 | AN68: 4
C69: Murindó | K69: 4 | V69: 5 | W69: 5 | Z69: 4 | AN69: 18
C70: TOTAL | D70: =SUM(D59:D69) -> 5 | E70: 19 | F70: 4 | G70: 8 | H70: 12 | I70: 38 | J70: 28 | K70: 39 | L70: 16 | M70: 77 | N70: 38 | O70: 121 | P70: 5 | Q70: 93 | R70: 171 | S70: 59 | T70: 241 | U70: 157 | V70: 142 | W70: 23 | X70: 35 | Y70: 58 | Z70: 57 | AA70: 29 | AB70: 25 | AC70: 5 | AD70: 31 | AE70: 4 | AF70: 10 | AG70: 16 | AH70: 5 | AI70: 0 | AJ70: 0 | AK70: 0 | AL70: 7 | AM70: 0 | AN70: 1578
B72: Víctimas Masacres Norte Urabá por municipio 1982-2008
B73: Territorialidad | C73: Municipio | D73: 1977 | E73: 1978 | F73: 1981 | G73: 1982 | H73: 1983 | I73: 1984 | J73: 1985 | K73: 1986 | L73: 1987 | M73: 1988 | N73: 1989 | O73: 1990 | P73: 1991 | Q73: 1992 | R73: 1993 | S73: 1994 | T73: 1995 | U73: 1996 | V73: 1997 | W73: 1998 | X73: 1999 | Y73: 2000 | Z73: 2001 | AA73: 2002 | AB73: 2003 | AC73: 2004 | AD73: 2005 | AE73: 2006 | AF73: 2007 | AG73: 2008 | AH73: 2009 | AI73: 2010 | AJ73: 2011 | AK73: 2012 | AL73: 2013 | AM73: 2014 | AN73: TOTAL
B74: Norte Urabá | C74: Arboletes | M74: 5 | N74: 6 | O74: 49 | Q74: 5 | T74: 15 | AN74: =SUM(D74:AM74) -> 80
C75: San Juan | G75: 4 | AN75: 4
C76: San Pedro de Urabá | O76: 8 | Q76: 4 | R76: 20 | V76: 11 | Z76: 44 | AB76: 5 | AN76: 92
C77: Necoclí | O77: 21 | P77: 5 | Q77: 16 | R77: 16 | S77: 11 | T77: 18 | V77: 8 | Y77: 11 | AE77: 4 | AG77: 4 | AN77: 114
C78: TOTAL | D78: =SUM(D74:D77) -> 0 | E78: =SUM(E74:E77) -> 0 | F78: 0 | G78: 4 | H78: 0 | I78: 0 | J78: 0 | K78: 0 | L78: 0 | M78: 5 | N78: 6 | O78: 78 | P78: 5 | Q78: 25 | R78: 36 | S78: 11 | T78: 33 | U78: 0 | V78: 19 | W78: 0 | X78: 0 | Y78: 11 | Z78: 44 | AA78: 0 | AB78: 5 | AC78: 0 | AD78: 0 | AE78: 4 | AF78: 0 | AG78: 4 | AH78: 0 | AI78: 0 | AJ78: 0 | AK78: 0 | AL78: 0 | AM78: 0 | AN78: 290
B80: Víctimas Masacres Eje Bananero Urabá por municipio 1977-2013
B81: Territorialidad | C81: Municipio | D81: 1977 | E81: 1978 | F81: 1981 | G81: 1982 | H81: 1983 | I81: 1984 | J81: 1985 | K81: 1986 | L81: 1987 | M81: 1988 | N81: 1989 | O81: 1990 | P81: 1991 | Q81: 1992 | R81: 1993 | S81: 1994 | T81: 1995 | U81: 1996 | V81: 1997 | W81: 1998 | X81: 1999 | Y81: 2000 | Z81: 2001 | AA81: 2002 | AB81: 2003 | AC81: 2004 | AD81: 2005 | AE81: 2006 | AF81: 2007 | AG81: 2008 | AH81: 2009 | AI81: 2010 | AJ81: 2011 | AK81: 2012 | AL81: 2013 | AM81: 2014 | AN81: TOTAL
B82: Eje Bananero | C82: Turbo | E82: 4 | G82: 4 | H82: 4 | I82: 24 | J82: 17 | K82: 22 | L82: 12 | M82: 61 | N82: 5 | O82: 5 | Q82: 22 | R82: 51 | S82: 8 | T82: 79 | U82: 42 | V82: 46 | X82: 5 | Y82: 4 | AA82: 8 | AB82: 12 | AC82: 5 | AD82: 4 | AF82: 10 | AG82: 5 | AH82: 5 | AN82: =SUM(D82:AM82) -> 464
C83: Apartadó | H83: 4 | I83: 14 | J83: 11 | K83: 7 | L83: 4 | M83: 5 | N83: 27 | O83: 29 | Q83: 30 | R83: 53 | S83: 40 | T83: 56 | U83: 47 | V83: 34 | W83: 8 | X83: 12 | Y83: 38 | Z83: 9 | AA83: 10 | AB83: 8 | AD83: 14 | AL83: 7 | AN83: 467
C84: Carepa | R84: 9 | T84: 41 | U84: 11 | X84: 4 | Y84: 5 | AA84: 7 | AN84: 77
C85: Chigorodó | D85: 5 | E85: 15 | M85: 6 | O85: 9 | Q85: 10 | R85: 22 | T85: 32 | U85: 29 | V85: 13 | X85: 4 | AG85: 7 | AN85: 152
C86: TOTAL | D86: =SUM(D82:D85) -> 5 | E86: =SUM(E82:E85) -> 19 | F86: 0 | G86: 4 | H86: 8 | I86: 38 | J86: 28 | K86: 29 | L86: 16 | M86: 72 | N86: 32 | O86: 43 | P86: 0 | Q86: 62 | R86: 135 | S86: 48 | T86: 208 | U86: 129 | V86: 93 | W86: 8 | X86: 25 | Y86: 47 | Z86: 9 | AA86: 25 | AB86: 20 | AC86: 5 | AD86: 18 | AE86: 0 | AF86: 10 | AG86: 12 | AH86: 5 | AI86: 0 | AJ86: 0 | AK86: 0 | AL86: 7 | AM86: 0 | AN86: 1160
B88: Víctimas Masacres Sur y Medio Atrato por municipio 1977-2013
B89: Territorialidad | C89: Municipio | D89: 1977 | E89: 1978 | F89: 1981 | G89: 1982 | H89: 1983 | I89: 1984 | J89: 1985 | K89: 1986 | L89: 1987 | M89: 1988 | N89: 1989 | O89: 1990 | P89: 1991 | Q89: 1992 | R89: 1993 | S89: 1994 | T89: 1995 | U89: 1996 | V89: 1997 | W89: 1998 | X89: 1999 | Y89: 2000 | Z89: 2001 | AA89: 2002 | AB89: 2003 | AC89: 2004 | AD89: 2005 | AE89: 2006 | AF89: 2007 | AG89: 2008 | AH89: 2009 | AI89: 2010 | AJ89: 2011 | AK89: 2012 | AL89: 2013 | AM89: 2014 | AN89: TOTAL
B90: Sur y Medio Atrato | C90: Mutatá | F90: 4 | H90: 4 | K90: 6 | Q90: 6 | U90: 28 | V90: 25 | W90: 10 | X90: 10 | AD90: 13 | AN90: =SUM(D90:AM90) -> 106
C91: Vigía del Fuerte | AA91: 4 | AN91: 4
C92: Murindó | K92: 4 | V92: 5 | W92: 5 | Z92: 4 | AN92: 18
C93: TOTAL | D93: =SUM(D90:D92) -> 0 | E93: =SUM(E90:E92) -> 0 | F93: 4 | G93: 0 | H93: 4 | I93: 0 | J93: 0 | K93: 10 | L93: 0 | M93: 0 | N93: 0 | O93: 0 | P93: 0 | Q93: 6 | R93: 0 | S93: 0 | T93: 0 | U93: 28 | V93: 30 | W93: 15 | X93: 10 | Y93: 0 | Z93: 4 | AA93: 4 | AB93: 0 | AC93: 0 | AD93: 13 | AE93: 0 | AF93: 0 | AG93: 0 | AH93: 0 | AI93: 0 | AJ93: 0 | AK93: 0 | AL93: 0 | AM93: 0 | AN93: 128
B95: Víctimas Masacres Urabá antioqueño por territorialidad 1977-2013
B96: Región | C96: Territorialidad | D96: 1977 | E96: 1978 | F96: 1981 | G96: 1982 | H96: 1983 | I96: 1984 | J96: 1985 | K96: 1986 | L96: 1987 | M96: 1988 | N96: 1989 | O96: 1990 | P96: 1991 | Q96: 1992 | R96: 1993 | S96: 1994 | T96: 1995 | U96: 1996 | V96: 1997 | W96: 1998 | X96: 1999 | Y96: 2000 | Z96: 2001 | AA96: 2002 | AB96: 2003 | AC96: 2004 | AD96: 2005 | AE96: 2006 | AF96: 2007 | AG96: 2008 | AH96: 2009 | AI96: 2010 | AJ96: 2011 | AK96: 2012 | AL96: 2013 | AM96: 2014 | AN96: TOTAL
B97: Urabá antioqueño | C97: Norte Urabá | D97: =D78 -> 0 | E97: =E78 -> 0 | F97: 0 | G97: 4 | H97: 0 | I97: 0 | J97: 0 | K97: 0 | L97: 0 | M97: 5 | N97: 6 | O97: 78 | P97: 5 | Q97: 25 | R97: 36 | S97: 11 | T97: 33 | U97: 0 | V97: 19 | W97: 0 | X97: 0 | Y97: 11 | Z97: 44 | AA97: 0 | AB97: 5 | AC97: 0 | AD97: 0 | AE97: 4 | AF97: 0 | AG97: 4 | AH97: 0 | AI97: 0 | AJ97: 0 | AK97: 0 | AL97: 0 | AM97: 0 | AN97: 290
C98: Eje Bananero | D98: =D86 -> 5 | E98: =E86 -> 19 | F98: 0 | G98: 4 | H98: 8 | I98: 38 | J98: 28 | K98: 29 | L98: 16 | M98: 72 | N98: 32 | O98: 43 | P98: 0 | Q98: 62 | R98: 135 | S98: 48 | T98: 208 | U98: 129 | V98: 93 | W98: 8 | X98: 25 | Y98: 47 | Z98: 9 | AA98: 25 | AB98: 20 | AC98: 5 | AD98: 18 | AE98: 0 | AF98: 10 | AG98: 12 | AH98: 5 | AI98: 0 | AJ98: 0 | AK98: 0 | AL98: 7 | AM98: 0 | AN98: 1160
C99: Sur y Medio Atrato | D99: =D93 -> 0 | E99: =E93 -> 0 | F99: 4 | G99: 0 | H99: 4 | I99: 0 | J99: 0 | K99: 10 | L99: 0 | M99: 0 | N99: 0 | O99: 0 | P99: 0 | Q99: 6 | R99: 0 | S99: 0 | T99: 0 | U99: 28 | V99: 30 | W99: 15 | X99: 10 | Y99: 0 | Z99: 4 | AA99: 4 | AB99: 0 | AC99: 0 | AD99: 13 | AE99: 0 | AF99: 0 | AG99: 0 | AH99: 0 | AI99: 0 | AJ99: 0 | AK99: 0 | AL99: 0 | AM99: 0 | AN99: 128
C100: TOTAL | D100: =SUM(D97:D99) -> 5 | E100: 19 | F100: 4 | G100: 8 | H100: 12 | I100: 38 | J100: 28 | K100: 39 | L100: 16 | M100: 77 | N100: 38 | O100: 121 | P100: 5 | Q100: 93 | R100: 171 | S100: 59 | T100: 241 | U100: 157 | V100: 142 | W100: 23 | X100: 35 | Y100: 58 | Z100: 57 | AA100: 29 | AB100: 25 | AC100: 5 | AD100: 31 | AE100: 4 | AF100: 10 | AG100: 16 | AH100: 5 | AI100: 0 | AJ100: 0 | AK100: 0 | AL100: 7 | AM100: 0 | AN100: 1578
B102: Tablas Total Casos Masacres y Víctimas Urabá antioqueño
B104: Fuente: CNMH, Bases de datos, Observatorio de Memoria y Conflicto: http://centrodememoriahistorica.gov.co/observatorio/bases-de-datos/ fecha de corte: 15/09/2018. Consultado el 25 de septiembre de 2020
B106: Masacres y víctimas Urabá antioqueño 1977-2013
B107: Territorialidad | C107: Municipio | D107: Masacres | E107: Víctimas
B108: Norte Urabá | C108: Arboletes | D108: 10 | E108: 80
C109: San Juan | D109: 1 | E109: 4
C110: San Pedro de Urabá | D110: 11 | E110: 92
C111: Necoclí | D111: 19 | E111: 114
B112: Eje Bananero | C112: Turbo | D112: 76 | E112: 464
C113: Apartadó | D113: 70 | E113: 467
C114: Carepa | D114: 11 | E114: 77
C115: Chigorodó | D115: 21 | E115: 152
B116: Sur y Medio Atrato | C116: Mutatá | D116: 20 | E116: 106
C117: Vigía del Fuerte | D117: 1 | E117: 4
C118: Murindó | D118: 4 | E118: 18
C119: TOTAL | D119: =SUM(D108:D118) -> 244 | E119: 1578
B121: Masacres y víctimas Norte Urabá 1977-2013
B122: Territorialidad | C122: Municipio | D122: Masacres | E122: Víctimas
B123: Norte Urabá | C123: Arboletes | D123: 10 | E123: 80
C124: San Juan | D124: 1 | E124: 4
C125: San Pedro de Urabá | D125: 11 | E125: 92
C126: Necoclí | D126: 19 | E126: 114
C127: TOTAL | D127: =SUM(D123:D126) -> 41 | E127: =SUM(E123:E126) -> 290
B129: Masacres y víctimas Eje Bananero Urabá 1977-2013
B130: Territorialidad | C130: Municipio | D130: Masacres | E130: Víctimas
B131: Eje Bananero | C131: Turbo | D131: 76 | E131: 464
C132: Apartadó | D132: 70 | E132: 467
C133: Carepa | D133: 11 | E133: 77
C134: Chigorodó | D134: 21 | E134: 152
C135: TOTAL | D135: =SUM(D131:D134) -> 178 | E135: =SUM(E131:E134) -> 1160
B137: Masacres y víctimas Sur y Medio Atrato 1977-2013
B138: Territorialidad | C138: Municipio | D138: Masacres | E138: Víctimas
B139: Sur y Medio Atrato | C139: Mutatá | D139: 20 | E139: 106
C140: Vigía del Fuerte | D140: 1 | E140: 4
C141: Murindó | D141: 4 | E141: 18
C142: TOTAL | D142: =SUM(D139:D141) -> 25 | E142: =SUM(E139:E141) -> 128
B144: Masacres y víctimas Urabá antioqueño por territorialidad 1977-2013
B145: Región | C145: Territorialidad | D145: Masacres | E145: Víctimas
B146: Urabá antioqueño | C146: Norte urabá | D146: =D127 -> 41 | E146: =E127 -> 290
C147: Eje Bananero | D147: =D135 -> 178 | E147: =E135 -> 1160
C148: Sur y Medio Atrato | D148: =D142 -> 25 | E148: =E142 -> 128
C149: TOTAL | D149: =SUM(D146:D148) -> 244 | E149: =SUM(E146:E148) -> 1578
B152: Tablas Presuntos Responsables Masacres Urabá antioqueño 1977-2013
B153: Fuente: CNMH, Bases de datos, Observatorio de Memoria y Conflicto: http://centrodememoriahistorica.gov.co/observatorio/bases-de-datos/ fecha de corte: 15/09/2018. Consultado el 25 de septiembre de 2020
B155: Presuntos responsables masacres Urabá antioqueño por municipio
B156: Territorialidad | C156: Norte Urabá | G156: Eje bananero | K156: Sur y Medio Atrato
B157: Presunto actor responsable | C157: Arboletes | D157: San Juan | E157: San Pedro | F157: Necoclí | G157: Turbo | H157: Apartadó | I157: Carepa | J157: Chigorodó | K157: Mutatá | L157: Vigía del Fuerte | M157: Murindó | N157: TOTAL
B158: Fuerza Pública-Ejército Nacional | C158: 1 | H158: 1 | J158: 1 | K158: 1 | N158: =SUM(C158:M158) -> 4
B159: Fuerza Pública-Grupos paramilitares | E159: 1 | G159: 1 | H159: 2 | N159: 4
B160: Grupo Armado No Identificado | C160: 3 | E160: 3 | F160: 4 | G160: 16 | H160: 15 | I160: 1 | J160: 3 | K160: 1 | N160: 46
B161: Grupos Paramilitares | C161: 6 | E161: 2 | F161: 12 | G161: 37 | H161: 39 | I161: 4 | J161: 12 | K161: 13 | M161: 3 | N161: 128
B162: Guerrilla No Identificada | E162: 2 | G162: 4 | H162: 2 | I162: 1 | J162: 2 | K162: 1 | N162: 12
B163: Guerrilla EPL | F163: 1 | G163: 2 | H163: 1 | N163: 4
B164: Guerrilla disidencia EPL | E164: 1 | F164: 1 | G164: 1 | H164: 1 | I164: 1 | N164: 5
B165: Guerrilla FARC | D165: 1 | E165: 2 | F165: 1 | G165: 14 | H165: 9 | I165: 4 | J165: 3 | K165: 4 | L165: 1 | M165: 1 | N165: 40
B166: CGSB | G166: 1 | N166: 1
B167: Total | C167: =SUM(C158:C166) -> 10 | D167: 1 | E167: 11 | F167: 19 | G167: 76 | H167: 70 | I167: 11 | J167: 21 | K167: 20 | L167: 1 | M167: 4 | N167: 244
B169: Presuntos responsables masacres Urabá antioqueño por año
C170: 1977 | D170: 1978 | E170: 1981 | F170: 1982 | G170: 1983 | H170: 1984 | I170: 1985 | J170: 1986 | K170: 1987 | L170: 1988 | M170: 1989 | N170: 1990 | O170: 1991 | P170: 1992 | Q170: 1993 | R170: 1994 | S170: 1995 | T170: 1996 | U170: 1997 | V170: 1998 | W170: 1999 | X170: 2000 | Y170: 2001 | Z170: 2002 | AA170: 2003 | AB170: 2004 | AC170: 2005 | AD170: 2006 | AE170: 2007 | AF170: 2008 | AG170: 2009 | AH170: 2010 | AI170: 2011 | AJ170: 2012 | AK170: 2013 | AL170: TOTAL
B171: Fuerza Pública-Ejército Nacional | N171: 1 | P171: 1 | AC171: 1 | AF171: 1 | AL171: =SUM(D171:AK171) -> 4
B172: Fuerza Pública-Grupos paramilitares | N172: 1 | S172: 1 | X172: 1 | AC172: 1 | AL172: =SUM(D172:AK172) -> 4
B173: Grupo Armado No Identificado | H173: 1 | I173: 2 | K173: 1 | L173: 3 | M173: 2 | N173: 4 | O173: 1 | P173: 6 | Q173: 6 | S173: 3 | T173: 4 | U173: 4 | W173: 1 | X173: 2 | Y173: 1 | Z173: 2 | AA173: 1 | AF173: 1 | AG173: 1 | AL173: =SUM(D173:AK173) -> 46
B174: Grupos Paramilitares | G174: 2 | H174: 3 | I174: 1 | J174: 3 | K174: 2 | L174: 4 | M174: 3 | N174: 6 | P174: 8 | Q174: 9 | R174: 4 | S174: 23 | T174: 18 | U174: 16 | V174: 4 | W174: 3 | X174: 5 | Y174: 3 | Z174: 1 | AA174: 2 | AB174: 1 | AC174: 3 | AD174: 1 | AE174: 1 | AF174: 1 | AK174: 1 | AL174: =SUM(D174:AK174) -> 128
B175: Guerrilla No Identificada | G175: 1 | I175: 1 | M175: 1 | N175: 2 | Q175: 1 | S175: 3 | X175: 1 | Y175: 2 | AL175: =SUM(D175:AK175) -> 12
B176: Guerrilla EPL | F176: 1 | H176: 1 | J176: 1 | N176: 1 | AL176: 4
B177: Guerrilla disidencia EPL | P177: 1 | Q177: 3 | S177: 1 | AL177: 5
B178: Guerrilla FARC | C178: 1 | D178: 3 | E178: 1 | J178: 3 | L178: 2 | N178: 2 | Q178: 6 | R178: 2 | S178: 5 | T178: 4 | U178: 2 | V178: 1 | W178: 3 | Z178: 2 | AA178: 1 | AC178: 1 | AE178: 1 | AL178: 39
B179: CGSB | Q179: 1 | AL179: 1
B180: Total | C180: =SUM(C171:C179) -> 1 | D180: =SUM(D171:D179) -> 3 | E180: 1 | F180: 1 | G180: 3 | H180: 5 | I180: 4 | J180: 7 | K180: 3 | L180: 9 | M180: 6 | N180: 17 | O180: 1 | P180: 16 | Q180: 26 | R180: 6 | S180: 36 | T180: 26 | U180: 22 | V180: 5 | W180: 7 | X180: 9 | Y180: 6 | Z180: 5 | AA180: 4 | AB180: 1 | AC180: 6 | AD180: 1 | AE180: 2 | AF180: 3 | AG180: 1 | AH180: 0 | AI180: 0 | AJ180: 0 | AK180: 1 | AL180: 243
B182: Presuntos responsables masacres Norte de Urabá por año
C183: 1977 | D183: 1978 | E183: 1981 | F183: 1982 | G183: 1983 | H183: 1984 | I183: 1985 | J183: 1986 | K183: 1987 | L183: 1988 | M183: 1989 | N183: 1990 | O183: 1991 | P183: 1992 | Q183: 1993 | R183: 1994 | S183: 1995 | T183: 1996 | U183: 1997 | V183: 1998 | W183: 1999 | X183: 2000 | Y183: 2001 | Z183: 2002 | AA183: 2003 | AB183: 2004 | AC183: 2005 | AD183: 2006 | AE183: 2007 | AF183: 2008 | AG183: 2009 | AH183: 2010 | AI183: 2011 | AJ183: 2012 | AK183: 2013 | AL183: TOTAL
B184: Fuerza Pública-Ejército Nacional | N184: 1 | AL184: =SUM(D184:AK184) -> 1
B185: Fuerza Pública-Grupos paramilitares | N185: 1 | AL185: =SUM(D185:AK185) -> 1
B186: Grupo Armado No Identificado | L186: 1 | N186: 1 | O186: 1 | P186: 1 | Q186: 1 | S186: 2 | U186: 1 | Y186: 1 | AF186: 1 | AL186: =SUM(D186:AK186) -> 10
B187: Grupos Paramilitares | M187: 1 | N187: 5 | P187: 2 | Q187: 3 | R187: 2 | S187: 3 | U187: 1 | X187: 1 | AA187: 1 | AD187: 1 | AL187: =SUM(D187:AK187) -> 20
B188: Guerrilla No Identificada | Y188: 2 | AL188: =SUM(D188:AK188) -> 2
B189: Guerrilla EPL | N189: 1 | AL189: 1
B190: Guerrilla disidencia EPL | P190: 1 | Q190: 1 | AL190: 2
B191: Guerrilla FARC | F191: 1 | Q191: 2 | S191: 1 | AL191: =SUM(C191:AK191) -> 4
B192: CGSB | AL192: =SUM(D192:AK192) -> 0
B193: Total | C193: =SUM(C184:C192) -> 0 | D193: =SUM(D184:D192) -> 0 | E193: 0 | F193: 1 | G193: 0 | H193: 0 | I193: 0 | J193: 0 | K193: 0 | L193: 1 | M193: 1 | N193: 9 | O193: 1 | P193: 4 | Q193: 7 | R193: 2 | S193: 6 | T193: 0 | U193: 2 | V193: 0 | W193: 0 | X193: 1 | Y193: 3 | Z193: 0 | AA193: 1 | AB193: 0 | AC193: 0 | AD193: 1 | AE193: 0 | AF193: 1 | AG193: 0 | AH193: 0 | AI193: 0 | AJ193: 0 | AK193: 0 | AL193: 41
B195: Presuntos responsables masacres Eje bananero por año
C196: 1977 | D196: 1978 | E196: 1981 | F196: 1982 | G196: 1983 | H196: 1984 | I196: 1985 | J196: 1986 | K196: 1987 | L196: 1988 | M196: 1989 | N196: 1990 | O196: 1991 | P196: 1992 | Q196: 1993 | R196: 1994 | S196: 1995 | T196: 1996 | U196: 1997 | V196: 1998 | W196: 1999 | X196: 2000 | Y196: 2001 | Z196: 2002 | AA196: 2003 | AB196: 2004 | AC196: 2005 | AD196: 2006 | AE196: 2007 | AF196: 2008 | AG196: 2009 | AH196: 2010 | AI196: 2011 | AJ196: 2012 | AK196: 2013 | AL196: TOTAL
B197: Fuerza Pública-Ejército Nacional | AC197: 1 | AF197: 1 | AL197: =SUM(D197:AK197) -> 2
B198: Fuerza Pública-Grupos paramilitares | S198: 1 | X198: 1 | AC198: 1 | AL198: =SUM(D198:AK198) -> 3
B199: Grupo Armado No Identificado | H199: 1 | I199: 2 | K199: 1 | L199: 2 | M199: 2 | N199: 3 | P199: 5 | Q199: 5 | S199: 1 | T199: 4 | U199: 3 | X199: 2 | Z199: 2 | AA199: 1 | AG199: 1 | AL199: =SUM(D199:AK199) -> 35
B200: Grupos Paramilitares | G200: 2 | H200: 3 | I200: 1 | J200: 2 | K200: 2 | L200: 4 | M200: 2 | N200: 1 | P200: 6 | Q200: 6 | R200: 2 | S200: 20 | T200: 13 | U200: 11 | V200: 1 | W200: 3 | X200: 4 | Y200: 2 | Z200: 1 | AA200: 1 | AB200: 1 | AC200: 1 | AE200: 1 | AF200: 1 | AK200: 1 | AL200: =SUM(D200:AK200) -> 92
B201: Guerrilla No Identificada | I201: 1 | M201: 1 | N201: 2 | Q201: 1 | S201: 3 | X201: 1 | AL201: =SUM(D201:AK201) -> 9
B202: Guerrilla EPL | F202: 1 | H202: 1 | J202: 1 | AL202: 3
B203: Guerrilla disidencia EPL | Q203: 2 | S203: 1 | AL203: 3
B204: Guerrilla FARC | C204: 1 | D204: 3 | J204: 2 | L204: 2 | N204: 1 | Q204: 4 | R204: 2 | S204: 4 | T204: 4 | U204: 1 | V204: 1 | W204: 2 | Z204: 1 | AA204: 1 | AE204: 1 | AL204: =SUM(C204:AK204) -> 30
B205: CGSB | Q205: 1 | AL205: =SUM(D205:AK205) -> 1
B206: Total | C206: =SUM(C197:C205) -> 1 | D206: =SUM(D197:D205) -> 3 | E206: 0 | F206: 1 | G206: 2 | H206: 5 | I206: 4 | J206: 5 | K206: 3 | L206: 8 | M206: 5 | N206: 7 | O206: 0 | P206: 11 | Q206: 19 | R206: 4 | S206: 30 | T206: 21 | U206: 15 | V206: 2 | W206: 5 | X206: 8 | Y206: 2 | Z206: 4 | AA206: 3 | AB206: 1 | AC206: 3 | AD206: 0 | AE206: 2 | AF206: 2 | AG206: 1 | AH206: 0 | AI206: 0 | AJ206: 0 | AK206: 1 | AL206: 178
B208: Presuntos responsables masacres Sur y Medio Atrato por año
C209: 1977 | D209: 1978 | E209: 1981 | F209: 1982 | G209: 1983 | H209: 1984 | I209: 1985 | J209: 1986 | K209: 1987 | L209: 1988 | M209: 1989 | N209: 1990 | O209: 1991 | P209: 1992 | Q209: 1993 | R209: 1994 | S209: 1995 | T209: 1996 | U209: 1997 | V209: 1998 | W209: 1999 | X209: 2000 | Y209: 2001 | Z209: 2002 | AA209: 2003 | AB209: 2004 | AC209: 2005 | AD209: 2006 | AE209: 2007 | AF209: 2008 | AG209: 2009 | AH209: 2010 | AI209: 2011 | AJ209: 2012 | AK209: 2013 | AL209: TOTAL
B210: Fuerza Pública-Ejército Nacional | P210: 1 | AL210: =SUM(D210:AK210) -> 1
B211: Fuerza Pública-Grupos paramilitares | AL211: =SUM(D211:AK211) -> 0
B212: Grupo Armado No Identificado | W212: 1 | AL212: =SUM(D212:AK212) -> 1
B213: Grupos Paramilitares | J213: 1 | T213: 5 | U213: 4 | V213: 3 | Y213: 1 | AC213: 2 | AL213: =SUM(D213:AK213) -> 16
B214: Guerrilla No Identificada | G214: 1 | AL214: =SUM(D214:AK214) -> 1
B215: Guerrilla EPL | AL215: 0
B216: Guerrilla disidencia EPL | AL216: 0
B217: Guerrilla FARC | E217: 1 | J217: 1 | U217: 1 | W217: 1 | Z217: 1 | AC217: 1 | AL217: =SUM(C217:AK217) -> 6
B218: CGSB | AL218: =SUM(D218:AK218) -> 0
B219: Total | C219: =SUM(C210:C218) -> 0 | D219: =SUM(D210:D218) -> 0 | E219: 1 | F219: 0 | G219: 1 | H219: 0 | I219: 0 | J219: 2 | K219: 0 | L219: 0 | M219: 0 | N219: 0 | O219: 0 | P219: 1 | Q219: 0 | R219: 0 | S219: 0 | T219: 5 | U219: 5 | V219: 3 | W219: 2 | X219: 0 | Y219: 1 | Z219: 1 | AA219: 0 | AB219: 0 | AC219: 3 | AD219: 0 | AE219: 0 | AF219: 0 | AG219: 0 | AH219: 0 | AI219: 0 | AJ219: 0 | AK219: 0 | AL219: 25
B221: Presuntos responsables masacres Urabá antioqueño por territorialidad
C222: Norte Urabá | D222: Eje Bananero | E222: Sur y Medio Atrato | F222: Total
B223: Fuerza Pública-Ejército Nacional | C223: =SUM(C158:F158) -> 1 | D223: =SUM(G158:J158) -> 2 | E223: =SUM(K158:M158) -> 1 | F223: =SUM(C223:E223) -> 4
B224: Fuerza Pública-Grupos paramilitares | C224: 1 | D224: 3 | E224: 0 | F224: =SUM(C224:E224) -> 4
B225: Grupo Armado No Identificado | C225: 10 | D225: 35 | E225: 1 | F225: 46
B226: Grupos Paramilitares | C226: 20 | D226: 92 | E226: 16 | F226: 128
B227: Guerrilla No Identificada | C227: 2 | D227: 9 | E227: 1 | F227: 12
B228: Guerrilla EPL | C228: 1 | D228: 3 | E228: 0 | F228: 4
B229: Guerrilla disidencia EPL | C229: 2 | D229: 3 | E229: 0 | F229: 5
B230: Guerrilla FARC | C230: 4 | D230: 30 | E230: 6 | F230: 40
B231: CGSB | C231: 0 | D231: 1 | E231: 0 | F231: 1
... 147 more rows

Sheet T.Masac.GUrabá
B3: Tablas Casos Masacres Gran Urabá
B5: Fuente: CNMH, Bases de datos, Observatorio de Memoria y Conflicto: http://centrodememoriahistorica.gov.co/observatorio/bases-de-datos/ fecha de corte: 15/09/2018. Consultado el 25 de septiembre de 2020
B7: Casos Masacres Gran Urabá por municipio 1977-2013
B8: Territorialidad | C8: Municipio | D8: 1977 | E8: 1978 | F8: 1981 | G8: 1982 | H8: 1983 | I8: 1984 | J8: 1985 | K8: 1986 | L8: 1987 | M8: 1988 | N8: 1989 | O8: 1990 | P8: 1991 | Q8: 1992 | R8: 1993 | S8: 1994 | T8: 1995 | U8: 1996 | V8: 1997 | W8: 1998 | X8: 1999 | Y8: 2000 | Z8: 2001 | AA8: 2002 | AB8: 2003 | AC8: 2004 | AD8: 2005 | AE8: 2006 | AF8: 2007 | AG8: 2008 | AH8: 2009 | AI8: 2010 | AJ8: 2011 | AK8: 2012 | AL8: 2013 | AM8: 2014 | AN8: TOTAL
B9: Norte Urabá | C9: Arboletes | M9: 1 | N9: 1 | O9: 5 | Q9: 1 | T9: 2 | AN9: =SUM(D9:AM9) -> 10
C10: San Juan | G10: 1 | AN10: =SUM(D10:AM10) -> 1
C11: San Pedro de Urabá | O11: 1 | Q11: 1 | R11: 4 | V11: 1 | Z11: 3 | AB11: 1 | AN11: 11
C12: Necoclí | O12: 3 | P12: 1 | Q12: 2 | R12: 3 | S12: 2 | T12: 4 | V12: 1 | Y12: 1 | AE12: 1 | AG12: 1 | AN12: 19
B13: Eje Bananero | C13: Turbo | E13: 1 | G13: 1 | H13: 1 | I13: 3 | J13: 3 | K13: 4 | L13: 2 | M13: 6 | N13: 1 | O13: 1 | Q13: 4 | R13: 7 | S13: 2 | T13: 16 | U13: 7 | V13: 5 | X13: 1 | Y13: 1 | AA13: 2 | AB13: 2 | AC13: 1 | AD13: 1 | AF13: 2 | AG13: 1 | AH13: 1 | AN13: 76
C14: Apartadó | H14: 1 | I14: 2 | J14: 1 | K14: 1 | L14: 1 | M14: 1 | N14: 4 | O14: 4 | Q14: 5 | R14: 9 | S14: 2 | T14: 6 | U14: 9 | V14: 7 | W14: 2 | X14: 2 | Y14: 6 | Z14: 2 | AA14: 1 | AB14: 1 | AD14: 2 | AL14: 1 | AN14: 70
C15: Carepa | R15: 2 | T15: 5 | U15: 1 | X15: 1 | Y15: 1 | AA15: 1 | AN15: 11
C16: Chigorodó | D16: 1 | E16: 2 | M16: 1 | O16: 2 | Q16: 2 | R16: 1 | T16: 3 | U16: 4 | V16: 3 | X16: 1 | AG16: 1 | AN16: 21
B17: Sur y Dabeiba | C17: Mutatá | F17: 1 | H17: 1 | K17: 1 | Q17: 1 | U17: 5 | V17: 4 | W17: 2 | X17: 2 | AD17: 3 | AN17: 20
C18: Dabeiba | N18: 1 | Q18: 1 | R18: 1 | U18: 2 | V18: 7 | W18: 1 | X18: 7 | AB18: 1 | AC18: 1 | AE18: 1 | AN18: 23
B19: Atrato | C19: Vigía del Fuerte | AA19: 1 | AN19: 1
C20: Murindó | K20: 1 | V20: 1 | W20: 1 | Z20: 1 | AN20: 4
C21: Riosucio | U21: 3 | V21: 2 | W21: 1 | X21: 2 | Z21: 2 | AA21: 5 | AD21: 2 | AE21: 3 | AN21: 20
C22: Carmen del Darién | AD22: 1 | AN22: 1
B23: Darién-Norte Chocó | C23: Unguía | O23: 1 | V23: 2 | AB23: 1 | AE23: 1 | AN23: 5
C24: Acandí | T24: 1 | V24: 1 | AB24: 1 | AN24: 3
B25: Sur Córdoba | C25: Tierralta | J25: 1 | K25: 1 | M25: 2 | N25: 1 | O25: 4 | U25: 1 | W25: 5 | X25: 4 | Y25: 6 | Z25: 5 | AB25: 2 | AJ25: 1 | AK25: 1 | AN25: 34
C26: Valencia | H26: 1 | M26: 1 | P26: 1 | S26: 1 | T26: 1 | U26: 2 | Y26: 1 | AN26: 8
C27: TOTAL | D27: =SUM(D9:D26) -> 1 | E27: 3 | F27: 1 | G27: 2 | H27: 4 | I27: 5 | J27: 5 | K27: 8 | L27: 3 | M27: 12 | N27: 8 | O27: 21 | P27: 2 | Q27: 17 | R27: 27 | S27: 7 | T27: 38 | U27: 34 | V27: 34 | W27: 12 | X27: 20 | Y27: 16 | Z27: 13 | AA27: 10 | AB27: 9 | AC27: 2 | AD27: 9 | AE27: 6 | AF27: 2 | AG27: 3 | AH27: 1 | AI27: 0 | AJ27: 1 | AK27: 1 | AL27: 1 | AM27: 0 | AN27: =SUM(AN9:AN26) -> 338
B29: Casos Masacres Norte Urabá por municipio 1982-2008
B30: Territorialidad | C30: Municipio | D30: 1977 | E30: 1978 | F30: 1981 | G30: 1982 | H30: 1983 | I30: 1984 | J30: 1985 | K30: 1986 | L30: 1987 | M30: 1988 | N30: 1989 | O30: 1990 | P30: 1991 | Q30: 1992 | R30: 1993 | S30: 1994 | T30: 1995 | U30: 1996 | V30: 1997 | W30: 1998 | X30: 1999 | Y30: 2000 | Z30: 2001 | AA30: 2002 | AB30: 2003 | AC30: 2004 | AD30: 2005 | AE30: 2006 | AF30: 2007 | AG30: 2008 | AH30: 2009 | AI30: 2010 | AJ30: 2011 | AK30: 2012 | AL30: 2013 | AM30: 2014 | AN30: TOTAL
B31: Norte Urabá | C31: Arboletes | M31: 1 | N31: 1 | O31: 5 | Q31: 1 | T31: 2 | AN31: =SUM(D31:AM31) -> 10
C32: San Juan | G32: 1 | AN32: 1
C33: San Pedro de Urabá | O33: 1 | Q33: 1 | R33: 4 | V33: 1 | Z33: 3 | AB33: 1 | AN33: 11
C34: Necoclí | O34: 3 | P34: 1 | Q34: 2 | R34: 3 | S34: 2 | T34: 4 | V34: 1 | Y34: 1 | AE34: 1 | AG34: 1 | AN34: 19
C35: TOTAL | D35: =SUM(D31:D34) -> 0 | E35: =SUM(E31:E34) -> 0 | F35: 0 | G35: 1 | H35: 0 | I35: 0 | J35: 0 | K35: 0 | L35: 0 | M35: 1 | N35: 1 | O35: 9 | P35: 1 | Q35: 4 | R35: 7 | S35: 2 | T35: 6 | U35: 0 | V35: 2 | W35: 0 | X35: 0 | Y35: 1 | Z35: 3 | AA35: 0 | AB35: 1 | AC35: 0 | AD35: 0 | AE35: 1 | AF35: 0 | AG35: 1 | AH35: 0 | AI35: 0 | AJ35: 0 | AK35: 0 | AL35: 0 | AM35: 0 | AN35: 41
B37: Casos Masacres Eje Bananero Urabá por municipio 1977-2013
B38: Territorialidad | C38: Municipio | D38: 1977 | E38: 1978 | F38: 1981 | G38: 1982 | H38: 1983 | I38: 1984 | J38: 1985 | K38: 1986 | L38: 1987 | M38: 1988 | N38: 1989 | O38: 1990 | P38: 1991 | Q38: 1992 | R38: 1993 | S38: 1994 | T38: 1995 | U38: 1996 | V38: 1997 | W38: 1998 | X38: 1999 | Y38: 2000 | Z38: 2001 | AA38: 2002 | AB38: 2003 | AC38: 2004 | AD38: 2005 | AE38: 2006 | AF38: 2007 | AG38: 2008 | AH38: 2009 | AI38: 2010 | AJ38: 2011 | AK38: 2012 | AL38: 2013 | AM38: 2014 | AN38: TOTAL
B39: Eje Bananero | C39: Turbo | E39: 1 | G39: 1 | H39: 1 | I39: 3 | J39: 3 | K39: 4 | L39: 2 | M39: 6 | N39: 1 | O39: 1 | Q39: 4 | R39: 7 | S39: 2 | T39: 16 | U39: 7 | V39: 5 | X39: 1 | Y39: 1 | AA39: 2 | AB39: 2 | AC39: 1 | AD39: 1 | AF39: 2 | AG39: 1 | AH39: 1 | AN39: =SUM(D39:AM39) -> 76
C40: Apartadó | H40: 1 | I40: 2 | J40: 1 | K40: 1 | L40: 1 | M40: 1 | N40: 4 | O40: 4 | Q40: 5 | R40: 9 | S40: 2 | T40: 6 | U40: 9 | V40: 7 | W40: 2 | X40: 2 | Y40: 6 | Z40: 2 | AA40: 1 | AB40: 1 | AD40: 2 | AL40: 1 | AN40: 70
C41: Carepa | R41: 2 | T41: 5 | U41: 1 | X41: 1 | Y41: 1 | AA41: 1 | AN41: 11
C42: Chigorodó | D42: 1 | E42: 2 | M42: 1 | O42: 2 | Q42: 2 | R42: 1 | T42: 3 | U42: 4 | V42: 3 | X42: 1 | AG42: 1 | AN42: 21
C43: TOTAL | D43: =SUM(D39:D42) -> 1 | E43: =SUM(E39:E42) -> 3 | F43: 0 | G43: 1 | H43: 2 | I43: 5 | J43: 4 | K43: 5 | L43: 3 | M43: 8 | N43: 5 | O43: 7 | P43: 0 | Q43: 11 | R43: 19 | S43: 4 | T43: 30 | U43: 21 | V43: 15 | W43: 2 | X43: 5 | Y43: 8 | Z43: 2 | AA43: 4 | AB43: 3 | AC43: 1 | AD43: 3 | AE43: 0 | AF43: 2 | AG43: 2 | AH43: 1 | AI43: 0 | AJ43: 0 | AK43: 0 | AL43: 1 | AM43: 0 | AN43: 178
B45: Casos Masacres Sur-Occidente 1981-2006
B46: Territorialidad | C46: Municipio | D46: 1977 | E46: 1978 | F46: 1981 | G46: 1982 | H46: 1983 | I46: 1984 | J46: 1985 | K46: 1986 | L46: 1987 | M46: 1988 | N46: 1989 | O46: 1990 | P46: 1991 | Q46: 1992 | R46: 1993 | S46: 1994 | T46: 1995 | U46: 1996 | V46: 1997 | W46: 1998 | X46: 1999 | Y46: 2000 | Z46: 2001 | AA46: 2002 | AB46: 2003 | AC46: 2004 | AD46: 2005 | AE46: 2006 | AF46: 2007 | AG46: 2008 | AH46: 2009 | AI46: 2010 | AJ46: 2011 | AK46: 2012 | AL46: 2013 | AM46: 2014 | AN46: TOTAL
B47: Sur-Occidente | C47: Mutatá | F47: 1 | H47: 1 | K47: 1 | Q47: 1 | U47: 5 | V47: 4 | W47: 2 | X47: 2 | AD47: 3 | AN47: =SUM(D47:AM47) -> 20
C48: Dabeiba | N48: 1 | Q48: 1 | R48: 1 | U48: 2 | V48: 7 | W48: 1 | X48: 7 | AB48: 1 | AC48: 1 | AE48: 1 | AN48: 23
C49: TOTAL | D49: =SUM(D47:D48) -> 0 | E49: =SUM(E47:E48) -> 0 | F49: 1 | G49: 0 | H49: 1 | I49: 0 | J49: 0 | K49: 1 | L49: 0 | M49: 0 | N49: 1 | O49: 0 | P49: 0 | Q49: 2 | R49: 1 | S49: 0 | T49: 0 | U49: 7 | V49: 11 | W49: 3 | X49: 9 | Y49: 0 | Z49: 0 | AA49: 0 | AB49: 1 | AC49: 1 | AD49: 3 | AE49: 1 | AF49: 0 | AG49: 0 | AH49: 0 | AI49: 0 | AJ49: 0 | AK49: 0 | AL49: 0 | AM49: 0 | AN49: 43
B51: Casos Masacres Atrato por municipio 1986-2006
B52: Territorialidad | C52: Municipio | D52: 1977 | E52: 1978 | F52: 1981 | G52: 1982 | H52: 1983 | I52: 1984 | J52: 1985 | K52: 1986 | L52: 1987 | M52: 1988 | N52: 1989 | O52: 1990 | P52: 1991 | Q52: 1992 | R52: 1993 | S52: 1994 | T52: 1995 | U52: 1996 | V52: 1997 | W52: 1998 | X52: 1999 | Y52: 2000 | Z52: 2001 | AA52: 2002 | AB52: 2003 | AC52: 2004 | AD52: 2005 | AE52: 2006 | AF52: 2007 | AG52: 2008 | AH52: 2009 | AI52: 2010 | AJ52: 2011 | AK52: 2012 | AL52: 2013 | AM52: 2014 | AN52: TOTAL
B53: Atrato | C53: Vigía del Fuerte | AA53: 1 | AN53: =SUM(D53:AM53) -> 1
C54: Murindó | K54: 1 | V54: 1 | W54: 1 | Z54: 1 | AN54: 4
C55: Riosucio | U55: 3 | V55: 2 | W55: 1 | X55: 2 | Z55: 2 | AA55: 5 | AD55: 2 | AE55: 3 | AN55: 20
C56: Carmen del Darién | AD56: 1 | AN56: 1
C57: TOTAL | D57: =SUM(D53:D56) -> 0 | E57: =SUM(E53:E56) -> 0 | F57: 0 | G57: 0 | H57: 0 | I57: 0 | J57: 0 | K57: 1 | L57: 0 | M57: 0 | N57: 0 | O57: 0 | P57: 0 | Q57: 0 | R57: 0 | S57: 0 | T57: 0 | U57: 3 | V57: 3 | W57: 2 | X57: 2 | Y57: 0 | Z57: 3 | AA57: 6 | AB57: 0 | AC57: 0 | AD57: 3 | AE57: 3 | AF57: 0 | AG57: 0 | AH57: 0 | AI57: 0 | AJ57: 0 | AK57: 0 | AL57: 0 | AM57: 0 | AN57: 26
B59: Casos Masacres Darién-Norte Chocó por municipio 1990-2006
B60: Territorialidad | C60: Municipio | D60: 1977 | E60: 1978 | F60: 1981 | G60: 1982 | H60: 1983 | I60: 1984 | J60: 1985 | K60: 1986 | L60: 1987 | M60: 1988 | N60: 1989 | O60: 1990 | P60: 1991 | Q60: 1992 | R60: 1993 | S60: 1994 | T60: 1995 | U60: 1996 | V60: 1997 | W60: 1998 | X60: 1999 | Y60: 2000 | Z60: 2001 | AA60: 2002 | AB60: 2003 | AC60: 2004 | AD60: 2005 | AE60: 2006 | AF60: 2007 | AG60: 2008 | AH60: 2009 | AI60: 2010 | AJ60: 2011 | AK60: 2012 | AL60: 2013 | AM60: 2014 | AN60: TOTAL
B61: Darién-Norte Chocó | C61: Unguía | O61: 1 | V61: 2 | AB61: 1 | AE61: 1 | AN61: =SUM(D61:AM61) -> 5
C62: Acandí | T62: 1 | V62: 1 | AB62: 1 | AN62: 3
C63: TOTAL | D63: =SUM(D61:D62) -> 0 | E63: =SUM(E61:E62) -> 0 | F63: 0 | G63: 0 | H63: 0 | I63: 0 | J63: 0 | K63: 0 | L63: 0 | M63: 0 | N63: 0 | O63: 1 | P63: 0 | Q63: 0 | R63: 0 | S63: 0 | T63: 1 | U63: 0 | V63: 3 | W63: 0 | X63: 0 | Y63: 0 | Z63: 0 | AA63: 0 | AB63: 2 | AC63: 0 | AD63: 0 | AE63: 1 | AF63: 0 | AG63: 0 | AH63: 0 | AI63: 0 | AJ63: 0 | AK63: 0 | AL63: 0 | AM63: 0 | AN63: 8
B65: Casos Masacres Sur Córdoba por municipio 1983-2012
B66: Territorialidad | C66: Municipio | D66: 1977 | E66: 1978 | F66: 1981 | G66: 1982 | H66: 1983 | I66: 1984 | J66: 1985 | K66: 1986 | L66: 1987 | M66: 1988 | N66: 1989 | O66: 1990 | P66: 1991 | Q66: 1992 | R66: 1993 | S66: 1994 | T66: 1995 | U66: 1996 | V66: 1997 | W66: 1998 | X66: 1999 | Y66: 2000 | Z66: 2001 | AA66: 2002 | AB66: 2003 | AC66: 2004 | AD66: 2005 | AE66: 2006 | AF66: 2007 | AG66: 2008 | AH66: 2009 | AI66: 2010 | AJ66: 2011 | AK66: 2012 | AL66: 2013 | AM66: 2014 | AN66: TOTAL
B67: Sur Córdoba | C67: Tierralta | J67: 1 | K67: 1 | M67: 2 | N67: 1 | O67: 4 | U67: 1 | W67: 5 | X67: 4 | Y67: 6 | Z67: 5 | AB67: 2 | AJ67: 1 | AK67: 1 | AN67: =SUM(D67:AM67) -> 34
C68: Valencia | H68: 1 | M68: 1 | P68: 1 | S68: 1 | T68: 1 | U68: 2 | Y68: 1 | AN68: =SUM(D68:AM68) -> 8
C69: TOTAL | D69: =SUM(D67:D68) -> 0 | E69: =SUM(E67:E68) -> 0 | F69: 0 | G69: 0 | H69: 1 | I69: 0 | J69: 1 | K69: 1 | L69: 0 | M69: 3 | N69: 1 | O69: 4 | P69: 1 | Q69: 0 | R69: 0 | S69: 1 | T69: 1 | U69: 3 | V69: 0 | W69: 5 | X69: 4 | Y69: 7 | Z69: 5 | AA69: 0 | AB69: 2 | AC69: 0 | AD69: 0 | AE69: 0 | AF69: 0 | AG69: 0 | AH69: 0 | AI69: 0 | AJ69: 1 | AK69: 1 | AL69: 0 | AM69: 0 | AN69: 42
B71: Casos Masacres Gran Urabá por territorialidad 1977-2013
B72: Territorialidad | C72: Municipio | D72: 1977 | E72: 1978 | F72: 1981 | G72: 1982 | H72: 1983 | I72: 1984 | J72: 1985 | K72: 1986 | L72: 1987 | M72: 1988 | N72: 1989 | O72: 1990 | P72: 1991 | Q72: 1992 | R72: 1993 | S72: 1994 | T72: 1995 | U72: 1996 | V72: 1997 | W72: 1998 | X72: 1999 | Y72: 2000 | Z72: 2001 | AA72: 2002 | AB72: 2003 | AC72: 2004 | AD72: 2005 | AE72: 2006 | AF72: 2007 | AG72: 2008 | AH72: 2009 | AI72: 2010 | AJ72: 2011 | AK72: 2012 | AL72: 2013 | AM72: 2014 | AN72: TOTAL
B73: Gran Urabá | C73: Norte Urabá | D73: =D35 -> 0 | E73: =E35 -> 0 | F73: 0 | G73: 1 | H73: 0 | I73: 0 | J73: 0 | K73: 0 | L73: 0 | M73: 1 | N73: 1 | O73: 9 | P73: 1 | Q73: 4 | R73: 7 | S73: 2 | T73: 6 | U73: 0 | V73: 2 | W73: 0 | X73: 0 | Y73: 1 | Z73: 3 | AA73: 0 | AB73: 1 | AC73: 0 | AD73: 0 | AE73: 1 | AF73: 0 | AG73: 1 | AH73: 0 | AI73: 0 | AJ73: 0 | AK73: 0 | AL73: 0 | AM73: 0 | AN73: =SUM(D73:AM73) -> 41
C74: Eje Bananero | D74: =D43 -> 1 | E74: =E43 -> 3 | F74: 0 | G74: 1 | H74: 2 | I74: 5 | J74: 4 | K74: 5 | L74: 3 | M74: 8 | N74: 5 | O74: 7 | P74: 0 | Q74: 11 | R74: 19 | S74: 4 | T74: 30 | U74: 21 | V74: 15 | W74: 2 | X74: 5 | Y74: 8 | Z74: 2 | AA74: 4 | AB74: 3 | AC74: 1 | AD74: 3 | AE74: 0 | AF74: 2 | AG74: 2 | AH74: 1 | AI74: 0 | AJ74: 0 | AK74: 0 | AL74: 1 | AM74: 0 | AN74: =SUM(D74:AM74) -> 178
C75: Sur y Dabeiba | D75: =D49 -> 0 | E75: =E49 -> 0 | F75: 1 | G75: 0 | H75: 1 | I75: 0 | J75: 0 | K75: 1 | L75: 0 | M75: 0 | N75: 1 | O75: 0 | P75: 0 | Q75: 2 | R75: 1 | S75: 0 | T75: 0 | U75: 7 | V75: 11 | W75: 3 | X75: 9 | Y75: 0 | Z75: 0 | AA75: 0 | AB75: 1 | AC75: 1 | AD75: 3 | AE75: 1 | AF75: 0 | AG75: 0 | AH75: 0 | AI75: 0 | AJ75: 0 | AK75: 0 | AL75: 0 | AM75: 0 | AN75: 43
C76: Atrato | D76: =D57 -> 0 | E76: =E57 -> 0 | F76: 0 | G76: 0 | H76: 0 | I76: 0 | J76: 0 | K76: 1 | L76: 0 | M76: 0 | N76: 0 | O76: 0 | P76: 0 | Q76: 0 | R76: 0 | S76: 0 | T76: 0 | U76: 3 | V76: 3 | W76: 2 | X76: 2 | Y76: 0 | Z76: 3 | AA76: 6 | AB76: 0 | AC76: 0 | AD76: 3 | AE76: 3 | AF76: 0 | AG76: 0 | AH76: 0 | AI76: 0 | AJ76: 0 | AK76: 0 | AL76: 0 | AM76: 0 | AN76: 26
C77: Darién Norte-Chocó | D77: =D63 -> 0 | E77: =E63 -> 0 | F77: 0 | G77: 0 | H77: 0 | I77: 0 | J77: 0 | K77: 0 | L77: 0 | M77: 0 | N77: 0 | O77: 1 | P77: 0 | Q77: 0 | R77: 0 | S77: 0 | T77: 1 | U77: 0 | V77: 3 | W77: 0 | X77: 0 | Y77: 0 | Z77: 0 | AA77: 0 | AB77: 2 | AC77: 0 | AD77: 0 | AE77: 1 | AF77: 0 | AG77: 0 | AH77: 0 | AI77: 0 | AJ77: 0 | AK77: 0 | AL77: 0 | AM77: 0 | AN77: 8
C78: Sur Córdoba | D78: =D69 -> 0 | E78: =E69 -> 0 | F78: 0 | G78: 0 | H78: 1 | I78: 0 | J78: 1 | K78: 1 | L78: 0 | M78: 3 | N78: 1 | O78: 4 | P78: 1 | Q78: 0 | R78: 0 | S78: 1 | T78: 1 | U78: 3 | V78: 0 | W78: 5 | X78: 4 | Y78: 7 | Z78: 5 | AA78: 0 | AB78: 2 | AC78: 0 | AD78: 0 | AE78: 0 | AF78: 0 | AG78: 0 | AH78: 0 | AI78: 0 | AJ78: 1 | AK78: 1 | AL78: 0 | AM78: 0 | AN78: 42
C79: TOTAL | D79: =SUM(D73:D78) -> 1 | E79: =SUM(E73:E78) -> 3 | F79: 1 | G79: 2 | H79: 4 | I79: 5 | J79: 5 | K79: 8 | L79: 3 | M79: 12 | N79: 8 | O79: 21 | P79: 2 | Q79: 17 | R79: 27 | S79: 7 | T79: 38 | U79: 34 | V79: 34 | W79: 12 | X79: 20 | Y79: 16 | Z79: 13 | AA79: 10 | AB79: 9 | AC79: 2 | AD79: 9 | AE79: 6 | AF79: 2 | AG79: 3 | AH79: 1 | AI79: 0 | AJ79: 1 | AK79: 1 | AL79: 1 | AM79: 0 | AN79: 338
B81: Tablas Víctimas Masacres Gran Urabá
B83: Fuente: CNMH, Bases de datos, Observatorio de Memoria y Conflicto: http://centrodememoriahistorica.gov.co/observatorio/bases-de-datos/ fecha de corte: 15/09/2018. Consultado el 25 de septiembre de 2020
B85: Víctimas Masacres Gran Urabá por municipio 1977-2013
B86: Territorialidad | C86: Municipio | D86: 1977 | E86: 1978 | F86: 1981 | G86: 1982 | H86: 1983 | I86: 1984 | J86: 1985 | K86: 1986 | L86: 1987 | M86: 1988 | N86: 1989 | O86: 1990 | P86: 1991 | Q86: 1992 | R86: 1993 | S86: 1994 | T86: 1995 | U86: 1996 | V86: 1997 | W86: 1998 | X86: 1999 | Y86: 2000 | Z86: 2001 | AA86: 2002 | AB86: 2003 | AC86: 2004 | AD86: 2005 | AE86: 2006 | AF86: 2007 | AG86: 2008 | AH86: 2009 | AI86: 2010 | AJ86: 2011 | AK86: 2012 | AL86: 2013 | AM86: 2014 | AN86: TOTAL
B87: Norte Urabá | C87: Arboletes | M87: 5 | N87: 6 | O87: 49 | Q87: 5 | T87: 15 | AN87: =SUM(D87:AM87) -> 80
C88: San Juan | G88: 4 | AN88: 4
C89: San Pedro de Urabá | O89: 8 | Q89: 4 | R89: 20 | V89: 11 | Z89: 44 | AB89: 5 | AN89: 92
C90: Necoclí | O90: 21 | P90: 5 | Q90: 16 | R90: 16 | S90: 11 | T90: 18 | V90: 8 | Y90: 11 | AE90: 4 | AG90: 4 | AN90: 114
B91: Eje Bananero | C91: Turbo | E91: 4 | G91: 4 | H91: 4 | I91: 24 | J91: 17 | K91: 22 | L91: 12 | M91: 61 | N91: 5 | O91: 5 | Q91: 22 | R91: 51 | S91: 8 | T91: 79 | U91: 42 | V91: 46 | X91: 5 | Y91: 4 | AA91: 8 | AB91: 12 | AC91: 5 | AD91: 4 | AF91: 10 | AG91: 5 | AH91: 5 | AN91: 464
C92: Apartadó | H92: 4 | I92: 14 | J92: 11 | K92: 7 | L92: 4 | M92: 5 | N92: 27 | O92: 29 | Q92: 30 | R92: 53 | S92: 40 | T92: 56 | U92: 47 | V92: 34 | W92: 8 | X92: 12 | Y92: 38 | Z92: 9 | AA92: 10 | AB92: 8 | AD92: 14 | AL92: 7 | AN92: 467
C93: Carepa | R93: 9 | T93: 41 | U93: 11 | X93: 4 | Y93: 5 | AA93: 7 | AN93: 77
C94: Chigorodó | D94: 5 | E94: 15 | M94: 6 | O94: 9 | Q94: 10 | R94: 22 | T94: 32 | U94: 29 | V94: 13 | X94: 4 | AG94: 7 | AN94: 152
B95: Sur y Dabeiba | C95: Mutatá | F95: 4 | H95: 4 | K95: 6 | Q95: 6 | U95: 28 | V95: 25 | W95: 10 | X95: 10 | AD95: 13 | AN95: 106
C96: Dabeiba | N96: 5 | Q96: 5 | R96: 4 | U96: 10 | V96: 45 | W96: 6 | X96: 40 | AB96: 7 | AC96: 4 | AE96: 6 | AN96: 132
B97: Atrato | C97: Vigía del Fuerte | AA97: 4 | AN97: 4
C98: Murindó | K98: 4 | V98: 5 | W98: 5 | Z98: 4 | AN98: 18
C99: Riosucio | U99: 18 | V99: 18 | W99: 8 | X99: 18 | Z99: 10 | AA99: 22 | AD99: 10 | AE99: 29 | AN99: 133
C100: Carmen del Darién | AD100: 5 | AN100: 5
B101: Darién-Norte Chocó | C101: Unguía | O101: 6 | V101: 13 | AB101: 7 | AE101: 4 | AN101: 30
C102: Acandí | T102: 7 | V102: 4 | AB102: 4 | AN102: 15
B103: Sur Córdoba | C103: Tierralta | J103: 4 | K103: 5 | M103: 8 | N103: 5 | O103: 45 | U103: 11 | W103: 44 | X103: 38 | Y103: 59 | Z103: 56 | AB103: 15 | AJ103: 6 | AK103: 14 | AN103: 310
C104: Valencia | H104: 4 | M104: 7 | P104: 4 | S104: 4 | T104: 4 | U104: 10 | Y104: 7 | AN104: 40
C105: TOTAL | D105: =SUM(D87:D104) -> 5 | E105: =SUM(E87:E104) -> 19 | F105: 4 | G105: 8 | H105: 16 | I105: 38 | J105: 32 | K105: 44 | L105: 16 | M105: 92 | N105: 48 | O105: 172 | P105: 9 | Q105: 98 | R105: 175 | S105: 63 | T105: 252 | U105: 206 | V105: 222 | W105: 81 | X105: 131 | Y105: 124 | Z105: 123 | AA105: 51 | AB105: 58 | AC105: 9 | AD105: 46 | AE105: 43 | AF105: 10 | AG105: 16 | AH105: 5 | AI105: 0 | AJ105: 6 | AK105: 14 | AL105: 7 | AM105: 0 | AN105: =SUM(AN87:AN104) -> 2243
B107: Víctimas Masacres Norte Urabá por municipio 1982-2008
B108: Territorialidad | C108: Municipio | D108: 1977 | E108: 1978 | F108: 1981 | G108: 1982 | H108: 1983 | I108: 1984 | J108: 1985 | K108: 1986 | L108: 1987 | M108: 1988 | N108: 1989 | O108: 1990 | P108: 1991 | Q108: 1992 | R108: 1993 | S108: 1994 | T108: 1995 | U108: 1996 | V108: 1997 | W108: 1998 | X108: 1999 | Y108: 2000 | Z108: 2001 | AA108: 2002 | AB108: 2003 | AC108: 2004 | AD108: 2005 | AE108: 2006 | AF108: 2007 | AG108: 2008 | AH108: 2009 | AI108: 2010 | AJ108: 2011 | AK108: 2012 | AL108: 2013 | AM108: 2014 | AN108: TOTAL
B109: Norte Urabá | C109: Arboletes | M109: 5 | N109: 6 | O109: 49 | Q109: 5 | T109: 15 | AN109: =SUM(D109:AM109) -> 80
C110: San Juan | G110: 4 | AN110: 4
C111: San Pedro de Urabá | O111: 8 | Q111: 4 | R111: 20 | V111: 11 | Z111: 44 | AB111: 5 | AN111: 92
C112: Necoclí | O112: 21 | P112: 5 | Q112: 16 | R112: 16 | S112: 11 | T112: 18 | V112: 8 | Y112: 11 | AE112: 4 | AG112: 4 | AN112: 114
C113: TOTAL | D113: =SUM(D109:D112) -> 0 | E113: =SUM(E109:E112) -> 0 | F113: 0 | G113: 4 | H113: 0 | I113: 0 | J113: 0 | K113: 0 | L113: 0 | M113: 5 | N113: 6 | O113: 78 | P113: 5 | Q113: 25 | R113: 36 | S113: 11 | T113: 33 | U113: 0 | V113: 19 | W113: 0 | X113: 0 | Y113: 11 | Z113: 44 | AA113: 0 | AB113: 5 | AC113: 0 | AD113: 0 | AE113: 4 | AF113: 0 | AG113: 4 | AH113: 0 | AI113: 0 | AJ113: 0 | AK113: 0 | AL113: 0 | AM113: 0 | AN113: 290
B115: Víctimas Masacres Eje Bananero Urabá por municipio 1977-2013
B116: Territorialidad | C116: Municipio | D116: 1977 | E116: 1978 | F116: 1981 | G116: 1982 | H116: 1983 | I116: 1984 | J116: 1985 | K116: 1986 | L116: 1987 | M116: 1988 | N116: 1989 | O116: 1990 | P116: 1991 | Q116: 1992 | R116: 1993 | S116: 1994 | T116: 1995 | U116: 1996 | V116: 1997 | W116: 1998 | X116: 1999 | Y116: 2000 | Z116: 2001 | AA116: 2002 | AB116: 2003 | AC116: 2004 | AD116: 2005 | AE116: 2006 | AF116: 2007 | AG116: 2008 | AH116: 2009 | AI116: 2010 | AJ116: 2011 | AK116: 2012 | AL116: 2013 | AM116: 2014 | AN116: TOTAL
B117: Eje Bananero | C117: Turbo | E117: 4 | G117: 4 | H117: 4 | I117: 24 | J117: 17 | K117: 22 | L117: 12 | M117: 61 | N117: 5 | O117: 5 | Q117: 22 | R117: 51 | S117: 8 | T117: 79 | U117: 42 | V117: 46 | X117: 5 | Y117: 4 | AA117: 8 | AB117: 12 | AC117: 5 | AD117: 4 | AF117: 10 | AG117: 5 | AH117: 5 | AN117: =SUM(D117:AM117) -> 464
C118: Apartadó | H118: 4 | I118: 14 | J118: 11 | K118: 7 | L118: 4 | M118: 5 | N118: 27 | O118: 29 | Q118: 30 | R118: 53 | S118: 40 | T118: 56 | U118: 47 | V118: 34 | W118: 8 | X118: 12 | Y118: 38 | Z118: 9 | AA118: 10 | AB118: 8 | AD118: 14 | AL118: 7 | AN118: 467
C119: Carepa | R119: 9 | T119: 41 | U119: 11 | X119: 4 | Y119: 5 | AA119: 7 | AN119: 77
C120: Chigorodó | D120: 5 | E120: 15 | M120: 6 | O120: 9 | Q120: 10 | R120: 22 | T120: 32 | U120: 29 | V120: 13 | X120: 4 | AG120: 7 | AN120: 152
C121: TOTAL | D121: =SUM(D117:D120) -> 5 | E121: =SUM(E117:E120) -> 19 | F121: 0 | G121: 4 | H121: 8 | I121: 38 | J121: 28 | K121: 29 | L121: 16 | M121: 72 | N121: 32 | O121: 43 | P121: 0 | Q121: 62 | R121: 135 | S121: 48 | T121: 208 | U121: 129 | V121: 93 | W121: 8 | X121: 25 | Y121: 47 | Z121: 9 | AA121: 25 | AB121: 20 | AC121: 5 | AD121: 18 | AE121: 0 | AF121: 10 | AG121: 12 | AH121: 5 | AI121: 0 | AJ121: 0 | AK121: 0 | AL121: 7 | AM121: 0 | AN121: 1160
B123: Víctimas Masacres Sur-Occidente 1981-2006
B124: Territorialidad | C124: Municipio | D124: 1977 | E124: 1978 | F124: 1981 | G124: 1982 | H124: 1983 | I124: 1984 | J124: 1985 | K124: 1986 | L124: 1987 | M124: 1988 | N124: 1989 | O124: 1990 | P124: 1991 | Q124: 1992 | R124: 1993 | S124: 1994 | T124: 1995 | U124: 1996 | V124: 1997 | W124: 1998 | X124: 1999 | Y124: 2000 | Z124: 2001 | AA124: 2002 | AB124: 2003 | AC124: 2004 | AD124: 2005 | AE124: 2006 | AF124: 2007 | AG124: 2008 | AH124: 2009 | AI124: 2010 | AJ124: 2011 | AK124: 2012 | AL124: 2013 | AM124: 2014 | AN124: TOTAL
B125: Sur-Occidente | C125: Mutatá | F125: 4 | H125: 4 | K125: 6 | Q125: 6 | U125: 28 | V125: 25 | W125: 10 | X125: 10 | AD125: 13 | AN125: =SUM(D125:AM125) -> 106
C126: Dabeiba | N126: 5 | Q126: 5 | R126: 4 | U126: 10 | V126: 45 | W126: 6 | X126: 40 | AB126: 7 | AC126: 4 | AE126: 6 | AN126: 132
C127: TOTAL | D127: =SUM(D125:D126) -> 0 | E127: =SUM(E125:E126) -> 0 | F127: 4 | G127: 0 | H127: 4 | I127: 0 | J127: 0 | K127: 6 | L127: 0 | M127: 0 | N127: 5 | O127: 0 | P127: 0 | Q127: 11 | R127: 4 | S127: 0 | T127: 0 | U127: 38 | V127: 70 | W127: 16 | X127: 50 | Y127: 0 | Z127: 0 | AA127: 0 | AB127: 7 | AC127: 4 | AD127: 13 | AE127: 6 | AF127: 0 | AG127: 0 | AH127: 0 | AI127: 0 | AJ127: 0 | AK127: 0 | AL127: 0 | AM127: 0 | AN127: 238
B129: Víctimas Masacres Atrato por municipio 1986-2006
B130: Territorialidad | C130: Municipio | D130: 1977 | E130: 1978 | F130: 1981 | G130: 1982 | H130: 1983 | I130: 1984 | J130: 1985 | K130: 1986 | L130: 1987 | M130: 1988 | N130: 1989 | O130: 1990 | P130: 1991 | Q130: 1992 | R130: 1993 | S130: 1994 | T130: 1995 | U130: 1996 | V130: 1997 | W130: 1998 | X130: 1999 | Y130: 2000 | Z130: 2001 | AA130: 2002 | AB130: 2003 | AC130: 2004 | AD130: 2005 | AE130: 2006 | AF130: 2007 | AG130: 2008 | AH130: 2009 | AI130: 2010 | AJ130: 2011 | AK130: 2012 | AL130: 2013 | AM130: 2014 | AN130: TOTAL
B131: Atrato | C131: Vigía del Fuerte | AA131: 4 | AN131: =SUM(D131:AM131) -> 4
C132: Murindó | K132: 4 | V132: 5 | W132: 5 | Z132: 4 | AN132: 18
C133: Riosucio | U133: 18 | V133: 18 | W133: 8 | X133: 18 | Z133: 10 | AA133: 22 | AD133: 10 | AE133: 29 | AN133: 133
C134: Carmen del Darién | AD134: 5 | AN134: 5
C135: TOTAL | D135: =SUM(D131:D134) -> 0 | E135: =SUM(E131:E134) -> 0 | F135: 0 | G135: 0 | H135: 0 | I135: 0 | J135: 0 | K135: 4 | L135: 0 | M135: 0 | N135: 0 | O135: 0 | P135: 0 | Q135: 0 | R135: 0 | S135: 0 | T135: 0 | U135: 18 | V135: 23 | W135: 13 | X135: 18 | Y135: 0 | Z135: 14 | AA135: 26 | AB135: 0 | AC135: 0 | AD135: 15 | AE135: 29 | AF135: 0 | AG135: 0 | AH135: 0 | AI135: 0 | AJ135: 0 | AK135: 0 | AL135: 0 | AM135: 0 | AN135: 160
B137: Víctimas Masacres Darién-Norte Chocó por municipio 1990-2006
B138: Territorialidad | C138: Municipio | D138: 1977 | E138: 1978 | F138: 1981 | G138: 1982 | H138: 1983 | I138: 1984 | J138: 1985 | K138: 1986 | L138: 1987 | M138: 1988 | N138: 1989 | O138: 1990 | P138: 1991 | Q138: 1992 | R138: 1993 | S138: 1994 | T138: 1995 | U138: 1996 | V138: 1997 | W138: 1998 | X138: 1999 | Y138: 2000 | Z138: 2001 | AA138: 2002 | AB138: 2003 | AC138: 2004 | AD138: 2005 | AE138: 2006 | AF138: 2007 | AG138: 2008 | AH138: 2009 | AI138: 2010 | AJ138: 2011 | AK138: 2012 | AL138: 2013 | AM138: 2014 | AN138: TOTAL
B139: Darién-Norte Chocó | C139: Unguía | O139: 6 | V139: 13 | AB139: 7 | AE139: 4 | AN139: =SUM(D139:AM139) -> 30
C140: Acandí | T140: 7 | V140: 4 | AB140: 4 | AN140: 15
C141: TOTAL | D141: =SUM(D139:D140) -> 0 | E141: =SUM(E139:E140) -> 0 | F141: 0 | G141: 0 | H141: 0 | I141: 0 | J141: 0 | K141: 0 | L141: 0 | M141: 0 | N141: 0 | O141: 6 | P141: 0 | Q141: 0 | R141: 0 | S141: 0 | T141: 7 | U141: 0 | V141: 17 | W141: 0 | X141: 0 | Y141: 0 | Z141: 0 | AA141: 0 | AB141: 11 | AC141: 0 | AD141: 0 | AE141: 4 | AF141: 0 | AG141: 0 | AH141: 0 | AI141: 0 | AJ141: 0 | AK141: 0 | AL141: 0 | AM141: 0 | AN141: 45
B143: Víctimas Masacres Sur Córdoba por municipio 1983-2012
B144: Territorialidad | C144: Municipio | D144: 1977 | E144: 1978 | F144: 1981 | G144: 1982 | H144: 1983 | I144: 1984 | J144: 1985 | K144: 1986 | L144: 1987 | M144: 1988 | N144: 1989 | O144: 1990 | P144: 1991 | Q144: 1992 | R144: 1993 | S144: 1994 | T144: 1995 | U144: 1996 | V144: 1997 | W144: 1998 | X144: 1999 | Y144: 2000 | Z144: 2001 | AA144: 2002 | AB144: 2003 | AC144: 2004 | AD144: 2005 | AE144: 2006 | AF144: 2007 | AG144: 2008 | AH144: 2009 | AI144: 2010 | AJ144: 2011 | AK144: 2012 | AL144: 2013 | AM144: 2014 | AN144: TOTAL
B145: Sur Córdoba | C145: Tierralta | J145: 4 | K145: 5 | M145: 8 | N145: 5 | O145: 45 | U145: 11 | W145: 44 | X145: 38 | Y145: 59 | Z145: 56 | AB145: 15 | AJ145: 6 | AK145: 14 | AN145: =SUM(D145:AM145) -> 310
C146: Valencia | H146: 4 | M146: 7 | P146: 4 | S146: 4 | T146: 4 | U146: 10 | Y146: 7 | AN146: 40
C147: TOTAL | D147: =SUM(D145:D146) -> 0 | E147: =SUM(E145:E146) -> 0 | F147: 0 | G147: 0 | H147: 4 | I147: 0 | J147: 4 | K147: 5 | L147: 0 | M147: 15 | N147: 5 | O147: 45 | P147: 4 | Q147: 0 | R147: 0 | S147: 4 | T147: 4 | U147: 21 | V147: 0 | W147: 44 | X147: 38 | Y147: 66 | Z147: 56 | AA147: 0 | AB147: 15 | AC147: 0 | AD147: 0 | AE147: 0 | AF147: 0 | AG147: 0 | AH147: 0 | AI147: 0 | AJ147: 6 | AK147: 14 | AL147: 0 | AM147: 0 | AN147: 350
B149: Víctimas Masacres Gran Urabá por territorialidad 1977-2013
B150: Región | C150: Territorialidad | D150: 1977 | E150: 1978 | F150: 1981 | G150: 1982 | H150: 1983 | I150: 1984 | J150: 1985 | K150: 1986 | L150: 1987 | M150: 1988 | N150: 1989 | O150: 1990 | P150: 1991 | Q150: 1992 | R150: 1993 | S150: 1994 | T150: 1995 | U150: 1996 | V150: 1997 | W150: 1998 | X150: 1999 | Y150: 2000 | Z150: 2001 | AA150: 2002 | AB150: 2003 | AC150: 2004 | AD150: 2005 | AE150: 2006 | AF150: 2007 | AG150: 2008 | AH150: 2009 | AI150: 2010 | AJ150: 2011 | AK150: 2012 | AL150: 2013 | AM150: 2014 | AN150: TOTAL
B151: Gran Urabá | C151: Norte Urabá | D151: =D113 -> 0 | E151: =E113 -> 0 | F151: 0 | G151: 4 | H151: 0 | I151: 0 | J151: 0 | K151: 0 | L151: 0 | M151: 5 | N151: 6 | O151: 78 | P151: 5 | Q151: 25 | R151: 36 | S151: 11 | T151: 33 | U151: 0 | V151: 19 | W151: 0 | X151: 0 | Y151: 11 | Z151: 44 | AA151: 0 | AB151: 5 | AC151: 0 | AD151: 0 | AE151: 4 | AF151: 0 | AG151: 4 | AH151: 0 | AI151: 0 | AJ151: 0 | AK151: 0 | AL151: 0 | AM151: 0 | AN151: =SUM(D151:AM151) -> 290
C152: Eje Bananero | D152: =D121 -> 5 | E152: =E121 -> 19 | F152: 0 | G152: 4 | H152: 8 | I152: 38 | J152: 28 | K152: 29 | L152: 16 | M152: 72 | N152: 32 | O152: 43 | P152: 0 | Q152: 62 | R152: 135 | S152: 48 | T152: 208 | U152: 129 | V152: 93 | W152: 8 | X152: 25 | Y152: 47 | Z152: 9 | AA152: 25 | AB152: 20 | AC152: 5 | AD152: 18 | AE152: 0 | AF152: 10 | AG152: 12 | AH152: 5 | AI152: 0 | AJ152: 0 | AK152: 0 | AL152: 7 | AM152: 0 | AN152: =SUM(D152:AM152) -> 1160
C153: Sur y Dabeiba | D153: =D127 -> 0 | E153: =E127 -> 0 | F153: 4 | G153: 0 | H153: 4 | I153: 0 | J153: 0 | K153: 6 | L153: 0 | M153: 0 | N153: 5 | O153: 0 | P153: 0 | Q153: 11 | R153: 4 | S153: 0 | T153: 0 | U153: 38 | V153: 70 | W153: 16 | X153: 50 | Y153: 0 | Z153: 0 | AA153: 0 | AB153: 7 | AC153: 4 | AD153: 13 | AE153: 6 | AF153: 0 | AG153: 0 | AH153: 0 | AI153: 0 | AJ153: 0 | AK153: 0 | AL153: 0 | AM153: 0 | AN153: =SUM(D153:AM153) -> 238
C154: Atrato | D154: =D135 -> 0 | E154: =E135 -> 0 | F154: 0 | G154: 0 | H154: 0 | I154: 0 | J154: 0 | K154: 4 | L154: 0 | M154: 0 | N154: 0 | O154: 0 | P154: 0 | Q154: 0 | R154: 0 | S154: 0 | T154: 0 | U154: 18 | V154: 23 | W154: 13 | X154: 18 | Y154: 0 | Z154: 14 | AA154: 26 | AB154: 0 | AC154: 0 | AD154: 15 | AE154: 29 | AF154: 0 | AG154: 0 | AH154: 0 | AI154: 0 | AJ154: 0 | AK154: 0 | AL154: 0 | AM154: 0 | AN154: =SUM(D154:AM154) -> 160
C155: Darién Norte-Chocó | D155: =D141 -> 0 | E155: =E141 -> 0 | F155: 0 | G155: 0 | H155: 0 | I155: 0 | J155: 0 | K155: 0 | L155: 0 | M155: 0 | N155: 0 | O155: 6 | P155: 0 | Q155: 0 | R155: 0 | S155: 0 | T155: 7 | U155: 0 | V155: 17 | W155: 0 | X155: 0 | Y155: 0 | Z155: 0 | AA155: 0 | AB155: 11 | AC155: 0 | AD155: 0 | AE155: 4 | AF155: 0 | AG155: 0 | AH155: 0 | AI155: 0 | AJ155: 0 | AK155: 0 | AL155: 0 | AM155: 0 | AN155: =SUM(D155:AM155) -> 45
C156: Sur Córdoba | D156: =D147 -> 0 | E156: =E147 -> 0 | F156: 0 | G156: 0 | H156: 4 | I156: 0 | J156: 4 | K156: 5 | L156: 0 | M156: 15 | N156: 5 | O156: 45 | P156: 4 | Q156: 0 | R156: 0 | S156: 4 | T156: 4 | U156: 21 | V156: 0 | W156: 44 | X156: 38 | Y156: 66 | Z156: 56 | AA156: 0 | AB156: 15 | AC156: 0 | AD156: 0 | AE156: 0 | AF156: 0 | AG156: 0 | AH156: 0 | AI156: 0 | AJ156: 6 | AK156: 14 | AL156: 0 | AM156: 0 | AN156: =SUM(D156:AM156) -> 350
C157: TOTAL | D157: =SUM(D151:D156) -> 5 | E157: =SUM(E151:E156) -> 19 | F157: 4 | G157: 8 | H157: 16 | I157: 38 | J157: 32 | K157: 44 | L157: 16 | M157: 92 | N157: 48 | O157: 172 | P157: 9 | Q157: 98 | R157: 175 | S157: 63 | T157: 252 | U157: 206 | V157: 222 | W157: 81 | X157: 131 | Y157: 124 | Z157: 123 | AA157: 51 | AB157: 58 | AC157: 9 | AD157: 46 | AE157: 43 | AF157: 10 | AG157: 16 | AH157: 5 | AI157: 0 | AJ157: 6 | AK157: 14 | AL157: 7 | AM157: 0 | AN157: 2243
B159: Tablas Total Casos Masacres y Víctimas Gran Urabá
B161: Fuente: CNMH, Bases de datos, Observatorio de Memoria y Conflicto: http://centrodememoriahistorica.gov.co/observatorio/bases-de-datos/ fecha de corte: 15/09/2018. Consultado el 25 de septiembre de 2020
B163: Masacres y víctimas Gran Urabá 1977-2013
B164: Territorialidad | D164: Masacres | E164: Víctimas
B165: Norte Urabá | C165: Arboletes | D165: 10 | E165: 80
C166: San Juan | D166: 1 | E166: 4
C167: San Pedro de Urabá | D167: 11 | E167: 92
C168: Necoclí | D168: 19 | E168: 114
B169: Eje Bananero | C169: Turbo | D169: 76 | E169: 464
C170: Apartadó | D170: 70 | E170: 467
C171: Carepa | D171: 11 | E171: 77
C172: Chigorodó | D172: 21 | E172: 152
B173: Sur y Dabeiba | C173: Mutatá | D173: 20 | E173: 106
C174: Dabeiba | D174: 23 | E174: 132
B175: Atrato | C175: Vigía del Fuerte | D175: 1 | E175: 4
C176: Murindó | D176: 4 | E176: 18
C177: Riosucio | D177: 20 | E177: 133
C178: Carmen del Darién | D178: 1 | E178: 5
B179: Darién-Norte Chocó | C179: Unguía | D179: 5 | E179: 30
C180: Acandí | D180: 3 | E180: 15
B181: Sur Córdoba | C181: Tierralta | D181: 34 | E181: 310
C182: Valencia | D182: 8 | E182: 40
C183: TOTAL | D183: =SUM(D165:D182) -> 338 | E183: =SUM(E165:E182) -> 2243
B185: Masacres y víctimas Norte Urabá 1977-2013
B186: Territorialidad | C186: Municipio | D186: Masacres | E186: Víctimas
B187: Norte Urabá | C187: Arboletes | D187: 10 | E187: 80
C188: San Juan | D188: 1 | E188: 4
C189: San Pedro de Urabá | D189: 11 | E189: 92
C190: Necoclí | D190: 19 | E190: 114
C191: TOTAL | D191: =SUM(D187:D190) -> 41 | E191: =SUM(E187:E190) -> 290
B193: Masacres y víctimas Eje Bananero Urabá 1977-2013
B194: Territorialidad | C194: Municipio | D194: Masacres | E194: Víctimas
B195: Eje Bananero | C195: Turbo | D195: 76 | E195: 464
C196: Apartadó | D196: 70 | E196: 467
C197: Carepa | D197: 11 | E197: 77
C198: Chigorodó | D198: 21 | E198: 152
C199: TOTAL | D199: =SUM(D195:D198) -> 178 | E199: =SUM(E195:E198) -> 1160
B201: Masacres y víctimas Sur Urabá y Dabeiba 1977-2013
B202: Territorialidad | C202: Municipio | D202: Masacres | E202: Víctimas
B203: Sur y Dabeiba | C203: Mutatá | D203: 20 | E203: 106
C204: Dabeiba | D204: 23 | E204: 132
C205: TOTAL | D205: =SUM(D203:D204) -> 43 | E205: =SUM(E203:E204) -> 238
B207: Masacres y víctimas Atrato 1977-2013
B208: Territorialidad | C208: Municipio | D208: Masacres | E208: Víctimas
B209: Atrato | C209: Vigía del Fuerte | D209: 1 | E209: 4
C210: Murindó | D210: 4 | E210: 18
C211: Riosucio | D211: 20 | E211: 133
C212: Carmen del Darién | D212: 1 | E212: 5
C213: TOTAL | D213: =SUM(D209:D212) -> 26 | E213: =SUM(E209:E212) -> 160
B215: Masacres y víctimas Darién-Norte Chocó 1977-2013
B216: Territorialidad | C216: Municipio | D216: Masacres | E216: Víctimas
B217: Darién-Norte Chocó | C217: Unguía | D217: 5 | E217: 30
C218: Acandí | D218: 3 | E218: 15
C219: TOTAL | D219: =SUM(D217:D218) -> 8 | E219: =SUM(E217:E218) -> 45
B221: Masacres y víctimas Sur Córdoba 1977-2013
B222: Territorialidad | C222: Municipio | D222: Masacres | E222: Víctimas
B223: Sur Córdoba | C223: Tierralta | D223: 34 | E223: 310
C224: Valencia | D224: 8 | E224: 40
C225: TOTAL | D225: =SUM(D223:D224) -> 42 | E225: =SUM(E223:E224) -> 350
B227: Masacres y víctimas Gran Urabá por territorialidad 1977-2013
B228: Territorialidad | C228: Municipio | D228: Masacres | E228: Víctimas
B229: Gran Urabá | C229: Norte Urabá | D229: =D191 -> 41 | E229: =E191 -> 290
C230: Eje Bananero | D230: =D199 -> 178 | E230: =E199 -> 1160
C231: Sur y Dabeiba | D231: =D205 -> 43 | E231: =E205 -> 238
... 351 more rows

Sheet Graf.Masac.Urabá ant
B4: Gráficas Casos Masacres Urabá antioqueño
B6: Fuente: CNMH, Bases de datos, Observatorio de Memoria y Conflicto: http://centrodememoriahistorica.gov.co/observatorio/bases-de-datos/ fecha de corte: 15/09/2018. Consultado el 25 de septiembre de 2020
A85: Gráficas Víctimas Masacres Urabá antioqueño
B87: Fuente: CNMH, Bases de datos, Observatorio de Memoria y Conflicto: http://centrodememoriahistorica.gov.co/observatorio/bases-de-datos/ fecha de corte: 15/09/2018. Consultado el 25 de septiembre de 2020
B165: Gráficas Total Casos Masacres y Víctimas Urabá antioqueño
B167: Fuente: CNMH, Bases de datos, Observatorio de Memoria y Conflicto: http://centrodememoriahistorica.gov.co/observatorio/bases-de-datos/ fecha de corte: 15/09/2018. Consultado el 25 de septiembre de 2020
B260: Gráficas Presuntos Responsables Masacres Urabá antioqueño 1977-2013
B261: Fuente: CNMH, Bases de datos, Observatorio de Memoria y Conflicto: http://centrodememoriahistorica.gov.co/observatorio/bases-de-datos/ fecha de corte: 15/09/2018. Consultado el 25 de septiembre de 2020

Sheet Graf.Masac.GUrabá
B4: Gráficas Casos Masacres Gran Urabá
B6: Fuente: CNMH, Bases de datos, Observatorio de Memoria y Conflicto: http://centrodememoriahistorica.gov.co/observatorio/bases-de-datos/ fecha de corte: 15/09/2018. Consultado el 25 de septiembre de 2020
A147: Gráficas Víctimas Masacres Gran Urabá
B149: Fuente: CNMH, Bases de datos, Observatorio de Memoria y Conflicto: http://centrodememoriahistorica.gov.co/observatorio/bases-de-datos/ fecha de corte: 15/09/2018. Consultado el 25 de septiembre de 2020
B291: Gráficas Total Casos Masacres y Víctimas Gran Urabá
B293: Fuente: CNMH, Bases de datos, Observatorio de Memoria y Conflicto: http://centrodememoriahistorica.gov.co/observatorio/bases-de-datos/ fecha de corte: 15/09/2018. Consultado el 25 de septiembre de 2020
B445: Gráficas Presuntos Responsables Masacres Gran Urabá 1977-2013
B446: Fuente: CNMH, Bases de datos, Observatorio de Memoria y Conflicto: http://centrodememoriahistorica.gov.co/observatorio/bases-de-datos/ fecha de corte: 15/09/2018. Consultado el 25 de septiembre de 2020

Sheet L.Masacres
B5: Listado de Masacres Gran Urabá 1977-2013
B6: Fuente: CNMH, Bases de datos, Observatorio de Memoria y Conflicto: http://centrodememoriahistorica.gov.co/observatorio/bases-de-datos/ fecha de corte: 15/09/2018. Consultado el 25 de septiembre de 2020
B7: # | C7: IdCaso | D7: IdCaso Relacionado | E7: Día | F7: Mes | G7: Año | H7: Cod DANE Mun | I7: Región | J7: Departamento | K7: Municipio | L7: Modalidad | M7: TipoArmas | N7: Presunto responsable | O7: Descripción presunto responsable | P7: Numero Victimas Caso | Q7: Estado
B8: 1 | C8: 288571 | E8: 21 | F8: 4 | G8: 1977 | H8: 5172 | I8: URABA | J8: ANTIOQUIA | K8: CHIGORODÓ | L8: Ruta | M8: ND | N8: Guerrilla | O8: FARC | P8: 5 | Q8: Publicado
B9: 2 | C9: 288582 | E9: 3 | F9: 7 | G9: 1978 | H9: 5837 | I9: URABA | J9: ANTIOQUIA | K9: TURBO | L9: Asalto | M9: Arma de Fuego | N9: Guerrilla | O9: FARC | P9: 4 | Q9: Publicado
B10: 3 | C10: 288579 | E10: 29 | F10: 1 | G10: 1978 | H10: 5172 | I10: URABA | J10: ANTIOQUIA | K10: CHIGORODÓ | L10: Desconocida | M10: Arma de Fuego | N10: Guerrilla | O10: FARC | P10: 4 | Q10: Publicado
B11: 4 | C11: 288587 | E11: 8 | F11: 9 | G11: 1978 | H11: 5172 | I11: URABA | J11: ANTIOQUIA | K11: CHIGORODÓ | L11: Ruta | M11: Arma de Fuego | N11: Guerrilla | O11: FARC | P11: 11 | Q11: Publicado
B12: 5 | C12: 288617 | E12: 12 | F12: 10 | G12: 1981 | H12: 5480 | I12: URABA | J12: ANTIOQUIA | K12: MUTATÁ | L12: Desconocida | M12: Arma de Fuego | N12: Guerrilla | O12: FARC | P12: 4 | Q12: Publicado
B13: 6 | C13: 288647 | E13: 9 | F13: 11 | G13: 1982 | H13: 5659 | I13: URABA | J13: ANTIOQUIA | K13: SAN JUAN DE URABÁ | L13: Desconocida | M13: ND | N13: Guerrilla | O13: FARC | P13: 4 | Q13: Publicado
B14: 7 | C14: 288646 | E14: 8 | F14: 11 | G14: 1982 | H14: 5837 | I14: URABA | J14: ANTIOQUIA | K14: TURBO | L14: Desconocida | M14: Arma de Fuego | N14: Guerrilla | O14: EPL | P14: 4 | Q14: Publicado
B15: 8 | C15: 439432 | E15: 22 | F15: 7 | G15: 1983 | H15: 5837 | I15: URABA | J15: ANTIOQUIA | K15: TURBO | L15: Asalto | M15: Arma de Fuego | N15: Grupo Paramilitar | O15: No Identificado | P15: 4 | Q15: Publicado
B16: 9 | C16: 288689 | E16: 16 | F16: 8 | G16: 1983 | H16: 5045 | I16: URABA | J16: ANTIOQUIA | K16: APARTADÓ | L16: Asalto | M16: Arma de Fuego | N16: Grupo Paramilitar | O16: No Identificado | P16: 4 | Q16: Publicado
B17: 10 | C17: 288686 | E17: 26 | F17: 7 | G17: 1983 | H17: 5480 | I17: URABA | J17: ANTIOQUIA | K17: MUTATÁ | L17: Asalto | M17: Arma Corto Punzante - Arma de Fuego | N17: Guerrilla | O17: No Identificada | P17: 4 | Q17: Publicado
B18: 11 | C18: 288661 | E18: 18 | F18: 4 | G18: 1983 | H18: 23855 | I18: ALTO SINU Y SAN JORGE | J18: CÓRDOBA | K18: VALENCIA | L18: Desconocida | M18: ND | N18: Grupo Paramilitar | O18: No Identificado | P18: 4 | Q18: Publicado
B19: 12 | C19: 288712 | E19: 24 | F19: 3 | G19: 1984 | H19: 5837 | I19: URABA | J19: ANTIOQUIA | K19: TURBO | L19: Ruta | M19: Arma Corto Punzante - Arma de Fuego | N19: Grupo Paramilitar | O19: No Identificado | P19: 8 | Q19: Publicado
B20: 13 | C20: 288714 | E20: 16 | F20: 4 | G20: 1984 | H20: 5837 | I20: URABA | J20: ANTIOQUIA | K20: TURBO | L20: Incursión | M20: Arma de Fuego | N20: Grupo Armado No Identificado | O20: Presencia GAO sin Atribución | P20: 9 | Q20: Publicado
B21: 14 | C21: 288733 | E21: 18 | F21: 12 | G21: 1984 | H21: 5837 | I21: URABA | J21: ANTIOQUIA | K21: TURBO | L21: Asalto | M21: Arma de Fuego | N21: Grupo Paramilitar | O21: No Identificado | P21: 7 | Q21: Publicado
B22: 15 | C22: 288718 | E22: 13 | F22: 5 | G22: 1984 | H22: 5045 | I22: URABA | J22: ANTIOQUIA | K22: APARTADÓ | L22: Incursión | M22: Arma de Fuego | N22: Grupo Paramilitar | O22: No Identificado | P22: 6 | Q22: Publicado
B23: 16 | C23: 511322 | E23: 23 | F23: 3 | G23: 1984 | H23: 5045 | I23: URABA | J23: ANTIOQUIA | K23: APARTADÓ | L23: Incursión | M23: Arma de Fuego | N23: Guerrilla | O23: EPL | P23: 8 | Q23: Publicado
B24: 17 | C24: 288766 | E24: 20 | F24: 10 | G24: 1985 | H24: 5837 | I24: URABA | J24: ANTIOQUIA | K24: TURBO | L24: Ataque Indiscriminado | M24: Arma de Fuego | N24: Guerrilla | O24: No Identificada | P24: 8 | Q24: Publicado
B25: 18 | C25: 288774 | D25: CR004976 | E25: 30 | F25: 11 | G25: 1985 | H25: 5837 | I25: URABA | J25: ANTIOQUIA | K25: TURBO | L25: Asalto | M25: Arma de Fuego - Artefacto Explosivo | N25: Grupo Armado No Identificado | O25: No aplica | P25: 5 | Q25: Publicado
B26: 19 | C26: 288775 | E26: 1 | F26: 12 | G26: 1985 | H26: 5837 | I26: URABA | J26: ANTIOQUIA | K26: TURBO | L26: Atentado | M26: Artefacto Explosivo | N26: Grupo Paramilitar | O26: No Identificado | P26: 4 | Q26: Publicado
B27: 20 | C27: 288771 | E27: 5 | F27: 11 | G27: 1985 | H27: 5045 | I27: URABA | J27: ANTIOQUIA | K27: APARTADÓ | L27: Asalto | M27: Arma de Fuego | N27: Grupo Armado No Identificado | O27: No aplica | P27: 11 | Q27: Publicado
B28: 21 | C28: 288739 | E28: 5 | F28: 3 | G28: 1985 | H28: 23807 | I28: ALTO SINU Y SAN JORGE | J28: CÓRDOBA | K28: TIERRALTA | L28: Retención/Ejecución | M28: ND | N28: Grupo Armado No Identificado | O28: No aplica | P28: 4 | Q28: Publicado
B29: 22 | C29: 288796 | E29: 27 | F29: 3 | G29: 1986 | H29: 5837 | I29: URABA | J29: ANTIOQUIA | K29: TURBO | L29: Asalto | M29: Arma de Fuego | N29: Grupo Paramilitar | O29: No Identificado | P29: 4 | Q29: Publicado
B30: 23 | C30: 288799 | E30: 12 | F30: 4 | G30: 1986 | H30: 5837 | I30: URABA | J30: ANTIOQUIA | K30: TURBO | L30: Ruta | M30: Arma de Fuego | N30: Guerrilla | O30: EPL | P30: 6 | Q30: Publicado
B31: 24 | C31: 288816 | E31: 14 | F31: 6 | G31: 1986 | H31: 5837 | I31: URABA | J31: ANTIOQUIA | K31: TURBO | L31: Desconocida | M31: ND | N31: Guerrilla | O31: FARC | P31: 8 | Q31: Publicado
B32: 25 | C32: 288825 | E32: 11 | F32: 8 | G32: 1986 | H32: 5837 | I32: URABA | J32: ANTIOQUIA | K32: TURBO | L32: Ataque Indiscriminado | M32: Arma de Fuego | N32: Guerrilla | O32: FARC | P32: 4 | Q32: Publicado
B33: 26 | C33: 288815 | E33: 13 | F33: 6 | G33: 1986 | H33: 5045 | I33: URABA | J33: ANTIOQUIA | K33: APARTADÓ | L33: Atentado | M33: Arma de Fuego | N33: Grupo Paramilitar | O33: No Identificado | P33: 7 | Q33: Publicado
B34: 27 | C34: 288840 | E34: 11 | F34: 12 | G34: 1986 | H34: 5480 | I34: URABA | J34: ANTIOQUIA | K34: MUTATÁ | L34: Desconocida | M34: Arma de Fuego | N34: Grupo Paramilitar | O34: No Identificado | P34: 6 | Q34: Publicado
B35: 28 | C35: 288830 | E35: 18 | F35: 9 | G35: 1986 | H35: 5475 | I35: ATRATO | J35: ANTIOQUIA | K35: MURINDÓ | L35: Incursión | M35: Arma de Fuego | N35: Guerrilla | O35: FARC | P35: 4 | Q35: Publicado
B36: 29 | C36: 288800 | E36: 13 | F36: 4 | G36: 1986 | H36: 23807 | I36: ALTO SINU Y SAN JORGE | J36: CÓRDOBA | K36: TIERRALTA | L36: Asalto | M36: Arma de Fuego | N36: Guerrilla | O36: EPL | P36: 5 | Q36: Publicado
B37: 30 | C37: 288884 | E37: 18 | F37: 12 | G37: 1987 | H37: 5837 | I37: URABA | J37: ANTIOQUIA | K37: TURBO | L37: Asalto | M37: Arma de Fuego | N37: Grupo Paramilitar | O37: No Identificado | P37: 6 | Q37: Publicado
B38: 31 | C38: 288885 | E38: 18 | F38: 12 | G38: 1987 | H38: 5837 | I38: URABA | J38: ANTIOQUIA | K38: TURBO | L38: Asalto | M38: Arma de Fuego | N38: Grupo Armado No Identificado | O38: No aplica | P38: 6 | Q38: Publicado
B39: 32 | C39: 288874 | E39: 19 | F39: 9 | G39: 1987 | H39: 5045 | I39: URABA | J39: ANTIOQUIA | K39: APARTADÓ | L39: Asalto | M39: Arma de Fuego | N39: Grupo Paramilitar | O39: No Identificado | P39: 4 | Q39: Publicado
B40: 33 | C40: 288932 | E40: 18 | F40: 5 | G40: 1988 | H40: 5051 | I40: URABA | J40: ANTIOQUIA | K40: ARBOLETES | L40: Asalto | M40: Arma de Fuego | N40: Grupo Armado No Identificado | O40: No aplica | P40: 5 | Q40: Publicado
B41: 34 | C41: 288902 | E41: 17 | F41: 2 | G41: 1988 | H41: 5837 | I41: URABA | J41: ANTIOQUIA | K41: TURBO | L41: Asalto | M41: Arma de Fuego | N41: Grupo Paramilitar | O41: Otro | P41: 5 | Q41: Publicado
B42: 35 | C42: 288913 | E42: 4 | F42: 3 | G42: 1988 | H42: 5837 | I42: URABA | J42: ANTIOQUIA | K42: TURBO | L42: Ruta | M42: Arma de Fuego | N42: Grupo Paramilitar | O42: Otro | P42: 20 | Q42: Publicado
B43: 36 | C43: 288922 | D43: CR020047 | E43: 11 | F43: 4 | G43: 1988 | H43: 5837 | I43: URABA | J43: ANTIOQUIA | K43: TURBO | L43: Retención/Ejecución | M43: Arma de Fuego | N43: Grupo Paramilitar | O43: Otro | P43: 23 | Q43: Publicado
B44: 37 | C44: 288958 | E44: 24 | F44: 7 | G44: 1988 | H44: 5837 | I44: URABA | J44: ANTIOQUIA | K44: TURBO | L44: Asalto | M44: ND | N44: Guerrilla | O44: FARC | P44: 4 | Q44: Publicado
B45: 38 | C45: 288973 | E45: 30 | F45: 9 | G45: 1988 | H45: 5837 | I45: URABA | J45: ANTIOQUIA | K45: TURBO | L45: Asalto | M45: Arma de Fuego | N45: Grupo Armado No Identificado | O45: No aplica | P45: 5 | Q45: Publicado
B46: 39 | C46: 290266 | E46: 24 | F46: 7 | G46: 1988 | H46: 5837 | I46: URABA | J46: ANTIOQUIA | K46: TURBO | L46: Asalto | M46: ND | N46: Guerrilla | O46: FARC | P46: 4 | Q46: Publicado
B47: 40 | C47: 288918 | E47: 28 | F47: 3 | G47: 1988 | H47: 5045 | I47: URABA | J47: ANTIOQUIA | K47: APARTADÓ | L47: Desconocida | M47: Arma de Fuego | N47: Grupo Armado No Identificado | O47: No aplica | P47: 5 | Q47: Publicado
B48: 41 | C48: 288911 | E48: 2 | F48: 3 | G48: 1988 | H48: 5172 | I48: URABA | J48: ANTIOQUIA | K48: CHIGORODÓ | L48: Asalto | M48: Arma Corto Punzante - Arma de Fuego | N48: Grupo Paramilitar | O48: Otro | P48: 6 | Q48: Publicado
B49: 42 | C49: 288952 | E49: 7 | F49: 7 | G49: 1988 | H49: 23807 | I49: ALTO SINU Y SAN JORGE | J49: CÓRDOBA | K49: TIERRALTA | L49: Desconocida | M49: ND | N49: Grupo Paramilitar | O49: Los Tangueros | P49: 4 | Q49: Publicado
B50: 43 | C50: 439240 | D50: CR008551 | E50: 23 | F50: 8 | G50: 1988 | H50: 23807 | I50: ALTO SINU Y SAN JORGE | J50: CÓRDOBA | K50: TIERRALTA | L50: Incursión | M50: Arma de Fuego | N50: Grupo Armado No Identificado | O50: Presencia GAO sin Atribución | P50: 4 | Q50: Publicado
B51: 44 | C51: 288887 | E51: 0 | F51: 0 | G51: 1988 | H51: 23855 | I51: ALTO SINU Y SAN JORGE | J51: CÓRDOBA | K51: VALENCIA | L51: Retención/Ejecución | M51: Arma de Fuego | N51: Grupo Paramilitar | O51: Otro | P51: 7 | Q51: Publicado
B52: 45 | C52: 439454 | E52: 24 | F52: 5 | G52: 1989 | H52: 5051 | I52: URABA | J52: ANTIOQUIA | K52: ARBOLETES | L52: Asalto | M52: Arma de Fuego | N52: Grupo Paramilitar | O52: No Identificado | P52: 6 | Q52: Publicado
B53: 46 | C53: 289106 | E53: 24 | F53: 12 | G53: 1989 | H53: 5837 | I53: URABA | J53: ANTIOQUIA | K53: TURBO | L53: Asalto | M53: ND | N53: Grupo Armado No Identificado | O53: No aplica | P53: 5 | Q53: Publicado
B54: 47 | C54: 289005 | E54: 7 | F54: 1 | G54: 1989 | H54: 5045 | I54: URABA | J54: ANTIOQUIA | K54: APARTADÓ | L54: Asalto | M54: Arma de Fuego | N54: Grupo Paramilitar | O54: No Identificado | P54: 15 | Q54: Publicado
B55: 48 | C55: 289007 | E55: 10 | F55: 1 | G55: 1989 | H55: 5045 | I55: URABA | J55: ANTIOQUIA | K55: APARTADÓ | L55: Retención/Ejecución | M55: ND | N55: Desconocido | O55: No aplica | P55: 4 | Q55: Publicado
B56: 49 | C56: 289008 | E56: 13 | F56: 1 | G56: 1989 | H56: 5045 | I56: URABA | J56: ANTIOQUIA | K56: APARTADÓ | L56: Asalto | M56: Arma de Fuego | N56: Guerrilla | O56: No Identificada | P56: 4 | Q56: Publicado
B57: 50 | C57: 439254 | E57: 4 | F57: 4 | G57: 1989 | H57: 5045 | I57: URABA | J57: ANTIOQUIA | K57: APARTADÓ | L57: Retención/Ejecución | M57: ND | N57: Grupo Paramilitar | O57: No Identificado | P57: 4 | Q57: Publicado
B58: 51 | C58: 289107 | E58: 29 | F58: 12 | G58: 1989 | H58: 5234 | I58: OCCIDENTE ANTIOQUEÑO | J58: ANTIOQUIA | K58: DABEIBA | L58: Desconocida | M58: Arma de Fuego | N58: Agente del Estado | O58: Ejército Nacional | P58: 5 | Q58: Publicado
B59: 52 | C59: 289051 | D59: CR020104 | E59: 21 | F59: 7 | G59: 1989 | H59: 23807 | I59: ALTO SINU Y SAN JORGE | J59: CÓRDOBA | K59: TIERRALTA | L59: Retención/Ejecución | M59: ND | N59: Grupo Armado No Identificado | O59: No aplica | P59: 5 | Q59: Publicado
B60: 53 | C60: 289125 | D60: CR2017289125 | E60: 18 | F60: 2 | G60: 1990 | H60: 5051 | I60: URABA | J60: ANTIOQUIA | K60: ARBOLETES | L60: Asalto | M60: Arma de Fuego | N60: Grupo Paramilitar | O60: Los Tangueros | P60: 12 | Q60: Publicado
B61: 54 | C61: 289127 | E61: 17 | F61: 2 | G61: 1990 | H61: 5051 | I61: URABA | J61: ANTIOQUIA | K61: ARBOLETES | L61: Desconocida | M61: ND | N61: Grupo Paramilitar | O61: No Identificado | P61: 6 | Q61: Publicado
B62: 55 | C62: 289128 | D62: CR042121 | E62: 18 | F62: 2 | G62: 1990 | H62: 5051 | I62: URABA | J62: ANTIOQUIA | K62: ARBOLETES | L62: Asalto | M62: Arma Corto Punzante - Arma de Fuego | N62: Grupo Paramilitar | O62: No Identificado | P62: 12 | Q62: Publicado
B63: 56 | C63: 289202 | E63: 5 | F63: 10 | G63: 1990 | H63: 5051 | I63: URABA | J63: ANTIOQUIA | K63: ARBOLETES | L63: Desconocida | M63: Arma de Fuego | N63: Agente del Estado | O63: Ejército Nacional | P63: 7 | Q63: Publicado
B64: 57 | C64: 289203 | E64: 5 | F64: 10 | G64: 1990 | H64: 5051 | I64: URABA | J64: ANTIOQUIA | K64: ARBOLETES | L64: Desconocida | M64: ND | N64: Grupo Paramilitar | O64: No Identificado | P64: 12 | Q64: Publicado
B65: 58 | C65: 289143 | E65: 29 | F65: 3 | G65: 1990 | H65: 5665 | I65: URABA | J65: ANTIOQUIA | K65: SAN PEDRO DE URABÁ | L65: Ruta | M65: Arma Corto Punzante | N65: Agente del Estado - Grupo Paramilitar | P65: 8 | Q65: Publicado
B66: 59 | C66: 289112 | E66: 7 | F66: 1 | G66: 1990 | H66: 5490 | I66: URABA | J66: ANTIOQUIA | K66: NECOCLÍ | L66: Asalto | M66: Arma de Fuego | N66: Guerrilla | O66: EPL | P66: 6 | Q66: Publicado
B67: 60 | C67: 289113 | E67: 7 | F67: 1 | G67: 1990 | H67: 5490 | I67: URABA | J67: ANTIOQUIA | K67: NECOCLÍ | L67: Ataque Indiscriminado | M67: Arma de Fuego | N67: Grupo Armado No Identificado | O67: Presencia GAO sin Atribución | P67: 7 | Q67: Publicado
B68: 61 | C68: 289138 | E68: 22 | F68: 3 | G68: 1990 | H68: 5490 | I68: URABA | J68: ANTIOQUIA | K68: NECOCLÍ | L68: Ruta | M68: Arma Corto Punzante - Arma de Fuego | N68: Grupo Paramilitar | O68: Otro | P68: 8 | Q68: Publicado
B69: 62 | C69: 289193 | E69: 5 | F69: 9 | G69: 1990 | H69: 5837 | I69: URABA | J69: ANTIOQUIA | K69: TURBO | L69: Asalto | M69: Arma Corto Punzante - Arma de Fuego | N69: Guerrilla | O69: FARC | P69: 5 | Q69: Publicado
B70: 63 | C70: 289137 | E70: 19 | F70: 3 | G70: 1990 | H70: 5045 | I70: URABA | J70: ANTIOQUIA | K70: APARTADÓ | L70: Asalto | M70: Arma de Fuego | N70: Grupo Armado No Identificado | O70: No aplica | P70: 6 | Q70: Publicado
B71: 64 | C71: 289154 | E71: 18 | F71: 5 | G71: 1990 | H71: 5045 | I71: URABA | J71: ANTIOQUIA | K71: APARTADÓ | L71: Asalto | M71: Arma de Fuego | N71: Grupo Paramilitar | O71: No Identificado | P71: 6 | Q71: Publicado
B72: 65 | C72: 289217 | E72: 11 | F72: 11 | G72: 1990 | H72: 5045 | I72: URABA | J72: ANTIOQUIA | K72: APARTADÓ | L72: Ataque Indiscriminado | M72: Arma de Fuego | N72: Guerrilla | O72: No Identificada | P72: 11 | Q72: Publicado
B73: 66 | C73: 289223 | E73: 4 | F73: 12 | G73: 1990 | H73: 5045 | I73: URABA | J73: ANTIOQUIA | K73: APARTADÓ | L73: Asalto | M73: Arma de Fuego | N73: Grupo Armado No Identificado | O73: No aplica | P73: 6 | Q73: Publicado
B74: 67 | C74: 289135 | E74: 27 | F74: 3 | G74: 1990 | H74: 5172 | I74: URABA | J74: ANTIOQUIA | K74: CHIGORODÓ | L74: Retención/Ejecución | M74: ND | N74: Guerrilla | O74: No Identificada | P74: 5 | Q74: Publicado
B75: 68 | C75: 289170 | E75: 24 | F75: 6 | G75: 1990 | H75: 5172 | I75: URABA | J75: ANTIOQUIA | K75: CHIGORODÓ | L75: Asalto | M75: Arma de Fuego | N75: Desconocido | O75: No aplica | P75: 4 | Q75: Publicado
B76: 69 | C76: 289133 | E76: 27 | F76: 2 | G76: 1990 | H76: 27800 | I76: URABA | J76: CHOCÓ | K76: UNGUÍA | L76: Retención/Ejecución | M76: Arma de Fuego | N76: Grupo Paramilitar | O76: Otro | P76: 6 | Q76: Publicado
B77: 70 | C77: 289208 | E77: 25 | F77: 10 | G77: 1990 | H77: 23807 | I77: ALTO SINU Y SAN JORGE | J77: CÓRDOBA | K77: TIERRALTA | L77: Ruta | M77: Arma Corto Punzante - Arma de Fuego | N77: Grupo Paramilitar | O77: No Identificado | P77: 11 | Q77: Publicado
B78: 71 | C78: 439461 | E78: 25 | F78: 10 | G78: 1990 | H78: 23807 | I78: ALTO SINU Y SAN JORGE | J78: CÓRDOBA | K78: TIERRALTA | L78: Incursión | M78: ND | N78: Grupo Paramilitar | O78: Los Tangueros | P78: 12 | Q78: Publicado
B79: 72 | C79: 439462 | E79: 25 | F79: 10 | G79: 1990 | H79: 23807 | I79: ALTO SINU Y SAN JORGE | J79: CÓRDOBA | K79: TIERRALTA | L79: Desconocida | M79: ND | N79: Grupo Paramilitar | O79: No Identificado | P79: 11 | Q79: Publicado
B80: 73 | C80: 439463 | E80: 25 | F80: 10 | G80: 1990 | H80: 23807 | I80: ALTO SINU Y SAN JORGE | J80: CÓRDOBA | K80: TIERRALTA | L80: Ruta | M80: ND | N80: Grupo Armado No Identificado | O80: No aplica | P80: 11 | Q80: Publicado
B81: 74 | C81: 289357 | E81: 20 | F81: 11 | G81: 1991 | H81: 5490 | I81: URABA | J81: ANTIOQUIA | K81: NECOCLÍ | L81: Retención/Ejecución | M81: Arma de Fuego | N81: Grupo Armado No Identificado | O81: Presencia GAO sin Atribución | P81: 5 | Q81: Publicado
B82: 75 | C82: 162668 | E82: 30 | F82: 6 | G82: 1991 | H82: 23855 | I82: ALTO SINU Y SAN JORGE | J82: CÓRDOBA | K82: VALENCIA | L82: Retención/Ejecución | M82: Arma de Fuego | N82: Grupo Paramilitar | O82: No Identificado | P82: 4 | Q82: Publicado
B83: 76 | C83: 289461 | E83: 12 | F83: 8 | G83: 1992 | H83: 5051 | I83: URABA | J83: ANTIOQUIA | K83: ARBOLETES | L83: Ruta | M83: ND | N83: Grupo Armado No Identificado | O83: No aplica | P83: 5 | Q83: Publicado
B84: 77 | C84: 289468 | E84: 24 | F84: 8 | G84: 1992 | H84: 5665 | I84: URABA | J84: ANTIOQUIA | K84: SAN PEDRO DE URABÁ | L84: Retén | M84: Arma de Fuego | N84: Guerrilla | O84: Disidencia EPL | P84: 4 | Q84: Publicado
B85: 78 | C85: 289476 | D85: CR020278 | E85: 16 | F85: 9 | G85: 1992 | H85: 5490 | I85: URABA | J85: ANTIOQUIA | K85: NECOCLÍ | L85: Incursión | M85: Arma de Fuego | N85: Grupo Paramilitar | O85: No Identificado | P85: 8 | Q85: Publicado
B86: 79 | C86: 289484 | E86: 3 | F86: 10 | G86: 1992 | H86: 5490 | I86: URABA | J86: ANTIOQUIA | K86: NECOCLÍ | L86: Asalto | M86: Arma Corto Punzante - Arma de Fuego | N86: Grupo Paramilitar | O86: No Identificado | P86: 8 | Q86: Publicado
B87: 80 | C87: 289463 | E87: 23 | F87: 8 | G87: 1992 | H87: 5837 | I87: URABA | J87: ANTIOQUIA | K87: TURBO | L87: Retén | M87: Arma de Fuego | N87: Grupo Paramilitar | O87: No Identificado | P87: 4 | Q87: Publicado
B88: 81 | C88: 289486 | D88: CR042135 | E88: 12 | F88: 10 | G88: 1992 | H88: 5837 | I88: URABA | J88: ANTIOQUIA | K88: TURBO | L88: Asalto | M88: Arma de Fuego | N88: Grupo Armado No Identificado | O88: No aplica | P88: 6 | Q88: Publicado
B89: 82 | C89: 289496 | E89: 15 | F89: 11 | G89: 1992 | H89: 5837 | I89: URABA | J89: ANTIOQUIA | K89: TURBO | L89: Asalto | M89: Arma Corto Punzante - Arma de Fuego | N89: Grupo Paramilitar | O89: No Identificado | P89: 5 | Q89: Publicado
B90: 83 | C90: 439281 | E90: 11 | F90: 7 | G90: 1992 | H90: 5837 | I90: URABA | J90: ANTIOQUIA | K90: TURBO | L90: Desconocida | M90: Arma de Fuego | N90: Grupo Paramilitar | O90: No Identificado | P90: 7 | Q90: Publicado
B91: 84 | C91: 147789 | E91: 12 | F91: 3 | G91: 1992 | H91: 5045 | I91: URABA | J91: ANTIOQUIA | K91: APARTADÓ | L91: Desconocida | M91: ND | N91: Grupo Paramilitar | O91: No Identificado | P91: 7 | Q91: Publicado
B92: 85 | C92: 289487 | E92: 16 | F92: 10 | G92: 1992 | H92: 5045 | I92: URABA | J92: ANTIOQUIA | K92: APARTADÓ | L92: Asalto | M92: Arma de Fuego | N92: Grupo Armado No Identificado | O92: No aplica | P92: 5 | Q92: Publicado
B93: 86 | C93: 289488 | E93: 16 | F93: 10 | G93: 1992 | H93: 5045 | I93: URABA | J93: ANTIOQUIA | K93: APARTADÓ | L93: Retención/Ejecución | M93: Arma de Fuego | N93: Grupo Paramilitar | O93: No Identificado | P93: 8 | Q93: Publicado
B94: 87 | C94: 289489 | E94: 17 | F94: 10 | G94: 1992 | H94: 5045 | I94: URABA | J94: ANTIOQUIA | K94: APARTADÓ | L94: Asalto | M94: Arma de Fuego | N94: Grupo Armado No Identificado | O94: No aplica | P94: 6 | Q94: Publicado
B95: 88 | C95: 439335 | E95: 29 | F95: 11 | G95: 1992 | H95: 5045 | I95: URABA | J95: ANTIOQUIA | K95: APARTADÓ | L95: Asalto | M95: Arma de Fuego | N95: Desconocido | O95: No aplica | P95: 4 | Q95: Publicado
B96: 89 | C96: 289402 | E96: 20 | F96: 3 | G96: 1992 | H96: 5172 | I96: URABA | J96: ANTIOQUIA | K96: CHIGORODÓ | L96: Desconocida | M96: Arma de Fuego | N96: Grupo Armado No Identificado | O96: Presencia GAO sin Atribución | P96: 4 | Q96: Publicado
B97: 90 | C97: 289462 | E97: 23 | F97: 8 | G97: 1992 | H97: 5172 | I97: URABA | J97: ANTIOQUIA | K97: CHIGORODÓ | L97: Retención/Ejecución | M97: Arma de Fuego | N97: Grupo Paramilitar | O97: No Identificado | P97: 6 | Q97: Publicado
B98: 91 | C98: 289430 | D98: CR021895 | E98: 28 | F98: 5 | G98: 1992 | H98: 5480 | I98: URABA | J98: ANTIOQUIA | K98: MUTATÁ | L98: Falso Positivo | M98: ND | N98: Agente del Estado | O98: Ejército Nacional | P98: 6 | Q98: Publicado
B99: 92 | C99: 289432 | E99: 30 | F99: 5 | G99: 1992 | H99: 5234 | I99: OCCIDENTE ANTIOQUEÑO | J99: ANTIOQUIA | K99: DABEIBA | L99: Falso Positivo | M99: Arma de Fuego | N99: Agente del Estado | O99: Ejército Nacional | P99: 5 | Q99: Publicado
B100: 93 | C100: 70575 | E100: 28 | F100: 5 | G100: 1993 | H100: 5665 | I100: URABA | J100: ANTIOQUIA | K100: SAN PEDRO DE URABÁ | L100: Asalto | M100: Arma Corto Punzante - Arma de Fuego | N100: Grupo Paramilitar | O100: No Identificado | P100: 4 | Q100: Publicado
B101: 94 | C101: 289573 | E101: 1 | F101: 8 | G101: 1993 | H101: 5665 | I101: URABA | J101: ANTIOQUIA | K101: SAN PEDRO DE URABÁ | L101: Sicariato | M101: Arma de Fuego | N101: Guerrilla | O101: FARC | P101: 4 | Q101: Publicado
B102: 95 | C102: 289602 | E102: 7 | F102: 12 | G102: 1993 | H102: 5665 | I102: URABA | J102: ANTIOQUIA | K102: SAN PEDRO DE URABÁ | L102: Asalto | M102: Arma de Fuego - Artefacto Explosivo | N102: Guerrilla | O102: FARC | P102: 5 | Q102: Publicado
B103: 96 | C103: 439363 | E103: 0 | F103: 9 | G103: 1993 | H103: 5665 | I103: URABA | J103: ANTIOQUIA | K103: SAN PEDRO DE URABÁ | L103: Sicariato | M103: Arma de Fuego | N103: Grupo Armado No Identificado | O103: No aplica | P103: 7 | Q103: Publicado
B104: 97 | C104: 289593 | E104: 21 | F104: 11 | G104: 1993 | H104: 5490 | I104: URABA | J104: ANTIOQUIA | K104: NECOCLÍ | L104: Retén | M104: Arma de Fuego | N104: Guerrilla | O104: Disidencia EPL | P104: 4 | Q104: Publicado
B105: 98 | C105: 289598 | D105: CR2017289598 | E105: 24 | F105: 11 | G105: 1993 | H105: 5490 | I105: URABA | J105: ANTIOQUIA | K105: NECOCLÍ | L105: Incursión | M105: Arma Corto Punzante - Arma de Fuego | N105: Grupo Paramilitar | O105: No Identificado | P105: 5 | Q105: Publicado
B106: 99 | C106: 439346 | E106: 9 | F106: 6 | G106: 1993 | H106: 5490 | I106: URABA | J106: ANTIOQUIA | K106: NECOCLÍ | L106: Ruta | M106: ND | N106: Grupo Paramilitar | O106: No Identificado | P106: 7 | Q106: Publicado
B107: 100 | C107: 74215 | E107: 22 | F107: 11 | G107: 1993 | H107: 5837 | I107: URABA | J107: ANTIOQUIA | K107: TURBO | L107: Asalto | M107: Arma de Fuego | N107: Guerrilla | O107: FARC | P107: 4 | Q107: Publicado
B108: 101 | C108: 289533 | E108: 4 | F108: 3 | G108: 1993 | H108: 5837 | I108: URABA | J108: ANTIOQUIA | K108: TURBO | L108: Asalto | M108: Arma de Fuego | N108: Guerrilla | O108: No Identificada | P108: 6 | Q108: Publicado
B109: 102 | C109: 289592 | E109: 17 | F109: 11 | G109: 1993 | H109: 5837 | I109: URABA | J109: ANTIOQUIA | K109: TURBO | L109: Ruta | M109: Arma de Fuego | N109: Grupo Paramilitar | O109: Otro | P109: 6 | Q109: Publicado
B110: 103 | C110: 289594 | E110: 22 | F110: 11 | G110: 1993 | H110: 5837 | I110: URABA | J110: ANTIOQUIA | K110: TURBO | L110: Ruta | M110: Arma de Fuego | N110: Guerrilla | O110: Coordinadora Guerrillera Simón Bolívar | P110: 9 | Q110: Publicado
B111: 104 | C111: 289599 | E111: 25 | F111: 11 | G111: 1993 | H111: 5837 | I111: URABA | J111: ANTIOQUIA | K111: TURBO | L111: Interceptación | M111: Arma de Fuego | N111: Guerrilla | O111: FARC | P111: 9 | Q111: Publicado
B112: 105 | C112: 289604 | E112: 9 | F112: 12 | G112: 1993 | H112: 5837 | I112: URABA | J112: ANTIOQUIA | K112: TURBO | L112: Asalto | M112: Arma de Fuego | N112: Grupo Armado No Dirimido | P112: 5 | Q112: Publicado
B113: 106 | C113: 289605 | E113: 9 | F113: 12 | G113: 1993 | H113: 5837 | I113: URABA | J113: ANTIOQUIA | K113: TURBO | L113: Retención/Ejecución | M113: Arma de Fuego | N113: Grupo Paramilitar | O113: Otro | P113: 12 | Q113: Publicado
B114: 107 | C114: 289510 | E114: 13 | F114: 1 | G114: 1993 | H114: 5045 | I114: URABA | J114: ANTIOQUIA | K114: APARTADÓ | L114: Asalto | M114: Arma de Fuego | N114: Grupo Armado No Identificado | O114: No aplica | P114: 4 | Q114: Publicado
B115: 108 | C115: 289515 | D115: CR2017289515 | E115: 3 | F115: 2 | G115: 1993 | H115: 5045 | I115: URABA | J115: ANTIOQUIA | K115: APARTADÓ | L115: Asalto | M115: Arma de Fuego | N115: Guerrilla | O115: Disidencia EPL | P115: 4 | Q115: Publicado
B116: 109 | C116: 289516 | E116: 3 | F116: 2 | G116: 1993 | H116: 5045 | I116: URABA | J116: ANTIOQUIA | K116: APARTADÓ | L116: Retención/Ejecución | M116: ND | N116: Grupo Armado No Identificado | O116: No aplica | P116: 4 | Q116: Publicado
B117: 110 | C117: 289589 | E117: 3 | F117: 11 | G117: 1993 | H117: 5045 | I117: URABA | J117: ANTIOQUIA | K117: APARTADÓ | L117: Ataque Indiscriminado | M117: ND | N117: Grupo Paramilitar | O117: No Identificado | P117: 8 | Q117: Publicado
B118: 111 | C118: 289595 | D118: CR013208 | E118: 22 | F118: 11 | G118: 1993 | H118: 5045 | I118: URABA | J118: ANTIOQUIA | K118: APARTADÓ | L118: Retén | M118: Arma de Fuego | N118: Guerrilla | O118: FARC | P118: 5 | Q118: Publicado
B119: 112 | C119: 289597 | E119: 22 | F119: 11 | G119: 1993 | H119: 5045 | I119: URABA | J119: ANTIOQUIA | K119: APARTADÓ | L119: Retención/Ejecución | M119: ND | N119: Grupo Paramilitar | O119: No Identificado | P119: 8 | Q119: Publicado
B120: 113 | C120: 289603 | E120: 7 | F120: 12 | G120: 1993 | H120: 5045 | I120: URABA | J120: ANTIOQUIA | K120: APARTADÓ | L120: Asalto | M120: Arma de Fuego | N120: Grupo Armado No Identificado | O120: No aplica | P120: 4 | Q120: Publicado
B121: 114 | C121: 289606 | E121: 19 | F121: 12 | G121: 1993 | H121: 5045 | I121: URABA | J121: ANTIOQUIA | K121: APARTADÓ | L121: Asalto | M121: ND | N121: Grupo Paramilitar | O121: No Identificado | P121: 12 | Q121: Publicado
B122: 115 | C122: 289608 | E122: 26 | F122: 12 | G122: 1993 | H122: 5045 | I122: URABA | J122: ANTIOQUIA | K122: APARTADÓ | L122: Retención/Ejecución | M122: ND | N122: Grupo Armado No Identificado | O122: No aplica | P122: 4 | Q122: Publicado
B123: 116 | C123: 58548 | D123: CR201758548 | E123: 22 | F123: 10 | G123: 1993 | H123: 5147 | I123: URABA | J123: ANTIOQUIA | K123: CAREPA | L123: Retención/Ejecución | M123: ND | N123: Guerrilla | O123: Disidencia EPL | P123: 5 | Q123: Publicado
B124: 117 | C124: 289601 | E124: 6 | F124: 12 | G124: 1993 | H124: 5147 | I124: URABA | J124: ANTIOQUIA | K124: CAREPA | L124: Retén | M124: Arma de Fuego | N124: Guerrilla | O124: FARC | P124: 4 | Q124: Publicado
B125: 118 | C125: 289519 | E125: 9 | F125: 2 | G125: 1993 | H125: 5172 | I125: URABA | J125: ANTIOQUIA | K125: CHIGORODÓ | L125: Incursión | M125: ND | N125: Grupo Paramilitar | O125: No Identificado | P125: 22 | Q125: Publicado
B126: 119 | C126: 289579 | E126: 17 | F126: 9 | G126: 1993 | H126: 5234 | I126: OCCIDENTE ANTIOQUEÑO | J126: ANTIOQUIA | K126: DABEIBA | L126: Retén | M126: Arma de Fuego | N126: Desconocido | O126: No aplica | P126: 4 | Q126: Publicado
B127: 120 | C127: 289662 | E127: 9 | F127: 6 | G127: 1994 | H127: 5490 | I127: URABA | J127: ANTIOQUIA | K127: NECOCLÍ | L127: Reunión Pública | M127: Arma de Fuego | N127: Grupo Paramilitar | O127: Otro | P127: 7 | Q127: Publicado
B128: 121 | C128: 289696 | E128: 12 | F128: 12 | G128: 1994 | H128: 5490 | I128: URABA | J128: ANTIOQUIA | K128: NECOCLÍ | L128: Ruta | M128: Arma Corto Punzante - Arma de Fuego | N128: Grupo Paramilitar | O128: Otro | P128: 4 | Q128: Publicado
B129: 122 | C129: 402050 | E129: 25 | F129: 7 | G129: 1994 | H129: 5837 | I129: URABA | J129: ANTIOQUIA | K129: TURBO | L129: Retención/Ejecución | M129: ND | N129: Grupo Paramilitar | O129: No Identificado | P129: 4 | Q129: Publicado
B130: 123 | C130: 439393 | E130: 17 | F130: 12 | G130: 1994 | H130: 5837 | I130: URABA | J130: ANTIOQUIA | K130: TURBO | L130: Ruta | M130: Arma de Fuego | N130: Guerrilla | O130: FARC | P130: 4 | Q130: Publicado
B131: 124 | C131: 289652 | E131: 16 | F131: 4 | G131: 1994 | H131: 5045 | I131: URABA | J131: ANTIOQUIA | K131: APARTADÓ | L131: Retención/Ejecución | M131: Arma de Fuego | N131: Grupo Paramilitar | O131: No Identificado | P131: 5 | Q131: Publicado
B132: 125 | C132: 439482 | E132: 23 | F132: 1 | G132: 1994 | H132: 5045 | I132: URABA | J132: ANTIOQUIA | K132: APARTADÓ | L132: Incursión | M132: Arma de Fuego | N132: Guerrilla | O132: FARC | P132: 35 | Q132: Publicado
B133: 126 | C133: 289695 | E133: 29 | F133: 11 | G133: 1994 | H133: 23855 | I133: ALTO SINU Y SAN JORGE | J133: CÓRDOBA | K133: VALENCIA | L133: Asalto | M133: Arma Corto Punzante - Arma de Fuego | N133: Grupo Paramilitar | O133: Autodefensas Campesinas de Córdoba y Urabá (ACCU) | P133: 4 | Q133: Publicado
B134: 127 | C134: 289746 | D134: CR020447 | E134: 23 | F134: 5 | G134: 1995 | H134: 5051 | I134: URABA | J134: ANTIOQUIA | K134: ARBOLETES | L134: Asalto | M134: Arma de Fuego | N134: Grupo Armado No Identificado | O134: No aplica | P134: 5 | Q134: Publicado
B135: 128 | C135: 439359 | E135: 13 | F135: 1 | G135: 1995 | H135: 5051 | I135: URABA | J135: ANTIOQUIA | K135: ARBOLETES | L135: Ruta | M135: Arma Corto Punzante | N135: Grupo Paramilitar | O135: Autodefensas Campesinas de Córdoba y Urabá (ACCU) | P135: 10 | Q135: Publicado
B136: 129 | C136: 289706 | E136: 14 | F136: 1 | G136: 1995 | H136: 5490 | I136: URABA | J136: ANTIOQUIA | K136: NECOCLÍ | L136: Retención/Ejecución | M136: Arma de Fuego | N136: Grupo Paramilitar | O136: Autodefensas Campesinas de Córdoba y Urabá (ACCU) | P136: 4 | Q136: Publicado
B137: 130 | C137: 289723 | D137: CR020437 | E137: 15 | F137: 3 | G137: 1995 | H137: 5490 | I137: URABA | J137: ANTIOQUIA | K137: NECOCLÍ | L137: Incursión | M137: Arma de Fuego | N137: Grupo Armado No Identificado | O137: No aplica | P137: 5 | Q137: Publicado
B138: 131 | C138: 289724 | E138: 15 | F138: 3 | G138: 1995 | H138: 5490 | I138: URABA | J138: ANTIOQUIA | K138: NECOCLÍ | L138: Retén | M138: ND | N138: Grupo Paramilitar | O138: No Identificado | P138: 5 | Q138: Publicado
B139: 132 | C139: 289780 | E139: 29 | F139: 10 | G139: 1995 | H139: 5490 | I139: URABA | J139: ANTIOQUIA | K139: NECOCLÍ | L139: Retención/Ejecución | M139: Arma de Fuego | N139: Guerrilla | O139: FARC | P139: 4 | Q139: Publicado
B140: 133 | C140: 289700 | E140: 0 | F140: 0 | G140: 1995 | H140: 5837 | I140: URABA | J140: ANTIOQUIA | K140: TURBO | L140: Retención/Ejecución | M140: ND | N140: Grupo Paramilitar | O140: Autodefensas Campesinas de Córdoba y Urabá (ACCU) | P140: 4 | Q140: Publicado
B141: 134 | C141: 289702 | D141: CR023026 | E141: 7 | F141: 1 | G141: 1995 | H141: 5837 | I141: URABA | J141: ANTIOQUIA | K141: TURBO | L141: Ruta | M141: Arma de Fuego | N141: Guerrilla | O141: Disidencia EPL | P141: 4 | Q141: Publicado
B142: 135 | C142: 289705 | E142: 12 | F142: 1 | G142: 1995 | H142: 5837 | I142: URABA | J142: ANTIOQUIA | K142: TURBO | L142: Asalto | M142: Arma de Fuego | N142: Grupo Paramilitar | O142: Otro | P142: 7 | Q142: Publicado
B143: 136 | C143: 289733 | E143: 5 | F143: 4 | G143: 1995 | H143: 5837 | I143: URABA | J143: ANTIOQUIA | K143: TURBO | L143: Atentado | M143: Arma de Fuego | N143: Grupo Paramilitar | O143: No Identificado | P143: 4 | Q143: Publicado
B144: 137 | C144: 289744 | E144: 15 | F144: 5 | G144: 1995 | H144: 5837 | I144: URABA | J144: ANTIOQUIA | K144: TURBO | L144: Engaño | M144: ND | N144: Grupo Paramilitar | O144: No Identificado | P144: 7 | Q144: Publicado
B145: 138 | C145: 289747 | D145: CR002159 | E145: 28 | F145: 5 | G145: 1995 | H145: 5837 | I145: URABA | J145: ANTIOQUIA | K145: TURBO | L145: Desconocida | M145: ND | N145: Grupo Paramilitar | O145: Autodefensas Campesinas de Córdoba y Urabá (ACCU) | P145: 4 | Q145: Publicado
B146: 139 | C146: 289751 | E146: 14 | F146: 6 | G146: 1995 | H146: 5837 | I146: URABA | J146: ANTIOQUIA | K146: TURBO | L146: Retención/Ejecución | M146: ND | N146: Agente del Estado - Grupo Paramilitar | P146: 5 | Q146: Publicado
B147: 140 | C147: 289752 | E147: 22 | F147: 6 | G147: 1995 | H147: 5837 | I147: URABA | J147: ANTIOQUIA | K147: TURBO | L147: Asalto | M147: Arma de Fuego | N147: Grupo Paramilitar | O147: Autodefensas Campesinas de Córdoba y Urabá (ACCU) | P147: 4 | Q147: Publicado
B148: 141 | C148: 289759 | E148: 29 | F148: 7 | G148: 1995 | H148: 5837 | I148: URABA | J148: ANTIOQUIA | K148: TURBO | L148: Retención/Ejecución | M148: Arma de Fuego | N148: Guerrilla | O148: No Identificada | P148: 4 | Q148: Publicado
B149: 142 | C149: 289760 | E149: 29 | F149: 7 | G149: 1995 | H149: 5837 | I149: URABA | J149: ANTIOQUIA | K149: TURBO | L149: Retén | M149: ND | N149: Guerrilla | O149: No Identificada | P149: 4 | Q149: Publicado
B150: 143 | C150: 289768 | D150: CR2017289768 | E150: 22 | F150: 8 | G150: 1995 | H150: 5837 | I150: URABA | J150: ANTIOQUIA | K150: TURBO | L150: Ruta | M150: Arma de Fuego - Objeto Contundente | N150: Grupo Paramilitar | O150: No Identificado | P150: 5 | Q150: Publicado
B151: 144 | C151: 289774 | E151: 14 | F151: 9 | G151: 1995 | H151: 5837 | I151: URABA | J151: ANTIOQUIA | K151: TURBO | L151: Ruta | M151: Arma de Fuego | N151: Grupo Paramilitar | O151: Autodefensas Campesinas de Córdoba y Urabá (ACCU) | P151: 6 | Q151: Publicado
B152: 145 | C152: 289781 | E152: 29 | F152: 10 | G152: 1995 | H152: 5837 | I152: URABA | J152: ANTIOQUIA | K152: TURBO | L152: Retén | M152: Arma de Fuego | N152: Grupo Paramilitar | O152: No Identificado | P152: 4 | Q152: Publicado
B153: 146 | C153: 289789 | E153: 23 | F153: 11 | G153: 1995 | H153: 5837 | I153: URABA | J153: ANTIOQUIA | K153: TURBO | L153: Sicariato | M153: ND | N153: Grupo Paramilitar | O153: No Identificado | P153: 7 | Q153: Publicado
B154: 147 | C154: 289791 | E154: 30 | F154: 11 | G154: 1995 | H154: 5837 | I154: URABA | J154: ANTIOQUIA | K154: TURBO | L154: Retención/Ejecución | M154: Arma de Fuego | N154: Grupo Paramilitar | O154: Autodefensas Campesinas de Córdoba y Urabá (ACCU) | P154: 5 | Q154: Publicado
B155: 148 | C155: 289796 | E155: 31 | F155: 12 | G155: 1995 | H155: 5837 | I155: URABA | J155: ANTIOQUIA | K155: TURBO | L155: Interceptación | M155: Arma de Fuego | N155: Grupo Paramilitar | O155: Autodefensas Campesinas de Córdoba y Urabá (ACCU) | P155: 5 | Q155: Publicado
B156: 149 | C156: 289756 | D156: CR2017289756 | E156: 14 | F156: 7 | G156: 1995 | H156: 5045 | I156: URABA | J156: ANTIOQUIA | K156: APARTADÓ | L156: Ruta | M156: Arma de Fuego | N156: Grupo Paramilitar | O156: Autodefensas Campesinas de Córdoba y Urabá (ACCU) | P156: 10 | Q156: Publicado
B157: 150 | C157: 289762 | E157: 12 | F157: 8 | G157: 1995 | H157: 5045 | I157: URABA | J157: ANTIOQUIA | K157: APARTADÓ | L157: Asalto | M157: Arma de Fuego | N157: Guerrilla | O157: FARC | P157: 6 | Q157: Publicado
B158: 151 | C158: 289764 | D158: CR020464 | E158: 19 | F158: 8 | G158: 1995 | H158: 5045 | I158: URABA | J158: ANTIOQUIA | K158: APARTADÓ | L158: Ruta | M158: Arma de Fuego | N158: Guerrilla | O158: FARC | P158: 6 | Q158: Publicado
B159: 152 | C159: 289765 | D159: CR020465 | E159: 19 | F159: 8 | G159: 1995 | H159: 5045 | I159: URABA | J159: ANTIOQUIA | K159: APARTADÓ | L159: Ruta | M159: Arma Corto Punzante - Arma de Fuego | N159: Grupo Paramilitar | O159: Autodefensas Campesinas de Córdoba y Urabá (ACCU) | P159: 5 | Q159: Publicado
B160: 153 | C160: 289775 | D160: CR000104 | E160: 20 | F160: 9 | G160: 1995 | H160: 5045 | I160: URABA | J160: ANTIOQUIA | K160: APARTADÓ | L160: Retén | M160: Arma de Fuego | N160: Guerrilla | O160: FARC | P160: 25 | Q160: Publicado
B161: 154 | C161: 289901 | D161: CR2017289901 | E161: 7 | F161: 9 | G161: 1995 | H161: 5045 | I161: URABA | J161: ANTIOQUIA | K161: APARTADÓ | L161: Ruta | M161: Arma de Fuego | N161: Grupo Paramilitar | O161: Autodefensas Campesinas de Córdoba y Urabá (ACCU) | P161: 4 | Q161: Publicado
B162: 155 | C162: 289734 | E162: 16 | F162: 4 | G162: 1995 | H162: 5147 | I162: URABA | J162: ANTIOQUIA | K162: CAREPA | L162: Desconocida | M162: ND | N162: Desconocido | O162: No aplica | P162: 7 | Q162: Publicado
B163: 156 | C163: 289743 | E163: 13 | F163: 5 | G163: 1995 | H163: 5147 | I163: URABA | J163: ANTIOQUIA | K163: CAREPA | L163: Sicariato | M163: Arma Corto Punzante - Arma de Fuego | N163: Grupo Paramilitar | O163: No Identificado | P163: 4 | Q163: Publicado
B164: 157 | C164: 289753 | E164: 6 | F164: 7 | G164: 1995 | H164: 5147 | I164: URABA | J164: ANTIOQUIA | K164: CAREPA | L164: Asalto | M164: Arma de Fuego | N164: Grupo Paramilitar | O164: Otro | P164: 4 | Q164: Publicado
B165: 158 | C165: 289771 | E165: 29 | F165: 8 | G165: 1995 | H165: 5147 | I165: URABA | J165: ANTIOQUIA | K165: CAREPA | L165: Retén | M165: Arma de Fuego | N165: Guerrilla | O165: FARC | P165: 22 | Q165: Publicado
B166: 159 | C166: 396282 | E166: 25 | F166: 2 | G166: 1995 | H166: 5147 | I166: URABA | J166: ANTIOQUIA | K166: CAREPA | L166: Asalto | M166: Arma de Fuego | N166: Grupo Paramilitar | O166: Autodefensas Campesinas de Córdoba y Urabá (ACCU) | P166: 4 | Q166: Publicado
B167: 160 | C167: 289703 | E167: 10 | F167: 1 | G167: 1995 | H167: 5172 | I167: URABA | J167: ANTIOQUIA | K167: CHIGORODÓ | L167: Desconocida | M167: ND | N167: Grupo Paramilitar | O167: No Identificado | P167: 9 | Q167: Publicado
B168: 161 | C168: 289763 | E168: 12 | F168: 8 | G168: 1995 | H168: 5172 | I168: URABA | J168: ANTIOQUIA | K168: CHIGORODÓ | L168: Asalto | M168: Arma de Fuego | N168: Grupo Paramilitar | O168: Otro | P168: 19 | Q168: Publicado
B169: 162 | C169: 289767 | E169: 22 | F169: 8 | G169: 1995 | H169: 5172 | I169: URABA | J169: ANTIOQUIA | K169: CHIGORODÓ | L169: Retén | M169: Arma de Fuego | N169: Guerrilla | O169: No Identificada | P169: 4 | Q169: Publicado
B170: 163 | C170: 289783 | D170: CR2017289783 | E170: 3 | F170: 11 | G170: 1995 | H170: 27006 | I170: URABA | J170: CHOCÓ | K170: ACANDÍ | L170: Ruta | M170: Arma Corto Punzante - Arma de Fuego - Uso de Químicos y Tóxicos | N170: Guerrilla | O170: FARC | P170: 7 | Q170: Publicado
B171: 164 | C171: 289790 | E171: 29 | F171: 11 | G171: 1995 | H171: 23855 | I171: ALTO SINU Y SAN JORGE | J171: CÓRDOBA | K171: VALENCIA | L171: Desconocida | M171: ND | N171: Grupo Paramilitar | O171: Autodefensas Campesinas de Córdoba y Urabá (ACCU) | P171: 4 | Q171: Publicado
B172: 165 | C172: 75117 | E172: 22 | F172: 4 | G172: 1996 | H172: 5837 | I172: URABA | J172: ANTIOQUIA | K172: TURBO | L172: Retención/Ejecución | M172: Arma de Fuego | N172: Grupo Paramilitar | O172: Autodefensas Unidas de Colombia AUC | P172: 6 | Q172: Publicado
B173: 166 | C173: 75119 | E173: 17 | F173: 5 | G173: 1996 | H173: 5837 | I173: URABA | J173: ANTIOQUIA | K173: TURBO | L173: Asalto | M173: ND | N173: Grupo Armado No Identificado | O173: No aplica | P173: 4 | Q173: Publicado
B174: 167 | C174: 289805 | E174: 8 | F174: 2 | G174: 1996 | H174: 5837 | I174: URABA | J174: ANTIOQUIA | K174: TURBO | L174: Asalto | M174: Arma de Fuego | N174: Guerrilla | O174: FARC | P174: 4 | Q174: Publicado
B175: 168 | C175: 289831 | E175: 15 | F175: 4 | G175: 1996 | H175: 5837 | I175: URABA | J175: ANTIOQUIA | K175: TURBO | L175: Retención/Ejecución | M175: Arma de Fuego | N175: Grupo Armado No Identificado | O175: No aplica | P175: 4 | Q175: Publicado
B176: 169 | C176: 289844 | E176: 4 | F176: 5 | G176: 1996 | H176: 5837 | I176: URABA | J176: ANTIOQUIA | K176: TURBO | L176: Reunión Pública | M176: Arma de Fuego - Material Incendiario | N176: Grupo Armado No Dirimido | P176: 15 | Q176: Publicado
B177: 170 | C177: 289870 | E177: 19 | F177: 6 | G177: 1996 | H177: 5837 | I177: URABA | J177: ANTIOQUIA | K177: TURBO | L177: Retención/Ejecución | M177: Arma de Fuego | N177: Grupo Paramilitar | O177: Autodefensas Unidas de Colombia AUC | P177: 4 | Q177: Publicado
B178: 171 | C178: 289909 | E178: 1 | F178: 10 | G178: 1996 | H178: 5837 | I178: URABA | J178: ANTIOQUIA | K178: TURBO | L178: Ruta | M178: ND | N178: Grupo Paramilitar | O178: No Identificado | P178: 5 | Q178: Publicado
B179: 172 | C179: 53273 | E179: 27 | F179: 5 | G179: 1996 | H179: 5045 | I179: URABA | J179: ANTIOQUIA | K179: APARTADÓ | L179: Ruta | M179: Arma de Fuego | N179: Grupo Paramilitar | O179: No Identificado | P179: 4 | Q179: Publicado
B180: 173 | C180: 289826 | E180: 3 | F180: 4 | G180: 1996 | H180: 5045 | I180: URABA | J180: ANTIOQUIA | K180: APARTADÓ | L180: Asalto | M180: Arma de Fuego | N180: Grupo Paramilitar | O180: Autodefensas Unidas de Colombia AUC | P180: 10 | Q180: Publicado
B181: 174 | C181: 289850 | E181: 12 | F181: 5 | G181: 1996 | H181: 5045 | I181: URABA | J181: ANTIOQUIA | K181: APARTADÓ | L181: Asalto | M181: Arma Corto Punzante - Arma de Fuego | N181: Grupo Paramilitar | O181: No Identificado | P181: 4 | Q181: Publicado
B182: 175 | C182: 289894 | E182: 10 | F182: 8 | G182: 1996 | H182: 5045 | I182: URABA | J182: ANTIOQUIA | K182: APARTADÓ | L182: Asalto | M182: Arma de Fuego | N182: Grupo Paramilitar | O182: No Identificado | P182: 4 | Q182: Publicado
B183: 176 | C183: 289913 | E183: 10 | F183: 10 | G183: 1996 | H183: 5045 | I183: URABA | J183: ANTIOQUIA | K183: APARTADÓ | L183: Asalto | M183: Arma de Fuego | N183: Grupo Armado No Identificado | O183: No aplica | P183: 6 | Q183: Publicado
B184: 177 | C184: 289921 | D184: CR020555 | E184: 21 | F184: 10 | G184: 1996 | H184: 5045 | I184: URABA | J184: ANTIOQUIA | K184: APARTADÓ | L184: Ruta | M184: Arma de Fuego | N184: Guerrilla | O184: FARC | P184: 5 | Q184: Publicado
B185: 178 | C185: 289923 | D185: CR042182 | E185: 22 | F185: 10 | G185: 1996 | H185: 5045 | I185: URABA | J185: ANTIOQUIA | K185: APARTADÓ | L185: Asalto | M185: ND | N185: Guerrilla | O185: FARC | P185: 4 | Q185: Publicado
B186: 179 | C186: 289929 | E186: 2 | F186: 11 | G186: 1996 | H186: 5045 | I186: URABA | J186: ANTIOQUIA | K186: APARTADÓ | L186: Ataque Indiscriminado | M186: Arma de Fuego | N186: Grupo Paramilitar | O186: No Identificado | P186: 5 | Q186: Publicado
B187: 180 | C187: 289938 | E187: 22 | F187: 11 | G187: 1996 | H187: 5045 | I187: URABA | J187: ANTIOQUIA | K187: APARTADÓ | L187: Asalto | M187: Arma de Fuego | N187: Grupo Paramilitar | O187: No Identificado | P187: 5 | Q187: Publicado
B188: 181 | C188: 289809 | E188: 14 | F188: 2 | G188: 1996 | H188: 5147 | I188: URABA | J188: ANTIOQUIA | K188: CAREPA | L188: Asalto | M188: Arma de Fuego | N188: Guerrilla | O188: FARC | P188: 11 | Q188: Publicado
B189: 182 | C189: 60353 | E189: 4 | F189: 7 | G189: 1996 | H189: 5172 | I189: URABA | J189: ANTIOQUIA | K189: CHIGORODÓ | L189: Asalto | M189: ND | N189: Grupo Paramilitar | O189: No Identificado | P189: 6 | Q189: Publicado
B190: 183 | C190: 289861 | E190: 9 | F190: 6 | G190: 1996 | H190: 5172 | I190: URABA | J190: ANTIOQUIA | K190: CHIGORODÓ | L190: Asalto | M190: Arma de Fuego | N190: Grupo Paramilitar | O190: No Identificado | P190: 5 | Q190: Publicado
B191: 184 | C191: 289885 | E191: 21 | F191: 7 | G191: 1996 | H191: 5172 | I191: URABA | J191: ANTIOQUIA | K191: CHIGORODÓ | L191: Ataque Indiscriminado | M191: Arma de Fuego | N191: Grupo Paramilitar | O191: No Identificado | P191: 11 | Q191: Publicado
B192: 185 | C192: 289912 | D192: CR119038 | E192: 7 | F192: 10 | G192: 1996 | H192: 5172 | I192: URABA | J192: ANTIOQUIA | K192: CHIGORODÓ | L192: Desconocida | M192: ND | N192: Grupo Paramilitar | O192: No Identificado | P192: 7 | Q192: Publicado
B193: 186 | C193: 289815 | D193: CR020492 | E193: 3 | F193: 3 | G193: 1996 | H193: 5480 | I193: URABA | J193: ANTIOQUIA | K193: MUTATÁ | L193: Incursión | M193: Arma de Fuego | N193: Grupo Paramilitar | O193: Autodefensas Campesinas de Córdoba y Urabá (ACCU) | P193: 5 | Q193: Publicado
B194: 187 | C194: 289877 | E194: 10 | F194: 7 | G194: 1996 | H194: 5480 | I194: URABA | J194: ANTIOQUIA | K194: MUTATÁ | L194: Asalto | M194: Arma de Fuego | N194: Grupo Paramilitar | O194: Autodefensas Unidas de Colombia AUC | P194: 5 | Q194: Publicado
B195: 188 | C195: 289910 | E195: 6 | F195: 10 | G195: 1996 | H195: 5480 | I195: URABA | J195: ANTIOQUIA | K195: MUTATÁ | L195: Incursión | M195: Arma de Fuego | N195: Grupo Paramilitar | O195: No Identificado | P195: 4 | Q195: Publicado
B196: 189 | C196: 289934 | E196: 17 | F196: 11 | G196: 1996 | H196: 5480 | I196: URABA | J196: ANTIOQUIA | K196: MUTATÁ | L196: Ruta | M196: Arma de Fuego | N196: Grupo Paramilitar | O196: Autodefensas Unidas de Colombia AUC | P196: 8 | Q196: Publicado
